Workbook

Sheet LivestockForageBalance
F1: LIVESTOCK-FORAGE BALANCE WORKSHEET
J2: LIVESTOCK NEEDS AND DEMAND SCHEDULE
F3: Start by using the "Save As" option to save a copy of the model to your computer. Enter the general information for the producer you are working with into the yellow cells. Then select the livestock class (or classes) to model by slecting the check box next to the livestock class name. You can select as many livestock classes to model as needed. If you selected a livestock class in error, clicking the check box again will remove that livestock class from the chosen options. Depending on the livestock class chosen, there may be additional management information to enter by selecting the button for "Mgt Info" next to the livestock class name. Enter the managment information within the button (if available) and then enter the required information in the yellow cells to capture the total forage demand. For Cow/Calf, Dairy, Bulls, and Horses livestock classes the "Mgt Info" button will have options to manage the animals on the grazing system all year or an alternative pasture or a dry lot for a portion of the year. The selected option will be reflected directly below the livestock class name.
H5: General Info | J5: Select Livestock Class (select as many as needed) | T5: Notes: (Use this area to make any notes specific to the model)
G6: Name:
G7: System ID:
G8: Date:
G9: County:
G10: Completed by:
G11: Plan Grazing Days:
I12: Planned | J12: Avg. | K12: Intake | N12: Forage Demand by Month (Lbs/month)
H13: Livestock Class | I13: Number | J13: Weight | K13: Rate (%) | L13: Lbs/Day | M13: Lbs/Year | N13: Apr | O13: May | P13: June | Q13: July | R13: Aug | S13: Sept | T13: Oct | U13: Nov | V13: Dec | W13: Jan | X13: Feb | Y13: Mar
H15: Cow/Calf Pairs Herd 1 | L15: =I15*J15*K15/100 -> 0 | M15: =SUM(N15:Y15) -> 0 | N15: =$L15*30*Calculations!$B$8 -> 0 | O15: =$L15*31*Calculations!$C$8 -> 0 | P15: =$L15*30*Calculations!$D$8 -> 0 | Q15: =$L15*31*Calculations!$E$8 -> 0 | R15: =$L15*31*Calculations!$F$8 -> 0 | S15: =$L15*30*Calculations!$G$8 -> 0 | T15: =$L15*31*Calculations!$H$8 -> 0 | U15: =$L15*30*Calculations!$I$8 -> 0 | V15: =$L15*31*Calculations!$J$8 -> 0 | W15: =$L15*31*Calculations!$K$8 -> 0 | X15: =$L15*28*Calculations!$L$8 -> 0 | Y15: =$L15*31*Calculations!$M$8 -> 0
H16: =IF(Calculations!B71=TRUE, "Selected Management = Grazing System all Year",IF(Calculations!B72=TRUE,"Selected Management = Alternative Pasture from:",IF(Calculations!B73=TRUE,"Selected Management = Dry Lot from:"))) -> Selected Management = Grazing System all Year | J16: =IF(OR(Calculations!B72=TRUE,Calculations!B73=TRUE),IF(Calculations!B87=1,"Jan -",IF(Calculations!B87=2,"Feb -",IF(Calculations!B87=3,"Mar -",IF(Calculations!B87=4,"Apr -",IF(Calculations!B87=5,"May -",IF(Calculations!B87=6,"Jun -",IF(Calculations!B87=7,"Jul -",IF(Calculations!B87=8,"Aug -",IF(Calculations!B87=9,"Sep -",IF(Calculations!B87=10,"Oct -",IF(Calculations!B87=11,"Nov -",IF(Calculations!B87=12,"Dec -")))))))))))),"") ->  | K16: =IF(OR(Calculations!B72=TRUE,Calculations!B73=TRUE),IF(Calculations!B88=1,"Jan",IF(Calculations!B88=2,"Feb",IF(Calculations!B88=3,"Mar",IF(Calculations!B88=4,"Apr",IF(Calculations!B88=5,"May",IF(Calculations!B88=6,"Jun",IF(Calculations!B88=7,"Jul",IF(Calculations!B88=8,"Aug",IF(Calculations!B88=9,"Sep",IF(Calculations!B88=10,"Oct",IF(Calculations!B88=11,"Nov",IF(Calculations!B88=12,"Dec")))))))))))),"") -> 
H17: Cow/Calf Pairs Herd 2 | L17: =I17*J17*K17/100 -> 0 | M17: =SUM(N17:Y17) -> 0 | N17: =$L17*30*Calculations!$B$10 -> 0 | O17: =$L17*31*Calculations!$C$10 -> 0 | P17: =$L17*30*Calculations!$D$10 -> 0 | Q17: =$L17*31*Calculations!$E$10 -> 0 | R17: =$L17*31*Calculations!$F$10 -> 0 | S17: =$L17*30*Calculations!$G$10 -> 0 | T17: =$L17*31*Calculations!$H$10 -> 0 | U17: =$L17*30*Calculations!$I$10 -> 0 | V17: =$L17*31*Calculations!$J$10 -> 0 | W17: =$L17*31*Calculations!$K$10 -> 0 | X17: =$L17*28*Calculations!$L$10 -> 0 | Y17: =$L17*31*Calculations!$M$10 -> 0
H18: =IF(Calculations!B76=TRUE, "Selected Management = Grazing System all Year",IF(Calculations!B77=TRUE,"Selected Management = Alternative Pasture from:",IF(Calculations!B78=TRUE,"Selected Management = Dry Lot from:"))) -> Selected Management = Grazing System all Year | J18: =IF(OR(Calculations!B77=TRUE,Calculations!B78=TRUE),IF(Calculations!B91=1,"Jan -",IF(Calculations!B91=2,"Feb -",IF(Calculations!B91=3,"Mar -",IF(Calculations!B91=4,"Apr -",IF(Calculations!B91=5,"May -",IF(Calculations!B91=6,"Jun -",IF(Calculations!B91=7,"Jul -",IF(Calculations!B91=8,"Aug -",IF(Calculations!B91=9,"Sep -",IF(Calculations!B91=10,"Oct -",IF(Calculations!B91=11,"Nov -",IF(Calculations!B91=12,"Dec -")))))))))))),"") ->  | K18: =IF(OR(Calculations!B77=TRUE,Calculations!B78=TRUE),IF(Calculations!B92=1,"Jan",IF(Calculations!B92=2,"Feb",IF(Calculations!B92=3,"Mar",IF(Calculations!B92=4,"Apr",IF(Calculations!B92=5,"May",IF(Calculations!B92=6,"Jun",IF(Calculations!B92=7,"Jul",IF(Calculations!B92=8,"Aug",IF(Calculations!B92=9,"Sep",IF(Calculations!B92=10,"Oct",IF(Calculations!B92=11,"Nov",IF(Calculations!B92=12,"Dec")))))))))))),"") -> 
H19: Cow/Calf Pairs Herd 3 | L19: =I19*J19*K19/100 -> 0 | M19: =SUM(N19:Y19) -> 0 | N19: =$L19*30*Calculations!$B$12 -> 0 | O19: =$L19*31*Calculations!$C$12 -> 0 | P19: =$L19*30*Calculations!$D$12 -> 0 | Q19: =$L19*31*Calculations!$E$12 -> 0 | R19: =$L19*31*Calculations!$F$12 -> 0 | S19: =$L19*30*Calculations!$G$12 -> 0 | T19: =$L19*31*Calculations!$H$12 -> 0 | U19: =$L19*30*Calculations!$I$12 -> 0 | V19: =$L19*31*Calculations!$J$12 -> 0 | W19: =$L19*31*Calculations!$K$12 -> 0 | X19: =$L19*28*Calculations!$L$12 -> 0 | Y19: =$L19*31*Calculations!$M$12 -> 0
H20: =IF(Calculations!B81=TRUE, "Selected Management = Grazing System all Year",IF(Calculations!B82=TRUE,"Selected Management = Alternative Pasture from:",IF(Calculations!B83=TRUE,"Selected Management = Dry Lot from:"))) -> Selected Management = Grazing System all Year | J20: =IF(OR(Calculations!B82=TRUE,Calculations!B83=TRUE),IF(Calculations!B95=1,"Jan -",IF(Calculations!B95=2,"Feb -",IF(Calculations!B95=3,"Mar -",IF(Calculations!B95=4,"Apr -",IF(Calculations!B95=5,"May -",IF(Calculations!B95=6,"Jun -",IF(Calculations!B95=7,"Jul -",IF(Calculations!B95=8,"Aug -",IF(Calculations!B95=9,"Sep -",IF(Calculations!B95=10,"Oct -",IF(Calculations!B95=11,"Nov -",IF(Calculations!B95=12,"Dec -")))))))))))),"") ->  | K20: =IF(OR(Calculations!B82=TRUE,Calculations!B83=TRUE),IF(Calculations!B96=1,"Jan",IF(Calculations!B96=2,"Feb",IF(Calculations!B96=3,"Mar",IF(Calculations!B96=4,"Apr",IF(Calculations!B96=5,"May",IF(Calculations!B96=6,"Jun",IF(Calculations!B96=7,"Jul",IF(Calculations!B96=8,"Aug",IF(Calculations!B96=9,"Sep",IF(Calculations!B96=10,"Oct",IF(Calculations!B96=11,"Nov",IF(Calculations!B96=12,"Dec")))))))))))),"") -> 
H21: Stockers Herd 1 | J21: =IF(I21>0,Calculations!$B$117) -> FALSE | L21: =M21/(MAX(Calculations!$A$26:$L$26)) -> 0 | M21: =SUM(N21:Y21) -> 0 | N21: =(Calculations!A$25)*$K21*Calculations!A$23*$I21/100 -> 0 | O21: =(Calculations!B$25)*$K21*Calculations!B$23*$I21/100 -> 0 | P21: =(Calculations!C$25)*$K21*Calculations!C$23*$I21/100 -> 0 | Q21: =(Calculations!D$25)*$K21*Calculations!D$23*$I21/100 -> 0 | R21: =(Calculations!E$25)*$K21*Calculations!E$23*$I21/100 -> 0 | S21: =(Calculations!F$25)*$K21*Calculations!F$23*$I21/100 -> 0 | T21: =(Calculations!G$25)*$K21*Calculations!G$23*$I21/100 -> 0 | U21: =(Calculations!H$25)*$K21*Calculations!H$23*$I21/100 -> 0 | V21: =(Calculations!I$25)*$K21*Calculations!I$23*$I21/100 -> 0 | W21: =(Calculations!J$25)*$K21*Calculations!J$23*$I21/100 -> 0 | X21: =(Calculations!K$25)*$K21*Calculations!K$23*$I21/100 -> 0 | Y21: =(Calculations!L$25)*$K21*Calculations!L$23*$I21/100 -> 0
H23: Stockers Herd 2 | J23: =IF(I23>0,Calculations!$B$118) -> FALSE | L23: =M23/(MAX(Calculations!$A$29:$L$29)) -> 0 | M23: =SUM(N23:Y23) -> 0 | N23: =(Calculations!A$28)*$K23*Calculations!A$23*$I23/100 -> 0 | O23: =(Calculations!B$28)*$K23*Calculations!B$23*$I23/100 -> 0 | P23: =(Calculations!C$28)*$K23*Calculations!C$23*$I23/100 -> 0 | Q23: =(Calculations!D$28)*$K23*Calculations!D$23*$I23/100 -> 0 | R23: =(Calculations!E$28)*$K23*Calculations!E$23*$I23/100 -> 0 | S23: =(Calculations!F$28)*$K23*Calculations!F$23*$I23/100 -> 0 | T23: =(Calculations!G$28)*$K23*Calculations!G$23*$I23/100 -> 0 | U23: =(Calculations!H$28)*$K23*Calculations!H$23*$I23/100 -> 0 | V23: =(Calculations!I$28)*$K23*Calculations!I$23*$I23/100 -> 0 | W23: =(Calculations!J$28)*$K23*Calculations!J$23*$I23/100 -> 0 | X23: =(Calculations!K$28)*$K23*Calculations!K$23*$I23/100 -> 0 | Y23: =(Calculations!L$28)*$K23*Calculations!L$23*$I23/100 -> 0
H25: Dairy, Seasonal | M25: =SUM(N25:Y25) -> 0 | N25: =IF(Calculations!$D$45<Calculations!$D$46,(IF(Calculations!$D$45<=4,(IF(Calculations!$D$46>=4,L26*30,L27*30)),L27*30)),IF(Calculations!$D$46>=4,L26*30,IF(Calculations!$D$45<=4,L26*30,L27*30))) -> 0 | O25: =IF(Calculations!$D$45<Calculations!$D$46,(IF(Calculations!$D$45<=5,(IF(Calculations!$D$46>=5,L26*31,L27*31)),L27*31)),IF(Calculations!$D$46>=5,L26*31,IF(Calculations!$D$45<=5,L26*31,L27*31))) -> 0 | P25: =IF(Calculations!$D$45<Calculations!$D$46,(IF(Calculations!$D$45<=6,(IF(Calculations!$D$46>=6,L26*30,L27*30)),L27*30)),IF(Calculations!$D$46>=6,L26*30,IF(Calculations!$D$45<=6,L26*30,L27*30))) -> 0 | Q25: =IF(Calculations!$D$45<Calculations!$D$46,(IF(Calculations!$D$45<=7,(IF(Calculations!$D$46>=7,L26*31,L27*31)),L27*31)),IF(Calculations!$D$46>=7,L26*31,IF(Calculations!$D$45<=7,L26*31,L27*31))) -> 0 | R25: =IF(Calculations!$D$45<Calculations!$D$46,(IF(Calculations!$D$45<=8,(IF(Calculations!$D$46>=8,L26*31,L27*31)),L27*31)),IF(Calculations!$D$46>=8,L26*31,IF(Calculations!$D$45<=8,L26*31,L27*31))) -> 0 | S25: =IF(Calculations!$D$45<Calculations!$D$46,(IF(Calculations!$D$45<=9,(IF(Calculations!$D$46>=9,L26*30,L27*30)),L27*30)),IF(Calculations!$D$46>=9,L26*30,IF(Calculations!$D$45<=9,L26*30,L27*30))) -> 0 | T25: =IF(Calculations!$D$45<Calculations!$D$46,(IF(Calculations!$D$45<=10,(IF(Calculations!$D$46>=10,L26*31,L27*31)),L27*31)),IF(Calculations!$D$46>=10,L26*31,IF(Calculations!$D$45<=10,L26*31,L27*31))) -> 0 | U25: =IF(Calculations!$D$45<Calculations!$D$46,(IF(Calculations!$D$45<=11,(IF(Calculations!$D$46>=11,L26*30,L27*30)),L27*30)),IF(Calculations!$D$46>=11,L26*30,IF(Calculations!$D$45<=11,L26*30,L27*30))) -> 0 | V25: =IF(Calculations!$D$45<Calculations!$D$46,(IF(Calculations!$D$45<=12,(IF(Calculations!$D$46>=12,L26*31,L27*31)),L27*31)),IF(Calculations!$D$46>=12,L26*31,IF(Calculations!$D$45<=12,L26*31,L27*31))) -> 0 | W25: =IF(Calculations!$D$45<Calculations!$D$46,(IF(Calculations!$D$45<=1,(IF(Calculations!$D$46>=1,L26*31,L27*31)),L27*31)),IF(Calculations!$D$46>=1,L26*31,IF(Calculations!$D$45<=1,L26*31,L27*31))) -> 0 | X25: =IF(Calculations!$D$45<Calculations!$D$46,(IF(Calculations!$D$45<=2,(IF(Calculations!$D$46>=2,L26*28,L27*28)),L27*28)),IF(Calculations!$D$46>=2,L26*28,IF(Calculations!$D$45<=2,L26*28,L27*28))) -> 0 | Y25: =IF(Calculations!$D$45<Calculations!$D$46,(IF(Calculations!$D$45<=3,(IF(Calculations!$D$46>=3,L26*31,L27*31)),L27*31)),IF(Calculations!$D$46>=3,L26*31,IF(Calculations!$D$45<=3,L26*31,L27*31))) -> 0
H26: Intake Rate Lactating Months | L26: =I25*J25*K26/100 -> 0
H27: Intake Rate Dry Months | L27: =I25*J25*K27/100 -> 0
H28: =IF(Calculations!G45=TRUE, "Selected Management = Grazing System all Year",IF(Calculations!H45=TRUE,"Selected Management = Alternative Pasture from:",IF(Calculations!I45=TRUE,"Selected Management = Dry Lot from:"))) -> Selected Management = Grazing System all Year | J28: =IF(OR(Calculations!H45=TRUE,Calculations!I45=TRUE),IF(Calculations!D46=1,"Feb -",IF(Calculations!D46=2,"Mar -",IF(Calculations!D46=3,"Apr -",IF(Calculations!D46=4,"May -",IF(Calculations!D46=5,"Jun -",IF(Calculations!D46=6,"Jul -",IF(Calculations!D46=7,"Aug -",IF(Calculations!D46=8,"Sep -",IF(Calculations!D46=9,"Oct -",IF(Calculations!D46=10,"Nov -",IF(Calculations!D46=11,"Dec -",IF(Calculations!D46=12,"Jan -")))))))))))),"") ->  | K28: =IF(OR(Calculations!H45=TRUE,Calculations!I45=TRUE),IF(Calculations!D45=1,"Dec",IF(Calculations!D45=2,"Jan",IF(Calculations!D45=3,"Feb",IF(Calculations!D45=4,"Mar",IF(Calculations!D45=5,"Apr",IF(Calculations!D45=6,"May",IF(Calculations!D45=7,"Jun",IF(Calculations!D45=8,"Jul",IF(Calculations!D45=9,"Aug",IF(Calculations!D45=10,"Sep",IF(Calculations!D45=11,"Oct",IF(Calculations!D45=12,"Nov")))))))))))),"") -> 
H29: Lactating Dairy Herd | L29: =I29*J29*K29/100 -> 0 | M29: =SUM(N29:Y29) -> 0 | N29: =$L29*30 -> 0 | O29: =$L29*31 -> 0 | P29: =$L29*30 -> 0 | Q29: =$L29*31 -> 0 | R29: 0 | S29: =$L29*30 -> 0 | T29: =$L29*31 -> 0 | U29: =$L29*30 -> 0 | V29: =$L29*31 -> 0 | W29: 0 | X29: =$L29*28 -> 0 | Y29: =$L29*31 -> 0
H30: =IF(Calculations!G54=TRUE, "Selected Management = Grazing System all Year",IF(Calculations!H54=TRUE,"Selected Management = Alternative Pasture from:",IF(Calculations!I54=TRUE,"Selected Management = Dry Lot from:"))) -> Selected Management = Grazing System all Year | J30: =IF(OR(Calculations!H54=TRUE,Calculations!I54=TRUE),IF(Calculations!D50=1,"Jan -",IF(Calculations!D50=2,"Feb -",IF(Calculations!D50=3,"Mar -",IF(Calculations!D50=4,"Apr -",IF(Calculations!D50=5,"May -",IF(Calculations!D50=6,"Jun -",IF(Calculations!D50=7,"Jul -",IF(Calculations!D50=8,"Aug -",IF(Calculations!D50=9,"Sep -",IF(Calculations!D50=10,"Oct -",IF(Calculations!D50=11,"Nov -",IF(Calculations!D50=12,"Dec -")))))))))))),"") ->  | K30: =IF(OR(Calculations!H54=TRUE,Calculations!I54=TRUE),IF(Calculations!D51=1,"Jan",IF(Calculations!D51=2,"Feb",IF(Calculations!D51=3,"Mar",IF(Calculations!D51=4,"Apr",IF(Calculations!D51=5,"May",IF(Calculations!D51=6,"Jun",IF(Calculations!D51=7,"Jul",IF(Calculations!D51=8,"Aug",IF(Calculations!D51=9,"Sep",IF(Calculations!D51=10,"Oct",IF(Calculations!D51=11,"Nov",IF(Calculations!D51=12,"Dec")))))))))))),"") -> 
H31: Dry Dairy Herd | L31: =I31*J31*K31/100 -> 0 | M31: =SUM(N31:Y31) -> 0 | N31: =$L31*30 -> 0 | O31: =$L31*31 -> 0 | P31: =$L31*30 -> 0 | Q31: 0 | R31: 0 | S31: =$L31*30 -> 0 | T31: =$L31*31 -> 0 | U31: =$L31*30 -> 0 | V31: 0 | W31: 0 | X31: =$L31*28 -> 0 | Y31: =$L31*31 -> 0
H32: =IF(Calculations!G50=TRUE,"Selected Management = Moved to Alternative Pasture",IF(Calculations!H50=TRUE,"Selected Management = Moved to Dry Lot")) -> FALSE
H33: Bulls | L33: =I33*J33*K33/100 -> 0 | M33: =SUM(N33:Y33) -> 0 | N33: =$L33*30 -> 0 | O33: =$L33*31 -> 0 | P33: =$L33*30 -> 0 | Q33: 0 | R33: 0 | S33: =$L33*30 -> 0 | T33: =$L33*31 -> 0 | U33: =$L33*30 -> 0 | V33: 0 | W33: 0 | X33: =$L33*28 -> 0 | Y33: =$L33*31 -> 0
H34: =IF(Calculations!B55=TRUE, "Selected Management = Grazing System all Year",IF(OR(Calculations!B56=TRUE,Calculations!B58=TRUE),"Selected Management = Alternative Pasture from:",IF(OR(Calculations!B57=TRUE,Calculations!B59=TRUE),"Selected Management = Dry Lot from:"))) -> Selected Management = Grazing System all Year | J34: =IF(OR(Calculations!B56=TRUE,Calculations!B57=TRUE,Calculations!B58=TRUE,Calculations!B59=TRUE),IF(Calculations!B63=1,"Feb -",IF(Calculations!B63=2,"Mar -",IF(Calculations!B63=3,"Apr -",IF(Calculations!B63=4,"May -",IF(Calculations!B63=5,"Jun -",IF(Calculations!B63=6,"Jul -",IF(Calculations!B63=7,"Aug -",IF(Calculations!B63=8,"Sep -",IF(Calculations!B63=9,"Oct -",IF(Calculations!B63=10,"Nov -",IF(Calculations!B63=11,"Dec -",IF(Calculations!B63=12,"Jan -")))))))))))),"") ->  | K34: =IF(OR(Calculations!B56=TRUE,Calculations!B57=TRUE),IF(Calculations!B62=1,"Dec",IF(Calculations!B62=2,"Jan",IF(Calculations!B62=3,"Feb",IF(Calculations!B62=4,"Mar",IF(Calculations!B62=5,"Apr",IF(Calculations!B62=6,"May",IF(Calculations!B62=7,"Jun",IF(Calculations!B62=8,"Jul",IF(Calculations!B62=9,"Aug",IF(Calculations!B62=10,"Sep",IF(Calculations!B62=11,"Oct",IF(Calculations!B62=12,"Nov")))))))))))),IF(OR(,Calculations!B58=TRUE,Calculations!B59=TRUE),IF(Calculations!B65=1,"Dec",IF(Calculations!B65=2,"Jan",IF(Calculations!B65=3,"Feb",IF(Calculations!B65=4,"Mar",IF(Calculations!B65=5,"Apr",IF(Calculations!B65=6,"May",IF(Calculations!B65=7,"Jun",IF(Calculations!B65=8,"Jul",IF(Calculations!B65=9,"Aug",IF(Calculations!B65=10,"Sep",IF(Calculations!B65=11,"Oct",IF(Calculations!B65=12,"Nov")))))))))))))) -> FALSE | L34: =IF(OR(Calculations!B58=TRUE,Calculations!B59=TRUE)=TRUE,"and","") ->  | M34: =IF(OR(Calculations!B58=TRUE,Calculations!B59=TRUE),IF(Calculations!B66=1,"Feb -",IF(Calculations!B66=2,"Mar -",IF(Calculations!B66=3,"Apr -",IF(Calculations!B66=4,"May -",IF(Calculations!B66=5,"Jun -",IF(Calculations!B66=6,"Jul -",IF(Calculations!B66=7,"Aug -",IF(Calculations!B66=8,"Sep -",IF(Calculations!B66=9,"Oct -",IF(Calculations!B66=10,"Nov -",IF(Calculations!B66=11,"Dec -",IF(Calculations!B66=12,"Jan -")))))))))))),"") ->  | N34: =IF(OR(Calculations!B58=TRUE,Calculations!B59=TRUE),IF(Calculations!B62=1,"Dec",IF(Calculations!B62=2,"Jan",IF(Calculations!B62=3,"Feb",IF(Calculations!B62=4,"Mar",IF(Calculations!B62=5,"Apr",IF(Calculations!B62=6,"May",IF(Calculations!B62=7,"Jun",IF(Calculations!B62=8,"Jul",IF(Calculations!B62=9,"Aug",IF(Calculations!B62=10,"Sep",IF(Calculations!B62=11,"Oct",IF(Calculations!B62=12,"Nov")))))))))))),"") -> 
H35: Horses | L35: =I35*J35*K35/100 -> 0 | M35: =SUM(N35:Y35) -> 0 | N35: =$L35*30 -> 0 | O35: =$L35*31 -> 0 | P35: =$L35*30 -> 0 | Q35: 0 | R35: 0 | S35: =$L35*30 -> 0 | T35: =$L35*31 -> 0 | U35: =$L35*30 -> 0 | V35: 0 | W35: 0 | X35: =$L35*28 -> 0 | Y35: =$L35*31 -> 0
H36: =IF(Calculations!B99=TRUE, "Selected Management = Grazing System all Year",IF(Calculations!B100=TRUE,"Selected Management = Alternative Pasture from:",IF(Calculations!B101=TRUE,"Selected Management = Dry Lot from:"))) -> Selected Management = Grazing System all Year | J36: =IF(OR(Calculations!B100=TRUE,Calculations!B101=TRUE),IF(Calculations!B102=1,"Jan -",IF(Calculations!B102=2,"Feb -",IF(Calculations!B102=3,"Mar -",IF(Calculations!B102=4,"Apr -",IF(Calculations!B102=5,"May -",IF(Calculations!B102=6,"Jun -",IF(Calculations!B102=7,"Jul -",IF(Calculations!B102=8,"Aug -",IF(Calculations!B102=9,"Sep -",IF(Calculations!B102=10,"Oct -",IF(Calculations!B102=11,"Nov -",IF(Calculations!B102=12,"Dec -")))))))))))),"") ->  | K36: =IF(OR(Calculations!B100=TRUE,Calculations!B101=TRUE),IF(Calculations!B103=1,"Jan",IF(Calculations!B103=2,"Feb",IF(Calculations!B103=3,"Mar",IF(Calculations!B103=4,"Apr",IF(Calculations!B103=5,"May",IF(Calculations!B103=6,"Jun",IF(Calculations!B103=7,"Jul",IF(Calculations!B103=8,"Aug",IF(Calculations!B103=9,"Sep",IF(Calculations!B103=10,"Oct",IF(Calculations!B103=11,"Nov",IF(Calculations!B103=12,"Dec")))))))))))),"") -> 
H37: Sheep | L37: =I37*J37*K37/100 -> 0 | M37: =SUM(N37:Y37) -> 0 | N37: =$L37*30 -> 0 | O37: =$L37*31 -> 0 | P37: =$L37*30 -> 0 | Q37: 0 | R37: 0 | S37: =$L37*30 -> 0 | T37: =$L37*31 -> 0 | U37: =$L37*30 -> 0 | V37: 0 | W37: 0 | X37: =$L37*28 -> 0 | Y37: =$L37*31 -> 0
H39: Goats | L39: =I39*J39*K39/100 -> 0 | M39: =SUM(N39:Y39) -> 0 | N39: =$L39*30 -> 0 | O39: =$L39*31 -> 0 | P39: =$L39*30 -> 0 | Q39: 0 | R39: 0 | S39: =$L39*30 -> 0 | T39: =$L39*31 -> 0 | U39: =$L39*30 -> 0 | V39: 0 | W39: 0 | X39: =$L39*28 -> 0 | Y39: =$L39*31 -> 0
H41: Total Forage Demand | I41: =SUBTOTAL(109,I15:I39) -> 0 | J41: =Calculations!B127 -> 0 | K41: =IF(Calculations!B125=0,0,L41/Calculations!B125*100) -> 0 | L41: =IF(SeasonalDairyCheck=FALSE,SUBTOTAL(109,L15:L39),SUBTOTAL(109,L15:L23)+SUBTOTAL(109,L29:L39)+SUBTOTAL(101,L26:L27)) -> 0 | M41: =SUM(N41:Y41) -> 0 | N41: =SUBTOTAL(109,N15:N39) -> 0 | O41: =SUBTOTAL(109,O15:O39) -> 0 | P41: 0 | Q41: 0 | R41: 0 | S41: 0 | T41: 0 | U41: 0 | V41: 0 | W41: 0 | X41: 0 | Y41: 0
H43: Dairy (<12 mo lactation) | N43: =IF(Calculations!G45=TRUE,"P",IF(Calculations!$D$45<Calculations!$D$46,(IF(Calculations!$D$45<=4,(IF(Calculations!$D$46>=4,"P","A")),"A")),IF(Calculations!$D$46>=4,"P",IF(Calculations!$D$45<=4,"P","A")))) -> P | O43: =IF(Calculations!G45=TRUE,"P",IF(Calculations!$D$45<Calculations!$D$46,(IF(Calculations!$D$45<=5,(IF(Calculations!$D$46>=5,"P","A")),"A")),IF(Calculations!$D$46>=5,"P",IF(Calculations!$D$45<=5,"P","A")))) -> P | P43: =IF(Calculations!G45=TRUE,"P",IF(Calculations!$D$45<Calculations!$D$46,(IF(Calculations!$D$45<=6,(IF(Calculations!$D$46>=6,"P","A")),"A")),IF(Calculations!$D$46>=6,"P",IF(Calculations!$D$45<=6,"P","A")))) -> P | Q43: =IF(Calculations!G45=TRUE,"P",IF(Calculations!$D$45<Calculations!$D$46,(IF(Calculations!$D$45<=7,(IF(Calculations!$D$46>=7,"P","A")),"A")),IF(Calculations!$D$46>=7,"P",IF(Calculations!$D$45<=7,"P","A")))) -> P | R43: =IF(Calculations!G45=TRUE,"P",IF(Calculations!$D$45<Calculations!$D$46,(IF(Calculations!$D$45<=8,(IF(Calculations!$D$46>=8,"P","A")),"A")),IF(Calculations!$D$46>=8,"P",IF(Calculations!$D$45<=8,"P","A")))) -> P | S43: =IF(Calculations!G45=TRUE,"P",IF(Calculations!$D$45<Calculations!$D$46,(IF(Calculations!$D$45<=9,(IF(Calculations!$D$46>=9,"P","A")),"A")),IF(Calculations!$D$46>=9,"P",IF(Calculations!$D$45<=9,"P","A")))) -> P | T43: =IF(Calculations!G45=TRUE,"P",IF(Calculations!$D$45<Calculations!$D$46,(IF(Calculations!$D$45<=10,(IF(Calculations!$D$46>=10,"P","A")),"A")),IF(Calculations!$D$46>=10,"P",IF(Calculations!$D$45<=10,"P","A")))) -> P | U43: =IF(Calculations!G45=TRUE,"P",IF(Calculations!$D$45<Calculations!$D$46,(IF(Calculations!$D$45<=11,(IF(Calculations!$D$46>=11,"P","A")),"A")),IF(Calculations!$D$46>=11,"P",IF(Calculations!$D$45<=11,"P","A")))) -> P | V43: =IF(Calculations!G45=TRUE,"P",IF(Calculations!$D$45<Calculations!$D$46,(IF(Calculations!$D$45<=12,(IF(Calculations!$D$46>=12,"P","A")),"A")),IF(Calculations!$D$46>=12,"P",IF(Calculations!$D$45<=12,"P","A")))) -> P | W43: =IF(Calculations!G45=TRUE,"P",IF(Calculations!$D$45<Calculations!$D$46,(IF(Calculations!$D$45<=1,(IF(Calculations!$D$46>=1,"P","A")),"A")),IF(Calculations!$D$46>=1,"P",IF(Calculations!$D$45<=1,"P","A")))) -> P | X43: =IF(Calculations!G45=TRUE,"P",IF(Calculations!$D$45<Calculations!$D$46,(IF(Calculations!$D$45<=2,(IF(Calculations!$D$46>=2,"P","A")),"A")),IF(Calculations!$D$46>=2,"P",IF(Calculations!$D$45<=2,"P","A")))) -> P | Y43: =IF(Calculations!G45=TRUE,"P",IF(Calculations!$D$45<Calculations!$D$46,(IF(Calculations!$D$45<=3,(IF(Calculations!$D$46>=3,"P","A")),"A")),IF(Calculations!$D$46>=3,"P",IF(Calculations!$D$45<=3,"P","A")))) -> P
H44: Dairy (<12mo lactation) Pasture System | N44: =IF(Calculations!$L$44=TRUE,IF(N43="P",N25,0),0) -> 0 | O44: =IF(Calculations!$L$44=TRUE,IF(O43="P",O25,0),0) -> 0 | P44: =IF(Calculations!$L$44=TRUE,IF(P43="P",P25,0),0) -> 0 | Q44: =IF(Calculations!$L$44=TRUE,IF(Q43="P",Q25,0),0) -> 0 | R44: =IF(Calculations!$L$44=TRUE,IF(R43="P",R25,0),0) -> 0 | S44: =IF(Calculations!$L$44=TRUE,IF(S43="P",S25,0),0) -> 0 | T44: =IF(Calculations!$L$44=TRUE,IF(T43="P",T25,0),0) -> 0 | U44: =IF(Calculations!$L$44=TRUE,IF(U43="P",U25,0),0) -> 0 | V44: =IF(Calculations!$L$44=TRUE,IF(V43="P",V25,0),0) -> 0 | W44: =IF(Calculations!$L$44=TRUE,IF(W43="P",W25,0),0) -> 0 | X44: =IF(Calculations!$L$44=TRUE,IF(X43="P",X25,0),0) -> 0 | Y44: =IF(Calculations!$L$44=TRUE,IF(Y43="P",Y25,0),0) -> 0
H45: Dairy (<12 mo lactation) Alternative Pasture | N45: =IF(Calculations!$L$44=TRUE,IF(AND(N43="A",Calculations!$H$45=TRUE),N25,0),0) -> 0 | O45: =IF(Calculations!$L$44=TRUE,IF(AND(O43="A",Calculations!$H$45=TRUE),O25,0),0) -> 0 | P45: =IF(Calculations!$L$44=TRUE,IF(AND(P43="A",Calculations!$H$45=TRUE),P25,0),0) -> 0 | Q45: =IF(Calculations!$L$44=TRUE,IF(AND(Q43="A",Calculations!$H$45=TRUE),Q25,0),0) -> 0 | R45: =IF(Calculations!$L$44=TRUE,IF(AND(R43="A",Calculations!$H$45=TRUE),R25,0),0) -> 0 | S45: =IF(Calculations!$L$44=TRUE,IF(AND(S43="A",Calculations!$H$45=TRUE),S25,0),0) -> 0 | T45: =IF(Calculations!$L$44=TRUE,IF(AND(T43="A",Calculations!$H$45=TRUE),T25,0),0) -> 0 | U45: =IF(Calculations!$L$44=TRUE,IF(AND(U43="A",Calculations!$H$45=TRUE),U25,0),0) -> 0 | V45: =IF(Calculations!$L$44=TRUE,IF(AND(V43="A",Calculations!$H$45=TRUE),V25,0),0) -> 0 | W45: =IF(Calculations!$L$44=TRUE,IF(AND(W43="A",Calculations!$H$45=TRUE),W25,0),0) -> 0 | X45: =IF(Calculations!$L$44=TRUE,IF(AND(X43="A",Calculations!$H$45=TRUE),X25,0),0) -> 0 | Y45: =IF(Calculations!$L$44=TRUE,IF(AND(Y43="A",Calculations!$H$45=TRUE),Y25,0),0) -> 0
H46: Dairy (<12 mo lactation) Dry Lot | N46: =IF(Calculations!$L$44=TRUE,IF(AND(N43="A",Calculations!$I$45=TRUE),N25,0),0) -> 0 | O46: =IF(Calculations!$L$44=TRUE,IF(AND(O43="A",Calculations!$I$45=TRUE),O25,0),0) -> 0 | P46: =IF(Calculations!$L$44=TRUE,IF(AND(P43="A",Calculations!$I$45=TRUE),P25,0),0) -> 0 | Q46: =IF(Calculations!$L$44=TRUE,IF(AND(Q43="A",Calculations!$I$45=TRUE),Q25,0),0) -> 0 | R46: =IF(Calculations!$L$44=TRUE,IF(AND(R43="A",Calculations!$I$45=TRUE),R25,0),0) -> 0 | S46: =IF(Calculations!$L$44=TRUE,IF(AND(S43="A",Calculations!$I$45=TRUE),S25,0),0) -> 0 | T46: =IF(Calculations!$L$44=TRUE,IF(AND(T43="A",Calculations!$I$45=TRUE),T25,0),0) -> 0 | U46: =IF(Calculations!$L$44=TRUE,IF(AND(U43="A",Calculations!$I$45=TRUE),U25,0),0) -> 0 | V46: =IF(Calculations!$L$44=TRUE,IF(AND(V43="A",Calculations!$I$45=TRUE),V25,0),0) -> 0 | W46: =IF(Calculations!$L$44=TRUE,IF(AND(W43="A",Calculations!$I$45=TRUE),W25,0),0) -> 0 | X46: =IF(Calculations!$L$44=TRUE,IF(AND(X43="A",Calculations!$I$45=TRUE),X25,0),0) -> 0 | Y46: =IF(Calculations!$L$44=TRUE,IF(AND(Y43="A",Calculations!$I$45=TRUE),Y25,0),0) -> 0
M48: Dairy - year round lactation
H49: Lactating Dairy Herd | N49: =IF(Calculations!G54=TRUE,"P",IF(Calculations!$D$50<Calculations!$D$51,(IF(Calculations!$D$50<=4,(IF(Calculations!$D$51>=4,"A","P")),"P")),IF(Calculations!$D$51>=4,"A",IF(Calculations!$D$50<=4,"A","P")))) -> P | O49: =IF(Calculations!G54=TRUE,"P",IF(Calculations!$D$50<Calculations!$D$51,(IF(Calculations!$D$50<=5,(IF(Calculations!$D$51>=5,"A","P")),"P")),IF(Calculations!$D$51>=5,"A",IF(Calculations!$D$50<=5,"A","P")))) -> P | P49: =IF(Calculations!G54=TRUE,"P",IF(Calculations!$D$50<Calculations!$D$51,(IF(Calculations!$D$50<=6,(IF(Calculations!$D$51>=6,"A","P")),"P")),IF(Calculations!$D$51>=6,"A",IF(Calculations!$D$50<=6,"A","P")))) -> P | Q49: =IF(Calculations!G54=TRUE,"P",IF(Calculations!$D$50<Calculations!$D$51,(IF(Calculations!$D$50<=7,(IF(Calculations!$D$51>=7,"A","P")),"P")),IF(Calculations!$D$51>=7,"A",IF(Calculations!$D$50<=7,"A","P")))) -> P | R49: =IF(Calculations!G54=TRUE,"P",IF(Calculations!$D$50<Calculations!$D$51,(IF(Calculations!$D$50<=8,(IF(Calculations!$D$51>=8,"A","P")),"P")),IF(Calculations!$D$51>=8,"A",IF(Calculations!$D$50<=8,"A","P")))) -> P | S49: =IF(Calculations!G54=TRUE,"P",IF(Calculations!$D$50<Calculations!$D$51,(IF(Calculations!$D$50<=9,(IF(Calculations!$D$51>=9,"A","P")),"P")),IF(Calculations!$D$51>=9,"A",IF(Calculations!$D$50<=9,"A","P")))) -> P | T49: =IF(Calculations!G54=TRUE,"P",IF(Calculations!$D$50<Calculations!$D$51,(IF(Calculations!$D$50<=10,(IF(Calculations!$D$51>=10,"A","P")),"P")),IF(Calculations!$D$51>=10,"A",IF(Calculations!$D$50<=10,"A","P")))) -> P | U49: =IF(Calculations!G54=TRUE,"P",IF(Calculations!$D$50<Calculations!$D$51,(IF(Calculations!$D$50<=11,(IF(Calculations!$D$51>=11,"A","P")),"P")),IF(Calculations!$D$51>=11,"A",IF(Calculations!$D$50<=11,"A","P")))) -> P | V49: =IF(Calculations!G54=TRUE,"P",IF(Calculations!$D$50<Calculations!$D$51,(IF(Calculations!$D$50<=12,(IF(Calculations!$D$51>=12,"A","P")),"P")),IF(Calculations!$D$51>=12,"A",IF(Calculations!$D$50<=12,"A","P")))) -> P | W49: =IF(Calculations!G54=TRUE,"P",IF(Calculations!$D$50<Calculations!$D$51,(IF(Calculations!$D$50<=1,(IF(Calculations!$D$51>=1,"A","P")),"P")),IF(Calculations!$D$51>=1,"A",IF(Calculations!$D$50<=1,"A","P")))) -> P | X49: =IF(Calculations!G54=TRUE,"P",IF(Calculations!$D$50<Calculations!$D$51,(IF(Calculations!$D$50<=2,(IF(Calculations!$D$51>=2,"A","P")),"P")),IF(Calculations!$D$51>=2,"A",IF(Calculations!$D$50<=2,"A","P")))) -> P | Y49: =IF(Calculations!G54=TRUE,"P",IF(Calculations!$D$50<Calculations!$D$51,(IF(Calculations!$D$50<=3,(IF(Calculations!$D$51>=3,"A","P")),"P")),IF(Calculations!$D$51>=3,"A",IF(Calculations!$D$50<=3,"A","P")))) -> P
H50: Lactating Herd Pasture System | N50: =IF(Calculations!$L$45=TRUE,IF(N49="P",N29,0),0) -> 0 | O50: =IF(Calculations!$L$45=TRUE,IF(O49="P",O29,0),0) -> 0 | P50: =IF(Calculations!$L$45=TRUE,IF(P49="P",P29,0),0) -> 0 | Q50: =IF(Calculations!$L$45=TRUE,IF(Q49="P",Q29,0),0) -> 0 | R50: =IF(Calculations!$L$45=TRUE,IF(R49="P",R29,0),0) -> 0 | S50: =IF(Calculations!$L$45=TRUE,IF(S49="P",S29,0),0) -> 0 | T50: =IF(Calculations!$L$45=TRUE,IF(T49="P",T29,0),0) -> 0 | U50: =IF(Calculations!$L$45=TRUE,IF(U49="P",U29,0),0) -> 0 | V50: =IF(Calculations!$L$45=TRUE,IF(V49="P",V29,0),0) -> 0 | W50: =IF(Calculations!$L$45=TRUE,IF(W49="P",W29,0),0) -> 0 | X50: =IF(Calculations!$L$45=TRUE,IF(X49="P",X29,0),0) -> 0 | Y50: =IF(Calculations!$L$45=TRUE,IF(Y49="P",Y29,0),0) -> 0
H51: Lactating Herd Alternative Pasture | N51: =IF(Calculations!$L$45=TRUE,IF(AND(N50="P",Calculations!$H$54=TRUE),N29,0),0) -> 0 | O51: =IF(Calculations!$L$45=TRUE,IF(AND(O50="P",Calculations!$H$54=TRUE),O29,0),0) -> 0 | P51: =IF(Calculations!$L$45=TRUE,IF(AND(P50="P",Calculations!$H$54=TRUE),P29,0),0) -> 0 | Q51: =IF(Calculations!$L$45=TRUE,IF(AND(Q50="P",Calculations!$H$54=TRUE),Q29,0),0) -> 0 | R51: =IF(Calculations!$L$45=TRUE,IF(AND(R50="P",Calculations!$H$54=TRUE),R29,0),0) -> 0 | S51: =IF(Calculations!$L$45=TRUE,IF(AND(S50="P",Calculations!$H$54=TRUE),S29,0),0) -> 0 | T51: =IF(Calculations!$L$45=TRUE,IF(AND(T50="P",Calculations!$H$54=TRUE),T29,0),0) -> 0 | U51: =IF(Calculations!$L$45=TRUE,IF(AND(U50="P",Calculations!$H$54=TRUE),U29,0),0) -> 0 | V51: =IF(Calculations!$L$45=TRUE,IF(AND(V50="P",Calculations!$H$54=TRUE),V29,0),0) -> 0 | W51: =IF(Calculations!$L$45=TRUE,IF(AND(W50="P",Calculations!$H$54=TRUE),W29,0),0) -> 0 | X51: =IF(Calculations!$L$45=TRUE,IF(AND(X50="P",Calculations!$H$54=TRUE),X29,0),0) -> 0 | Y51: =IF(Calculations!$L$45=TRUE,IF(AND(Y50="P",Calculations!$H$54=TRUE),Y29,0),0) -> 0
H52: Lactating Herd Dry Lot | N52: =IF(Calculations!$L$45=TRUE,IF(AND(N50="P",Calculations!$I$54=TRUE),N29,0),0) -> 0 | O52: =IF(Calculations!$L$45=TRUE,IF(AND(O50="P",Calculations!$I$54=TRUE),O29,0),0) -> 0 | P52: =IF(Calculations!$L$45=TRUE,IF(AND(P50="P",Calculations!$I$54=TRUE),P29,0),0) -> 0 | Q52: =IF(Calculations!$L$45=TRUE,IF(AND(Q50="P",Calculations!$I$54=TRUE),Q29,0),0) -> 0 | R52: =IF(Calculations!$L$45=TRUE,IF(AND(R50="P",Calculations!$I$54=TRUE),R29,0),0) -> 0 | S52: =IF(Calculations!$L$45=TRUE,IF(AND(S50="P",Calculations!$I$54=TRUE),S29,0),0) -> 0 | T52: =IF(Calculations!$L$45=TRUE,IF(AND(T50="P",Calculations!$I$54=TRUE),T29,0),0) -> 0 | U52: =IF(Calculations!$L$45=TRUE,IF(AND(U50="P",Calculations!$I$54=TRUE),U29,0),0) -> 0 | V52: =IF(Calculations!$L$45=TRUE,IF(AND(V50="P",Calculations!$I$54=TRUE),V29,0),0) -> 0 | W52: =IF(Calculations!$L$45=TRUE,IF(AND(W50="P",Calculations!$I$54=TRUE),W29,0),0) -> 0 | X52: =IF(Calculations!$L$45=TRUE,IF(AND(X50="P",Calculations!$I$54=TRUE),X29,0),0) -> 0 | Y52: =IF(Calculations!$L$45=TRUE,IF(AND(Y50="P",Calculations!$I$54=TRUE),Y29,0),0) -> 0
I53: 0
H54: Dry Dairy Herd Alternative Pasture | N54: =IF(Calculations!$L$45=TRUE,IF(Calculations!$G$50=TRUE,N31,0),0) -> 0 | O54: =IF(Calculations!$L$45=TRUE,IF(Calculations!$G$50=TRUE,O31,0),0) -> 0 | P54: =IF(Calculations!$L$45=TRUE,IF(Calculations!$G$50=TRUE,P31,0),0) -> 0 | Q54: =IF(Calculations!$L$45=TRUE,IF(Calculations!$G$50=TRUE,Q31,0),0) -> 0 | R54: =IF(Calculations!$L$45=TRUE,IF(Calculations!$G$50=TRUE,R31,0),0) -> 0 | S54: =IF(Calculations!$L$45=TRUE,IF(Calculations!$G$50=TRUE,S31,0),0) -> 0 | T54: =IF(Calculations!$L$45=TRUE,IF(Calculations!$G$50=TRUE,T31,0),0) -> 0 | U54: =IF(Calculations!$L$45=TRUE,IF(Calculations!$G$50=TRUE,U31,0),0) -> 0 | V54: =IF(Calculations!$L$45=TRUE,IF(Calculations!$G$50=TRUE,V31,0),0) -> 0 | W54: =IF(Calculations!$L$45=TRUE,IF(Calculations!$G$50=TRUE,W31,0),0) -> 0 | X54: =IF(Calculations!$L$45=TRUE,IF(Calculations!$G$50=TRUE,X31,0),0) -> 0 | Y54: =IF(Calculations!$L$45=TRUE,IF(Calculations!$G$50=TRUE,Y31,0),0) -> 0
H55: Dry Dairy Herd Dry Lot | N55: =IF(Calculations!$L$45=TRUE,IF(Calculations!$H$50=TRUE,N31,0),0) -> 0 | O55: =IF(Calculations!$L$45=TRUE,IF(Calculations!$H$50=TRUE,O31,0),0) -> 0 | P55: =IF(Calculations!$L$45=TRUE,IF(Calculations!$H$50=TRUE,P31,0),0) -> 0 | Q55: =IF(Calculations!$L$45=TRUE,IF(Calculations!$H$50=TRUE,Q31,0),0) -> 0 | R55: =IF(Calculations!$L$45=TRUE,IF(Calculations!$H$50=TRUE,R31,0),0) -> 0 | S55: =IF(Calculations!$L$45=TRUE,IF(Calculations!$H$50=TRUE,S31,0),0) -> 0 | T55: =IF(Calculations!$L$45=TRUE,IF(Calculations!$H$50=TRUE,T31,0),0) -> 0 | U55: =IF(Calculations!$L$45=TRUE,IF(Calculations!$H$50=TRUE,U31,0),0) -> 0 | V55: =IF(Calculations!$L$45=TRUE,IF(Calculations!$H$50=TRUE,V31,0),0) -> 0 | W55: =IF(Calculations!$L$45=TRUE,IF(Calculations!$H$50=TRUE,W31,0),0) -> 0 | X55: =IF(Calculations!$L$45=TRUE,IF(Calculations!$H$50=TRUE,X31,0),0) -> 0 | Y55: =IF(Calculations!$L$45=TRUE,IF(Calculations!$H$50=TRUE,Y31,0),0) -> 0
H57: Bulls
H58: First Breeding or year round pasture system | N58: =IF(Calculations!$B$55=TRUE,"P",IF(Calculations!$B$62<Calculations!$B$63,(IF(Calculations!$B$62<=4,(IF(Calculations!$B$63>=4,"P","A")),"A")),IF(Calculations!$B$63>=4,"P",IF(Calculations!$B$62<=4,"P","A")))) -> P | O58: =IF(Calculations!$B$55=TRUE,"P",IF(Calculations!$B$62<Calculations!$B$63,(IF(Calculations!$B$62<=5,(IF(Calculations!$B$63>=5,"P","A")),"A")),IF(Calculations!$B$63>=5,"P",IF(Calculations!$B$62<=5,"P","A")))) -> P | P58: =IF(Calculations!$B$55=TRUE,"P",IF(Calculations!$B$62<Calculations!$B$63,(IF(Calculations!$B$62<=6,(IF(Calculations!$B$63>=6,"P","A")),"A")),IF(Calculations!$B$63>=6,"P",IF(Calculations!$B$62<=6,"P","A")))) -> P | Q58: =IF(Calculations!$B$55=TRUE,"P",IF(Calculations!$B$62<Calculations!$B$63,(IF(Calculations!$B$62<=7,(IF(Calculations!$B$63>=7,"P","A")),"A")),IF(Calculations!$B$63>=7,"P",IF(Calculations!$B$62<=7,"P","A")))) -> P | R58: =IF(Calculations!$B$55=TRUE,"P",IF(Calculations!$B$62<Calculations!$B$63,(IF(Calculations!$B$62<=8,(IF(Calculations!$B$63>=8,"P","A")),"A")),IF(Calculations!$B$63>=8,"P",IF(Calculations!$B$62<=8,"P","A")))) -> P | S58: =IF(Calculations!$B$55=TRUE,"P",IF(Calculations!$B$62<Calculations!$B$63,(IF(Calculations!$B$62<=9,(IF(Calculations!$B$63>=9,"P","A")),"A")),IF(Calculations!$B$63>=9,"P",IF(Calculations!$B$62<=9,"P","A")))) -> P | T58: =IF(Calculations!$B$55=TRUE,"P",IF(Calculations!$B$62<Calculations!$B$63,(IF(Calculations!$B$62<=10,(IF(Calculations!$B$63>=10,"P","A")),"A")),IF(Calculations!$B$63>=10,"P",IF(Calculations!$B$62<=10,"P","A")))) -> P | U58: =IF(Calculations!$B$55=TRUE,"P",IF(Calculations!$B$62<Calculations!$B$63,(IF(Calculations!$B$62<=11,(IF(Calculations!$B$63>=11,"P","A")),"A")),IF(Calculations!$B$63>=11,"P",IF(Calculations!$B$62<=11,"P","A")))) -> P | V58: =IF(Calculations!$B$55=TRUE,"P",IF(Calculations!$B$62<Calculations!$B$63,(IF(Calculations!$B$62<=12,(IF(Calculations!$B$63>=12,"P","A")),"A")),IF(Calculations!$B$63>=12,"P",IF(Calculations!$B$62<=12,"P","A")))) -> P | W58: =IF(Calculations!$B$55=TRUE,"P",IF(Calculations!$B$62<Calculations!$B$63,(IF(Calculations!$B$62<=1,(IF(Calculations!$B$63>=1,"P","A")),"A")),IF(Calculations!$B$63>=1,"P",IF(Calculations!$B$62<=1,"P","A")))) -> P | X58: =IF(Calculations!$B$55=TRUE,"P",IF(Calculations!$B$62<Calculations!$B$63,(IF(Calculations!$B$62<=2,(IF(Calculations!$B$63>=2,"P","A")),"A")),IF(Calculations!$B$63>=2,"P",IF(Calculations!$B$62<=2,"P","A")))) -> P | Y58: =IF(Calculations!$B$55=TRUE,"P",IF(Calculations!$B$62<Calculations!$B$63,(IF(Calculations!$B$62<=3,(IF(Calculations!$B$63>=3,"P","A")),"A")),IF(Calculations!$B$63>=3,"P",IF(Calculations!$B$62<=3,"P","A")))) -> P
H59: Second Breeding | N59: =IF(OR(Calculations!$B$58=TRUE,Calculations!$B$59=TRUE),IF(Calculations!$B$65<Calculations!$B$66,(IF(Calculations!$B$65<=4,(IF(Calculations!$B$66>=4,"P","A")),"A")),IF(Calculations!$B$66>=4,"P",IF(Calculations!$B$65<=4,"P","A"))),0) -> 0 | O59: =IF(OR(Calculations!$B$58=TRUE,Calculations!$B$59=TRUE),IF(Calculations!$B$65<Calculations!$B$66,(IF(Calculations!$B$65<=5,(IF(Calculations!$B$66>=5,"P","A")),"A")),IF(Calculations!$B$66>=5,"P",IF(Calculations!$B$65<=5,"P","A"))),0) -> 0 | P59: =IF(OR(Calculations!$B$58=TRUE,Calculations!$B$59=TRUE),IF(Calculations!$B$65<Calculations!$B$66,(IF(Calculations!$B$65<=6,(IF(Calculations!$B$66>=6,"P","A")),"A")),IF(Calculations!$B$66>=6,"P",IF(Calculations!$B$65<=6,"P","A"))),0) -> 0 | Q59: =IF(OR(Calculations!$B$58=TRUE,Calculations!$B$59=TRUE),IF(Calculations!$B$65<Calculations!$B$66,(IF(Calculations!$B$65<=7,(IF(Calculations!$B$66>=7,"P","A")),"A")),IF(Calculations!$B$66>=7,"P",IF(Calculations!$B$65<=7,"P","A"))),0) -> 0 | R59: =IF(OR(Calculations!$B$58=TRUE,Calculations!$B$59=TRUE),IF(Calculations!$B$65<Calculations!$B$66,(IF(Calculations!$B$65<=8,(IF(Calculations!$B$66>=8,"P","A")),"A")),IF(Calculations!$B$66>=8,"P",IF(Calculations!$B$65<=8,"P","A"))),0) -> 0 | S59: =IF(OR(Calculations!$B$58=TRUE,Calculations!$B$59=TRUE),IF(Calculations!$B$65<Calculations!$B$66,(IF(Calculations!$B$65<=9,(IF(Calculations!$B$66>=9,"P","A")),"A")),IF(Calculations!$B$66>=9,"P",IF(Calculations!$B$65<=9,"P","A"))),0) -> 0 | T59: =IF(OR(Calculations!$B$58=TRUE,Calculations!$B$59=TRUE),IF(Calculations!$B$65<Calculations!$B$66,(IF(Calculations!$B$65<=10,(IF(Calculations!$B$66>=10,"P","A")),"A")),IF(Calculations!$B$66>=10,"P",IF(Calculations!$B$65<=10,"P","A"))),0) -> 0 | U59: =IF(OR(Calculations!$B$58=TRUE,Calculations!$B$59=TRUE),IF(Calculations!$B$65<Calculations!$B$66,(IF(Calculations!$B$65<=11,(IF(Calculations!$B$66>=11,"P","A")),"A")),IF(Calculations!$B$66>=11,"P",IF(Calculations!$B$65<=11,"P","A"))),0) -> 0 | V59: =IF(OR(Calculations!$B$58=TRUE,Calculations!$B$59=TRUE),IF(Calculations!$B$65<Calculations!$B$66,(IF(Calculations!$B$65<=12,(IF(Calculations!$B$66>=12,"P","A")),"A")),IF(Calculations!$B$66>=12,"P",IF(Calculations!$B$65<=12,"P","A"))),0) -> 0 | W59: =IF(OR(Calculations!$B$58=TRUE,Calculations!$B$59=TRUE),IF(Calculations!$B$65<Calculations!$B$66,(IF(Calculations!$B$65<=1,(IF(Calculations!$B$66>=1,"P","A")),"A")),IF(Calculations!$B$66>=1,"P",IF(Calculations!$B$65<=1,"P","A"))),0) -> 0 | X59: =IF(OR(Calculations!$B$58=TRUE,Calculations!$B$59=TRUE),IF(Calculations!$B$65<Calculations!$B$66,(IF(Calculations!$B$65<=2,(IF(Calculations!$B$66>=2,"P","A")),"A")),IF(Calculations!$B$66>=2,"P",IF(Calculations!$B$65<=2,"P","A"))),0) -> 0 | Y59: =IF(OR(Calculations!$B$58=TRUE,Calculations!$B$59=TRUE),IF(Calculations!$B$65<Calculations!$B$66,(IF(Calculations!$B$65<=3,(IF(Calculations!$B$66>=3,"P","A")),"A")),IF(Calculations!$B$66>=3,"P",IF(Calculations!$B$65<=3,"P","A"))),0) -> 0
H60: Consolidated based on Form Inputs (one breeding period or two breeding periods | N60: =IF(N59="",N58,IF(OR(N58="P",N59="P"),"P","A")) -> P | O60: P | P60: P | Q60: P | R60: P | S60: P | T60: P | U60: P | V60: P | W60: P | X60: P | Y60: P
H61: Bulls Pasture System | N61: =IF(Calculations!$L$46=TRUE,IF(N60="P",N33,0),0) -> 0 | O61: =IF(Calculations!$L$46=TRUE,IF(O60="P",O33,0),0) -> 0 | P61: =IF(Calculations!$L$46=TRUE,IF(P60="P",P33,0),0) -> 0 | Q61: =IF(Calculations!$L$46=TRUE,IF(Q60="P",Q33,0),0) -> 0 | R61: =IF(Calculations!$L$46=TRUE,IF(R60="P",R33,0),0) -> 0 | S61: =IF(Calculations!$L$46=TRUE,IF(S60="P",S33,0),0) -> 0 | T61: =IF(Calculations!$L$46=TRUE,IF(T60="P",T33,0),0) -> 0 | U61: =IF(Calculations!$L$46=TRUE,IF(U60="P",U33,0),0) -> 0 | V61: =IF(Calculations!$L$46=TRUE,IF(V60="P",V33,0),0) -> 0 | W61: =IF(Calculations!$L$46=TRUE,IF(W60="P",W33,0),0) -> 0 | X61: =IF(Calculations!$L$46=TRUE,IF(X60="P",X33,0),0) -> 0 | Y61: =IF(Calculations!$L$46=TRUE,IF(Y60="P",Y33,0),0) -> 0
H62: Bulls Alternative Pasture | N62: =IF(Calculations!$L$46=TRUE,IF(AND(N60="A",OR(Calculations!$B$56=TRUE,Calculations!$B$58=TRUE)),N33,0),0) -> 0 | O62: =IF(Calculations!$L$46=TRUE,IF(AND(O60="A",OR(Calculations!$B$56=TRUE,Calculations!$B$58=TRUE)),O33,0),0) -> 0 | P62: =IF(Calculations!$L$46=TRUE,IF(AND(P60="A",OR(Calculations!$B$56=TRUE,Calculations!$B$58=TRUE)),P33,0),0) -> 0 | Q62: =IF(Calculations!$L$46=TRUE,IF(AND(Q60="A",OR(Calculations!$B$56=TRUE,Calculations!$B$58=TRUE)),Q33,0),0) -> 0 | R62: =IF(Calculations!$L$46=TRUE,IF(AND(R60="A",OR(Calculations!$B$56=TRUE,Calculations!$B$58=TRUE)),R33,0),0) -> 0 | S62: =IF(Calculations!$L$46=TRUE,IF(AND(S60="A",OR(Calculations!$B$56=TRUE,Calculations!$B$58=TRUE)),S33,0),0) -> 0 | T62: =IF(Calculations!$L$46=TRUE,IF(AND(T60="A",OR(Calculations!$B$56=TRUE,Calculations!$B$58=TRUE)),T33,0),0) -> 0 | U62: =IF(Calculations!$L$46=TRUE,IF(AND(U60="A",OR(Calculations!$B$56=TRUE,Calculations!$B$58=TRUE)),U33,0),0) -> 0 | V62: =IF(Calculations!$L$46=TRUE,IF(AND(V60="A",OR(Calculations!$B$56=TRUE,Calculations!$B$58=TRUE)),V33,0),0) -> 0 | W62: =IF(Calculations!$L$46=TRUE,IF(AND(W60="A",OR(Calculations!$B$56=TRUE,Calculations!$B$58=TRUE)),W33,0),0) -> 0 | X62: =IF(Calculations!$L$46=TRUE,IF(AND(X60="A",OR(Calculations!$B$56=TRUE,Calculations!$B$58=TRUE)),X33,0),0) -> 0 | Y62: =IF(Calculations!$L$46=TRUE,IF(AND(Y60="A",OR(Calculations!$B$56=TRUE,Calculations!$B$58=TRUE)),Y33,0),0) -> 0
H63: Bulls Dry Lot | N63: =IF(Calculations!$L$46=TRUE,IF(AND(N60="A",OR(Calculations!$B$57=TRUE,Calculations!$B$59=TRUE)),N33,0),0) -> 0 | O63: =IF(Calculations!$L$46=TRUE,IF(AND(O60="A",OR(Calculations!$B$57=TRUE,Calculations!$B$59=TRUE)),O33,0),0) -> 0 | P63: =IF(Calculations!$L$46=TRUE,IF(AND(P60="A",OR(Calculations!$B$57=TRUE,Calculations!$B$59=TRUE)),P33,0),0) -> 0 | Q63: =IF(Calculations!$L$46=TRUE,IF(AND(Q60="A",OR(Calculations!$B$57=TRUE,Calculations!$B$59=TRUE)),Q33,0),0) -> 0 | R63: =IF(Calculations!$L$46=TRUE,IF(AND(R60="A",OR(Calculations!$B$57=TRUE,Calculations!$B$59=TRUE)),R33,0),0) -> 0 | S63: =IF(Calculations!$L$46=TRUE,IF(AND(S60="A",OR(Calculations!$B$57=TRUE,Calculations!$B$59=TRUE)),S33,0),0) -> 0 | T63: =IF(Calculations!$L$46=TRUE,IF(AND(T60="A",OR(Calculations!$B$57=TRUE,Calculations!$B$59=TRUE)),T33,0),0) -> 0 | U63: =IF(Calculations!$L$46=TRUE,IF(AND(U60="A",OR(Calculations!$B$57=TRUE,Calculations!$B$59=TRUE)),U33,0),0) -> 0 | V63: =IF(Calculations!$L$46=TRUE,IF(AND(V60="A",OR(Calculations!$B$57=TRUE,Calculations!$B$59=TRUE)),V33,0),0) -> 0 | W63: =IF(Calculations!$L$46=TRUE,IF(AND(W60="A",OR(Calculations!$B$57=TRUE,Calculations!$B$59=TRUE)),W33,0),0) -> 0 | X63: =IF(Calculations!$L$46=TRUE,IF(AND(X60="A",OR(Calculations!$B$57=TRUE,Calculations!$B$59=TRUE)),X33,0),0) -> 0 | Y63: =IF(Calculations!$L$46=TRUE,IF(AND(Y60="A",OR(Calculations!$B$57=TRUE,Calculations!$B$59=TRUE)),Y33,0),0) -> 0
M65: Cow Calf
M66: Herd 1 | N66: =IF(Calculations!B71=TRUE,"P",IF(Calculations!$B$87<Calculations!$B$88,(IF(Calculations!$B$87<=4,(IF(Calculations!$B$88>=4,"A","P")),"P")),IF(Calculations!$B$88>=4,"A",IF(Calculations!$B$87<=4,"A","P")))) -> P | O66: =IF(Calculations!B71=TRUE,"P",IF(Calculations!$B$87<Calculations!$B$88,(IF(Calculations!$B$87<=5,(IF(Calculations!$B$88>=5,"A","P")),"P")),IF(Calculations!$B$88>=5,"A",IF(Calculations!$B$87<=5,"A","P")))) -> P | P66: =IF(Calculations!B71=TRUE,"P",IF(Calculations!$B$87<Calculations!$B$88,(IF(Calculations!$B$87<=6,(IF(Calculations!$B$88>=6,"A","P")),"P")),IF(Calculations!$B$88>=6,"A",IF(Calculations!$B$87<=6,"A","P")))) -> P | Q66: =IF(Calculations!B71=TRUE,"P",IF(Calculations!$B$87<Calculations!$B$88,(IF(Calculations!$B$87<=7,(IF(Calculations!$B$88>=7,"A","P")),"P")),IF(Calculations!$B$88>=7,"A",IF(Calculations!$B$87<=7,"A","P")))) -> P | R66: =IF(Calculations!B71=TRUE,"P",IF(Calculations!$B$87<Calculations!$B$88,(IF(Calculations!$B$87<=8,(IF(Calculations!$B$88>=8,"A","P")),"P")),IF(Calculations!$B$88>=8,"A",IF(Calculations!$B$87<=8,"A","P")))) -> P | S66: =IF(Calculations!B71=TRUE,"P",IF(Calculations!$B$87<Calculations!$B$88,(IF(Calculations!$B$87<=9,(IF(Calculations!$B$88>=9,"A","P")),"P")),IF(Calculations!$B$88>=9,"A",IF(Calculations!$B$87<=9,"A","P")))) -> P | T66: =IF(Calculations!B71=TRUE,"P",IF(Calculations!$B$87<Calculations!$B$88,(IF(Calculations!$B$87<=10,(IF(Calculations!$B$88>=10,"A","P")),"P")),IF(Calculations!$B$88>=10,"A",IF(Calculations!$B$87<=10,"A","P")))) -> P | U66: =IF(Calculations!B71=TRUE,"P",IF(Calculations!$B$87<Calculations!$B$88,(IF(Calculations!$B$87<=11,(IF(Calculations!$B$88>=11,"A","P")),"P")),IF(Calculations!$B$88>=11,"A",IF(Calculations!$B$87<=11,"A","P")))) -> P | V66: =IF(Calculations!B71=TRUE,"P",IF(Calculations!$B$87<Calculations!$B$88,(IF(Calculations!$B$87<=12,(IF(Calculations!$B$88>=12,"A","P")),"P")),IF(Calculations!$B$88>=12,"A",IF(Calculations!$B$87<=12,"A","P")))) -> P | W66: =IF(Calculations!B71=TRUE,"P",IF(Calculations!$B$87<Calculations!$B$88,(IF(Calculations!$B$87<=1,(IF(Calculations!$B$88>=1,"A","P")),"P")),IF(Calculations!$B$88>=1,"A",IF(Calculations!$B$87<=1,"A","P")))) -> P | X66: =IF(Calculations!B71=TRUE,"P",IF(Calculations!$B$87<Calculations!$B$88,(IF(Calculations!$B$87<=2,(IF(Calculations!$B$88>=2,"A","P")),"P")),IF(Calculations!$B$88>=2,"A",IF(Calculations!$B$87<=2,"A","P")))) -> P | Y66: =IF(Calculations!B71=TRUE,"P",IF(Calculations!$B$87<Calculations!$B$88,(IF(Calculations!$B$87<=3,(IF(Calculations!$B$88>=3,"A","P")),"P")),IF(Calculations!$B$88>=3,"A",IF(Calculations!$B$87<=3,"A","P")))) -> P
H67: Herd 1 Pasture System | N67: =IF(Calculations!$L$47=TRUE,IF(N66="P",N15,0),0) -> 0 | O67: =IF(Calculations!$L$47=TRUE,IF(O66="P",O15,0),0) -> 0 | P67: =IF(Calculations!$L$47=TRUE,IF(P66="P",P15,0),0) -> 0 | Q67: =IF(Calculations!$L$47=TRUE,IF(Q66="P",Q15,0),0) -> 0 | R67: =IF(Calculations!$L$47=TRUE,IF(R66="P",R15,0),0) -> 0 | S67: =IF(Calculations!$L$47=TRUE,IF(S66="P",S15,0),0) -> 0 | T67: =IF(Calculations!$L$47=TRUE,IF(T66="P",T15,0),0) -> 0 | U67: =IF(Calculations!$L$47=TRUE,IF(U66="P",U15,0),0) -> 0 | V67: =IF(Calculations!$L$47=TRUE,IF(V66="P",V15,0),0) -> 0 | W67: =IF(Calculations!$L$47=TRUE,IF(W66="P",W15,0),0) -> 0 | X67: =IF(Calculations!$L$47=TRUE,IF(X66="P",X15,0),0) -> 0 | Y67: =IF(Calculations!$L$47=TRUE,IF(Y66="P",Y15,0),0) -> 0
H68: Herd 1 Alternative Pasture | N68: =IF(Calculations!$L$47=TRUE,IF(AND(N66="A",Calculations!$B$72=TRUE),N15,0),0) -> 0 | O68: =IF(Calculations!$L$47=TRUE,IF(AND(O66="A",Calculations!$B$72=TRUE),O15,0),0) -> 0 | P68: =IF(Calculations!$L$47=TRUE,IF(AND(P66="A",Calculations!$B$72=TRUE),P15,0),0) -> 0 | Q68: =IF(Calculations!$L$47=TRUE,IF(AND(Q66="A",Calculations!$B$72=TRUE),Q15,0),0) -> 0 | R68: =IF(Calculations!$L$47=TRUE,IF(AND(R66="A",Calculations!$B$72=TRUE),R15,0),0) -> 0 | S68: =IF(Calculations!$L$47=TRUE,IF(AND(S66="A",Calculations!$B$72=TRUE),S15,0),0) -> 0 | T68: =IF(Calculations!$L$47=TRUE,IF(AND(T66="A",Calculations!$B$72=TRUE),T15,0),0) -> 0 | U68: =IF(Calculations!$L$47=TRUE,IF(AND(U66="A",Calculations!$B$72=TRUE),U15,0),0) -> 0 | V68: =IF(Calculations!$L$47=TRUE,IF(AND(V66="A",Calculations!$B$72=TRUE),V15,0),0) -> 0 | W68: =IF(Calculations!$L$47=TRUE,IF(AND(W66="A",Calculations!$B$72=TRUE),W15,0),0) -> 0 | X68: =IF(Calculations!$L$47=TRUE,IF(AND(X66="A",Calculations!$B$72=TRUE),X15,0),0) -> 0 | Y68: =IF(Calculations!$L$47=TRUE,IF(AND(Y66="A",Calculations!$B$72=TRUE),Y15,0),0) -> 0
H69: Herd 1 Dry Lot | N69: =IF(Calculations!$L$47=TRUE,IF(AND(N66="A",Calculations!$B$73=TRUE),N15,0),0) -> 0 | O69: =IF(Calculations!$L$47=TRUE,IF(AND(O66="A",Calculations!$B$73=TRUE),O15,0),0) -> 0 | P69: =IF(Calculations!$L$47=TRUE,IF(AND(P66="A",Calculations!$B$73=TRUE),P15,0),0) -> 0 | Q69: =IF(Calculations!$L$47=TRUE,IF(AND(Q66="A",Calculations!$B$73=TRUE),Q15,0),0) -> 0 | R69: =IF(Calculations!$L$47=TRUE,IF(AND(R66="A",Calculations!$B$73=TRUE),R15,0),0) -> 0 | S69: =IF(Calculations!$L$47=TRUE,IF(AND(S66="A",Calculations!$B$73=TRUE),S15,0),0) -> 0 | T69: =IF(Calculations!$L$47=TRUE,IF(AND(T66="A",Calculations!$B$73=TRUE),T15,0),0) -> 0 | U69: =IF(Calculations!$L$47=TRUE,IF(AND(U66="A",Calculations!$B$73=TRUE),U15,0),0) -> 0 | V69: =IF(Calculations!$L$47=TRUE,IF(AND(V66="A",Calculations!$B$73=TRUE),V15,0),0) -> 0 | W69: =IF(Calculations!$L$47=TRUE,IF(AND(W66="A",Calculations!$B$73=TRUE),W15,0),0) -> 0 | X69: =IF(Calculations!$L$47=TRUE,IF(AND(X66="A",Calculations!$B$73=TRUE),X15,0),0) -> 0 | Y69: =IF(Calculations!$L$47=TRUE,IF(AND(Y66="A",Calculations!$B$73=TRUE),Y15,0),0) -> 0
M70: Herd 2 | N70: =IF(Calculations!$B$76=TRUE,"P",IF(Calculations!$B$91<Calculations!$B$92,(IF(Calculations!$B$91<=4,(IF(Calculations!$B$92>=4,"A","P")),"P")),IF(Calculations!$B$92>=4,"A",IF(Calculations!$B$91<=4,"A","P")))) -> P | O70: =IF(Calculations!$B$76=TRUE,"P",IF(Calculations!$B$91<Calculations!$B$92,(IF(Calculations!$B$91<=5,(IF(Calculations!$B$92>=5,"A","P")),"P")),IF(Calculations!$B$92>=5,"A",IF(Calculations!$B$91<=5,"A","P")))) -> P | P70: =IF(Calculations!$B$76=TRUE,"P",IF(Calculations!$B$91<Calculations!$B$92,(IF(Calculations!$B$91<=6,(IF(Calculations!$B$92>=6,"A","P")),"P")),IF(Calculations!$B$92>=6,"A",IF(Calculations!$B$91<=6,"A","P")))) -> P | Q70: =IF(Calculations!$B$76=TRUE,"P",IF(Calculations!$B$91<Calculations!$B$92,(IF(Calculations!$B$91<=7,(IF(Calculations!$B$92>=7,"A","P")),"P")),IF(Calculations!$B$92>=7,"A",IF(Calculations!$B$91<=7,"A","P")))) -> P | R70: =IF(Calculations!$B$76=TRUE,"P",IF(Calculations!$B$91<Calculations!$B$92,(IF(Calculations!$B$91<=8,(IF(Calculations!$B$92>=8,"A","P")),"P")),IF(Calculations!$B$92>=8,"A",IF(Calculations!$B$91<=8,"A","P")))) -> P | S70: =IF(Calculations!$B$76=TRUE,"P",IF(Calculations!$B$91<Calculations!$B$92,(IF(Calculations!$B$91<=9,(IF(Calculations!$B$92>=9,"A","P")),"P")),IF(Calculations!$B$92>=9,"A",IF(Calculations!$B$91<=9,"A","P")))) -> P | T70: =IF(Calculations!$B$76=TRUE,"P",IF(Calculations!$B$91<Calculations!$B$92,(IF(Calculations!$B$91<=10,(IF(Calculations!$B$92>=10,"A","P")),"P")),IF(Calculations!$B$92>=10,"A",IF(Calculations!$B$91<=10,"A","P")))) -> P | U70: =IF(Calculations!$B$76=TRUE,"P",IF(Calculations!$B$91<Calculations!$B$92,(IF(Calculations!$B$91<=11,(IF(Calculations!$B$92>=11,"A","P")),"P")),IF(Calculations!$B$92>=11,"A",IF(Calculations!$B$91<=11,"A","P")))) -> P | V70: =IF(Calculations!$B$76=TRUE,"P",IF(Calculations!$B$91<Calculations!$B$92,(IF(Calculations!$B$91<=12,(IF(Calculations!$B$92>=12,"A","P")),"P")),IF(Calculations!$B$92>=12,"A",IF(Calculations!$B$91<=12,"A","P")))) -> P | W70: =IF(Calculations!$B$76=TRUE,"P",IF(Calculations!$B$91<Calculations!$B$92,(IF(Calculations!$B$91<=1,(IF(Calculations!$B$92>=1,"A","P")),"P")),IF(Calculations!$B$92>=1,"A",IF(Calculations!$B$91<=1,"A","P")))) -> P | X70: =IF(Calculations!$B$76=TRUE,"P",IF(Calculations!$B$91<Calculations!$B$92,(IF(Calculations!$B$91<=2,(IF(Calculations!$B$92>=2,"A","P")),"P")),IF(Calculations!$B$92>=2,"A",IF(Calculations!$B$91<=2,"A","P")))) -> P | Y70: =IF(Calculations!$B$76=TRUE,"P",IF(Calculations!$B$91<Calculations!$B$92,(IF(Calculations!$B$91<=3,(IF(Calculations!$B$92>=3,"A","P")),"P")),IF(Calculations!$B$92>=3,"A",IF(Calculations!$B$91<=3,"A","P")))) -> P
H71: Herd 2 Pasture System | N71: =IF(Calculations!$L$48=TRUE,IF(N70="P",N17,0),0) -> 0 | O71: =IF(Calculations!$L$48=TRUE,IF(O70="P",O17,0),0) -> 0 | P71: =IF(Calculations!$L$48=TRUE,IF(P70="P",P17,0),0) -> 0 | Q71: =IF(Calculations!$L$48=TRUE,IF(Q70="P",Q17,0),0) -> 0 | R71: =IF(Calculations!$L$48=TRUE,IF(R70="P",R17,0),0) -> 0 | S71: =IF(Calculations!$L$48=TRUE,IF(S70="P",S17,0),0) -> 0 | T71: =IF(Calculations!$L$48=TRUE,IF(T70="P",T17,0),0) -> 0 | U71: =IF(Calculations!$L$48=TRUE,IF(U70="P",U17,0),0) -> 0 | V71: =IF(Calculations!$L$48=TRUE,IF(V70="P",V17,0),0) -> 0 | W71: =IF(Calculations!$L$48=TRUE,IF(W70="P",W17,0),0) -> 0 | X71: =IF(Calculations!$L$48=TRUE,IF(X70="P",X17,0),0) -> 0 | Y71: =IF(Calculations!$L$48=TRUE,IF(Y70="P",Y17,0),0) -> 0
H72: Herd 2 Alternative Pasture | N72: =IF(Calculations!$L$48=TRUE,IF(AND(N70="A",Calculations!$B$77=TRUE),N17,0),0) -> 0 | O72: =IF(Calculations!$L$48=TRUE,IF(AND(O70="A",Calculations!$B$77=TRUE),O17,0),0) -> 0 | P72: =IF(Calculations!$L$48=TRUE,IF(AND(P70="A",Calculations!$B$77=TRUE),P17,0),0) -> 0 | Q72: =IF(Calculations!$L$48=TRUE,IF(AND(Q70="A",Calculations!$B$77=TRUE),Q17,0),0) -> 0 | R72: =IF(Calculations!$L$48=TRUE,IF(AND(R70="A",Calculations!$B$77=TRUE),R17,0),0) -> 0 | S72: =IF(Calculations!$L$48=TRUE,IF(AND(S70="A",Calculations!$B$77=TRUE),S17,0),0) -> 0 | T72: =IF(Calculations!$L$48=TRUE,IF(AND(T70="A",Calculations!$B$77=TRUE),T17,0),0) -> 0 | U72: =IF(Calculations!$L$48=TRUE,IF(AND(U70="A",Calculations!$B$77=TRUE),U17,0),0) -> 0 | V72: =IF(Calculations!$L$48=TRUE,IF(AND(V70="A",Calculations!$B$77=TRUE),V17,0),0) -> 0 | W72: =IF(Calculations!$L$48=TRUE,IF(AND(W70="A",Calculations!$B$77=TRUE),W17,0),0) -> 0 | X72: =IF(Calculations!$L$48=TRUE,IF(AND(X70="A",Calculations!$B$77=TRUE),X17,0),0) -> 0 | Y72: =IF(Calculations!$L$48=TRUE,IF(AND(Y70="A",Calculations!$B$77=TRUE),Y17,0),0) -> 0
H73: Herd 2 Dry Lot | N73: =IF(Calculations!$L$48=TRUE,IF(AND(N70="A",Calculations!$B$78=TRUE),N17,0),0) -> 0 | O73: =IF(Calculations!$L$48=TRUE,IF(AND(O70="A",Calculations!$B$78=TRUE),O17,0),0) -> 0 | P73: =IF(Calculations!$L$48=TRUE,IF(AND(P70="A",Calculations!$B$78=TRUE),P17,0),0) -> 0 | Q73: =IF(Calculations!$L$48=TRUE,IF(AND(Q70="A",Calculations!$B$78=TRUE),Q17,0),0) -> 0 | R73: =IF(Calculations!$L$48=TRUE,IF(AND(R70="A",Calculations!$B$78=TRUE),R17,0),0) -> 0 | S73: =IF(Calculations!$L$48=TRUE,IF(AND(S70="A",Calculations!$B$78=TRUE),S17,0),0) -> 0 | T73: =IF(Calculations!$L$48=TRUE,IF(AND(T70="A",Calculations!$B$78=TRUE),T17,0),0) -> 0 | U73: =IF(Calculations!$L$48=TRUE,IF(AND(U70="A",Calculations!$B$78=TRUE),U17,0),0) -> 0 | V73: =IF(Calculations!$L$48=TRUE,IF(AND(V70="A",Calculations!$B$78=TRUE),V17,0),0) -> 0 | W73: =IF(Calculations!$L$48=TRUE,IF(AND(W70="A",Calculations!$B$78=TRUE),W17,0),0) -> 0 | X73: =IF(Calculations!$L$48=TRUE,IF(AND(X70="A",Calculations!$B$78=TRUE),X17,0),0) -> 0 | Y73: =IF(Calculations!$L$48=TRUE,IF(AND(Y70="A",Calculations!$B$78=TRUE),Y17,0),0) -> 0
M74: Herd 3 | N74: =IF(Calculations!$B$81=TRUE,"P",IF(Calculations!$B$95<Calculations!$B$96,(IF(Calculations!$B$95<=4,(IF(Calculations!$B$96>=4,"A","P")),"P")),IF(Calculations!$B$96>=4,"A",IF(Calculations!$B$95<=4,"A","P")))) -> P | O74: =IF(Calculations!$B$81=TRUE,"P",IF(Calculations!$B$95<Calculations!$B$96,(IF(Calculations!$B$95<=5,(IF(Calculations!$B$96>=5,"A","P")),"P")),IF(Calculations!$B$96>=5,"A",IF(Calculations!$B$95<=5,"A","P")))) -> P | P74: =IF(Calculations!$B$81=TRUE,"P",IF(Calculations!$B$95<Calculations!$B$96,(IF(Calculations!$B$95<=6,(IF(Calculations!$B$96>=6,"A","P")),"P")),IF(Calculations!$B$96>=6,"A",IF(Calculations!$B$95<=6,"A","P")))) -> P | Q74: =IF(Calculations!$B$81=TRUE,"P",IF(Calculations!$B$95<Calculations!$B$96,(IF(Calculations!$B$95<=7,(IF(Calculations!$B$96>=7,"A","P")),"P")),IF(Calculations!$B$96>=7,"A",IF(Calculations!$B$95<=7,"A","P")))) -> P | R74: =IF(Calculations!$B$81=TRUE,"P",IF(Calculations!$B$95<Calculations!$B$96,(IF(Calculations!$B$95<=8,(IF(Calculations!$B$96>=8,"A","P")),"P")),IF(Calculations!$B$96>=8,"A",IF(Calculations!$B$95<=8,"A","P")))) -> P | S74: =IF(Calculations!$B$81=TRUE,"P",IF(Calculations!$B$95<Calculations!$B$96,(IF(Calculations!$B$95<=9,(IF(Calculations!$B$96>=9,"A","P")),"P")),IF(Calculations!$B$96>=9,"A",IF(Calculations!$B$95<=9,"A","P")))) -> P | T74: =IF(Calculations!$B$81=TRUE,"P",IF(Calculations!$B$95<Calculations!$B$96,(IF(Calculations!$B$95<=10,(IF(Calculations!$B$96>=10,"A","P")),"P")),IF(Calculations!$B$96>=10,"A",IF(Calculations!$B$95<=10,"A","P")))) -> P | U74: =IF(Calculations!$B$81=TRUE,"P",IF(Calculations!$B$95<Calculations!$B$96,(IF(Calculations!$B$95<=11,(IF(Calculations!$B$96>=11,"A","P")),"P")),IF(Calculations!$B$96>=11,"A",IF(Calculations!$B$95<=11,"A","P")))) -> P | V74: =IF(Calculations!$B$81=TRUE,"P",IF(Calculations!$B$95<Calculations!$B$96,(IF(Calculations!$B$95<=12,(IF(Calculations!$B$96>=12,"A","P")),"P")),IF(Calculations!$B$96>=12,"A",IF(Calculations!$B$95<=12,"A","P")))) -> P | W74: =IF(Calculations!$B$81=TRUE,"P",IF(Calculations!$B$95<Calculations!$B$96,(IF(Calculations!$B$95<=1,(IF(Calculations!$B$96>=1,"A","P")),"P")),IF(Calculations!$B$96>=1,"A",IF(Calculations!$B$95<=1,"A","P")))) -> P | X74: =IF(Calculations!$B$81=TRUE,"P",IF(Calculations!$B$95<Calculations!$B$96,(IF(Calculations!$B$95<=2,(IF(Calculations!$B$96>=2,"A","P")),"P")),IF(Calculations!$B$96>=2,"A",IF(Calculations!$B$95<=2,"A","P")))) -> P | Y74: =IF(Calculations!$B$81=TRUE,"P",IF(Calculations!$B$95<Calculations!$B$96,(IF(Calculations!$B$95<=3,(IF(Calculations!$B$96>=3,"A","P")),"P")),IF(Calculations!$B$96>=3,"A",IF(Calculations!$B$95<=3,"A","P")))) -> P
H75: Herd 3 Pasture System | N75: =IF(Calculations!$L$49=TRUE,IF(N74="P",N19,0),0) -> 0 | O75: =IF(Calculations!$L$49=TRUE,IF(O74="P",O19,0),0) -> 0 | P75: =IF(Calculations!$L$49=TRUE,IF(P74="P",P19,0),0) -> 0 | Q75: =IF(Calculations!$L$49=TRUE,IF(Q74="P",Q19,0),0) -> 0 | R75: =IF(Calculations!$L$49=TRUE,IF(R74="P",R19,0),0) -> 0 | S75: =IF(Calculations!$L$49=TRUE,IF(S74="P",S19,0),0) -> 0 | T75: =IF(Calculations!$L$49=TRUE,IF(T74="P",T19,0),0) -> 0 | U75: =IF(Calculations!$L$49=TRUE,IF(U74="P",U19,0),0) -> 0 | V75: =IF(Calculations!$L$49=TRUE,IF(V74="P",V19,0),0) -> 0 | W75: =IF(Calculations!$L$49=TRUE,IF(W74="P",W19,0),0) -> 0 | X75: =IF(Calculations!$L$49=TRUE,IF(X74="P",X19,0),0) -> 0 | Y75: =IF(Calculations!$L$49=TRUE,IF(Y74="P",Y19,0),0) -> 0
H76: Herd 3 Alternative Pasture | N76: =IF(Calculations!$L$49=TRUE,IF(AND(N74="A",Calculations!$B$82=TRUE),N19,0),0) -> 0 | O76: =IF(Calculations!$L$49=TRUE,IF(AND(O74="A",Calculations!$B$82=TRUE),O19,0),0) -> 0 | P76: =IF(Calculations!$L$49=TRUE,IF(AND(P74="A",Calculations!$B$82=TRUE),P19,0),0) -> 0 | Q76: =IF(Calculations!$L$49=TRUE,IF(AND(Q74="A",Calculations!$B$82=TRUE),Q19,0),0) -> 0 | R76: =IF(Calculations!$L$49=TRUE,IF(AND(R74="A",Calculations!$B$82=TRUE),R19,0),0) -> 0 | S76: =IF(Calculations!$L$49=TRUE,IF(AND(S74="A",Calculations!$B$82=TRUE),S19,0),0) -> 0 | T76: =IF(Calculations!$L$49=TRUE,IF(AND(T74="A",Calculations!$B$82=TRUE),T19,0),0) -> 0 | U76: =IF(Calculations!$L$49=TRUE,IF(AND(U74="A",Calculations!$B$82=TRUE),U19,0),0) -> 0 | V76: =IF(Calculations!$L$49=TRUE,IF(AND(V74="A",Calculations!$B$82=TRUE),V19,0),0) -> 0 | W76: =IF(Calculations!$L$49=TRUE,IF(AND(W74="A",Calculations!$B$82=TRUE),W19,0),0) -> 0 | X76: =IF(Calculations!$L$49=TRUE,IF(AND(X74="A",Calculations!$B$82=TRUE),X19,0),0) -> 0 | Y76: =IF(Calculations!$L$49=TRUE,IF(AND(Y74="A",Calculations!$B$82=TRUE),Y19,0),0) -> 0
H77: Herd 3 Dry Lot | N77: =IF(Calculations!$L$49=TRUE,IF(AND(N74="A",Calculations!$B$83=TRUE),N19,0),0) -> 0 | O77: =IF(Calculations!$L$49=TRUE,IF(AND(O74="A",Calculations!$B$83=TRUE),O19,0),0) -> 0 | P77: =IF(Calculations!$L$49=TRUE,IF(AND(P74="A",Calculations!$B$83=TRUE),P19,0),0) -> 0 | Q77: =IF(Calculations!$L$49=TRUE,IF(AND(Q74="A",Calculations!$B$83=TRUE),Q19,0),0) -> 0 | R77: =IF(Calculations!$L$49=TRUE,IF(AND(R74="A",Calculations!$B$83=TRUE),R19,0),0) -> 0 | S77: =IF(Calculations!$L$49=TRUE,IF(AND(S74="A",Calculations!$B$83=TRUE),S19,0),0) -> 0 | T77: =IF(Calculations!$L$49=TRUE,IF(AND(T74="A",Calculations!$B$83=TRUE),T19,0),0) -> 0 | U77: =IF(Calculations!$L$49=TRUE,IF(AND(U74="A",Calculations!$B$83=TRUE),U19,0),0) -> 0 | V77: =IF(Calculations!$L$49=TRUE,IF(AND(V74="A",Calculations!$B$83=TRUE),V19,0),0) -> 0 | W77: =IF(Calculations!$L$49=TRUE,IF(AND(W74="A",Calculations!$B$83=TRUE),W19,0),0) -> 0 | X77: =IF(Calculations!$L$49=TRUE,IF(AND(X74="A",Calculations!$B$83=TRUE),X19,0),0) -> 0 | Y77: =IF(Calculations!$L$49=TRUE,IF(AND(Y74="A",Calculations!$B$83=TRUE),Y19,0),0) -> 0
M79: Stockers
M80: Herd 1 | N80: =IF(Calculations!$L$50=TRUE,N21,"") ->  | O80: =IF(Calculations!$L$50=TRUE,O21,"") ->  | P80: =IF(Calculations!$L$50=TRUE,P21,"") ->  | Q80: =IF(Calculations!$L$50=TRUE,Q21,"") ->  | R80: =IF(Calculations!$L$50=TRUE,R21,"") ->  | S80: =IF(Calculations!$L$50=TRUE,S21,"") ->  | T80: =IF(Calculations!$L$50=TRUE,T21,"") ->  | U80: =IF(Calculations!$L$50=TRUE,U21,"") ->  | V80: =IF(Calculations!$L$50=TRUE,V21,"") ->  | W80: =IF(Calculations!$L$50=TRUE,W21,"") ->  | X80: =IF(Calculations!$L$50=TRUE,X21,"") ->  | Y80: =IF(Calculations!$L$50=TRUE,Y21,"") -> 
M81: Herd 2 | N81: =IF(Calculations!$L$51=TRUE,N23,"") ->  | O81: =IF(Calculations!$L$51=TRUE,O23,"") ->  | P81: =IF(Calculations!$L$51=TRUE,P23,"") ->  | Q81: =IF(Calculations!$L$51=TRUE,Q23,"") ->  | R81: =IF(Calculations!$L$51=TRUE,R23,"") ->  | S81: =IF(Calculations!$L$51=TRUE,S23,"") ->  | T81: =IF(Calculations!$L$51=TRUE,T23,"") ->  | U81: =IF(Calculations!$L$51=TRUE,U23,"") ->  | V81: =IF(Calculations!$L$51=TRUE,V23,"") ->  | W81: =IF(Calculations!$L$51=TRUE,W23,"") ->  | X81: =IF(Calculations!$L$51=TRUE,X23,"") ->  | Y81: =IF(Calculations!$L$51=TRUE,Y23,"") -> 
M83: Horses | N83: =IF(Calculations!B99=TRUE,"P",IF(Calculations!$B$102<Calculations!$B$103,(IF(Calculations!$B$102<=4,(IF(Calculations!$B$103>=4,"A","P")),"P")),IF(Calculations!$B$103>=4,"A",IF(Calculations!$B$102<=4,"A","P")))) -> P | O83: =IF(Calculations!B99=TRUE,"P",IF(Calculations!$B$102<Calculations!$B$103,(IF(Calculations!$B$102<=5,(IF(Calculations!$B$103>=5,"A","P")),"P")),IF(Calculations!$B$103>=5,"A",IF(Calculations!$B$102<=5,"A","P")))) -> P | P83: =IF(Calculations!B99=TRUE,"P",IF(Calculations!$B$102<Calculations!$B$103,(IF(Calculations!$B$102<=6,(IF(Calculations!$B$103>=6,"A","P")),"P")),IF(Calculations!$B$103>=6,"A",IF(Calculations!$B$102<=6,"A","P")))) -> P | Q83: =IF(Calculations!B99=TRUE,"P",IF(Calculations!$B$102<Calculations!$B$103,(IF(Calculations!$B$102<=7,(IF(Calculations!$B$103>=7,"A","P")),"P")),IF(Calculations!$B$103>=7,"A",IF(Calculations!$B$102<=7,"A","P")))) -> P | R83: =IF(Calculations!B99=TRUE,"P",IF(Calculations!$B$102<Calculations!$B$103,(IF(Calculations!$B$102<=8,(IF(Calculations!$B$103>=8,"A","P")),"P")),IF(Calculations!$B$103>=8,"A",IF(Calculations!$B$102<=8,"A","P")))) -> P | S83: =IF(Calculations!B99=TRUE,"P",IF(Calculations!$B$102<Calculations!$B$103,(IF(Calculations!$B$102<=9,(IF(Calculations!$B$103>=9,"A","P")),"P")),IF(Calculations!$B$103>=9,"A",IF(Calculations!$B$102<=9,"A","P")))) -> P | T83: =IF(Calculations!B99=TRUE,"P",IF(Calculations!$B$102<Calculations!$B$103,(IF(Calculations!$B$102<=10,(IF(Calculations!$B$103>=10,"A","P")),"P")),IF(Calculations!$B$103>=10,"A",IF(Calculations!$B$102<=10,"A","P")))) -> P | U83: =IF(Calculations!B99=TRUE,"P",IF(Calculations!$B$102<Calculations!$B$103,(IF(Calculations!$B$102<=11,(IF(Calculations!$B$103>=11,"A","P")),"P")),IF(Calculations!$B$103>=11,"A",IF(Calculations!$B$102<=11,"A","P")))) -> P | V83: =IF(Calculations!B99=TRUE,"P",IF(Calculations!$B$102<Calculations!$B$103,(IF(Calculations!$B$102<=12,(IF(Calculations!$B$103>=12,"A","P")),"P")),IF(Calculations!$B$103>=12,"A",IF(Calculations!$B$102<=12,"A","P")))) -> P | W83: =IF(Calculations!B99=TRUE,"P",IF(Calculations!$B$102<Calculations!$B$103,(IF(Calculations!$B$102<=1,(IF(Calculations!$B$103>=1,"A","P")),"P")),IF(Calculations!$B$103>=1,"A",IF(Calculations!$B$102<=1,"A","P")))) -> P | X83: =IF(Calculations!B99=TRUE,"P",IF(Calculations!$B$102<Calculations!$B$103,(IF(Calculations!$B$102<=2,(IF(Calculations!$B$103>=2,"A","P")),"P")),IF(Calculations!$B$103>=2,"A",IF(Calculations!$B$102<=2,"A","P")))) -> P | Y83: =IF(Calculations!B99=TRUE,"P",IF(Calculations!$B$102<Calculations!$B$103,(IF(Calculations!$B$102<=3,(IF(Calculations!$B$103>=3,"A","P")),"P")),IF(Calculations!$B$103>=3,"A",IF(Calculations!$B$102<=3,"A","P")))) -> P
M84: Pasture System | N84: =IF(Calculations!$L$52=TRUE,IF(N83="P",N35,0),0) -> 0 | O84: =IF(Calculations!$L$52=TRUE,IF(O83="P",O35,0),0) -> 0 | P84: =IF(Calculations!$L$52=TRUE,IF(P83="P",P35,0),0) -> 0 | Q84: =IF(Calculations!$L$52=TRUE,IF(Q83="P",Q35,0),0) -> 0 | R84: =IF(Calculations!$L$52=TRUE,IF(R83="P",R35,0),0) -> 0 | S84: =IF(Calculations!$L$52=TRUE,IF(S83="P",S35,0),0) -> 0 | T84: =IF(Calculations!$L$52=TRUE,IF(T83="P",T35,0),0) -> 0 | U84: =IF(Calculations!$L$52=TRUE,IF(U83="P",U35,0),0) -> 0 | V84: =IF(Calculations!$L$52=TRUE,IF(V83="P",V35,0),0) -> 0 | W84: =IF(Calculations!$L$52=TRUE,IF(W83="P",W35,0),0) -> 0 | X84: =IF(Calculations!$L$52=TRUE,IF(X83="P",X35,0),0) -> 0 | Y84: =IF(Calculations!$L$52=TRUE,IF(Y83="P",Y35,0),0) -> 0
M85: Alt Pasture | N85: =IF(Calculations!$L$52=TRUE,IF(AND(N83="A",Calculations!$B$100=TRUE),N35,0),0) -> 0 | O85: =IF(Calculations!$L$52=TRUE,IF(AND(O83="A",Calculations!$B$100=TRUE),O35,0),0) -> 0 | P85: =IF(Calculations!$L$52=TRUE,IF(AND(P83="A",Calculations!$B$100=TRUE),P35,0),0) -> 0 | Q85: =IF(Calculations!$L$52=TRUE,IF(AND(Q83="A",Calculations!$B$100=TRUE),Q35,0),0) -> 0 | R85: =IF(Calculations!$L$52=TRUE,IF(AND(R83="A",Calculations!$B$100=TRUE),R35,0),0) -> 0 | S85: =IF(Calculations!$L$52=TRUE,IF(AND(S83="A",Calculations!$B$100=TRUE),S35,0),0) -> 0 | T85: =IF(Calculations!$L$52=TRUE,IF(AND(T83="A",Calculations!$B$100=TRUE),T35,0),0) -> 0 | U85: =IF(Calculations!$L$52=TRUE,IF(AND(U83="A",Calculations!$B$100=TRUE),U35,0),0) -> 0 | V85: =IF(Calculations!$L$52=TRUE,IF(AND(V83="A",Calculations!$B$100=TRUE),V35,0),0) -> 0 | W85: =IF(Calculations!$L$52=TRUE,IF(AND(W83="A",Calculations!$B$100=TRUE),W35,0),0) -> 0 | X85: =IF(Calculations!$L$52=TRUE,IF(AND(X83="A",Calculations!$B$100=TRUE),X35,0),0) -> 0 | Y85: =IF(Calculations!$L$52=TRUE,IF(AND(Y83="A",Calculations!$B$100=TRUE),Y35,0),0) -> 0
M86: Dry Lot | N86: =IF(Calculations!$L$52=TRUE,IF(AND(N83="A",Calculations!$B$101=TRUE),N35,0),0) -> 0 | O86: =IF(Calculations!$L$52=TRUE,IF(AND(O83="A",Calculations!$B$101=TRUE),O35,0),0) -> 0 | P86: =IF(Calculations!$L$52=TRUE,IF(AND(P83="A",Calculations!$B$101=TRUE),P35,0),0) -> 0 | Q86: =IF(Calculations!$L$52=TRUE,IF(AND(Q83="A",Calculations!$B$101=TRUE),Q35,0),0) -> 0 | R86: =IF(Calculations!$L$52=TRUE,IF(AND(R83="A",Calculations!$B$101=TRUE),R35,0),0) -> 0 | S86: =IF(Calculations!$L$52=TRUE,IF(AND(S83="A",Calculations!$B$101=TRUE),S35,0),0) -> 0 | T86: =IF(Calculations!$L$52=TRUE,IF(AND(T83="A",Calculations!$B$101=TRUE),T35,0),0) -> 0 | U86: =IF(Calculations!$L$52=TRUE,IF(AND(U83="A",Calculations!$B$101=TRUE),U35,0),0) -> 0 | V86: =IF(Calculations!$L$52=TRUE,IF(AND(V83="A",Calculations!$B$101=TRUE),V35,0),0) -> 0 | W86: =IF(Calculations!$L$52=TRUE,IF(AND(W83="A",Calculations!$B$101=TRUE),W35,0),0) -> 0 | X86: =IF(Calculations!$L$52=TRUE,IF(AND(X83="A",Calculations!$B$101=TRUE),X35,0),0) -> 0 | Y86: =IF(Calculations!$L$52=TRUE,IF(AND(Y83="A",Calculations!$B$101=TRUE),Y35,0),0) -> 0
M88: Goats | N88: =IF(Calculations!$L$53=TRUE,N39,"") ->  | O88: =IF(Calculations!$L$53=TRUE,O39,"") ->  | P88: =IF(Calculations!$L$53=TRUE,P39,"") ->  | Q88: =IF(Calculations!$L$53=TRUE,Q39,"") ->  | R88: =IF(Calculations!$L$53=TRUE,R39,"") ->  | S88: =IF(Calculations!$L$53=TRUE,S39,"") ->  | T88: =IF(Calculations!$L$53=TRUE,T39,"") ->  | U88: =IF(Calculations!$L$53=TRUE,U39,"") ->  | V88: =IF(Calculations!$L$53=TRUE,V39,"") ->  | W88: =IF(Calculations!$L$53=TRUE,W39,"") ->  | X88: =IF(Calculations!$L$53=TRUE,X39,"") ->  | Y88: =IF(Calculations!$L$53=TRUE,Y39,"") -> 
M89: Sheep | N89: =IF(Calculations!$L$54=TRUE,N37,"") ->  | O89: =IF(Calculations!$L$54=TRUE,O37,"") ->  | P89: =IF(Calculations!$L$54=TRUE,P37,"") ->  | Q89: =IF(Calculations!$L$54=TRUE,Q37,"") ->  | R89: =IF(Calculations!$L$54=TRUE,R37,"") ->  | S89: =IF(Calculations!$L$54=TRUE,S37,"") ->  | T89: =IF(Calculations!$L$54=TRUE,T37,"") ->  | U89: =IF(Calculations!$L$54=TRUE,U37,"") ->  | V89: =IF(Calculations!$L$54=TRUE,V37,"") ->  | W89: =IF(Calculations!$L$54=TRUE,W37,"") ->  | X89: =IF(Calculations!$L$54=TRUE,X37,"") ->  | Y89: =IF(Calculations!$L$54=TRUE,Y37,"") -> 
H91: Total Forage Demand: Grazing System | J91: Total (lbs/year) = | M91: =SUM(N91:Y91) -> 0 | N91: =N44+N50+N61+N67+N71+N75+N80+N81+N84+N88+N89 -> 0 | O91: 0 | P91: 0 | Q91: 0 | R91: 0 | S91: 0 | T91: 0 | U91: 0 | V91: 0 | W91: 0 | X91: 0 | Y91: 0
H92: Total Forage Demand: Alternative Pasture | J92: Total (lbs/year) = | M92: =SUM(N92:Y92) -> 0 | N92: =N45+N51+N54+N62+N68+N72+N76+N85 -> 0 | O92: 0 | P92: 0 | Q92: 0 | R92: 0 | S92: 0 | T92: 0 | U92: 0 | V92: 0 | W92: 0 | X92: 0 | Y92: 0
H93: Total Forage Demand: Dry Lot | J93: Total (lbs/year) = | M93: =SUM(N93:Y93) -> 0 | N93: =N46+N52+N55+N63+N69+N73+N77+N86 -> 0 | O93: 0 | P93: 0 | Q93: 0 | R93: 0 | S93: 0 | T93: 0 | U93: 0 | V93: 0 | W93: 0 | X93: 0 | Y93: 0
F97: GRAZING SYSTEM PASTURE FORAGE PRODUCTION
F98: Use this input area to capture the pasture forage production of the grazing system. Add additional paddocks by selecting the "+" icon. You may enter up to 24 separate fields/paddocks. The yellow cells are for user inputs. If hay will be cut on a field/paddock (in addition to being used as part of the grazing system), select the "Y" icon and enter the month hay will be cut. Entering haying information here will automatically add the field/paddock to the "Fields Hayed in Conjunction with Grazing" area below where you will be able to enter details about the hay production. You can override the haying information at any time by selecting the "N" icon to revert the field back to a pasture only field. The Pasture Grazing Efficiency information can be entered manually or you can allow the model to calculate. Select the "What is this?" button below to learn more about this feature.
E100: Add (+) or Remove (-) Rows | G100: Field/ | J100: TFP* | K100: Total | L100: Pasture | N100: Grazing System Pasture Forage Available by Month (Lbs/month)
G101: Paddock | H101: Kind of Forage | I101: Acres | K101: Production | L101: Grazing | M101: Usable
G102: Number | H102: (double click for drop down menu) | I102: (Usable) | J102: lbs/ac | K102: Pounds | L102: Eff. (%) | M102: Pounds | N102: Apr | O102: May | P102: June | Q102: July | R102: Aug | S102: Sept | T102: Oct | U102: Nov | V102: Dec | W102: Jan | X102: Feb | Y102: Mar
K103: =I103*J103 -> 0 | M103: =K103*L103/100 -> 0 | N103: =IF($H103="","",IF(HayMonth1=0,VLOOKUP($H103,FORAGE2,3)*($M103),IF(AND(HayMonth1>0,HayMonth1<4),VLOOKUP($H103,FORAGE2,3)*($M103),0))) ->  | O103: =IF($H103="","",IF(HayMonth1=0,VLOOKUP($H103,FORAGE2,4)*($M103),IF(AND(HayMonth1>0,HayMonth1<5),VLOOKUP($H103,FORAGE2,4)*($M103),0))) ->  | P103: =IF($H103="","",IF(HayMonth1=0,VLOOKUP($H103,FORAGE2,5)*($M103),IF(AND(HayMonth1>0,HayMonth1<6),VLOOKUP($H103,FORAGE2,5)*($M103),0))) ->  | Q103: =IF($H103="","",IF(HayMonth1=0,VLOOKUP($H103,FORAGE2,6)*($M103),IF(AND(HayMonth1>0,HayMonth1<7),VLOOKUP($H103,FORAGE2,6)*($M103),0))) ->  | R103: =IF($H103="","",IF(HayMonth1=0,VLOOKUP($H103,FORAGE2,7)*($M103),IF(AND(HayMonth1>0,HayMonth1<8),VLOOKUP($H103,FORAGE2,7)*($M103),0))) ->  | S103: =IF($H103="","",IF(HayMonth1=0,VLOOKUP($H103,FORAGE2,8)*($M103),IF(AND(HayMonth1>0,HayMonth1<9),VLOOKUP($H103,FORAGE2,8)*($M103),0))) ->  | T103: =IF($H103="","",IF(HayMonth1=0,VLOOKUP($H103,FORAGE2,9)*($M103),IF(AND(HayMonth1>0,HayMonth1<10),VLOOKUP($H103,FORAGE2,9)*($M103),0))) ->  | U103: =IF($H103="","",IF(HayMonth1=0,VLOOKUP($H103,FORAGE2,10)*($M103),IF(AND(HayMonth1>0,HayMonth1<11),VLOOKUP($H103,FORAGE2,10)*($M103),0))) ->  | V103: =IF($H103="","",IF(HayMonth1=0,VLOOKUP($H103,FORAGE2,11)*($M103),IF(AND(HayMonth1>0,HayMonth1<12),VLOOKUP($H103,FORAGE2,11)*($M103),0))) ->  | W103: =IF($H103="","",IF(HayMonth1=0,VLOOKUP($H103,FORAGE2,12)*($M103),IF(AND(HayMonth1>0,HayMonth1<1),VLOOKUP($H103,FORAGE2,12)*($M103),0))) ->  | X103: =IF($H103="","",IF(HayMonth1=0,VLOOKUP($H103,FORAGE2,13)*($M103),IF(AND(HayMonth1>0,HayMonth1<2),VLOOKUP($H103,FORAGE2,13)*($M103),0))) ->  | Y103: =IF($H103="","",IF(HayMonth1=0,VLOOKUP($H103,FORAGE2,14)*($M103),IF(AND(HayMonth1>0,HayMonth1<3),VLOOKUP($H103,FORAGE2,14)*($M103),0))) -> 
H104: Will hay be cut on this field? | I104: =IF(HayMonth1>0,"Hay cut in:","") ->  | J104: =IF(HayMonth1=0,"",IF(HayMonth1=1,"Jan",IF(HayMonth1=2,"Feb",IF(HayMonth1=3,"Mar",IF(HayMonth1=4,"Apr",IF(HayMonth1=5,"May",IF(HayMonth1=6,"Jun",IF(HayMonth1=7,"Jul",IF(HayMonth1=8,"Aug",IF(HayMonth1=9,"Sep",IF(HayMonth1=10,"Oct",IF(HayMonth1=11,"Nov","Dec")))))))))))) -> 
K105: =I105*J105 -> 0 | M105: =K105*L105/100 -> 0 | N105: =IF($H105="","",IF(HayMonth2=0,VLOOKUP($H105,FORAGE2,3)*($M105),IF(AND(HayMonth2>0,HayMonth2<4),VLOOKUP($H105,FORAGE2,3)*($M105),0))) ->  | O105: =IF($H105="","",IF(HayMonth2=0,VLOOKUP($H105,FORAGE2,4)*($M105),IF(AND(HayMonth2>0,HayMonth2<5),VLOOKUP($H105,FORAGE2,4)*($M105),0))) ->  | P105: =IF($H105="","",IF(HayMonth2=0,VLOOKUP($H105,FORAGE2,5)*($M105),IF(AND(HayMonth2>0,HayMonth2<6),VLOOKUP($H105,FORAGE2,5)*($M105),0))) ->  | Q105: =IF($H105="","",IF(HayMonth2=0,VLOOKUP($H105,FORAGE2,6)*($M105),IF(AND(HayMonth2>0,HayMonth2<7),VLOOKUP($H105,FORAGE2,6)*($M105),0))) ->  | R105: =IF($H105="","",IF(HayMonth2=0,VLOOKUP($H105,FORAGE2,7)*($M105),IF(AND(HayMonth2>0,HayMonth2<8),VLOOKUP($H105,FORAGE2,7)*($M105),0))) ->  | S105: =IF($H105="","",IF(HayMonth2=0,VLOOKUP($H105,FORAGE2,8)*($M105),IF(AND(HayMonth2>0,HayMonth2<9),VLOOKUP($H105,FORAGE2,8)*($M105),0))) ->  | T105: =IF($H105="","",IF(HayMonth2=0,VLOOKUP($H105,FORAGE2,9)*($M105),IF(AND(HayMonth2>0,HayMonth2<10),VLOOKUP($H105,FORAGE2,9)*($M105),0))) ->  | U105: =IF($H105="","",IF(HayMonth2=0,VLOOKUP($H105,FORAGE2,10)*($M105),IF(AND(HayMonth2>0,HayMonth2<11),VLOOKUP($H105,FORAGE2,10)*($M105),0))) ->  | V105: =IF($H105="","",IF(HayMonth2=0,VLOOKUP($H105,FORAGE2,11)*($M105),IF(AND(HayMonth2>0,HayMonth2<12),VLOOKUP($H105,FORAGE2,11)*($M105),0))) ->  | W105: =IF($H105="","",IF(HayMonth2=0,VLOOKUP($H105,FORAGE2,12)*($M105),IF(AND(HayMonth2>0,HayMonth2<1),VLOOKUP($H105,FORAGE2,12)*($M105),0))) ->  | X105: =IF($H105="","",IF(HayMonth2=0,VLOOKUP($H105,FORAGE2,13)*($M105),IF(AND(HayMonth2>0,HayMonth2<2),VLOOKUP($H105,FORAGE2,13)*($M105),0))) ->  | Y105: =IF($H105="","",IF(HayMonth2=0,VLOOKUP($H105,FORAGE2,14)*($M105),IF(AND(HayMonth2>0,HayMonth2<3),VLOOKUP($H105,FORAGE2,14)*($M105),0))) -> 
H106: Will hay be cut on this field? | I106: =IF(HayMonth2>0,"Hay cut in:","") ->  | J106: =IF(HayMonth2=0,"",IF(HayMonth2=1,"Jan",IF(HayMonth2=2,"Feb",IF(HayMonth2=3,"Mar",IF(HayMonth2=4,"Apr",IF(HayMonth2=5,"May",IF(HayMonth2=6,"Jun",IF(HayMonth2=7,"Jul",IF(HayMonth2=8,"Aug",IF(HayMonth2=9,"Sep",IF(HayMonth2=10,"Oct",IF(HayMonth2=11,"Nov","Dec")))))))))))) -> 
K107: 0 | L107: =IF(ISBLANK(Field3)="",(VLOOKUP(ROUND(TotalAcreGrazed/Acres3,0),[0]!PastureEffTable,2,)),"") ->  | M107: =K107*L107/100 -> 0 | N107: =IF($H107="","",IF(HayMonth3=0,VLOOKUP($H107,FORAGE2,3)*($M107),IF(AND(HayMonth3>0,HayMonth3<4),VLOOKUP($H107,FORAGE2,3)*($M107),0))) ->  | O107: =IF($H107="","",IF(HayMonth3=0,VLOOKUP($H107,FORAGE2,4)*($M107),IF(AND(HayMonth3>0,HayMonth3<5),VLOOKUP($H107,FORAGE2,4)*($M107),0))) ->  | P107: =IF($H107="","",IF(HayMonth3=0,VLOOKUP($H107,FORAGE2,5)*($M107),IF(AND(HayMonth3>0,HayMonth3<6),VLOOKUP($H107,FORAGE2,5)*($M107),0))) ->  | Q107: =IF($H107="","",IF(HayMonth3=0,VLOOKUP($H107,FORAGE2,6)*($M107),IF(AND(HayMonth3>0,HayMonth3<7),VLOOKUP($H107,FORAGE2,6)*($M107),0))) ->  | R107: =IF($H107="","",IF(HayMonth3=0,VLOOKUP($H107,FORAGE2,7)*($M107),IF(AND(HayMonth3>0,HayMonth3<8),VLOOKUP($H107,FORAGE2,7)*($M107),0))) ->  | S107: =IF($H107="","",IF(HayMonth3=0,VLOOKUP($H107,FORAGE2,8)*($M107),IF(AND(HayMonth3>0,HayMonth3<9),VLOOKUP($H107,FORAGE2,8)*($M107),0))) ->  | T107: =IF($H107="","",IF(HayMonth3=0,VLOOKUP($H107,FORAGE2,9)*($M107),IF(AND(HayMonth3>0,HayMonth3<10),VLOOKUP($H107,FORAGE2,9)*($M107),0))) ->  | U107: =IF($H107="","",IF(HayMonth3=0,VLOOKUP($H107,FORAGE2,10)*($M107),IF(AND(HayMonth3>0,HayMonth3<11),VLOOKUP($H107,FORAGE2,10)*($M107),0))) ->  | V107: =IF($H107="","",IF(HayMonth3=0,VLOOKUP($H107,FORAGE2,11)*($M107),IF(AND(HayMonth3>0,HayMonth3<12),VLOOKUP($H107,FORAGE2,11)*($M107),0))) ->  | W107: =IF($H107="","",IF(HayMonth3=0,VLOOKUP($H107,FORAGE2,12)*($M107),IF(AND(HayMonth3>0,HayMonth3<1),VLOOKUP($H107,FORAGE2,12)*($M107),0))) ->  | X107: =IF($H107="","",IF(HayMonth3=0,VLOOKUP($H107,FORAGE2,13)*($M107),IF(AND(HayMonth3>0,HayMonth3<2),VLOOKUP($H107,FORAGE2,13)*($M107),0))) ->  | Y107: =IF($H107="","",IF(HayMonth3=0,VLOOKUP($H107,FORAGE2,14)*($M107),IF(AND(HayMonth3>0,HayMonth3<3),VLOOKUP($H107,FORAGE2,14)*($M107),0))) -> 
H108: Will hay be cut on this field? | I108: =IF(HayMonth3>0,"Hay cut in:","") ->  | J108: =IF(HayMonth3=0,"",IF(HayMonth3=1,"Jan",IF(HayMonth3=2,"Feb",IF(HayMonth3=3,"Mar",IF(HayMonth3=4,"Apr",IF(HayMonth3=5,"May",IF(HayMonth3=6,"Jun",IF(HayMonth3=7,"Jul",IF(HayMonth3=8,"Aug",IF(HayMonth3=9,"Sep",IF(HayMonth3=10,"Oct",IF(HayMonth3=11,"Nov","Dec")))))))))))) -> 
K109: 0 | L109: =IF(ISBLANK(Field4)="",(VLOOKUP(ROUND(TotalAcreGrazed/Acres4,0),[0]!PastureEffTable,2,)),"") ->  | M109: =K109*L109/100 -> 0 | N109: =IF($H109="","",IF(HayMonth4=0,VLOOKUP($H109,FORAGE2,3)*($M109),IF(AND(HayMonth4>0,HayMonth4<4),VLOOKUP($H109,FORAGE2,3)*($M109),0))) ->  | O109: =IF($H109="","",IF(HayMonth4=0,VLOOKUP($H109,FORAGE2,4)*($M109),IF(AND(HayMonth4>0,HayMonth4<5),VLOOKUP($H109,FORAGE2,4)*($M109),0))) ->  | P109: =IF($H109="","",IF(HayMonth4=0,VLOOKUP($H109,FORAGE2,5)*($M109),IF(AND(HayMonth4>0,HayMonth4<6),VLOOKUP($H109,FORAGE2,5)*($M109),0))) ->  | Q109: =IF($H109="","",IF(HayMonth4=0,VLOOKUP($H109,FORAGE2,6)*($M109),IF(AND(HayMonth4>0,HayMonth4<7),VLOOKUP($H109,FORAGE2,6)*($M109),0))) ->  | R109: =IF($H109="","",IF(HayMonth4=0,VLOOKUP($H109,FORAGE2,7)*($M109),IF(AND(HayMonth4>0,HayMonth4<8),VLOOKUP($H109,FORAGE2,7)*($M109),0))) ->  | S109: =IF($H109="","",IF(HayMonth4=0,VLOOKUP($H109,FORAGE2,8)*($M109),IF(AND(HayMonth4>0,HayMonth4<9),VLOOKUP($H109,FORAGE2,8)*($M109),0))) ->  | T109: =IF($H109="","",IF(HayMonth4=0,VLOOKUP($H109,FORAGE2,9)*($M109),IF(AND(HayMonth4>0,HayMonth4<10),VLOOKUP($H109,FORAGE2,9)*($M109),0))) ->  | U109: =IF($H109="","",IF(HayMonth4=0,VLOOKUP($H109,FORAGE2,10)*($M109),IF(AND(HayMonth4>0,HayMonth4<11),VLOOKUP($H109,FORAGE2,10)*($M109),0))) ->  | V109: =IF($H109="","",IF(HayMonth4=0,VLOOKUP($H109,FORAGE2,11)*($M109),IF(AND(HayMonth4>0,HayMonth4<12),VLOOKUP($H109,FORAGE2,11)*($M109),0))) ->  | W109: =IF($H109="","",IF(HayMonth4=0,VLOOKUP($H109,FORAGE2,12)*($M109),IF(AND(HayMonth4>0,HayMonth4<1),VLOOKUP($H109,FORAGE2,12)*($M109),0))) ->  | X109: =IF($H109="","",IF(HayMonth4=0,VLOOKUP($H109,FORAGE2,13)*($M109),IF(AND(HayMonth4>0,HayMonth4<2),VLOOKUP($H109,FORAGE2,13)*($M109),0))) ->  | Y109: =IF($H109="","",IF(HayMonth4=0,VLOOKUP($H109,FORAGE2,14)*($M109),IF(AND(HayMonth4>0,HayMonth4<3),VLOOKUP($H109,FORAGE2,14)*($M109),0))) -> 
H110: Will hay be cut on this field? | I110: =IF(HayMonth4>0,"Hay cut in:","") ->  | J110: =IF(HayMonth4=0,"",IF(HayMonth4=1,"Jan",IF(HayMonth4=2,"Feb",IF(HayMonth4=3,"Mar",IF(HayMonth4=4,"Apr",IF(HayMonth4=5,"May",IF(HayMonth4=6,"Jun",IF(HayMonth4=7,"Jul",IF(HayMonth4=8,"Aug",IF(HayMonth4=9,"Sep",IF(HayMonth4=10,"Oct",IF(HayMonth4=11,"Nov","Dec")))))))))))) -> 
K111: 0 | L111: =IF(ISBLANK(Field5)="",(VLOOKUP(ROUND(TotalAcreGrazed/Acres5,0),[0]!PastureEffTable,2,)),"") ->  | M111: 0 | N111: =IF($H111="","",IF(HayMonth5=0,VLOOKUP($H111,FORAGE2,3)*($M111),IF(AND(HayMonth5>0,HayMonth5<4),VLOOKUP($H111,FORAGE2,3)*($M111),0))) ->  | O111: =IF($H111="","",IF(HayMonth5=0,VLOOKUP($H111,FORAGE2,4)*($M111),IF(AND(HayMonth5>0,HayMonth5<5),VLOOKUP($H111,FORAGE2,4)*($M111),0))) ->  | P111: =IF($H111="","",IF(HayMonth5=0,VLOOKUP($H111,FORAGE2,5)*($M111),IF(AND(HayMonth5>0,HayMonth5<6),VLOOKUP($H111,FORAGE2,5)*($M111),0))) ->  | Q111: =IF($H111="","",IF(HayMonth5=0,VLOOKUP($H111,FORAGE2,6)*($M111),IF(AND(HayMonth5>0,HayMonth5<7),VLOOKUP($H111,FORAGE2,6)*($M111),0))) ->  | R111: =IF($H111="","",IF(HayMonth5=0,VLOOKUP($H111,FORAGE2,7)*($M111),IF(AND(HayMonth5>0,HayMonth5<8),VLOOKUP($H111,FORAGE2,7)*($M111),0))) ->  | S111: =IF($H111="","",IF(HayMonth5=0,VLOOKUP($H111,FORAGE2,8)*($M111),IF(AND(HayMonth5>0,HayMonth5<9),VLOOKUP($H111,FORAGE2,8)*($M111),0))) ->  | T111: =IF($H111="","",IF(HayMonth5=0,VLOOKUP($H111,FORAGE2,9)*($M111),IF(AND(HayMonth5>0,HayMonth5<10),VLOOKUP($H111,FORAGE2,9)*($M111),0))) ->  | U111: =IF($H111="","",IF(HayMonth5=0,VLOOKUP($H111,FORAGE2,10)*($M111),IF(AND(HayMonth5>0,HayMonth5<11),VLOOKUP($H111,FORAGE2,10)*($M111),0))) ->  | V111: =IF($H111="","",IF(HayMonth5=0,VLOOKUP($H111,FORAGE2,11)*($M111),IF(AND(HayMonth5>0,HayMonth5<12),VLOOKUP($H111,FORAGE2,11)*($M111),0))) ->  | W111: =IF($H111="","",IF(HayMonth5=0,VLOOKUP($H111,FORAGE2,12)*($M111),IF(AND(HayMonth5>0,HayMonth5<1),VLOOKUP($H111,FORAGE2,12)*($M111),0))) ->  | X111: =IF($H111="","",IF(HayMonth5=0,VLOOKUP($H111,FORAGE2,13)*($M111),IF(AND(HayMonth5>0,HayMonth5<2),VLOOKUP($H111,FORAGE2,13)*($M111),0))) ->  | Y111: =IF($H111="","",IF(HayMonth5=0,VLOOKUP($H111,FORAGE2,14)*($M111),IF(AND(HayMonth5>0,HayMonth5<3),VLOOKUP($H111,FORAGE2,14)*($M111),0))) -> 
H112: Will hay be cut on this field? | I112: =IF(HayMonth5>0,"Hay cut in:","") ->  | J112: =IF(HayMonth5=0,"",IF(HayMonth5=1,"Jan",IF(HayMonth5=2,"Feb",IF(HayMonth5=3,"Mar",IF(HayMonth5=4,"Apr",IF(HayMonth5=5,"May",IF(HayMonth5=6,"Jun",IF(HayMonth5=7,"Jul",IF(HayMonth5=8,"Aug",IF(HayMonth5=9,"Sep",IF(HayMonth5=10,"Oct",IF(HayMonth5=11,"Nov","Dec")))))))))))) -> 
K113: 0 | L113: =IF(ISBLANK(Field6)="",(VLOOKUP(ROUND(TotalAcreGrazed/Acres6,0),[0]!PastureEffTable,2,)),"") ->  | M113: 0 | N113: =IF($H113="","",IF(HayMonth6=0,VLOOKUP($H113,FORAGE2,3)*($M113),IF(AND(HayMonth6>0,HayMonth6<4),VLOOKUP($H113,FORAGE2,3)*($M113),0))) ->  | O113: =IF($H113="","",IF(HayMonth6=0,VLOOKUP($H113,FORAGE2,4)*($M113),IF(AND(HayMonth6>0,HayMonth6<5),VLOOKUP($H113,FORAGE2,4)*($M113),0))) ->  | P113: =IF($H113="","",IF(HayMonth6=0,VLOOKUP($H113,FORAGE2,5)*($M113),IF(AND(HayMonth6>0,HayMonth6<6),VLOOKUP($H113,FORAGE2,5)*($M113),0))) ->  | Q113: =IF($H113="","",IF(HayMonth6=0,VLOOKUP($H113,FORAGE2,6)*($M113),IF(AND(HayMonth6>0,HayMonth6<7),VLOOKUP($H113,FORAGE2,6)*($M113),0))) ->  | R113: =IF($H113="","",IF(HayMonth6=0,VLOOKUP($H113,FORAGE2,7)*($M113),IF(AND(HayMonth6>0,HayMonth6<8),VLOOKUP($H113,FORAGE2,7)*($M113),0))) ->  | S113: =IF($H113="","",IF(HayMonth6=0,VLOOKUP($H113,FORAGE2,8)*($M113),IF(AND(HayMonth6>0,HayMonth6<9),VLOOKUP($H113,FORAGE2,8)*($M113),0))) ->  | T113: =IF($H113="","",IF(HayMonth6=0,VLOOKUP($H113,FORAGE2,9)*($M113),IF(AND(HayMonth6>0,HayMonth6<10),VLOOKUP($H113,FORAGE2,9)*($M113),0))) ->  | U113: =IF($H113="","",IF(HayMonth6=0,VLOOKUP($H113,FORAGE2,10)*($M113),IF(AND(HayMonth6>0,HayMonth6<11),VLOOKUP($H113,FORAGE2,10)*($M113),0))) ->  | V113: =IF($H113="","",IF(HayMonth6=0,VLOOKUP($H113,FORAGE2,11)*($M113),IF(AND(HayMonth6>0,HayMonth6<12),VLOOKUP($H113,FORAGE2,11)*($M113),0))) ->  | W113: =IF($H113="","",IF(HayMonth6=0,VLOOKUP($H113,FORAGE2,12)*($M113),IF(AND(HayMonth6>0,HayMonth6<1),VLOOKUP($H113,FORAGE2,12)*($M113),0))) ->  | X113: =IF($H113="","",IF(HayMonth6=0,VLOOKUP($H113,FORAGE2,13)*($M113),IF(AND(HayMonth6>0,HayMonth6<2),VLOOKUP($H113,FORAGE2,13)*($M113),0))) ->  | Y113: =IF($H113="","",IF(HayMonth6=0,VLOOKUP($H113,FORAGE2,14)*($M113),IF(AND(HayMonth6>0,HayMonth6<3),VLOOKUP($H113,FORAGE2,14)*($M113),0))) -> 
H114: Will hay be cut on this field? | I114: =IF(HayMonth6>0,"Hay cut in:","") ->  | J114: =IF(HayMonth6=0,"",IF(HayMonth6=1,"Jan",IF(HayMonth6=2,"Feb",IF(HayMonth6=3,"Mar",IF(HayMonth6=4,"Apr",IF(HayMonth6=5,"May",IF(HayMonth6=6,"Jun",IF(HayMonth6=7,"Jul",IF(HayMonth6=8,"Aug",IF(HayMonth6=9,"Sep",IF(HayMonth6=10,"Oct",IF(HayMonth6=11,"Nov","Dec")))))))))))) -> 
K115: 0 | L115: =IF(ISBLANK(Field7)="",(VLOOKUP(ROUND(TotalAcreGrazed/Acres7,0),[0]!PastureEffTable,2,)),"") ->  | M115: 0 | N115: =IF($H115="","",IF(HayMonth7=0,VLOOKUP($H115,FORAGE2,3)*($M115),IF(AND(HayMonth7>0,HayMonth7<4),VLOOKUP($H115,FORAGE2,3)*($M115),0))) ->  | O115: =IF($H115="","",IF(HayMonth7=0,VLOOKUP($H115,FORAGE2,4)*($M115),IF(AND(HayMonth7>0,HayMonth7<5),VLOOKUP($H115,FORAGE2,4)*($M115),0))) ->  | P115: =IF($H115="","",IF(HayMonth7=0,VLOOKUP($H115,FORAGE2,5)*($M115),IF(AND(HayMonth7>0,HayMonth7<6),VLOOKUP($H115,FORAGE2,5)*($M115),0))) ->  | Q115: =IF($H115="","",IF(HayMonth7=0,VLOOKUP($H115,FORAGE2,6)*($M115),IF(AND(HayMonth7>0,HayMonth7<7),VLOOKUP($H115,FORAGE2,6)*($M115),0))) ->  | R115: =IF($H115="","",IF(HayMonth7=0,VLOOKUP($H115,FORAGE2,7)*($M115),IF(AND(HayMonth7>0,HayMonth7<8),VLOOKUP($H115,FORAGE2,7)*($M115),0))) ->  | S115: =IF($H115="","",IF(HayMonth7=0,VLOOKUP($H115,FORAGE2,8)*($M115),IF(AND(HayMonth7>0,HayMonth7<9),VLOOKUP($H115,FORAGE2,8)*($M115),0))) ->  | T115: =IF($H115="","",IF(HayMonth7=0,VLOOKUP($H115,FORAGE2,9)*($M115),IF(AND(HayMonth7>0,HayMonth7<10),VLOOKUP($H115,FORAGE2,9)*($M115),0))) ->  | U115: =IF($H115="","",IF(HayMonth7=0,VLOOKUP($H115,FORAGE2,10)*($M115),IF(AND(HayMonth7>0,HayMonth7<11),VLOOKUP($H115,FORAGE2,10)*($M115),0))) ->  | V115: =IF($H115="","",IF(HayMonth7=0,VLOOKUP($H115,FORAGE2,11)*($M115),IF(AND(HayMonth7>0,HayMonth7<12),VLOOKUP($H115,FORAGE2,11)*($M115),0))) ->  | W115: =IF($H115="","",IF(HayMonth7=0,VLOOKUP($H115,FORAGE2,12)*($M115),IF(AND(HayMonth7>0,HayMonth7<1),VLOOKUP($H115,FORAGE2,12)*($M115),0))) ->  | X115: =IF($H115="","",IF(HayMonth7=0,VLOOKUP($H115,FORAGE2,13)*($M115),IF(AND(HayMonth7>0,HayMonth7<2),VLOOKUP($H115,FORAGE2,13)*($M115),0))) ->  | Y115: =IF($H115="","",IF(HayMonth7=0,VLOOKUP($H115,FORAGE2,14)*($M115),IF(AND(HayMonth7>0,HayMonth7<3),VLOOKUP($H115,FORAGE2,14)*($M115),0))) -> 
H116: Will hay be cut on this field? | I116: =IF(HayMonth7>0,"Hay cut in:","") ->  | J116: =IF(HayMonth7=0,"",IF(HayMonth7=1,"Jan",IF(HayMonth7=2,"Feb",IF(HayMonth7=3,"Mar",IF(HayMonth7=4,"Apr",IF(HayMonth7=5,"May",IF(HayMonth7=6,"Jun",IF(HayMonth7=7,"Jul",IF(HayMonth7=8,"Aug",IF(HayMonth7=9,"Sep",IF(HayMonth7=10,"Oct",IF(HayMonth7=11,"Nov","Dec")))))))))))) -> 
K117: 0 | L117: =IF(ISBLANK(Field8)="",(VLOOKUP(ROUND(TotalAcreGrazed/Acres8,0),[0]!PastureEffTable,2,)),"") ->  | M117: 0 | N117: =IF($H117="","",IF(HayMonth8=0,VLOOKUP($H117,FORAGE2,3)*($M117),IF(AND(HayMonth8>0,HayMonth8<4),VLOOKUP($H117,FORAGE2,3)*($M117),0))) ->  | O117: =IF($H117="","",IF(HayMonth8=0,VLOOKUP($H117,FORAGE2,4)*($M117),IF(AND(HayMonth8>0,HayMonth8<5),VLOOKUP($H117,FORAGE2,4)*($M117),0))) ->  | P117: =IF($H117="","",IF(HayMonth8=0,VLOOKUP($H117,FORAGE2,5)*($M117),IF(AND(HayMonth8>0,HayMonth8<6),VLOOKUP($H117,FORAGE2,5)*($M117),0))) ->  | Q117: =IF($H117="","",IF(HayMonth8=0,VLOOKUP($H117,FORAGE2,6)*($M117),IF(AND(HayMonth8>0,HayMonth8<7),VLOOKUP($H117,FORAGE2,6)*($M117),0))) ->  | R117: =IF($H117="","",IF(HayMonth8=0,VLOOKUP($H117,FORAGE2,7)*($M117),IF(AND(HayMonth8>0,HayMonth8<8),VLOOKUP($H117,FORAGE2,7)*($M117),0))) ->  | S117: =IF($H117="","",IF(HayMonth8=0,VLOOKUP($H117,FORAGE2,8)*($M117),IF(AND(HayMonth8>0,HayMonth8<9),VLOOKUP($H117,FORAGE2,8)*($M117),0))) ->  | T117: =IF($H117="","",IF(HayMonth8=0,VLOOKUP($H117,FORAGE2,9)*($M117),IF(AND(HayMonth8>0,HayMonth8<10),VLOOKUP($H117,FORAGE2,9)*($M117),0))) ->  | U117: =IF($H117="","",IF(HayMonth8=0,VLOOKUP($H117,FORAGE2,10)*($M117),IF(AND(HayMonth8>0,HayMonth8<11),VLOOKUP($H117,FORAGE2,10)*($M117),0))) ->  | V117: =IF($H117="","",IF(HayMonth8=0,VLOOKUP($H117,FORAGE2,11)*($M117),IF(AND(HayMonth8>0,HayMonth8<12),VLOOKUP($H117,FORAGE2,11)*($M117),0))) ->  | W117: =IF($H117="","",IF(HayMonth8=0,VLOOKUP($H117,FORAGE2,12)*($M117),IF(AND(HayMonth8>0,HayMonth8<1),VLOOKUP($H117,FORAGE2,12)*($M117),0))) ->  | X117: =IF($H117="","",IF(HayMonth8=0,VLOOKUP($H117,FORAGE2,13)*($M117),IF(AND(HayMonth8>0,HayMonth8<2),VLOOKUP($H117,FORAGE2,13)*($M117),0))) ->  | Y117: =IF($H117="","",IF(HayMonth8=0,VLOOKUP($H117,FORAGE2,14)*($M117),IF(AND(HayMonth8>0,HayMonth8<3),VLOOKUP($H117,FORAGE2,14)*($M117),0))) -> 
H118: Will hay be cut on this field? | I118: =IF(HayMonth8>0,"Hay cut in:","") ->  | J118: =IF(HayMonth8=0,"",IF(HayMonth8=1,"Jan",IF(HayMonth8=2,"Feb",IF(HayMonth8=3,"Mar",IF(HayMonth8=4,"Apr",IF(HayMonth8=5,"May",IF(HayMonth8=6,"Jun",IF(HayMonth8=7,"Jul",IF(HayMonth8=8,"Aug",IF(HayMonth8=9,"Sep",IF(HayMonth8=10,"Oct",IF(HayMonth8=11,"Nov","Dec")))))))))))) -> 
K119: =I119*J119 -> 0 | L119: =IF(ISBLANK(Field9)="",(VLOOKUP(ROUND(TotalAcreGrazed/Acres9,0),[0]!PastureEffTable,2,)),"") ->  | M119: 0 | N119: =IF($H119="","",IF(HayMonth9=0,VLOOKUP($H119,FORAGE2,3)*($M119),IF(AND(HayMonth9>0,HayMonth9<4),VLOOKUP($H119,FORAGE2,3)*($M119),0))) ->  | O119: =IF($H119="","",IF(HayMonth9=0,VLOOKUP($H119,FORAGE2,4)*($M119),IF(AND(HayMonth9>0,HayMonth9<5),VLOOKUP($H119,FORAGE2,4)*($M119),0))) ->  | P119: =IF($H119="","",IF(HayMonth9=0,VLOOKUP($H119,FORAGE2,5)*($M119),IF(AND(HayMonth9>0,HayMonth9<6),VLOOKUP($H119,FORAGE2,5)*($M119),0))) ->  | Q119: =IF($H119="","",IF(HayMonth9=0,VLOOKUP($H119,FORAGE2,6)*($M119),IF(AND(HayMonth9>0,HayMonth9<7),VLOOKUP($H119,FORAGE2,6)*($M119),0))) ->  | R119: =IF($H119="","",IF(HayMonth9=0,VLOOKUP($H119,FORAGE2,7)*($M119),IF(AND(HayMonth9>0,HayMonth9<8),VLOOKUP($H119,FORAGE2,7)*($M119),0))) ->  | S119: =IF($H119="","",IF(HayMonth9=0,VLOOKUP($H119,FORAGE2,8)*($M119),IF(AND(HayMonth9>0,HayMonth9<9),VLOOKUP($H119,FORAGE2,8)*($M119),0))) ->  | T119: =IF($H119="","",IF(HayMonth9=0,VLOOKUP($H119,FORAGE2,9)*($M119),IF(AND(HayMonth9>0,HayMonth9<10),VLOOKUP($H119,FORAGE2,9)*($M119),0))) ->  | U119: =IF($H119="","",IF(HayMonth9=0,VLOOKUP($H119,FORAGE2,10)*($M119),IF(AND(HayMonth9>0,HayMonth9<11),VLOOKUP($H119,FORAGE2,10)*($M119),0))) ->  | V119: =IF($H119="","",IF(HayMonth9=0,VLOOKUP($H119,FORAGE2,11)*($M119),IF(AND(HayMonth9>0,HayMonth9<12),VLOOKUP($H119,FORAGE2,11)*($M119),0))) ->  | W119: =IF($H119="","",IF(HayMonth9=0,VLOOKUP($H119,FORAGE2,12)*($M119),IF(AND(HayMonth9>0,HayMonth9<1),VLOOKUP($H119,FORAGE2,12)*($M119),0))) ->  | X119: =IF($H119="","",IF(HayMonth9=0,VLOOKUP($H119,FORAGE2,13)*($M119),IF(AND(HayMonth9>0,HayMonth9<2),VLOOKUP($H119,FORAGE2,13)*($M119),0))) ->  | Y119: =IF($H119="","",IF(HayMonth9=0,VLOOKUP($H119,FORAGE2,14)*($M119),IF(AND(HayMonth9>0,HayMonth9<3),VLOOKUP($H119,FORAGE2,14)*($M119),0))) -> 
H120: Will hay be cut on this field? | I120: =IF(HayMonth9>0,"Hay cut in:","") ->  | J120: =IF(HayMonth9=0,"",IF(HayMonth9=1,"Jan",IF(HayMonth9=2,"Feb",IF(HayMonth9=3,"Mar",IF(HayMonth9=4,"Apr",IF(HayMonth9=5,"May",IF(HayMonth9=6,"Jun",IF(HayMonth9=7,"Jul",IF(HayMonth9=8,"Aug",IF(HayMonth9=9,"Sep",IF(HayMonth9=10,"Oct",IF(HayMonth9=11,"Nov","Dec")))))))))))) -> 
K121: =I121*J121 -> 0 | L121: =IF(ISBLANK(Field10)="",(VLOOKUP(ROUND(TotalAcreGrazed/Acres10,0),[0]!PastureEffTable,2,)),"") ->  | M121: 0 | N121: =IF($H121="","",IF(HayMonth10=0,VLOOKUP($H121,FORAGE2,3)*($M121),IF(AND(HayMonth10>0,HayMonth10<4),VLOOKUP($H121,FORAGE2,3)*($M121),0))) ->  | O121: =IF($H121="","",IF(HayMonth10=0,VLOOKUP($H121,FORAGE2,4)*($M121),IF(AND(HayMonth10>0,HayMonth10<5),VLOOKUP($H121,FORAGE2,4)*($M121),0))) ->  | P121: =IF($H121="","",IF(HayMonth10=0,VLOOKUP($H121,FORAGE2,5)*($M121),IF(AND(HayMonth10>0,HayMonth10<6),VLOOKUP($H121,FORAGE2,5)*($M121),0))) ->  | Q121: =IF($H121="","",IF(HayMonth10=0,VLOOKUP($H121,FORAGE2,6)*($M121),IF(AND(HayMonth10>0,HayMonth10<7),VLOOKUP($H121,FORAGE2,6)*($M121),0))) ->  | R121: =IF($H121="","",IF(HayMonth10=0,VLOOKUP($H121,FORAGE2,7)*($M121),IF(AND(HayMonth10>0,HayMonth10<8),VLOOKUP($H121,FORAGE2,7)*($M121),0))) ->  | S121: =IF($H121="","",IF(HayMonth10=0,VLOOKUP($H121,FORAGE2,8)*($M121),IF(AND(HayMonth10>0,HayMonth10<9),VLOOKUP($H121,FORAGE2,8)*($M121),0))) ->  | T121: =IF($H121="","",IF(HayMonth10=0,VLOOKUP($H121,FORAGE2,9)*($M121),IF(AND(HayMonth10>0,HayMonth10<10),VLOOKUP($H121,FORAGE2,9)*($M121),0))) ->  | U121: =IF($H121="","",IF(HayMonth10=0,VLOOKUP($H121,FORAGE2,10)*($M121),IF(AND(HayMonth10>0,HayMonth10<11),VLOOKUP($H121,FORAGE2,10)*($M121),0))) ->  | V121: =IF($H121="","",IF(HayMonth10=0,VLOOKUP($H121,FORAGE2,11)*($M121),IF(AND(HayMonth10>0,HayMonth10<12),VLOOKUP($H121,FORAGE2,11)*($M121),0))) ->  | W121: =IF($H121="","",IF(HayMonth10=0,VLOOKUP($H121,FORAGE2,12)*($M121),IF(AND(HayMonth10>0,HayMonth10<1),VLOOKUP($H121,FORAGE2,12)*($M121),0))) ->  | X121: =IF($H121="","",IF(HayMonth10=0,VLOOKUP($H121,FORAGE2,13)*($M121),IF(AND(HayMonth10>0,HayMonth10<2),VLOOKUP($H121,FORAGE2,13)*($M121),0))) ->  | Y121: =IF($H121="","",IF(HayMonth10=0,VLOOKUP($H121,FORAGE2,14)*($M121),IF(AND(HayMonth10>0,HayMonth10<3),VLOOKUP($H121,FORAGE2,14)*($M121),0))) -> 
H122: Will hay be cut on this field? | I122: =IF(HayMonth10>0,"Hay cut in:","") ->  | J122: =IF(HayMonth10=0,"",IF(HayMonth10=1,"Jan",IF(HayMonth10=2,"Feb",IF(HayMonth10=3,"Mar",IF(HayMonth10=4,"Apr",IF(HayMonth10=5,"May",IF(HayMonth10=6,"Jun",IF(HayMonth10=7,"Jul",IF(HayMonth10=8,"Aug",IF(HayMonth10=9,"Sep",IF(HayMonth10=10,"Oct",IF(HayMonth10=11,"Nov","Dec")))))))))))) -> 
K123: =I123*J123 -> 0 | L123: =IF(ISBLANK(Field11)="",(VLOOKUP(ROUND(TotalAcreGrazed/Acres11,0),[0]!PastureEffTable,2,)),"") ->  | M123: =K123*L123/100 -> 0 | N123: =IF($H123="","",IF(HayMonth11=0,VLOOKUP($H123,FORAGE2,3)*($M123),IF(AND(HayMonth11>0,HayMonth11<4),VLOOKUP($H123,FORAGE2,3)*($M123),0))) ->  | O123: =IF($H123="","",IF(HayMonth11=0,VLOOKUP($H123,FORAGE2,4)*($M123),IF(AND(HayMonth11>0,HayMonth11<5),VLOOKUP($H123,FORAGE2,4)*($M123),0))) ->  | P123: =IF($H123="","",IF(HayMonth11=0,VLOOKUP($H123,FORAGE2,5)*($M123),IF(AND(HayMonth11>0,HayMonth11<6),VLOOKUP($H123,FORAGE2,5)*($M123),0))) ->  | Q123: =IF($H123="","",IF(HayMonth11=0,VLOOKUP($H123,FORAGE2,6)*($M123),IF(AND(HayMonth11>0,HayMonth11<7),VLOOKUP($H123,FORAGE2,6)*($M123),0))) ->  | R123: =IF($H123="","",IF(HayMonth11=0,VLOOKUP($H123,FORAGE2,7)*($M123),IF(AND(HayMonth11>0,HayMonth11<8),VLOOKUP($H123,FORAGE2,7)*($M123),0))) ->  | S123: =IF($H123="","",IF(HayMonth11=0,VLOOKUP($H123,FORAGE2,8)*($M123),IF(AND(HayMonth11>0,HayMonth11<9),VLOOKUP($H123,FORAGE2,8)*($M123),0))) ->  | T123: =IF($H123="","",IF(HayMonth11=0,VLOOKUP($H123,FORAGE2,9)*($M123),IF(AND(HayMonth11>0,HayMonth11<10),VLOOKUP($H123,FORAGE2,9)*($M123),0))) ->  | U123: =IF($H123="","",IF(HayMonth11=0,VLOOKUP($H123,FORAGE2,10)*($M123),IF(AND(HayMonth11>0,HayMonth11<11),VLOOKUP($H123,FORAGE2,10)*($M123),0))) ->  | V123: =IF($H123="","",IF(HayMonth11=0,VLOOKUP($H123,FORAGE2,11)*($M123),IF(AND(HayMonth11>0,HayMonth11<12),VLOOKUP($H123,FORAGE2,11)*($M123),0))) ->  | W123: =IF($H123="","",IF(HayMonth11=0,VLOOKUP($H123,FORAGE2,12)*($M123),IF(AND(HayMonth11>0,HayMonth11<1),VLOOKUP($H123,FORAGE2,12)*($M123),0))) ->  | X123: =IF($H123="","",IF(HayMonth11=0,VLOOKUP($H123,FORAGE2,13)*($M123),IF(AND(HayMonth11>0,HayMonth11<2),VLOOKUP($H123,FORAGE2,13)*($M123),0))) ->  | Y123: =IF($H123="","",IF(HayMonth11=0,VLOOKUP($H123,FORAGE2,14)*($M123),IF(AND(HayMonth11>0,HayMonth11<3),VLOOKUP($H123,FORAGE2,14)*($M123),0))) -> 
H124: Will hay be cut on this field? | I124: =IF(HayMonth11>0,"Hay cut in:","") ->  | J124: =IF(HayMonth11=0,"",IF(HayMonth11=1,"Jan",IF(HayMonth11=2,"Feb",IF(HayMonth11=3,"Mar",IF(HayMonth11=4,"Apr",IF(HayMonth11=5,"May",IF(HayMonth11=6,"Jun",IF(HayMonth11=7,"Jul",IF(HayMonth11=8,"Aug",IF(HayMonth11=9,"Sep",IF(HayMonth11=10,"Oct",IF(HayMonth11=11,"Nov","Dec")))))))))))) -> 
K125: =I125*J125 -> 0 | L125: =IF(ISBLANK(Field12)="",(VLOOKUP(ROUND(TotalAcreGrazed/Acres12,0),[0]!PastureEffTable,2,)),"") ->  | M125: =K125*L125/100 -> 0 | N125: =IF($H125="","",IF(HayMonth12=0,VLOOKUP($H125,FORAGE2,3)*($M125),IF(AND(HayMonth12>0,HayMonth12<4),VLOOKUP($H125,FORAGE2,3)*($M125),0))) ->  | O125: =IF($H125="","",IF(HayMonth12=0,VLOOKUP($H125,FORAGE2,4)*($M125),IF(AND(HayMonth12>0,HayMonth12<5),VLOOKUP($H125,FORAGE2,4)*($M125),0))) ->  | P125: =IF($H125="","",IF(HayMonth12=0,VLOOKUP($H125,FORAGE2,5)*($M125),IF(AND(HayMonth12>0,HayMonth12<6),VLOOKUP($H125,FORAGE2,5)*($M125),0))) ->  | Q125: =IF($H125="","",IF(HayMonth12=0,VLOOKUP($H125,FORAGE2,6)*($M125),IF(AND(HayMonth12>0,HayMonth12<7),VLOOKUP($H125,FORAGE2,6)*($M125),0))) ->  | R125: =IF($H125="","",IF(HayMonth12=0,VLOOKUP($H125,FORAGE2,7)*($M125),IF(AND(HayMonth12>0,HayMonth12<8),VLOOKUP($H125,FORAGE2,7)*($M125),0))) ->  | S125: =IF($H125="","",IF(HayMonth12=0,VLOOKUP($H125,FORAGE2,8)*($M125),IF(AND(HayMonth12>0,HayMonth12<9),VLOOKUP($H125,FORAGE2,8)*($M125),0))) ->  | T125: =IF($H125="","",IF(HayMonth12=0,VLOOKUP($H125,FORAGE2,9)*($M125),IF(AND(HayMonth12>0,HayMonth12<10),VLOOKUP($H125,FORAGE2,9)*($M125),0))) ->  | U125: =IF($H125="","",IF(HayMonth12=0,VLOOKUP($H125,FORAGE2,10)*($M125),IF(AND(HayMonth12>0,HayMonth12<11),VLOOKUP($H125,FORAGE2,10)*($M125),0))) ->  | V125: =IF($H125="","",IF(HayMonth12=0,VLOOKUP($H125,FORAGE2,11)*($M125),IF(AND(HayMonth12>0,HayMonth12<12),VLOOKUP($H125,FORAGE2,11)*($M125),0))) ->  | W125: =IF($H125="","",IF(HayMonth12=0,VLOOKUP($H125,FORAGE2,12)*($M125),IF(AND(HayMonth12>0,HayMonth12<1),VLOOKUP($H125,FORAGE2,12)*($M125),0))) ->  | X125: =IF($H125="","",IF(HayMonth12=0,VLOOKUP($H125,FORAGE2,13)*($M125),IF(AND(HayMonth12>0,HayMonth12<2),VLOOKUP($H125,FORAGE2,13)*($M125),0))) ->  | Y125: =IF($H125="","",IF(HayMonth12=0,VLOOKUP($H125,FORAGE2,14)*($M125),IF(AND(HayMonth12>0,HayMonth12<3),VLOOKUP($H125,FORAGE2,14)*($M125),0))) -> 
H126: Will hay be cut on this field? | I126: =IF(HayMonth12>0,"Hay cut in:","") ->  | J126: =IF(HayMonth12=0,"",IF(HayMonth12=1,"Jan",IF(HayMonth12=2,"Feb",IF(HayMonth12=3,"Mar",IF(HayMonth12=4,"Apr",IF(HayMonth12=5,"May",IF(HayMonth12=6,"Jun",IF(HayMonth12=7,"Jul",IF(HayMonth12=8,"Aug",IF(HayMonth12=9,"Sep",IF(HayMonth12=10,"Oct",IF(HayMonth12=11,"Nov","Dec")))))))))))) -> 
K127: =I127*J127 -> 0 | L127: =IF(ISBLANK(Field13)="",(VLOOKUP(ROUND(TotalAcreGrazed/Acres13,0),[0]!PastureEffTable,2,)),"") ->  | M127: =K127*L127/100 -> 0 | N127: =IF($H127="","",IF(HayMonth13=0,VLOOKUP($H127,FORAGE2,3)*($M127),IF(AND(HayMonth13>0,HayMonth13<4),VLOOKUP($H127,FORAGE2,3)*($M127),0))) ->  | O127: =IF($H127="","",IF(HayMonth13=0,VLOOKUP($H127,FORAGE2,4)*($M127),IF(AND(HayMonth13>0,HayMonth13<5),VLOOKUP($H127,FORAGE2,4)*($M127),0))) ->  | P127: =IF($H127="","",IF(HayMonth13=0,VLOOKUP($H127,FORAGE2,5)*($M127),IF(AND(HayMonth13>0,HayMonth13<6),VLOOKUP($H127,FORAGE2,5)*($M127),0))) ->  | Q127: =IF($H127="","",IF(HayMonth13=0,VLOOKUP($H127,FORAGE2,6)*($M127),IF(AND(HayMonth13>0,HayMonth13<7),VLOOKUP($H127,FORAGE2,6)*($M127),0))) ->  | R127: =IF($H127="","",IF(HayMonth13=0,VLOOKUP($H127,FORAGE2,7)*($M127),IF(AND(HayMonth13>0,HayMonth13<8),VLOOKUP($H127,FORAGE2,7)*($M127),0))) ->  | S127: =IF($H127="","",IF(HayMonth13=0,VLOOKUP($H127,FORAGE2,8)*($M127),IF(AND(HayMonth13>0,HayMonth13<9),VLOOKUP($H127,FORAGE2,8)*($M127),0))) ->  | T127: =IF($H127="","",IF(HayMonth13=0,VLOOKUP($H127,FORAGE2,9)*($M127),IF(AND(HayMonth13>0,HayMonth13<10),VLOOKUP($H127,FORAGE2,9)*($M127),0))) ->  | U127: =IF($H127="","",IF(HayMonth13=0,VLOOKUP($H127,FORAGE2,10)*($M127),IF(AND(HayMonth13>0,HayMonth13<11),VLOOKUP($H127,FORAGE2,10)*($M127),0))) ->  | V127: =IF($H127="","",IF(HayMonth13=0,VLOOKUP($H127,FORAGE2,11)*($M127),IF(AND(HayMonth13>0,HayMonth13<12),VLOOKUP($H127,FORAGE2,11)*($M127),0))) ->  | W127: =IF($H127="","",IF(HayMonth13=0,VLOOKUP($H127,FORAGE2,12)*($M127),IF(AND(HayMonth13>0,HayMonth13<1),VLOOKUP($H127,FORAGE2,12)*($M127),0))) ->  | X127: =IF($H127="","",IF(HayMonth13=0,VLOOKUP($H127,FORAGE2,13)*($M127),IF(AND(HayMonth13>0,HayMonth13<2),VLOOKUP($H127,FORAGE2,13)*($M127),0))) ->  | Y127: =IF($H127="","",IF(HayMonth13=0,VLOOKUP($H127,FORAGE2,14)*($M127),IF(AND(HayMonth13>0,HayMonth13<3),VLOOKUP($H127,FORAGE2,14)*($M127),0))) -> 
H128: Will hay be cut on this field? | I128: =IF(HayMonth13>0,"Hay cut in:","") ->  | J128: =IF(HayMonth13=0,"",IF(HayMonth13=1,"Jan",IF(HayMonth13=2,"Feb",IF(HayMonth13=3,"Mar",IF(HayMonth13=4,"Apr",IF(HayMonth13=5,"May",IF(HayMonth13=6,"Jun",IF(HayMonth13=7,"Jul",IF(HayMonth13=8,"Aug",IF(HayMonth13=9,"Sep",IF(HayMonth13=10,"Oct",IF(HayMonth13=11,"Nov","Dec")))))))))))) -> 
K129: =I129*J129 -> 0 | L129: =IF(ISBLANK(Field14)="",(VLOOKUP(ROUND(TotalAcreGrazed/Acres14,0),[0]!PastureEffTable,2,)),"") ->  | M129: =K129*L129/100 -> 0 | N129: =IF($H129="","",IF(HayMonth14=0,VLOOKUP($H129,FORAGE2,3)*($M129),IF(AND(HayMonth14>0,HayMonth14<4),VLOOKUP($H129,FORAGE2,3)*($M129),0))) ->  | O129: =IF($H129="","",IF(HayMonth14=0,VLOOKUP($H129,FORAGE2,4)*($M129),IF(AND(HayMonth14>0,HayMonth14<5),VLOOKUP($H129,FORAGE2,4)*($M129),0))) ->  | P129: =IF($H129="","",IF(HayMonth14=0,VLOOKUP($H129,FORAGE2,5)*($M129),IF(AND(HayMonth14>0,HayMonth14<6),VLOOKUP($H129,FORAGE2,5)*($M129),0))) ->  | Q129: =IF($H129="","",IF(HayMonth14=0,VLOOKUP($H129,FORAGE2,6)*($M129),IF(AND(HayMonth14>0,HayMonth14<7),VLOOKUP($H129,FORAGE2,6)*($M129),0))) ->  | R129: =IF($H129="","",IF(HayMonth14=0,VLOOKUP($H129,FORAGE2,7)*($M129),IF(AND(HayMonth14>0,HayMonth14<8),VLOOKUP($H129,FORAGE2,7)*($M129),0))) ->  | S129: =IF($H129="","",IF(HayMonth14=0,VLOOKUP($H129,FORAGE2,8)*($M129),IF(AND(HayMonth14>0,HayMonth14<9),VLOOKUP($H129,FORAGE2,8)*($M129),0))) ->  | T129: =IF($H129="","",IF(HayMonth14=0,VLOOKUP($H129,FORAGE2,9)*($M129),IF(AND(HayMonth14>0,HayMonth14<10),VLOOKUP($H129,FORAGE2,9)*($M129),0))) ->  | U129: =IF($H129="","",IF(HayMonth14=0,VLOOKUP($H129,FORAGE2,10)*($M129),IF(AND(HayMonth14>0,HayMonth14<11),VLOOKUP($H129,FORAGE2,10)*($M129),0))) ->  | V129: =IF($H129="","",IF(HayMonth14=0,VLOOKUP($H129,FORAGE2,11)*($M129),IF(AND(HayMonth14>0,HayMonth14<12),VLOOKUP($H129,FORAGE2,11)*($M129),0))) ->  | W129: =IF($H129="","",IF(HayMonth14=0,VLOOKUP($H129,FORAGE2,12)*($M129),IF(AND(HayMonth14>0,HayMonth14<1),VLOOKUP($H129,FORAGE2,12)*($M129),0))) ->  | X129: =IF($H129="","",IF(HayMonth14=0,VLOOKUP($H129,FORAGE2,13)*($M129),IF(AND(HayMonth14>0,HayMonth14<2),VLOOKUP($H129,FORAGE2,13)*($M129),0))) ->  | Y129: =IF($H129="","",IF(HayMonth14=0,VLOOKUP($H129,FORAGE2,14)*($M129),IF(AND(HayMonth14>0,HayMonth14<3),VLOOKUP($H129,FORAGE2,14)*($M129),0))) -> 
H130: Will hay be cut on this field? | I130: =IF(HayMonth14>0,"Hay cut in:","") ->  | J130: =IF(HayMonth14=0,"",IF(HayMonth14=1,"Jan",IF(HayMonth14=2,"Feb",IF(HayMonth14=3,"Mar",IF(HayMonth14=4,"Apr",IF(HayMonth14=5,"May",IF(HayMonth14=6,"Jun",IF(HayMonth14=7,"Jul",IF(HayMonth14=8,"Aug",IF(HayMonth14=9,"Sep",IF(HayMonth14=10,"Oct",IF(HayMonth14=11,"Nov","Dec")))))))))))) -> 
K131: =I131*J131 -> 0 | L131: =IF(ISBLANK(Field15)="",(VLOOKUP(ROUND(TotalAcreGrazed/Acres15,0),[0]!PastureEffTable,2,)),"") ->  | M131: =K131*L131/100 -> 0 | N131: =IF($H131="","",IF(HayMonth15=0,VLOOKUP($H131,FORAGE2,3)*($M131),IF(AND(HayMonth15>0,HayMonth15<4),VLOOKUP($H131,FORAGE2,3)*($M131),0))) ->  | O131: =IF($H131="","",IF(HayMonth15=0,VLOOKUP($H131,FORAGE2,4)*($M131),IF(AND(HayMonth15>0,HayMonth15<5),VLOOKUP($H131,FORAGE2,4)*($M131),0))) ->  | P131: =IF($H131="","",IF(HayMonth15=0,VLOOKUP($H131,FORAGE2,5)*($M131),IF(AND(HayMonth15>0,HayMonth15<6),VLOOKUP($H131,FORAGE2,5)*($M131),0))) ->  | Q131: =IF($H131="","",IF(HayMonth15=0,VLOOKUP($H131,FORAGE2,6)*($M131),IF(AND(HayMonth15>0,HayMonth15<7),VLOOKUP($H131,FORAGE2,6)*($M131),0))) ->  | R131: =IF($H131="","",IF(HayMonth15=0,VLOOKUP($H131,FORAGE2,7)*($M131),IF(AND(HayMonth15>0,HayMonth15<8),VLOOKUP($H131,FORAGE2,7)*($M131),0))) ->  | S131: =IF($H131="","",IF(HayMonth15=0,VLOOKUP($H131,FORAGE2,8)*($M131),IF(AND(HayMonth15>0,HayMonth15<9),VLOOKUP($H131,FORAGE2,8)*($M131),0))) ->  | T131: =IF($H131="","",IF(HayMonth15=0,VLOOKUP($H131,FORAGE2,9)*($M131),IF(AND(HayMonth15>0,HayMonth15<10),VLOOKUP($H131,FORAGE2,9)*($M131),0))) ->  | U131: =IF($H131="","",IF(HayMonth15=0,VLOOKUP($H131,FORAGE2,10)*($M131),IF(AND(HayMonth15>0,HayMonth15<11),VLOOKUP($H131,FORAGE2,10)*($M131),0))) ->  | V131: =IF($H131="","",IF(HayMonth15=0,VLOOKUP($H131,FORAGE2,11)*($M131),IF(AND(HayMonth15>0,HayMonth15<12),VLOOKUP($H131,FORAGE2,11)*($M131),0))) ->  | W131: =IF($H131="","",IF(HayMonth15=0,VLOOKUP($H131,FORAGE2,12)*($M131),IF(AND(HayMonth15>0,HayMonth15<1),VLOOKUP($H131,FORAGE2,12)*($M131),0))) ->  | X131: =IF($H131="","",IF(HayMonth15=0,VLOOKUP($H131,FORAGE2,13)*($M131),IF(AND(HayMonth15>0,HayMonth15<2),VLOOKUP($H131,FORAGE2,13)*($M131),0))) ->  | Y131: =IF($H131="","",IF(HayMonth15=0,VLOOKUP($H131,FORAGE2,14)*($M131),IF(AND(HayMonth15>0,HayMonth15<3),VLOOKUP($H131,FORAGE2,14)*($M131),0))) -> 
H132: Will hay be cut on this field? | I132: =IF(HayMonth15>0,"Hay cut in:","") ->  | J132: =IF(HayMonth15=0,"",IF(HayMonth15=1,"Jan",IF(HayMonth15=2,"Feb",IF(HayMonth15=3,"Mar",IF(HayMonth15=4,"Apr",IF(HayMonth15=5,"May",IF(HayMonth15=6,"Jun",IF(HayMonth15=7,"Jul",IF(HayMonth15=8,"Aug",IF(HayMonth15=9,"Sep",IF(HayMonth15=10,"Oct",IF(HayMonth15=11,"Nov","Dec")))))))))))) -> 
K133: =I133*J133 -> 0 | L133: =IF(ISBLANK(Field16)="",(VLOOKUP(ROUND(TotalAcreGrazed/Acres16,0),[0]!PastureEffTable,2,)),"") ->  | M133: =K133*L133/100 -> 0 | N133: =IF($H133="","",IF(HayMonth16=0,VLOOKUP($H133,FORAGE2,3)*($M133),IF(AND(HayMonth16>0,HayMonth16<4),VLOOKUP($H133,FORAGE2,3)*($M133),0))) ->  | O133: =IF($H133="","",IF(HayMonth16=0,VLOOKUP($H133,FORAGE2,4)*($M133),IF(AND(HayMonth16>0,HayMonth16<5),VLOOKUP($H133,FORAGE2,4)*($M133),0))) ->  | P133: =IF($H133="","",IF(HayMonth16=0,VLOOKUP($H133,FORAGE2,5)*($M133),IF(AND(HayMonth16>0,HayMonth16<6),VLOOKUP($H133,FORAGE2,5)*($M133),0))) ->  | Q133: =IF($H133="","",IF(HayMonth16=0,VLOOKUP($H133,FORAGE2,6)*($M133),IF(AND(HayMonth16>0,HayMonth16<7),VLOOKUP($H133,FORAGE2,6)*($M133),0))) ->  | R133: =IF($H133="","",IF(HayMonth16=0,VLOOKUP($H133,FORAGE2,7)*($M133),IF(AND(HayMonth16>0,HayMonth16<8),VLOOKUP($H133,FORAGE2,7)*($M133),0))) ->  | S133: =IF($H133="","",IF(HayMonth16=0,VLOOKUP($H133,FORAGE2,8)*($M133),IF(AND(HayMonth16>0,HayMonth16<9),VLOOKUP($H133,FORAGE2,8)*($M133),0))) ->  | T133: =IF($H133="","",IF(HayMonth16=0,VLOOKUP($H133,FORAGE2,9)*($M133),IF(AND(HayMonth16>0,HayMonth16<10),VLOOKUP($H133,FORAGE2,9)*($M133),0))) ->  | U133: =IF($H133="","",IF(HayMonth16=0,VLOOKUP($H133,FORAGE2,10)*($M133),IF(AND(HayMonth16>0,HayMonth16<11),VLOOKUP($H133,FORAGE2,10)*($M133),0))) ->  | V133: =IF($H133="","",IF(HayMonth16=0,VLOOKUP($H133,FORAGE2,11)*($M133),IF(AND(HayMonth16>0,HayMonth16<12),VLOOKUP($H133,FORAGE2,11)*($M133),0))) ->  | W133: =IF($H133="","",IF(HayMonth16=0,VLOOKUP($H133,FORAGE2,12)*($M133),IF(AND(HayMonth16>0,HayMonth16<1),VLOOKUP($H133,FORAGE2,12)*($M133),0))) ->  | X133: =IF($H133="","",IF(HayMonth16=0,VLOOKUP($H133,FORAGE2,13)*($M133),IF(AND(HayMonth16>0,HayMonth16<2),VLOOKUP($H133,FORAGE2,13)*($M133),0))) ->  | Y133: =IF($H133="","",IF(HayMonth16=0,VLOOKUP($H133,FORAGE2,14)*($M133),IF(AND(HayMonth16>0,HayMonth16<3),VLOOKUP($H133,FORAGE2,14)*($M133),0))) -> 
H134: Will hay be cut on this field? | I134: =IF(HayMonth16>0,"Hay cut in:","") ->  | J134: =IF(HayMonth16=0,"",IF(HayMonth16=1,"Jan",IF(HayMonth16=2,"Feb",IF(HayMonth16=3,"Mar",IF(HayMonth16=4,"Apr",IF(HayMonth16=5,"May",IF(HayMonth16=6,"Jun",IF(HayMonth16=7,"Jul",IF(HayMonth16=8,"Aug",IF(HayMonth16=9,"Sep",IF(HayMonth16=10,"Oct",IF(HayMonth16=11,"Nov","Dec")))))))))))) -> 
K135: =I135*J135 -> 0 | L135: =IF(ISBLANK(Field17)="",(VLOOKUP(ROUND(TotalAcreGrazed/Acres17,0),[0]!PastureEffTable,2,)),"") ->  | M135: =K135*L135/100 -> 0 | N135: =IF($H135="","",IF(HayMonth17=0,VLOOKUP($H135,FORAGE2,3)*($M135),IF(AND(HayMonth17>0,HayMonth17<4),VLOOKUP($H135,FORAGE2,3)*($M135),0))) ->  | O135: =IF($H135="","",IF(HayMonth17=0,VLOOKUP($H135,FORAGE2,4)*($M135),IF(AND(HayMonth17>0,HayMonth17<5),VLOOKUP($H135,FORAGE2,4)*($M135),0))) ->  | P135: =IF($H135="","",IF(HayMonth17=0,VLOOKUP($H135,FORAGE2,5)*($M135),IF(AND(HayMonth17>0,HayMonth17<6),VLOOKUP($H135,FORAGE2,5)*($M135),0))) ->  | Q135: =IF($H135="","",IF(HayMonth17=0,VLOOKUP($H135,FORAGE2,6)*($M135),IF(AND(HayMonth17>0,HayMonth17<7),VLOOKUP($H135,FORAGE2,6)*($M135),0))) ->  | R135: =IF($H135="","",IF(HayMonth17=0,VLOOKUP($H135,FORAGE2,7)*($M135),IF(AND(HayMonth17>0,HayMonth17<8),VLOOKUP($H135,FORAGE2,7)*($M135),0))) ->  | S135: =IF($H135="","",IF(HayMonth17=0,VLOOKUP($H135,FORAGE2,8)*($M135),IF(AND(HayMonth17>0,HayMonth17<9),VLOOKUP($H135,FORAGE2,8)*($M135),0))) ->  | T135: =IF($H135="","",IF(HayMonth17=0,VLOOKUP($H135,FORAGE2,9)*($M135),IF(AND(HayMonth17>0,HayMonth17<10),VLOOKUP($H135,FORAGE2,9)*($M135),0))) ->  | U135: =IF($H135="","",IF(HayMonth17=0,VLOOKUP($H135,FORAGE2,10)*($M135),IF(AND(HayMonth17>0,HayMonth17<11),VLOOKUP($H135,FORAGE2,10)*($M135),0))) ->  | V135: =IF($H135="","",IF(HayMonth17=0,VLOOKUP($H135,FORAGE2,11)*($M135),IF(AND(HayMonth17>0,HayMonth17<12),VLOOKUP($H135,FORAGE2,11)*($M135),0))) ->  | W135: =IF($H135="","",IF(HayMonth17=0,VLOOKUP($H135,FORAGE2,12)*($M135),IF(AND(HayMonth17>0,HayMonth17<1),VLOOKUP($H135,FORAGE2,12)*($M135),0))) ->  | X135: =IF($H135="","",IF(HayMonth17=0,VLOOKUP($H135,FORAGE2,13)*($M135),IF(AND(HayMonth17>0,HayMonth17<2),VLOOKUP($H135,FORAGE2,13)*($M135),0))) ->  | Y135: =IF($H135="","",IF(HayMonth17=0,VLOOKUP($H135,FORAGE2,14)*($M135),IF(AND(HayMonth17>0,HayMonth17<3),VLOOKUP($H135,FORAGE2,14)*($M135),0))) -> 
H136: Will hay be cut on this field? | I136: =IF(HayMonth17>0,"Hay cut in:","") ->  | J136: =IF(HayMonth17=0,"",IF(HayMonth17=1,"Jan",IF(HayMonth17=2,"Feb",IF(HayMonth17=3,"Mar",IF(HayMonth17=4,"Apr",IF(HayMonth17=5,"May",IF(HayMonth17=6,"Jun",IF(HayMonth17=7,"Jul",IF(HayMonth17=8,"Aug",IF(HayMonth17=9,"Sep",IF(HayMonth17=10,"Oct",IF(HayMonth17=11,"Nov","Dec")))))))))))) -> 
K137: =I137*J137 -> 0 | L137: =IF(ISBLANK(Field18)="",(VLOOKUP(ROUND(TotalAcreGrazed/Acres18,0),[0]!PastureEffTable,2,)),"") ->  | M137: =K137*L137/100 -> 0 | N137: =IF($H137="","",IF(HayMonth18=0,VLOOKUP($H137,FORAGE2,3)*($M137),IF(AND(HayMonth18>0,HayMonth18<4),VLOOKUP($H137,FORAGE2,3)*($M137),0))) ->  | O137: =IF($H137="","",IF(HayMonth18=0,VLOOKUP($H137,FORAGE2,4)*($M137),IF(AND(HayMonth18>0,HayMonth18<5),VLOOKUP($H137,FORAGE2,4)*($M137),0))) ->  | P137: =IF($H137="","",IF(HayMonth18=0,VLOOKUP($H137,FORAGE2,5)*($M137),IF(AND(HayMonth18>0,HayMonth18<6),VLOOKUP($H137,FORAGE2,5)*($M137),0))) ->  | Q137: =IF($H137="","",IF(HayMonth18=0,VLOOKUP($H137,FORAGE2,6)*($M137),IF(AND(HayMonth18>0,HayMonth18<7),VLOOKUP($H137,FORAGE2,6)*($M137),0))) ->  | R137: =IF($H137="","",IF(HayMonth18=0,VLOOKUP($H137,FORAGE2,7)*($M137),IF(AND(HayMonth18>0,HayMonth18<8),VLOOKUP($H137,FORAGE2,7)*($M137),0))) ->  | S137: =IF($H137="","",IF(HayMonth18=0,VLOOKUP($H137,FORAGE2,8)*($M137),IF(AND(HayMonth18>0,HayMonth18<9),VLOOKUP($H137,FORAGE2,8)*($M137),0))) ->  | T137: =IF($H137="","",IF(HayMonth18=0,VLOOKUP($H137,FORAGE2,9)*($M137),IF(AND(HayMonth18>0,HayMonth18<10),VLOOKUP($H137,FORAGE2,9)*($M137),0))) ->  | U137: =IF($H137="","",IF(HayMonth18=0,VLOOKUP($H137,FORAGE2,10)*($M137),IF(AND(HayMonth18>0,HayMonth18<11),VLOOKUP($H137,FORAGE2,10)*($M137),0))) ->  | V137: =IF($H137="","",IF(HayMonth18=0,VLOOKUP($H137,FORAGE2,11)*($M137),IF(AND(HayMonth18>0,HayMonth18<12),VLOOKUP($H137,FORAGE2,11)*($M137),0))) ->  | W137: =IF($H137="","",IF(HayMonth18=0,VLOOKUP($H137,FORAGE2,12)*($M137),IF(AND(HayMonth18>0,HayMonth18<1),VLOOKUP($H137,FORAGE2,12)*($M137),0))) ->  | X137: =IF($H137="","",IF(HayMonth18=0,VLOOKUP($H137,FORAGE2,13)*($M137),IF(AND(HayMonth18>0,HayMonth18<2),VLOOKUP($H137,FORAGE2,13)*($M137),0))) ->  | Y137: =IF($H137="","",IF(HayMonth18=0,VLOOKUP($H137,FORAGE2,14)*($M137),IF(AND(HayMonth18>0,HayMonth18<3),VLOOKUP($H137,FORAGE2,14)*($M137),0))) -> 
H138: Will hay be cut on this field? | I138: =IF(HayMonth18>0,"Hay cut in:","") ->  | J138: =IF(HayMonth18=0,"",IF(HayMonth18=1,"Jan",IF(HayMonth18=2,"Feb",IF(HayMonth18=3,"Mar",IF(HayMonth18=4,"Apr",IF(HayMonth18=5,"May",IF(HayMonth18=6,"Jun",IF(HayMonth18=7,"Jul",IF(HayMonth18=8,"Aug",IF(HayMonth18=9,"Sep",IF(HayMonth18=10,"Oct",IF(HayMonth18=11,"Nov","Dec")))))))))))) -> 
K139: =I139*J139 -> 0 | L139: =IF(ISBLANK(Field19)="",(VLOOKUP(ROUND(TotalAcreGrazed/Acres19,0),[0]!PastureEffTable,2,)),"") ->  | M139: =K139*L139/100 -> 0 | N139: =IF($H139="","",IF(HayMonth19=0,VLOOKUP($H139,FORAGE2,3)*($M139),IF(AND(HayMonth19>0,HayMonth19<4),VLOOKUP($H139,FORAGE2,3)*($M139),0))) ->  | O139: =IF($H139="","",IF(HayMonth19=0,VLOOKUP($H139,FORAGE2,4)*($M139),IF(AND(HayMonth19>0,HayMonth19<5),VLOOKUP($H139,FORAGE2,4)*($M139),0))) ->  | P139: =IF($H139="","",IF(HayMonth19=0,VLOOKUP($H139,FORAGE2,5)*($M139),IF(AND(HayMonth19>0,HayMonth19<6),VLOOKUP($H139,FORAGE2,5)*($M139),0))) ->  | Q139: =IF($H139="","",IF(HayMonth19=0,VLOOKUP($H139,FORAGE2,6)*($M139),IF(AND(HayMonth19>0,HayMonth19<7),VLOOKUP($H139,FORAGE2,6)*($M139),0))) ->  | R139: =IF($H139="","",IF(HayMonth19=0,VLOOKUP($H139,FORAGE2,7)*($M139),IF(AND(HayMonth19>0,HayMonth19<8),VLOOKUP($H139,FORAGE2,7)*($M139),0))) ->  | S139: =IF($H139="","",IF(HayMonth19=0,VLOOKUP($H139,FORAGE2,8)*($M139),IF(AND(HayMonth19>0,HayMonth19<9),VLOOKUP($H139,FORAGE2,8)*($M139),0))) ->  | T139: =IF($H139="","",IF(HayMonth19=0,VLOOKUP($H139,FORAGE2,9)*($M139),IF(AND(HayMonth19>0,HayMonth19<10),VLOOKUP($H139,FORAGE2,9)*($M139),0))) ->  | U139: =IF($H139="","",IF(HayMonth19=0,VLOOKUP($H139,FORAGE2,10)*($M139),IF(AND(HayMonth19>0,HayMonth19<11),VLOOKUP($H139,FORAGE2,10)*($M139),0))) ->  | V139: =IF($H139="","",IF(HayMonth19=0,VLOOKUP($H139,FORAGE2,11)*($M139),IF(AND(HayMonth19>0,HayMonth19<12),VLOOKUP($H139,FORAGE2,11)*($M139),0))) ->  | W139: =IF($H139="","",IF(HayMonth19=0,VLOOKUP($H139,FORAGE2,12)*($M139),IF(AND(HayMonth19>0,HayMonth19<1),VLOOKUP($H139,FORAGE2,12)*($M139),0))) ->  | X139: =IF($H139="","",IF(HayMonth19=0,VLOOKUP($H139,FORAGE2,13)*($M139),IF(AND(HayMonth19>0,HayMonth19<2),VLOOKUP($H139,FORAGE2,13)*($M139),0))) ->  | Y139: =IF($H139="","",IF(HayMonth19=0,VLOOKUP($H139,FORAGE2,14)*($M139),IF(AND(HayMonth19>0,HayMonth19<3),VLOOKUP($H139,FORAGE2,14)*($M139),0))) -> 
H140: Will hay be cut on this field? | I140: =IF(HayMonth19>0,"Hay cut in:","") ->  | J140: =IF(HayMonth19=0,"",IF(HayMonth19=1,"Jan",IF(HayMonth19=2,"Feb",IF(HayMonth19=3,"Mar",IF(HayMonth19=4,"Apr",IF(HayMonth19=5,"May",IF(HayMonth19=6,"Jun",IF(HayMonth19=7,"Jul",IF(HayMonth19=8,"Aug",IF(HayMonth19=9,"Sep",IF(HayMonth19=10,"Oct",IF(HayMonth19=11,"Nov","Dec")))))))))))) -> 
K141: =I141*J141 -> 0 | L141: =IF(ISBLANK(Field20)="",(VLOOKUP(ROUND(TotalAcreGrazed/Acres20,0),[0]!PastureEffTable,2,)),"") ->  | M141: =K141*L141/100 -> 0 | N141: =IF($H141="","",IF(HayMonth20=0,VLOOKUP($H141,FORAGE2,3)*($M141),IF(AND(HayMonth20>0,HayMonth20<4),VLOOKUP($H141,FORAGE2,3)*($M141),0))) ->  | O141: =IF($H141="","",IF(HayMonth20=0,VLOOKUP($H141,FORAGE2,4)*($M141),IF(AND(HayMonth20>0,HayMonth20<5),VLOOKUP($H141,FORAGE2,4)*($M141),0))) ->  | P141: =IF($H141="","",IF(HayMonth20=0,VLOOKUP($H141,FORAGE2,5)*($M141),IF(AND(HayMonth20>0,HayMonth20<6),VLOOKUP($H141,FORAGE2,5)*($M141),0))) ->  | Q141: =IF($H141="","",IF(HayMonth20=0,VLOOKUP($H141,FORAGE2,6)*($M141),IF(AND(HayMonth20>0,HayMonth20<7),VLOOKUP($H141,FORAGE2,6)*($M141),0))) ->  | R141: =IF($H141="","",IF(HayMonth20=0,VLOOKUP($H141,FORAGE2,7)*($M141),IF(AND(HayMonth20>0,HayMonth20<8),VLOOKUP($H141,FORAGE2,7)*($M141),0))) ->  | S141: =IF($H141="","",IF(HayMonth20=0,VLOOKUP($H141,FORAGE2,8)*($M141),IF(AND(HayMonth20>0,HayMonth20<9),VLOOKUP($H141,FORAGE2,8)*($M141),0))) ->  | T141: =IF($H141="","",IF(HayMonth20=0,VLOOKUP($H141,FORAGE2,9)*($M141),IF(AND(HayMonth20>0,HayMonth20<10),VLOOKUP($H141,FORAGE2,9)*($M141),0))) ->  | U141: =IF($H141="","",IF(HayMonth20=0,VLOOKUP($H141,FORAGE2,10)*($M141),IF(AND(HayMonth20>0,HayMonth20<11),VLOOKUP($H141,FORAGE2,10)*($M141),0))) ->  | V141: =IF($H141="","",IF(HayMonth20=0,VLOOKUP($H141,FORAGE2,11)*($M141),IF(AND(HayMonth20>0,HayMonth20<12),VLOOKUP($H141,FORAGE2,11)*($M141),0))) ->  | W141: =IF($H141="","",IF(HayMonth20=0,VLOOKUP($H141,FORAGE2,12)*($M141),IF(AND(HayMonth20>0,HayMonth20<1),VLOOKUP($H141,FORAGE2,12)*($M141),0))) ->  | X141: =IF($H141="","",IF(HayMonth20=0,VLOOKUP($H141,FORAGE2,13)*($M141),IF(AND(HayMonth20>0,HayMonth20<2),VLOOKUP($H141,FORAGE2,13)*($M141),0))) ->  | Y141: =IF($H141="","",IF(HayMonth20=0,VLOOKUP($H141,FORAGE2,14)*($M141),IF(AND(HayMonth20>0,HayMonth20<3),VLOOKUP($H141,FORAGE2,14)*($M141),0))) -> 
H142: Will hay be cut on this field? | I142: =IF(HayMonth20>0,"Hay cut in:","") ->  | J142: =IF(HayMonth20=0,"",IF(HayMonth20=1,"Jan",IF(HayMonth20=2,"Feb",IF(HayMonth20=3,"Mar",IF(HayMonth20=4,"Apr",IF(HayMonth20=5,"May",IF(HayMonth20=6,"Jun",IF(HayMonth20=7,"Jul",IF(HayMonth20=8,"Aug",IF(HayMonth20=9,"Sep",IF(HayMonth20=10,"Oct",IF(HayMonth20=11,"Nov","Dec")))))))))))) -> 
K143: =I143*J143 -> 0 | L143: =IF(ISBLANK(Field21)="",(VLOOKUP(ROUND(TotalAcreGrazed/Acres21,0),[0]!PastureEffTable,2,)),"") ->  | M143: =K143*L143/100 -> 0 | N143: =IF($H143="","",IF(HayMonth21=0,VLOOKUP($H143,FORAGE2,3)*($M143),IF(AND(HayMonth21>0,HayMonth21<4),VLOOKUP($H143,FORAGE2,3)*($M143),0))) ->  | O143: =IF($H143="","",IF(HayMonth21=0,VLOOKUP($H143,FORAGE2,4)*($M143),IF(AND(HayMonth21>0,HayMonth21<5),VLOOKUP($H143,FORAGE2,4)*($M143),0))) ->  | P143: =IF($H143="","",IF(HayMonth21=0,VLOOKUP($H143,FORAGE2,5)*($M143),IF(AND(HayMonth21>0,HayMonth21<6),VLOOKUP($H143,FORAGE2,5)*($M143),0))) ->  | Q143: =IF($H143="","",IF(HayMonth21=0,VLOOKUP($H143,FORAGE2,6)*($M143),IF(AND(HayMonth21>0,HayMonth21<7),VLOOKUP($H143,FORAGE2,6)*($M143),0))) ->  | R143: =IF($H143="","",IF(HayMonth21=0,VLOOKUP($H143,FORAGE2,7)*($M143),IF(AND(HayMonth21>0,HayMonth21<8),VLOOKUP($H143,FORAGE2,7)*($M143),0))) ->  | S143: =IF($H143="","",IF(HayMonth21=0,VLOOKUP($H143,FORAGE2,8)*($M143),IF(AND(HayMonth21>0,HayMonth21<9),VLOOKUP($H143,FORAGE2,8)*($M143),0))) ->  | T143: =IF($H143="","",IF(HayMonth21=0,VLOOKUP($H143,FORAGE2,9)*($M143),IF(AND(HayMonth21>0,HayMonth21<10),VLOOKUP($H143,FORAGE2,9)*($M143),0))) ->  | U143: =IF($H143="","",IF(HayMonth21=0,VLOOKUP($H143,FORAGE2,10)*($M143),IF(AND(HayMonth21>0,HayMonth21<11),VLOOKUP($H143,FORAGE2,10)*($M143),0))) ->  | V143: =IF($H143="","",IF(HayMonth21=0,VLOOKUP($H143,FORAGE2,11)*($M143),IF(AND(HayMonth21>0,HayMonth21<12),VLOOKUP($H143,FORAGE2,11)*($M143),0))) ->  | W143: =IF($H143="","",IF(HayMonth21=0,VLOOKUP($H143,FORAGE2,12)*($M143),IF(AND(HayMonth21>0,HayMonth21<1),VLOOKUP($H143,FORAGE2,12)*($M143),0))) ->  | X143: =IF($H143="","",IF(HayMonth21=0,VLOOKUP($H143,FORAGE2,13)*($M143),IF(AND(HayMonth21>0,HayMonth21<2),VLOOKUP($H143,FORAGE2,13)*($M143),0))) ->  | Y143: =IF($H143="","",IF(HayMonth21=0,VLOOKUP($H143,FORAGE2,14)*($M143),IF(AND(HayMonth21>0,HayMonth21<3),VLOOKUP($H143,FORAGE2,14)*($M143),0))) -> 
H144: Will hay be cut on this field? | I144: =IF(HayMonth21>0,"Hay cut in:","") ->  | J144: =IF(HayMonth21=0,"",IF(HayMonth21=1,"Jan",IF(HayMonth21=2,"Feb",IF(HayMonth21=3,"Mar",IF(HayMonth21=4,"Apr",IF(HayMonth21=5,"May",IF(HayMonth21=6,"Jun",IF(HayMonth21=7,"Jul",IF(HayMonth21=8,"Aug",IF(HayMonth21=9,"Sep",IF(HayMonth21=10,"Oct",IF(HayMonth21=11,"Nov","Dec")))))))))))) -> 
K145: =I145*J145 -> 0 | L145: =IF(ISBLANK(Field22)="",(VLOOKUP(ROUND(TotalAcreGrazed/Acres22,0),[0]!PastureEffTable,2,)),"") ->  | M145: =K145*L145/100 -> 0 | N145: =IF($H145="","",IF(HayMonth22=0,VLOOKUP($H145,FORAGE2,3)*($M145),IF(AND(HayMonth22>0,HayMonth22<4),VLOOKUP($H145,FORAGE2,3)*($M145),0))) ->  | O145: =IF($H145="","",IF(HayMonth22=0,VLOOKUP($H145,FORAGE2,4)*($M145),IF(AND(HayMonth22>0,HayMonth22<5),VLOOKUP($H145,FORAGE2,4)*($M145),0))) ->  | P145: =IF($H145="","",IF(HayMonth22=0,VLOOKUP($H145,FORAGE2,5)*($M145),IF(AND(HayMonth22>0,HayMonth22<6),VLOOKUP($H145,FORAGE2,5)*($M145),0))) ->  | Q145: =IF($H145="","",IF(HayMonth22=0,VLOOKUP($H145,FORAGE2,6)*($M145),IF(AND(HayMonth22>0,HayMonth22<7),VLOOKUP($H145,FORAGE2,6)*($M145),0))) ->  | R145: =IF($H145="","",IF(HayMonth22=0,VLOOKUP($H145,FORAGE2,7)*($M145),IF(AND(HayMonth22>0,HayMonth22<8),VLOOKUP($H145,FORAGE2,7)*($M145),0))) ->  | S145: =IF($H145="","",IF(HayMonth22=0,VLOOKUP($H145,FORAGE2,8)*($M145),IF(AND(HayMonth22>0,HayMonth22<9),VLOOKUP($H145,FORAGE2,8)*($M145),0))) ->  | T145: =IF($H145="","",IF(HayMonth22=0,VLOOKUP($H145,FORAGE2,9)*($M145),IF(AND(HayMonth22>0,HayMonth22<10),VLOOKUP($H145,FORAGE2,9)*($M145),0))) ->  | U145: =IF($H145="","",IF(HayMonth22=0,VLOOKUP($H145,FORAGE2,10)*($M145),IF(AND(HayMonth22>0,HayMonth22<11),VLOOKUP($H145,FORAGE2,10)*($M145),0))) ->  | V145: =IF($H145="","",IF(HayMonth22=0,VLOOKUP($H145,FORAGE2,11)*($M145),IF(AND(HayMonth22>0,HayMonth22<12),VLOOKUP($H145,FORAGE2,11)*($M145),0))) ->  | W145: =IF($H145="","",IF(HayMonth22=0,VLOOKUP($H145,FORAGE2,12)*($M145),IF(AND(HayMonth22>0,HayMonth22<1),VLOOKUP($H145,FORAGE2,12)*($M145),0))) ->  | X145: =IF($H145="","",IF(HayMonth22=0,VLOOKUP($H145,FORAGE2,13)*($M145),IF(AND(HayMonth22>0,HayMonth22<2),VLOOKUP($H145,FORAGE2,13)*($M145),0))) ->  | Y145: =IF($H145="","",IF(HayMonth22=0,VLOOKUP($H145,FORAGE2,14)*($M145),IF(AND(HayMonth22>0,HayMonth22<3),VLOOKUP($H145,FORAGE2,14)*($M145),0))) -> 
H146: Will hay be cut on this field? | I146: =IF(HayMonth22>0,"Hay cut in:","") ->  | J146: =IF(HayMonth22=0,"",IF(HayMonth22=1,"Jan",IF(HayMonth22=2,"Feb",IF(HayMonth22=3,"Mar",IF(HayMonth22=4,"Apr",IF(HayMonth22=5,"May",IF(HayMonth22=6,"Jun",IF(HayMonth22=7,"Jul",IF(HayMonth22=8,"Aug",IF(HayMonth22=9,"Sep",IF(HayMonth22=10,"Oct",IF(HayMonth22=11,"Nov","Dec")))))))))))) -> 
K147: =I147*J147 -> 0 | L147: =IF(ISBLANK(Field23)="",(VLOOKUP(ROUND(TotalAcreGrazed/Acres23,0),[0]!PastureEffTable,2,)),"") ->  | M147: =K147*L147/100 -> 0 | N147: =IF($H147="","",IF(HayMonth23=0,VLOOKUP($H147,FORAGE2,3)*($M147),IF(AND(HayMonth23>0,HayMonth23<4),VLOOKUP($H147,FORAGE2,3)*($M147),0))) ->  | O147: =IF($H147="","",IF(HayMonth23=0,VLOOKUP($H147,FORAGE2,4)*($M147),IF(AND(HayMonth23>0,HayMonth23<5),VLOOKUP($H147,FORAGE2,4)*($M147),0))) ->  | P147: =IF($H147="","",IF(HayMonth23=0,VLOOKUP($H147,FORAGE2,5)*($M147),IF(AND(HayMonth23>0,HayMonth23<6),VLOOKUP($H147,FORAGE2,5)*($M147),0))) ->  | Q147: =IF($H147="","",IF(HayMonth23=0,VLOOKUP($H147,FORAGE2,6)*($M147),IF(AND(HayMonth23>0,HayMonth23<7),VLOOKUP($H147,FORAGE2,6)*($M147),0))) ->  | R147: =IF($H147="","",IF(HayMonth23=0,VLOOKUP($H147,FORAGE2,7)*($M147),IF(AND(HayMonth23>0,HayMonth23<8),VLOOKUP($H147,FORAGE2,7)*($M147),0))) ->  | S147: =IF($H147="","",IF(HayMonth23=0,VLOOKUP($H147,FORAGE2,8)*($M147),IF(AND(HayMonth23>0,HayMonth23<9),VLOOKUP($H147,FORAGE2,8)*($M147),0))) ->  | T147: =IF($H147="","",IF(HayMonth23=0,VLOOKUP($H147,FORAGE2,9)*($M147),IF(AND(HayMonth23>0,HayMonth23<10),VLOOKUP($H147,FORAGE2,9)*($M147),0))) ->  | U147: =IF($H147="","",IF(HayMonth23=0,VLOOKUP($H147,FORAGE2,10)*($M147),IF(AND(HayMonth23>0,HayMonth23<11),VLOOKUP($H147,FORAGE2,10)*($M147),0))) ->  | V147: =IF($H147="","",IF(HayMonth23=0,VLOOKUP($H147,FORAGE2,11)*($M147),IF(AND(HayMonth23>0,HayMonth23<12),VLOOKUP($H147,FORAGE2,11)*($M147),0))) ->  | W147: =IF($H147="","",IF(HayMonth23=0,VLOOKUP($H147,FORAGE2,12)*($M147),IF(AND(HayMonth23>0,HayMonth23<1),VLOOKUP($H147,FORAGE2,12)*($M147),0))) ->  | X147: =IF($H147="","",IF(HayMonth23=0,VLOOKUP($H147,FORAGE2,13)*($M147),IF(AND(HayMonth23>0,HayMonth23<2),VLOOKUP($H147,FORAGE2,13)*($M147),0))) ->  | Y147: =IF($H147="","",IF(HayMonth23=0,VLOOKUP($H147,FORAGE2,14)*($M147),IF(AND(HayMonth23>0,HayMonth23<3),VLOOKUP($H147,FORAGE2,14)*($M147),0))) -> 
H148: Will hay be cut on this field? | I148: =IF(HayMonth23>0,"Hay cut in:","") ->  | J148: =IF(HayMonth23=0,"",IF(HayMonth23=1,"Jan",IF(HayMonth23=2,"Feb",IF(HayMonth23=3,"Mar",IF(HayMonth23=4,"Apr",IF(HayMonth23=5,"May",IF(HayMonth23=6,"Jun",IF(HayMonth23=7,"Jul",IF(HayMonth23=8,"Aug",IF(HayMonth23=9,"Sep",IF(HayMonth23=10,"Oct",IF(HayMonth23=11,"Nov","Dec")))))))))))) -> 
K149: =I149*J149 -> 0 | L149: =IF(ISBLANK(Field24)="",(VLOOKUP(ROUND(TotalAcreGrazed/Acres24,0),[0]!PastureEffTable,2,)),"") ->  | M149: =K149*L149/100 -> 0 | N149: =IF($H149="","",IF(HayMonth24=0,VLOOKUP($H149,FORAGE2,3)*($M149),IF(AND(HayMonth24>0,HayMonth24<4),VLOOKUP($H149,FORAGE2,3)*($M149),0))) ->  | O149: =IF($H149="","",IF(HayMonth24=0,VLOOKUP($H149,FORAGE2,4)*($M149),IF(AND(HayMonth24>0,HayMonth24<5),VLOOKUP($H149,FORAGE2,4)*($M149),0))) ->  | P149: =IF($H149="","",IF(HayMonth24=0,VLOOKUP($H149,FORAGE2,5)*($M149),IF(AND(HayMonth24>0,HayMonth24<6),VLOOKUP($H149,FORAGE2,5)*($M149),0))) ->  | Q149: =IF($H149="","",IF(HayMonth24=0,VLOOKUP($H149,FORAGE2,6)*($M149),IF(AND(HayMonth24>0,HayMonth24<7),VLOOKUP($H149,FORAGE2,6)*($M149),0))) ->  | R149: =IF($H149="","",IF(HayMonth24=0,VLOOKUP($H149,FORAGE2,7)*($M149),IF(AND(HayMonth24>0,HayMonth24<8),VLOOKUP($H149,FORAGE2,7)*($M149),0))) ->  | S149: =IF($H149="","",IF(HayMonth24=0,VLOOKUP($H149,FORAGE2,8)*($M149),IF(AND(HayMonth24>0,HayMonth24<9),VLOOKUP($H149,FORAGE2,8)*($M149),0))) ->  | T149: =IF($H149="","",IF(HayMonth24=0,VLOOKUP($H149,FORAGE2,9)*($M149),IF(AND(HayMonth24>0,HayMonth24<10),VLOOKUP($H149,FORAGE2,9)*($M149),0))) ->  | U149: =IF($H149="","",IF(HayMonth24=0,VLOOKUP($H149,FORAGE2,10)*($M149),IF(AND(HayMonth24>0,HayMonth24<11),VLOOKUP($H149,FORAGE2,10)*($M149),0))) ->  | V149: =IF($H149="","",IF(HayMonth24=0,VLOOKUP($H149,FORAGE2,11)*($M149),IF(AND(HayMonth24>0,HayMonth24<12),VLOOKUP($H149,FORAGE2,11)*($M149),0))) ->  | W149: =IF($H149="","",IF(HayMonth24=0,VLOOKUP($H149,FORAGE2,12)*($M149),IF(AND(HayMonth24>0,HayMonth24<1),VLOOKUP($H149,FORAGE2,12)*($M149),0))) ->  | X149: =IF($H149="","",IF(HayMonth24=0,VLOOKUP($H149,FORAGE2,13)*($M149),IF(AND(HayMonth24>0,HayMonth24<2),VLOOKUP($H149,FORAGE2,13)*($M149),0))) ->  | Y149: =IF($H149="","",IF(HayMonth24=0,VLOOKUP($H149,FORAGE2,14)*($M149),IF(AND(HayMonth24>0,HayMonth24<3),VLOOKUP($H149,FORAGE2,14)*($M149),0))) -> 
H150: Will hay be cut on this field? | I150: =IF(HayMonth24>0,"Hay cut in:","") ->  | J150: =IF(HayMonth24=0,"",IF(HayMonth24=1,"Jan",IF(HayMonth24=2,"Feb",IF(HayMonth24=3,"Mar",IF(HayMonth24=4,"Apr",IF(HayMonth24=5,"May",IF(HayMonth24=6,"Jun",IF(HayMonth24=7,"Jul",IF(HayMonth24=8,"Aug",IF(HayMonth24=9,"Sep",IF(HayMonth24=10,"Oct",IF(HayMonth24=11,"Nov","Dec")))))))))))) ->  | L150: 0
H152: Total Usable Acres Grazed | I152: =Acres1+Acres2+Acres3+Acres4+Acres5+Acres6+Acres7+Acres8+Acres9+Acres10+Acres11+Acres12+Acres13+Acres14+Acres15+Acres16+Acres17+Acres18+Acres19+Acres20+Acres21+Acres22+Acres23+Acres24 -> 0
G155: Fields Hayed In Conjunction With Grazing
G156: Fields will populate automatically if haying is selected above for any fields. Only enter the Hay Harvest Efficiency (%), the other fields populate automatically based upon the information entered above. The Total Production Pounds is calculated by multiplying the percent of growth that has occured at the time of haying based upon the Forage Growth Curves.
J157: TFP* | K157: Total | L157: Hay | N157: Minimum | P157: Total Forage Production
G158: Field | I158: Acres | K158: Production | L158: Harvest | M158: Harvested | N158: Cutting | P158: Select OPTIMUM yields when:
G159: Number | H159: Kind of Forage | I159: (Usable) | J159: lbs/ac | K159: Pounds | L159: Eff. (%) | M159: Pounds | N159: Ht. (in) | P159: 1. Paddocks are fertilized regularly, OR
G160: =Field1 -> 0 | H160: =Kind1 -> 0 | I160: =Acres1 -> 0 | J160: =Yield1 -> 0 | K160: =IF(HayMonth2=3,I160*J160*(VLOOKUP(H160,FORAGE2,12)+VLOOKUP(H160,FORAGE2,13)+VLOOKUP(H160,FORAGE2,14)),IF(HayMonth2=4,I160*J160*(VLOOKUP(H160,FORAGE2,12)+VLOOKUP(H160,FORAGE2,13)+VLOOKUP(H160,FORAGE2,14)+VLOOKUP(H160,FORAGE2,3)),IF(HayMonth2=5,I160*J160*(VLOOKUP(H160,FORAGE2,12)+VLOOKUP(H160,FORAGE2,13)+VLOOKUP(H160,FORAGE2,14)+VLOOKUP(H160,FORAGE2,3)+VLOOKUP(H160,FORAGE2,4)),IF(HayMonth2=6,I160*J160*(VLOOKUP(H160,FORAGE2,12)+VLOOKUP(H160,FORAGE2,13)+VLOOKUP(H160,FORAGE2,14)+VLOOKUP(H160,FORAGE2,3)+VLOOKUP(H160,FORAGE2,4)+VLOOKUP(H160,FORAGE2,5)),IF(HayMonth2=7,I160*J160*(VLOOKUP(H160,FORAGE2,12)+VLOOKUP(H160,FORAGE2,13)+VLOOKUP(H160,FORAGE2,14)+VLOOKUP(H160,FORAGE2,3)+VLOOKUP(H160,FORAGE2,4)+VLOOKUP(H160,FORAGE2,5)+VLOOKUP(H160,FORAGE2,6)), IF(HayMonth2=8,I160*J160*(VLOOKUP(H160,FORAGE2,12)+VLOOKUP(H160,FORAGE2,13)+VLOOKUP(H160,FORAGE2,14)+VLOOKUP(H160,FORAGE2,3)+VLOOKUP(H160,FORAGE2,4)+VLOOKUP(H160,FORAGE2,5)+VLOOKUP(H160,FORAGE2,6)+VLOOKUP(H160,FORAGE2,7)),IF(HayMonth2=9,I160*J160*(VLOOKUP(H160,FORAGE2,12)+VLOOKUP(H160,FORAGE2,13)+VLOOKUP(H160,FORAGE2,14)+VLOOKUP(H160,FORAGE2,3)+VLOOKUP(H160,FORAGE2,4)+VLOOKUP(H160,FORAGE2,5)+VLOOKUP(H160,FORAGE2,6)+VLOOKUP(H160,FORAGE2,7)+VLOOKUP(H160,FORAGE2,8)), IF(HayMonth2=10,I160*J160*(VLOOKUP(H160,FORAGE2,12)+VLOOKUP(H160,FORAGE2,13)+VLOOKUP(H160,FORAGE2,14)+VLOOKUP(H160,FORAGE2,3)+VLOOKUP(H160,FORAGE2,4)+VLOOKUP(H160,FORAGE2,5)+VLOOKUP(H160,FORAGE2,6)+VLOOKUP(H160,FORAGE2,7)+VLOOKUP(H160,FORAGE2,8)+VLOOKUP(H160,FORAGE2,9)),I160*J160*(VLOOKUP(H160,FORAGE2,12)+VLOOKUP(H160,FORAGE2,13)+VLOOKUP(H160,FORAGE2,14)+VLOOKUP(H160,FORAGE2,3)+VLOOKUP(H160,FORAGE2,4)+VLOOKUP(H160,FORAGE2,5)+VLOOKUP(H160,FORAGE2,6)+VLOOKUP(H160,FORAGE2,7)+VLOOKUP(H160,FORAGE2,8)+VLOOKUP(H160,FORAGE2,9)+VLOOKUP(H160,FORAGE2,10)+VLOOKUP(H160,FORAGE2,11)))))))))) -> 0 | M160: =K160*L160 -> 0 | N160: =IF(H160="","",VLOOKUP(H160,ForageGrowthCurves!$A$6:$P$67,16,FALSE)) -> 
G161: =Field2 -> 0 | H161: =Kind2 -> 0 | I161: =Acres2 -> 0 | J161: =Yield2 -> 0 | K161: =IF(HayMonth2=3,I161*J161*(VLOOKUP(H161,FORAGE2,12)+VLOOKUP(H161,FORAGE2,13)+VLOOKUP(H161,FORAGE2,14)),IF(HayMonth2=4,I161*J161*(VLOOKUP(H161,FORAGE2,12)+VLOOKUP(H161,FORAGE2,13)+VLOOKUP(H161,FORAGE2,14)+VLOOKUP(H161,FORAGE2,3)),IF(HayMonth2=5,I161*J161*(VLOOKUP(H161,FORAGE2,12)+VLOOKUP(H161,FORAGE2,13)+VLOOKUP(H161,FORAGE2,14)+VLOOKUP(H161,FORAGE2,3)+VLOOKUP(H161,FORAGE2,4)),IF(HayMonth2=6,I161*J161*(VLOOKUP(H161,FORAGE2,12)+VLOOKUP(H161,FORAGE2,13)+VLOOKUP(H161,FORAGE2,14)+VLOOKUP(H161,FORAGE2,3)+VLOOKUP(H161,FORAGE2,4)+VLOOKUP(H161,FORAGE2,5)),IF(HayMonth2=7,I161*J161*(VLOOKUP(H161,FORAGE2,12)+VLOOKUP(H161,FORAGE2,13)+VLOOKUP(H161,FORAGE2,14)+VLOOKUP(H161,FORAGE2,3)+VLOOKUP(H161,FORAGE2,4)+VLOOKUP(H161,FORAGE2,5)+VLOOKUP(H161,FORAGE2,6)), IF(HayMonth2=8,I161*J161*(VLOOKUP(H161,FORAGE2,12)+VLOOKUP(H161,FORAGE2,13)+VLOOKUP(H161,FORAGE2,14)+VLOOKUP(H161,FORAGE2,3)+VLOOKUP(H161,FORAGE2,4)+VLOOKUP(H161,FORAGE2,5)+VLOOKUP(H161,FORAGE2,6)+VLOOKUP(H161,FORAGE2,7)),IF(HayMonth2=9,I161*J161*(VLOOKUP(H161,FORAGE2,12)+VLOOKUP(H161,FORAGE2,13)+VLOOKUP(H161,FORAGE2,14)+VLOOKUP(H161,FORAGE2,3)+VLOOKUP(H161,FORAGE2,4)+VLOOKUP(H161,FORAGE2,5)+VLOOKUP(H161,FORAGE2,6)+VLOOKUP(H161,FORAGE2,7)+VLOOKUP(H161,FORAGE2,8)), IF(HayMonth2=10,I161*J161*(VLOOKUP(H161,FORAGE2,12)+VLOOKUP(H161,FORAGE2,13)+VLOOKUP(H161,FORAGE2,14)+VLOOKUP(H161,FORAGE2,3)+VLOOKUP(H161,FORAGE2,4)+VLOOKUP(H161,FORAGE2,5)+VLOOKUP(H161,FORAGE2,6)+VLOOKUP(H161,FORAGE2,7)+VLOOKUP(H161,FORAGE2,8)+VLOOKUP(H161,FORAGE2,9)),I161*J161*(VLOOKUP(H161,FORAGE2,12)+VLOOKUP(H161,FORAGE2,13)+VLOOKUP(H161,FORAGE2,14)+VLOOKUP(H161,FORAGE2,3)+VLOOKUP(H161,FORAGE2,4)+VLOOKUP(H161,FORAGE2,5)+VLOOKUP(H161,FORAGE2,6)+VLOOKUP(H161,FORAGE2,7)+VLOOKUP(H161,FORAGE2,8)+VLOOKUP(H161,FORAGE2,9)+VLOOKUP(H161,FORAGE2,10)+VLOOKUP(H161,FORAGE2,11)))))))))) -> 0 | M161: =K161*L161 -> 0 | N161: =IF(H161="","",VLOOKUP(H161,ForageGrowthCurves!$A$6:$P$67,16,FALSE)) -> 
G162: =Field3 -> 0 | H162: =Kind3 -> 0 | I162: =Acres3 -> 0 | J162: =Yield3 -> 0 | K162: =IF(HayMonth3=3,I162*J162*(VLOOKUP(H162,FORAGE2,12)+VLOOKUP(H162,FORAGE2,13)+VLOOKUP(H162,FORAGE2,14)),IF(HayMonth3=4,I162*J162*(VLOOKUP(H162,FORAGE2,12)+VLOOKUP(H162,FORAGE2,13)+VLOOKUP(H162,FORAGE2,14)+VLOOKUP(H162,FORAGE2,3)),IF(HayMonth3=5,I162*J162*(VLOOKUP(H162,FORAGE2,12)+VLOOKUP(H162,FORAGE2,13)+VLOOKUP(H162,FORAGE2,14)+VLOOKUP(H162,FORAGE2,3)+VLOOKUP(H162,FORAGE2,4)),IF(HayMonth3=6,I162*J162*(VLOOKUP(H162,FORAGE2,12)+VLOOKUP(H162,FORAGE2,13)+VLOOKUP(H162,FORAGE2,14)+VLOOKUP(H162,FORAGE2,3)+VLOOKUP(H162,FORAGE2,4)+VLOOKUP(H162,FORAGE2,5)),IF(HayMonth3=7,I162*J162*(VLOOKUP(H162,FORAGE2,12)+VLOOKUP(H162,FORAGE2,13)+VLOOKUP(H162,FORAGE2,14)+VLOOKUP(H162,FORAGE2,3)+VLOOKUP(H162,FORAGE2,4)+VLOOKUP(H162,FORAGE2,5)+VLOOKUP(H162,FORAGE2,6)), IF(HayMonth3=8,I162*J162*(VLOOKUP(H162,FORAGE2,12)+VLOOKUP(H162,FORAGE2,13)+VLOOKUP(H162,FORAGE2,14)+VLOOKUP(H162,FORAGE2,3)+VLOOKUP(H162,FORAGE2,4)+VLOOKUP(H162,FORAGE2,5)+VLOOKUP(H162,FORAGE2,6)+VLOOKUP(H162,FORAGE2,7)),IF(HayMonth3=9,I162*J162*(VLOOKUP(H162,FORAGE2,12)+VLOOKUP(H162,FORAGE2,13)+VLOOKUP(H162,FORAGE2,14)+VLOOKUP(H162,FORAGE2,3)+VLOOKUP(H162,FORAGE2,4)+VLOOKUP(H162,FORAGE2,5)+VLOOKUP(H162,FORAGE2,6)+VLOOKUP(H162,FORAGE2,7)+VLOOKUP(H162,FORAGE2,8)), IF(HayMonth3=10,I162*J162*(VLOOKUP(H162,FORAGE2,12)+VLOOKUP(H162,FORAGE2,13)+VLOOKUP(H162,FORAGE2,14)+VLOOKUP(H162,FORAGE2,3)+VLOOKUP(H162,FORAGE2,4)+VLOOKUP(H162,FORAGE2,5)+VLOOKUP(H162,FORAGE2,6)+VLOOKUP(H162,FORAGE2,7)+VLOOKUP(H162,FORAGE2,8)+VLOOKUP(H162,FORAGE2,9)),I162*J162*(VLOOKUP(H162,FORAGE2,12)+VLOOKUP(H162,FORAGE2,13)+VLOOKUP(H162,FORAGE2,14)+VLOOKUP(H162,FORAGE2,3)+VLOOKUP(H162,FORAGE2,4)+VLOOKUP(H162,FORAGE2,5)+VLOOKUP(H162,FORAGE2,6)+VLOOKUP(H162,FORAGE2,7)+VLOOKUP(H162,FORAGE2,8)+VLOOKUP(H162,FORAGE2,9)+VLOOKUP(H162,FORAGE2,10)+VLOOKUP(H162,FORAGE2,11)))))))))) -> 0 | M162: 0 | N162: =IF(H162="","",VLOOKUP(H162,ForageGrowthCurves!$A$6:$P$67,16,FALSE)) -> 
G163: =Field4 -> 0 | H163: =Kind4 -> 0 | I163: =Acres4 -> 0 | J163: =Yield4 -> 0 | K163: =IF(HayMonth4=3,I163*J163*(VLOOKUP(H163,FORAGE2,12)+VLOOKUP(H163,FORAGE2,13)+VLOOKUP(H163,FORAGE2,14)),IF(HayMonth4=4,I163*J163*(VLOOKUP(H163,FORAGE2,12)+VLOOKUP(H163,FORAGE2,13)+VLOOKUP(H163,FORAGE2,14)+VLOOKUP(H163,FORAGE2,3)),IF(HayMonth4=5,I163*J163*(VLOOKUP(H163,FORAGE2,12)+VLOOKUP(H163,FORAGE2,13)+VLOOKUP(H163,FORAGE2,14)+VLOOKUP(H163,FORAGE2,3)+VLOOKUP(H163,FORAGE2,4)),IF(HayMonth4=6,I163*J163*(VLOOKUP(H163,FORAGE2,12)+VLOOKUP(H163,FORAGE2,13)+VLOOKUP(H163,FORAGE2,14)+VLOOKUP(H163,FORAGE2,3)+VLOOKUP(H163,FORAGE2,4)+VLOOKUP(H163,FORAGE2,5)),IF(HayMonth4=7,I163*J163*(VLOOKUP(H163,FORAGE2,12)+VLOOKUP(H163,FORAGE2,13)+VLOOKUP(H163,FORAGE2,14)+VLOOKUP(H163,FORAGE2,3)+VLOOKUP(H163,FORAGE2,4)+VLOOKUP(H163,FORAGE2,5)+VLOOKUP(H163,FORAGE2,6)), IF(HayMonth4=8,I163*J163*(VLOOKUP(H163,FORAGE2,12)+VLOOKUP(H163,FORAGE2,13)+VLOOKUP(H163,FORAGE2,14)+VLOOKUP(H163,FORAGE2,3)+VLOOKUP(H163,FORAGE2,4)+VLOOKUP(H163,FORAGE2,5)+VLOOKUP(H163,FORAGE2,6)+VLOOKUP(H163,FORAGE2,7)),IF(HayMonth4=9,I163*J163*(VLOOKUP(H163,FORAGE2,12)+VLOOKUP(H163,FORAGE2,13)+VLOOKUP(H163,FORAGE2,14)+VLOOKUP(H163,FORAGE2,3)+VLOOKUP(H163,FORAGE2,4)+VLOOKUP(H163,FORAGE2,5)+VLOOKUP(H163,FORAGE2,6)+VLOOKUP(H163,FORAGE2,7)+VLOOKUP(H163,FORAGE2,8)), IF(HayMonth4=10,I163*J163*(VLOOKUP(H163,FORAGE2,12)+VLOOKUP(H163,FORAGE2,13)+VLOOKUP(H163,FORAGE2,14)+VLOOKUP(H163,FORAGE2,3)+VLOOKUP(H163,FORAGE2,4)+VLOOKUP(H163,FORAGE2,5)+VLOOKUP(H163,FORAGE2,6)+VLOOKUP(H163,FORAGE2,7)+VLOOKUP(H163,FORAGE2,8)+VLOOKUP(H163,FORAGE2,9)),I163*J163*(VLOOKUP(H163,FORAGE2,12)+VLOOKUP(H163,FORAGE2,13)+VLOOKUP(H163,FORAGE2,14)+VLOOKUP(H163,FORAGE2,3)+VLOOKUP(H163,FORAGE2,4)+VLOOKUP(H163,FORAGE2,5)+VLOOKUP(H163,FORAGE2,6)+VLOOKUP(H163,FORAGE2,7)+VLOOKUP(H163,FORAGE2,8)+VLOOKUP(H163,FORAGE2,9)+VLOOKUP(H163,FORAGE2,10)+VLOOKUP(H163,FORAGE2,11)))))))))) -> 0 | M163: 0 | N163: =IF(H163="","",VLOOKUP(H163,ForageGrowthCurves!$A$6:$P$67,16,FALSE)) -> 
G164: =Field5 -> 0 | H164: =Kind5 -> 0 | I164: =Acres5 -> 0 | J164: =Yield5 -> 0 | K164: =IF(HayMonth5=3,I164*J164*(VLOOKUP(H164,FORAGE2,12)+VLOOKUP(H164,FORAGE2,13)+VLOOKUP(H164,FORAGE2,14)),IF(HayMonth5=4,I164*J164*(VLOOKUP(H164,FORAGE2,12)+VLOOKUP(H164,FORAGE2,13)+VLOOKUP(H164,FORAGE2,14)+VLOOKUP(H164,FORAGE2,3)),IF(HayMonth5=5,I164*J164*(VLOOKUP(H164,FORAGE2,12)+VLOOKUP(H164,FORAGE2,13)+VLOOKUP(H164,FORAGE2,14)+VLOOKUP(H164,FORAGE2,3)+VLOOKUP(H164,FORAGE2,4)),IF(HayMonth5=6,I164*J164*(VLOOKUP(H164,FORAGE2,12)+VLOOKUP(H164,FORAGE2,13)+VLOOKUP(H164,FORAGE2,14)+VLOOKUP(H164,FORAGE2,3)+VLOOKUP(H164,FORAGE2,4)+VLOOKUP(H164,FORAGE2,5)),IF(HayMonth5=7,I164*J164*(VLOOKUP(H164,FORAGE2,12)+VLOOKUP(H164,FORAGE2,13)+VLOOKUP(H164,FORAGE2,14)+VLOOKUP(H164,FORAGE2,3)+VLOOKUP(H164,FORAGE2,4)+VLOOKUP(H164,FORAGE2,5)+VLOOKUP(H164,FORAGE2,6)), IF(HayMonth5=8,I164*J164*(VLOOKUP(H164,FORAGE2,12)+VLOOKUP(H164,FORAGE2,13)+VLOOKUP(H164,FORAGE2,14)+VLOOKUP(H164,FORAGE2,3)+VLOOKUP(H164,FORAGE2,4)+VLOOKUP(H164,FORAGE2,5)+VLOOKUP(H164,FORAGE2,6)+VLOOKUP(H164,FORAGE2,7)),IF(HayMonth5=9,I164*J164*(VLOOKUP(H164,FORAGE2,12)+VLOOKUP(H164,FORAGE2,13)+VLOOKUP(H164,FORAGE2,14)+VLOOKUP(H164,FORAGE2,3)+VLOOKUP(H164,FORAGE2,4)+VLOOKUP(H164,FORAGE2,5)+VLOOKUP(H164,FORAGE2,6)+VLOOKUP(H164,FORAGE2,7)+VLOOKUP(H164,FORAGE2,8)), IF(HayMonth5=10,I164*J164*(VLOOKUP(H164,FORAGE2,12)+VLOOKUP(H164,FORAGE2,13)+VLOOKUP(H164,FORAGE2,14)+VLOOKUP(H164,FORAGE2,3)+VLOOKUP(H164,FORAGE2,4)+VLOOKUP(H164,FORAGE2,5)+VLOOKUP(H164,FORAGE2,6)+VLOOKUP(H164,FORAGE2,7)+VLOOKUP(H164,FORAGE2,8)+VLOOKUP(H164,FORAGE2,9)),I164*J164*(VLOOKUP(H164,FORAGE2,12)+VLOOKUP(H164,FORAGE2,13)+VLOOKUP(H164,FORAGE2,14)+VLOOKUP(H164,FORAGE2,3)+VLOOKUP(H164,FORAGE2,4)+VLOOKUP(H164,FORAGE2,5)+VLOOKUP(H164,FORAGE2,6)+VLOOKUP(H164,FORAGE2,7)+VLOOKUP(H164,FORAGE2,8)+VLOOKUP(H164,FORAGE2,9)+VLOOKUP(H164,FORAGE2,10)+VLOOKUP(H164,FORAGE2,11)))))))))) -> 0 | M164: 0 | N164: =IF(H164="","",VLOOKUP(H164,ForageGrowthCurves!$A$6:$P$67,16,FALSE)) -> 
G165: =Field6 -> 0 | H165: =Kind6 -> 0 | I165: =Acres6 -> 0 | J165: =Yield6 -> 0 | K165: =IF(HayMonth6=3,I165*J165*(VLOOKUP(H165,FORAGE2,12)+VLOOKUP(H165,FORAGE2,13)+VLOOKUP(H165,FORAGE2,14)),IF(HayMonth6=4,I165*J165*(VLOOKUP(H165,FORAGE2,12)+VLOOKUP(H165,FORAGE2,13)+VLOOKUP(H165,FORAGE2,14)+VLOOKUP(H165,FORAGE2,3)),IF(HayMonth6=5,I165*J165*(VLOOKUP(H165,FORAGE2,12)+VLOOKUP(H165,FORAGE2,13)+VLOOKUP(H165,FORAGE2,14)+VLOOKUP(H165,FORAGE2,3)+VLOOKUP(H165,FORAGE2,4)),IF(HayMonth6=6,I165*J165*(VLOOKUP(H165,FORAGE2,12)+VLOOKUP(H165,FORAGE2,13)+VLOOKUP(H165,FORAGE2,14)+VLOOKUP(H165,FORAGE2,3)+VLOOKUP(H165,FORAGE2,4)+VLOOKUP(H165,FORAGE2,5)),IF(HayMonth6=7,I165*J165*(VLOOKUP(H165,FORAGE2,12)+VLOOKUP(H165,FORAGE2,13)+VLOOKUP(H165,FORAGE2,14)+VLOOKUP(H165,FORAGE2,3)+VLOOKUP(H165,FORAGE2,4)+VLOOKUP(H165,FORAGE2,5)+VLOOKUP(H165,FORAGE2,6)), IF(HayMonth6=8,I165*J165*(VLOOKUP(H165,FORAGE2,12)+VLOOKUP(H165,FORAGE2,13)+VLOOKUP(H165,FORAGE2,14)+VLOOKUP(H165,FORAGE2,3)+VLOOKUP(H165,FORAGE2,4)+VLOOKUP(H165,FORAGE2,5)+VLOOKUP(H165,FORAGE2,6)+VLOOKUP(H165,FORAGE2,7)),IF(HayMonth6=9,I165*J165*(VLOOKUP(H165,FORAGE2,12)+VLOOKUP(H165,FORAGE2,13)+VLOOKUP(H165,FORAGE2,14)+VLOOKUP(H165,FORAGE2,3)+VLOOKUP(H165,FORAGE2,4)+VLOOKUP(H165,FORAGE2,5)+VLOOKUP(H165,FORAGE2,6)+VLOOKUP(H165,FORAGE2,7)+VLOOKUP(H165,FORAGE2,8)), IF(HayMonth6=10,I165*J165*(VLOOKUP(H165,FORAGE2,12)+VLOOKUP(H165,FORAGE2,13)+VLOOKUP(H165,FORAGE2,14)+VLOOKUP(H165,FORAGE2,3)+VLOOKUP(H165,FORAGE2,4)+VLOOKUP(H165,FORAGE2,5)+VLOOKUP(H165,FORAGE2,6)+VLOOKUP(H165,FORAGE2,7)+VLOOKUP(H165,FORAGE2,8)+VLOOKUP(H165,FORAGE2,9)),I165*J165*(VLOOKUP(H165,FORAGE2,12)+VLOOKUP(H165,FORAGE2,13)+VLOOKUP(H165,FORAGE2,14)+VLOOKUP(H165,FORAGE2,3)+VLOOKUP(H165,FORAGE2,4)+VLOOKUP(H165,FORAGE2,5)+VLOOKUP(H165,FORAGE2,6)+VLOOKUP(H165,FORAGE2,7)+VLOOKUP(H165,FORAGE2,8)+VLOOKUP(H165,FORAGE2,9)+VLOOKUP(H165,FORAGE2,10)+VLOOKUP(H165,FORAGE2,11)))))))))) -> 0 | M165: 0 | N165: =IF(H165="","",VLOOKUP(H165,ForageGrowthCurves!$A$6:$P$67,16,FALSE)) -> 
G166: =Field7 -> 0 | H166: =Kind7 -> 0 | I166: =Acres7 -> 0 | J166: =Yield7 -> 0 | K166: =IF(HayMonth7=3,I166*J166*(VLOOKUP(H166,FORAGE2,12)+VLOOKUP(H166,FORAGE2,13)+VLOOKUP(H166,FORAGE2,14)),IF(HayMonth7=4,I166*J166*(VLOOKUP(H166,FORAGE2,12)+VLOOKUP(H166,FORAGE2,13)+VLOOKUP(H166,FORAGE2,14)+VLOOKUP(H166,FORAGE2,3)),IF(HayMonth7=5,I166*J166*(VLOOKUP(H166,FORAGE2,12)+VLOOKUP(H166,FORAGE2,13)+VLOOKUP(H166,FORAGE2,14)+VLOOKUP(H166,FORAGE2,3)+VLOOKUP(H166,FORAGE2,4)),IF(HayMonth7=6,I166*J166*(VLOOKUP(H166,FORAGE2,12)+VLOOKUP(H166,FORAGE2,13)+VLOOKUP(H166,FORAGE2,14)+VLOOKUP(H166,FORAGE2,3)+VLOOKUP(H166,FORAGE2,4)+VLOOKUP(H166,FORAGE2,5)),IF(HayMonth7=7,I166*J166*(VLOOKUP(H166,FORAGE2,12)+VLOOKUP(H166,FORAGE2,13)+VLOOKUP(H166,FORAGE2,14)+VLOOKUP(H166,FORAGE2,3)+VLOOKUP(H166,FORAGE2,4)+VLOOKUP(H166,FORAGE2,5)+VLOOKUP(H166,FORAGE2,6)), IF(HayMonth7=8,I166*J166*(VLOOKUP(H166,FORAGE2,12)+VLOOKUP(H166,FORAGE2,13)+VLOOKUP(H166,FORAGE2,14)+VLOOKUP(H166,FORAGE2,3)+VLOOKUP(H166,FORAGE2,4)+VLOOKUP(H166,FORAGE2,5)+VLOOKUP(H166,FORAGE2,6)+VLOOKUP(H166,FORAGE2,7)),IF(HayMonth7=9,I166*J166*(VLOOKUP(H166,FORAGE2,12)+VLOOKUP(H166,FORAGE2,13)+VLOOKUP(H166,FORAGE2,14)+VLOOKUP(H166,FORAGE2,3)+VLOOKUP(H166,FORAGE2,4)+VLOOKUP(H166,FORAGE2,5)+VLOOKUP(H166,FORAGE2,6)+VLOOKUP(H166,FORAGE2,7)+VLOOKUP(H166,FORAGE2,8)), IF(HayMonth7=10,I166*J166*(VLOOKUP(H166,FORAGE2,12)+VLOOKUP(H166,FORAGE2,13)+VLOOKUP(H166,FORAGE2,14)+VLOOKUP(H166,FORAGE2,3)+VLOOKUP(H166,FORAGE2,4)+VLOOKUP(H166,FORAGE2,5)+VLOOKUP(H166,FORAGE2,6)+VLOOKUP(H166,FORAGE2,7)+VLOOKUP(H166,FORAGE2,8)+VLOOKUP(H166,FORAGE2,9)),I166*J166*(VLOOKUP(H166,FORAGE2,12)+VLOOKUP(H166,FORAGE2,13)+VLOOKUP(H166,FORAGE2,14)+VLOOKUP(H166,FORAGE2,3)+VLOOKUP(H166,FORAGE2,4)+VLOOKUP(H166,FORAGE2,5)+VLOOKUP(H166,FORAGE2,6)+VLOOKUP(H166,FORAGE2,7)+VLOOKUP(H166,FORAGE2,8)+VLOOKUP(H166,FORAGE2,9)+VLOOKUP(H166,FORAGE2,10)+VLOOKUP(H166,FORAGE2,11)))))))))) -> 0 | M166: 0 | N166: =IF(H166="","",VLOOKUP(H166,ForageGrowthCurves!$A$6:$P$67,16,FALSE)) -> 
G167: =Field8 -> 0 | H167: =Kind8 -> 0 | I167: =Acres8 -> 0 | J167: =Yield8 -> 0 | K167: =IF(HayMonth8=3,I167*J167*(VLOOKUP(H167,FORAGE2,12)+VLOOKUP(H167,FORAGE2,13)+VLOOKUP(H167,FORAGE2,14)),IF(HayMonth8=4,I167*J167*(VLOOKUP(H167,FORAGE2,12)+VLOOKUP(H167,FORAGE2,13)+VLOOKUP(H167,FORAGE2,14)+VLOOKUP(H167,FORAGE2,3)),IF(HayMonth8=5,I167*J167*(VLOOKUP(H167,FORAGE2,12)+VLOOKUP(H167,FORAGE2,13)+VLOOKUP(H167,FORAGE2,14)+VLOOKUP(H167,FORAGE2,3)+VLOOKUP(H167,FORAGE2,4)),IF(HayMonth8=6,I167*J167*(VLOOKUP(H167,FORAGE2,12)+VLOOKUP(H167,FORAGE2,13)+VLOOKUP(H167,FORAGE2,14)+VLOOKUP(H167,FORAGE2,3)+VLOOKUP(H167,FORAGE2,4)+VLOOKUP(H167,FORAGE2,5)),IF(HayMonth8=7,I167*J167*(VLOOKUP(H167,FORAGE2,12)+VLOOKUP(H167,FORAGE2,13)+VLOOKUP(H167,FORAGE2,14)+VLOOKUP(H167,FORAGE2,3)+VLOOKUP(H167,FORAGE2,4)+VLOOKUP(H167,FORAGE2,5)+VLOOKUP(H167,FORAGE2,6)), IF(HayMonth8=8,I167*J167*(VLOOKUP(H167,FORAGE2,12)+VLOOKUP(H167,FORAGE2,13)+VLOOKUP(H167,FORAGE2,14)+VLOOKUP(H167,FORAGE2,3)+VLOOKUP(H167,FORAGE2,4)+VLOOKUP(H167,FORAGE2,5)+VLOOKUP(H167,FORAGE2,6)+VLOOKUP(H167,FORAGE2,7)),IF(HayMonth8=9,I167*J167*(VLOOKUP(H167,FORAGE2,12)+VLOOKUP(H167,FORAGE2,13)+VLOOKUP(H167,FORAGE2,14)+VLOOKUP(H167,FORAGE2,3)+VLOOKUP(H167,FORAGE2,4)+VLOOKUP(H167,FORAGE2,5)+VLOOKUP(H167,FORAGE2,6)+VLOOKUP(H167,FORAGE2,7)+VLOOKUP(H167,FORAGE2,8)), IF(HayMonth8=10,I167*J167*(VLOOKUP(H167,FORAGE2,12)+VLOOKUP(H167,FORAGE2,13)+VLOOKUP(H167,FORAGE2,14)+VLOOKUP(H167,FORAGE2,3)+VLOOKUP(H167,FORAGE2,4)+VLOOKUP(H167,FORAGE2,5)+VLOOKUP(H167,FORAGE2,6)+VLOOKUP(H167,FORAGE2,7)+VLOOKUP(H167,FORAGE2,8)+VLOOKUP(H167,FORAGE2,9)),I167*J167*(VLOOKUP(H167,FORAGE2,12)+VLOOKUP(H167,FORAGE2,13)+VLOOKUP(H167,FORAGE2,14)+VLOOKUP(H167,FORAGE2,3)+VLOOKUP(H167,FORAGE2,4)+VLOOKUP(H167,FORAGE2,5)+VLOOKUP(H167,FORAGE2,6)+VLOOKUP(H167,FORAGE2,7)+VLOOKUP(H167,FORAGE2,8)+VLOOKUP(H167,FORAGE2,9)+VLOOKUP(H167,FORAGE2,10)+VLOOKUP(H167,FORAGE2,11)))))))))) -> 0 | M167: 0 | N167: =IF(H167="","",VLOOKUP(H167,ForageGrowthCurves!$A$6:$P$67,16,FALSE)) -> 
G168: =Field9 -> 0 | H168: =Kind9 -> 0 | I168: =Acres9 -> 0 | J168: =Yield9 -> 0 | K168: =IF(HayMonth9=3,I168*J168*(VLOOKUP(H168,FORAGE2,12)+VLOOKUP(H168,FORAGE2,13)+VLOOKUP(H168,FORAGE2,14)),IF(HayMonth9=4,I168*J168*(VLOOKUP(H168,FORAGE2,12)+VLOOKUP(H168,FORAGE2,13)+VLOOKUP(H168,FORAGE2,14)+VLOOKUP(H168,FORAGE2,3)),IF(HayMonth9=5,I168*J168*(VLOOKUP(H168,FORAGE2,12)+VLOOKUP(H168,FORAGE2,13)+VLOOKUP(H168,FORAGE2,14)+VLOOKUP(H168,FORAGE2,3)+VLOOKUP(H168,FORAGE2,4)),IF(HayMonth9=6,I168*J168*(VLOOKUP(H168,FORAGE2,12)+VLOOKUP(H168,FORAGE2,13)+VLOOKUP(H168,FORAGE2,14)+VLOOKUP(H168,FORAGE2,3)+VLOOKUP(H168,FORAGE2,4)+VLOOKUP(H168,FORAGE2,5)),IF(HayMonth9=7,I168*J168*(VLOOKUP(H168,FORAGE2,12)+VLOOKUP(H168,FORAGE2,13)+VLOOKUP(H168,FORAGE2,14)+VLOOKUP(H168,FORAGE2,3)+VLOOKUP(H168,FORAGE2,4)+VLOOKUP(H168,FORAGE2,5)+VLOOKUP(H168,FORAGE2,6)), IF(HayMonth9=8,I168*J168*(VLOOKUP(H168,FORAGE2,12)+VLOOKUP(H168,FORAGE2,13)+VLOOKUP(H168,FORAGE2,14)+VLOOKUP(H168,FORAGE2,3)+VLOOKUP(H168,FORAGE2,4)+VLOOKUP(H168,FORAGE2,5)+VLOOKUP(H168,FORAGE2,6)+VLOOKUP(H168,FORAGE2,7)),IF(HayMonth9=9,I168*J168*(VLOOKUP(H168,FORAGE2,12)+VLOOKUP(H168,FORAGE2,13)+VLOOKUP(H168,FORAGE2,14)+VLOOKUP(H168,FORAGE2,3)+VLOOKUP(H168,FORAGE2,4)+VLOOKUP(H168,FORAGE2,5)+VLOOKUP(H168,FORAGE2,6)+VLOOKUP(H168,FORAGE2,7)+VLOOKUP(H168,FORAGE2,8)), IF(HayMonth9=10,I168*J168*(VLOOKUP(H168,FORAGE2,12)+VLOOKUP(H168,FORAGE2,13)+VLOOKUP(H168,FORAGE2,14)+VLOOKUP(H168,FORAGE2,3)+VLOOKUP(H168,FORAGE2,4)+VLOOKUP(H168,FORAGE2,5)+VLOOKUP(H168,FORAGE2,6)+VLOOKUP(H168,FORAGE2,7)+VLOOKUP(H168,FORAGE2,8)+VLOOKUP(H168,FORAGE2,9)),I168*J168*(VLOOKUP(H168,FORAGE2,12)+VLOOKUP(H168,FORAGE2,13)+VLOOKUP(H168,FORAGE2,14)+VLOOKUP(H168,FORAGE2,3)+VLOOKUP(H168,FORAGE2,4)+VLOOKUP(H168,FORAGE2,5)+VLOOKUP(H168,FORAGE2,6)+VLOOKUP(H168,FORAGE2,7)+VLOOKUP(H168,FORAGE2,8)+VLOOKUP(H168,FORAGE2,9)+VLOOKUP(H168,FORAGE2,10)+VLOOKUP(H168,FORAGE2,11)))))))))) -> 0 | M168: 0 | N168: =IF(H168="","",VLOOKUP(H168,ForageGrowthCurves!$A$6:$P$67,16,FALSE)) -> 
G169: =Field10 -> 0 | H169: =Kind10 -> 0 | I169: =Acres10 -> 0 | J169: =Yield10 -> 0 | K169: =IF(HayMonth10=3,I169*J169*(VLOOKUP(H169,FORAGE2,12)+VLOOKUP(H169,FORAGE2,13)+VLOOKUP(H169,FORAGE2,14)),IF(HayMonth10=4,I169*J169*(VLOOKUP(H169,FORAGE2,12)+VLOOKUP(H169,FORAGE2,13)+VLOOKUP(H169,FORAGE2,14)+VLOOKUP(H169,FORAGE2,3)),IF(HayMonth10=5,I169*J169*(VLOOKUP(H169,FORAGE2,12)+VLOOKUP(H169,FORAGE2,13)+VLOOKUP(H169,FORAGE2,14)+VLOOKUP(H169,FORAGE2,3)+VLOOKUP(H169,FORAGE2,4)),IF(HayMonth10=6,I169*J169*(VLOOKUP(H169,FORAGE2,12)+VLOOKUP(H169,FORAGE2,13)+VLOOKUP(H169,FORAGE2,14)+VLOOKUP(H169,FORAGE2,3)+VLOOKUP(H169,FORAGE2,4)+VLOOKUP(H169,FORAGE2,5)),IF(HayMonth10=7,I169*J169*(VLOOKUP(H169,FORAGE2,12)+VLOOKUP(H169,FORAGE2,13)+VLOOKUP(H169,FORAGE2,14)+VLOOKUP(H169,FORAGE2,3)+VLOOKUP(H169,FORAGE2,4)+VLOOKUP(H169,FORAGE2,5)+VLOOKUP(H169,FORAGE2,6)), IF(HayMonth10=8,I169*J169*(VLOOKUP(H169,FORAGE2,12)+VLOOKUP(H169,FORAGE2,13)+VLOOKUP(H169,FORAGE2,14)+VLOOKUP(H169,FORAGE2,3)+VLOOKUP(H169,FORAGE2,4)+VLOOKUP(H169,FORAGE2,5)+VLOOKUP(H169,FORAGE2,6)+VLOOKUP(H169,FORAGE2,7)),IF(HayMonth10=9,I169*J169*(VLOOKUP(H169,FORAGE2,12)+VLOOKUP(H169,FORAGE2,13)+VLOOKUP(H169,FORAGE2,14)+VLOOKUP(H169,FORAGE2,3)+VLOOKUP(H169,FORAGE2,4)+VLOOKUP(H169,FORAGE2,5)+VLOOKUP(H169,FORAGE2,6)+VLOOKUP(H169,FORAGE2,7)+VLOOKUP(H169,FORAGE2,8)), IF(HayMonth10=10,I169*J169*(VLOOKUP(H169,FORAGE2,12)+VLOOKUP(H169,FORAGE2,13)+VLOOKUP(H169,FORAGE2,14)+VLOOKUP(H169,FORAGE2,3)+VLOOKUP(H169,FORAGE2,4)+VLOOKUP(H169,FORAGE2,5)+VLOOKUP(H169,FORAGE2,6)+VLOOKUP(H169,FORAGE2,7)+VLOOKUP(H169,FORAGE2,8)+VLOOKUP(H169,FORAGE2,9)),I169*J169*(VLOOKUP(H169,FORAGE2,12)+VLOOKUP(H169,FORAGE2,13)+VLOOKUP(H169,FORAGE2,14)+VLOOKUP(H169,FORAGE2,3)+VLOOKUP(H169,FORAGE2,4)+VLOOKUP(H169,FORAGE2,5)+VLOOKUP(H169,FORAGE2,6)+VLOOKUP(H169,FORAGE2,7)+VLOOKUP(H169,FORAGE2,8)+VLOOKUP(H169,FORAGE2,9)+VLOOKUP(H169,FORAGE2,10)+VLOOKUP(H169,FORAGE2,11)))))))))) -> 0 | M169: 0 | N169: =IF(H169="","",VLOOKUP(H169,ForageGrowthCurves!$A$6:$P$67,16,FALSE)) -> 
G170: =Field11 -> 0 | H170: =Kind11 -> 0 | I170: =Acres11 -> 0 | J170: =Yield11 -> 0 | K170: =IF(HayMonth11=3,I170*J170*(VLOOKUP(H170,FORAGE2,12)+VLOOKUP(H170,FORAGE2,13)+VLOOKUP(H170,FORAGE2,14)),IF(HayMonth11=4,I170*J170*(VLOOKUP(H170,FORAGE2,12)+VLOOKUP(H170,FORAGE2,13)+VLOOKUP(H170,FORAGE2,14)+VLOOKUP(H170,FORAGE2,3)),IF(HayMonth11=5,I170*J170*(VLOOKUP(H170,FORAGE2,12)+VLOOKUP(H170,FORAGE2,13)+VLOOKUP(H170,FORAGE2,14)+VLOOKUP(H170,FORAGE2,3)+VLOOKUP(H170,FORAGE2,4)),IF(HayMonth11=6,I170*J170*(VLOOKUP(H170,FORAGE2,12)+VLOOKUP(H170,FORAGE2,13)+VLOOKUP(H170,FORAGE2,14)+VLOOKUP(H170,FORAGE2,3)+VLOOKUP(H170,FORAGE2,4)+VLOOKUP(H170,FORAGE2,5)),IF(HayMonth11=7,I170*J170*(VLOOKUP(H170,FORAGE2,12)+VLOOKUP(H170,FORAGE2,13)+VLOOKUP(H170,FORAGE2,14)+VLOOKUP(H170,FORAGE2,3)+VLOOKUP(H170,FORAGE2,4)+VLOOKUP(H170,FORAGE2,5)+VLOOKUP(H170,FORAGE2,6)), IF(HayMonth11=8,I170*J170*(VLOOKUP(H170,FORAGE2,12)+VLOOKUP(H170,FORAGE2,13)+VLOOKUP(H170,FORAGE2,14)+VLOOKUP(H170,FORAGE2,3)+VLOOKUP(H170,FORAGE2,4)+VLOOKUP(H170,FORAGE2,5)+VLOOKUP(H170,FORAGE2,6)+VLOOKUP(H170,FORAGE2,7)),IF(HayMonth11=9,I170*J170*(VLOOKUP(H170,FORAGE2,12)+VLOOKUP(H170,FORAGE2,13)+VLOOKUP(H170,FORAGE2,14)+VLOOKUP(H170,FORAGE2,3)+VLOOKUP(H170,FORAGE2,4)+VLOOKUP(H170,FORAGE2,5)+VLOOKUP(H170,FORAGE2,6)+VLOOKUP(H170,FORAGE2,7)+VLOOKUP(H170,FORAGE2,8)), IF(HayMonth11=10,I170*J170*(VLOOKUP(H170,FORAGE2,12)+VLOOKUP(H170,FORAGE2,13)+VLOOKUP(H170,FORAGE2,14)+VLOOKUP(H170,FORAGE2,3)+VLOOKUP(H170,FORAGE2,4)+VLOOKUP(H170,FORAGE2,5)+VLOOKUP(H170,FORAGE2,6)+VLOOKUP(H170,FORAGE2,7)+VLOOKUP(H170,FORAGE2,8)+VLOOKUP(H170,FORAGE2,9)),I170*J170*(VLOOKUP(H170,FORAGE2,12)+VLOOKUP(H170,FORAGE2,13)+VLOOKUP(H170,FORAGE2,14)+VLOOKUP(H170,FORAGE2,3)+VLOOKUP(H170,FORAGE2,4)+VLOOKUP(H170,FORAGE2,5)+VLOOKUP(H170,FORAGE2,6)+VLOOKUP(H170,FORAGE2,7)+VLOOKUP(H170,FORAGE2,8)+VLOOKUP(H170,FORAGE2,9)+VLOOKUP(H170,FORAGE2,10)+VLOOKUP(H170,FORAGE2,11)))))))))) -> 0 | M170: 0 | N170: =IF(H170="","",VLOOKUP(H170,ForageGrowthCurves!$A$6:$P$67,16,FALSE)) -> 
G171: =Field12 -> 0 | H171: =Kind12 -> 0 | I171: =Acres12 -> 0 | J171: =Yield12 -> 0 | K171: =IF(HayMonth12=3,I171*J171*(VLOOKUP(H171,FORAGE2,12)+VLOOKUP(H171,FORAGE2,13)+VLOOKUP(H171,FORAGE2,14)),IF(HayMonth12=4,I171*J171*(VLOOKUP(H171,FORAGE2,12)+VLOOKUP(H171,FORAGE2,13)+VLOOKUP(H171,FORAGE2,14)+VLOOKUP(H171,FORAGE2,3)),IF(HayMonth12=5,I171*J171*(VLOOKUP(H171,FORAGE2,12)+VLOOKUP(H171,FORAGE2,13)+VLOOKUP(H171,FORAGE2,14)+VLOOKUP(H171,FORAGE2,3)+VLOOKUP(H171,FORAGE2,4)),IF(HayMonth12=6,I171*J171*(VLOOKUP(H171,FORAGE2,12)+VLOOKUP(H171,FORAGE2,13)+VLOOKUP(H171,FORAGE2,14)+VLOOKUP(H171,FORAGE2,3)+VLOOKUP(H171,FORAGE2,4)+VLOOKUP(H171,FORAGE2,5)),IF(HayMonth12=7,I171*J171*(VLOOKUP(H171,FORAGE2,12)+VLOOKUP(H171,FORAGE2,13)+VLOOKUP(H171,FORAGE2,14)+VLOOKUP(H171,FORAGE2,3)+VLOOKUP(H171,FORAGE2,4)+VLOOKUP(H171,FORAGE2,5)+VLOOKUP(H171,FORAGE2,6)), IF(HayMonth12=8,I171*J171*(VLOOKUP(H171,FORAGE2,12)+VLOOKUP(H171,FORAGE2,13)+VLOOKUP(H171,FORAGE2,14)+VLOOKUP(H171,FORAGE2,3)+VLOOKUP(H171,FORAGE2,4)+VLOOKUP(H171,FORAGE2,5)+VLOOKUP(H171,FORAGE2,6)+VLOOKUP(H171,FORAGE2,7)),IF(HayMonth12=9,I171*J171*(VLOOKUP(H171,FORAGE2,12)+VLOOKUP(H171,FORAGE2,13)+VLOOKUP(H171,FORAGE2,14)+VLOOKUP(H171,FORAGE2,3)+VLOOKUP(H171,FORAGE2,4)+VLOOKUP(H171,FORAGE2,5)+VLOOKUP(H171,FORAGE2,6)+VLOOKUP(H171,FORAGE2,7)+VLOOKUP(H171,FORAGE2,8)), IF(HayMonth12=10,I171*J171*(VLOOKUP(H171,FORAGE2,12)+VLOOKUP(H171,FORAGE2,13)+VLOOKUP(H171,FORAGE2,14)+VLOOKUP(H171,FORAGE2,3)+VLOOKUP(H171,FORAGE2,4)+VLOOKUP(H171,FORAGE2,5)+VLOOKUP(H171,FORAGE2,6)+VLOOKUP(H171,FORAGE2,7)+VLOOKUP(H171,FORAGE2,8)+VLOOKUP(H171,FORAGE2,9)),I171*J171*(VLOOKUP(H171,FORAGE2,12)+VLOOKUP(H171,FORAGE2,13)+VLOOKUP(H171,FORAGE2,14)+VLOOKUP(H171,FORAGE2,3)+VLOOKUP(H171,FORAGE2,4)+VLOOKUP(H171,FORAGE2,5)+VLOOKUP(H171,FORAGE2,6)+VLOOKUP(H171,FORAGE2,7)+VLOOKUP(H171,FORAGE2,8)+VLOOKUP(H171,FORAGE2,9)+VLOOKUP(H171,FORAGE2,10)+VLOOKUP(H171,FORAGE2,11)))))))))) -> 0 | M171: 0 | N171: =IF(H171="","",VLOOKUP(H171,ForageGrowthCurves!$A$6:$P$67,16,FALSE)) -> 
G172: =Field13 -> 0 | H172: =Kind13 -> 0 | I172: =Acres13 -> 0 | J172: =Yield13 -> 0 | K172: =IF(HayMonth13=3,I172*J172*(VLOOKUP(H172,FORAGE2,12)+VLOOKUP(H172,FORAGE2,13)+VLOOKUP(H172,FORAGE2,14)),IF(HayMonth13=4,I172*J172*(VLOOKUP(H172,FORAGE2,12)+VLOOKUP(H172,FORAGE2,13)+VLOOKUP(H172,FORAGE2,14)+VLOOKUP(H172,FORAGE2,3)),IF(HayMonth13=5,I172*J172*(VLOOKUP(H172,FORAGE2,12)+VLOOKUP(H172,FORAGE2,13)+VLOOKUP(H172,FORAGE2,14)+VLOOKUP(H172,FORAGE2,3)+VLOOKUP(H172,FORAGE2,4)),IF(HayMonth13=6,I172*J172*(VLOOKUP(H172,FORAGE2,12)+VLOOKUP(H172,FORAGE2,13)+VLOOKUP(H172,FORAGE2,14)+VLOOKUP(H172,FORAGE2,3)+VLOOKUP(H172,FORAGE2,4)+VLOOKUP(H172,FORAGE2,5)),IF(HayMonth13=7,I172*J172*(VLOOKUP(H172,FORAGE2,12)+VLOOKUP(H172,FORAGE2,13)+VLOOKUP(H172,FORAGE2,14)+VLOOKUP(H172,FORAGE2,3)+VLOOKUP(H172,FORAGE2,4)+VLOOKUP(H172,FORAGE2,5)+VLOOKUP(H172,FORAGE2,6)), IF(HayMonth13=8,I172*J172*(VLOOKUP(H172,FORAGE2,12)+VLOOKUP(H172,FORAGE2,13)+VLOOKUP(H172,FORAGE2,14)+VLOOKUP(H172,FORAGE2,3)+VLOOKUP(H172,FORAGE2,4)+VLOOKUP(H172,FORAGE2,5)+VLOOKUP(H172,FORAGE2,6)+VLOOKUP(H172,FORAGE2,7)),IF(HayMonth13=9,I172*J172*(VLOOKUP(H172,FORAGE2,12)+VLOOKUP(H172,FORAGE2,13)+VLOOKUP(H172,FORAGE2,14)+VLOOKUP(H172,FORAGE2,3)+VLOOKUP(H172,FORAGE2,4)+VLOOKUP(H172,FORAGE2,5)+VLOOKUP(H172,FORAGE2,6)+VLOOKUP(H172,FORAGE2,7)+VLOOKUP(H172,FORAGE2,8)), IF(HayMonth13=10,I172*J172*(VLOOKUP(H172,FORAGE2,12)+VLOOKUP(H172,FORAGE2,13)+VLOOKUP(H172,FORAGE2,14)+VLOOKUP(H172,FORAGE2,3)+VLOOKUP(H172,FORAGE2,4)+VLOOKUP(H172,FORAGE2,5)+VLOOKUP(H172,FORAGE2,6)+VLOOKUP(H172,FORAGE2,7)+VLOOKUP(H172,FORAGE2,8)+VLOOKUP(H172,FORAGE2,9)),I172*J172*(VLOOKUP(H172,FORAGE2,12)+VLOOKUP(H172,FORAGE2,13)+VLOOKUP(H172,FORAGE2,14)+VLOOKUP(H172,FORAGE2,3)+VLOOKUP(H172,FORAGE2,4)+VLOOKUP(H172,FORAGE2,5)+VLOOKUP(H172,FORAGE2,6)+VLOOKUP(H172,FORAGE2,7)+VLOOKUP(H172,FORAGE2,8)+VLOOKUP(H172,FORAGE2,9)+VLOOKUP(H172,FORAGE2,10)+VLOOKUP(H172,FORAGE2,11)))))))))) -> 0 | M172: 0 | N172: =IF(H172="","",VLOOKUP(H172,ForageGrowthCurves!$A$6:$P$67,16,FALSE)) -> 
G173: =Field14 -> 0 | H173: =Kind14 -> 0 | I173: =Acres14 -> 0 | J173: =Yield14 -> 0 | K173: =IF(HayMonth14=3,I173*J173*(VLOOKUP(H173,FORAGE2,12)+VLOOKUP(H173,FORAGE2,13)+VLOOKUP(H173,FORAGE2,14)),IF(HayMonth14=4,I173*J173*(VLOOKUP(H173,FORAGE2,12)+VLOOKUP(H173,FORAGE2,13)+VLOOKUP(H173,FORAGE2,14)+VLOOKUP(H173,FORAGE2,3)),IF(HayMonth14=5,I173*J173*(VLOOKUP(H173,FORAGE2,12)+VLOOKUP(H173,FORAGE2,13)+VLOOKUP(H173,FORAGE2,14)+VLOOKUP(H173,FORAGE2,3)+VLOOKUP(H173,FORAGE2,4)),IF(HayMonth14=6,I173*J173*(VLOOKUP(H173,FORAGE2,12)+VLOOKUP(H173,FORAGE2,13)+VLOOKUP(H173,FORAGE2,14)+VLOOKUP(H173,FORAGE2,3)+VLOOKUP(H173,FORAGE2,4)+VLOOKUP(H173,FORAGE2,5)),IF(HayMonth14=7,I173*J173*(VLOOKUP(H173,FORAGE2,12)+VLOOKUP(H173,FORAGE2,13)+VLOOKUP(H173,FORAGE2,14)+VLOOKUP(H173,FORAGE2,3)+VLOOKUP(H173,FORAGE2,4)+VLOOKUP(H173,FORAGE2,5)+VLOOKUP(H173,FORAGE2,6)), IF(HayMonth14=8,I173*J173*(VLOOKUP(H173,FORAGE2,12)+VLOOKUP(H173,FORAGE2,13)+VLOOKUP(H173,FORAGE2,14)+VLOOKUP(H173,FORAGE2,3)+VLOOKUP(H173,FORAGE2,4)+VLOOKUP(H173,FORAGE2,5)+VLOOKUP(H173,FORAGE2,6)+VLOOKUP(H173,FORAGE2,7)),IF(HayMonth14=9,I173*J173*(VLOOKUP(H173,FORAGE2,12)+VLOOKUP(H173,FORAGE2,13)+VLOOKUP(H173,FORAGE2,14)+VLOOKUP(H173,FORAGE2,3)+VLOOKUP(H173,FORAGE2,4)+VLOOKUP(H173,FORAGE2,5)+VLOOKUP(H173,FORAGE2,6)+VLOOKUP(H173,FORAGE2,7)+VLOOKUP(H173,FORAGE2,8)), IF(HayMonth14=10,I173*J173*(VLOOKUP(H173,FORAGE2,12)+VLOOKUP(H173,FORAGE2,13)+VLOOKUP(H173,FORAGE2,14)+VLOOKUP(H173,FORAGE2,3)+VLOOKUP(H173,FORAGE2,4)+VLOOKUP(H173,FORAGE2,5)+VLOOKUP(H173,FORAGE2,6)+VLOOKUP(H173,FORAGE2,7)+VLOOKUP(H173,FORAGE2,8)+VLOOKUP(H173,FORAGE2,9)),I173*J173*(VLOOKUP(H173,FORAGE2,12)+VLOOKUP(H173,FORAGE2,13)+VLOOKUP(H173,FORAGE2,14)+VLOOKUP(H173,FORAGE2,3)+VLOOKUP(H173,FORAGE2,4)+VLOOKUP(H173,FORAGE2,5)+VLOOKUP(H173,FORAGE2,6)+VLOOKUP(H173,FORAGE2,7)+VLOOKUP(H173,FORAGE2,8)+VLOOKUP(H173,FORAGE2,9)+VLOOKUP(H173,FORAGE2,10)+VLOOKUP(H173,FORAGE2,11)))))))))) -> 0 | M173: 0 | N173: =IF(H173="","",VLOOKUP(H173,ForageGrowthCurves!$A$6:$P$67,16,FALSE)) -> 
G174: =Field15 -> 0 | H174: =Kind15 -> 0 | I174: =Acres15 -> 0 | J174: =Yield15 -> 0 | K174: =IF(HayMonth15=3,I174*J174*(VLOOKUP(H174,FORAGE2,12)+VLOOKUP(H174,FORAGE2,13)+VLOOKUP(H174,FORAGE2,14)),IF(HayMonth15=4,I174*J174*(VLOOKUP(H174,FORAGE2,12)+VLOOKUP(H174,FORAGE2,13)+VLOOKUP(H174,FORAGE2,14)+VLOOKUP(H174,FORAGE2,3)),IF(HayMonth15=5,I174*J174*(VLOOKUP(H174,FORAGE2,12)+VLOOKUP(H174,FORAGE2,13)+VLOOKUP(H174,FORAGE2,14)+VLOOKUP(H174,FORAGE2,3)+VLOOKUP(H174,FORAGE2,4)),IF(HayMonth15=6,I174*J174*(VLOOKUP(H174,FORAGE2,12)+VLOOKUP(H174,FORAGE2,13)+VLOOKUP(H174,FORAGE2,14)+VLOOKUP(H174,FORAGE2,3)+VLOOKUP(H174,FORAGE2,4)+VLOOKUP(H174,FORAGE2,5)),IF(HayMonth15=7,I174*J174*(VLOOKUP(H174,FORAGE2,12)+VLOOKUP(H174,FORAGE2,13)+VLOOKUP(H174,FORAGE2,14)+VLOOKUP(H174,FORAGE2,3)+VLOOKUP(H174,FORAGE2,4)+VLOOKUP(H174,FORAGE2,5)+VLOOKUP(H174,FORAGE2,6)), IF(HayMonth15=8,I174*J174*(VLOOKUP(H174,FORAGE2,12)+VLOOKUP(H174,FORAGE2,13)+VLOOKUP(H174,FORAGE2,14)+VLOOKUP(H174,FORAGE2,3)+VLOOKUP(H174,FORAGE2,4)+VLOOKUP(H174,FORAGE2,5)+VLOOKUP(H174,FORAGE2,6)+VLOOKUP(H174,FORAGE2,7)),IF(HayMonth15=9,I174*J174*(VLOOKUP(H174,FORAGE2,12)+VLOOKUP(H174,FORAGE2,13)+VLOOKUP(H174,FORAGE2,14)+VLOOKUP(H174,FORAGE2,3)+VLOOKUP(H174,FORAGE2,4)+VLOOKUP(H174,FORAGE2,5)+VLOOKUP(H174,FORAGE2,6)+VLOOKUP(H174,FORAGE2,7)+VLOOKUP(H174,FORAGE2,8)), IF(HayMonth15=10,I174*J174*(VLOOKUP(H174,FORAGE2,12)+VLOOKUP(H174,FORAGE2,13)+VLOOKUP(H174,FORAGE2,14)+VLOOKUP(H174,FORAGE2,3)+VLOOKUP(H174,FORAGE2,4)+VLOOKUP(H174,FORAGE2,5)+VLOOKUP(H174,FORAGE2,6)+VLOOKUP(H174,FORAGE2,7)+VLOOKUP(H174,FORAGE2,8)+VLOOKUP(H174,FORAGE2,9)),I174*J174*(VLOOKUP(H174,FORAGE2,12)+VLOOKUP(H174,FORAGE2,13)+VLOOKUP(H174,FORAGE2,14)+VLOOKUP(H174,FORAGE2,3)+VLOOKUP(H174,FORAGE2,4)+VLOOKUP(H174,FORAGE2,5)+VLOOKUP(H174,FORAGE2,6)+VLOOKUP(H174,FORAGE2,7)+VLOOKUP(H174,FORAGE2,8)+VLOOKUP(H174,FORAGE2,9)+VLOOKUP(H174,FORAGE2,10)+VLOOKUP(H174,FORAGE2,11)))))))))) -> 0 | M174: 0 | N174: =IF(H174="","",VLOOKUP(H174,ForageGrowthCurves!$A$6:$P$67,16,FALSE)) -> 
G175: =Field16 -> 0 | H175: =Kind16 -> 0 | I175: =Acres16 -> 0 | J175: =Yield16 -> 0 | K175: =IF(HayMonth16=3,I175*J175*(VLOOKUP(H175,FORAGE2,12)+VLOOKUP(H175,FORAGE2,13)+VLOOKUP(H175,FORAGE2,14)),IF(HayMonth16=4,I175*J175*(VLOOKUP(H175,FORAGE2,12)+VLOOKUP(H175,FORAGE2,13)+VLOOKUP(H175,FORAGE2,14)+VLOOKUP(H175,FORAGE2,3)),IF(HayMonth16=5,I175*J175*(VLOOKUP(H175,FORAGE2,12)+VLOOKUP(H175,FORAGE2,13)+VLOOKUP(H175,FORAGE2,14)+VLOOKUP(H175,FORAGE2,3)+VLOOKUP(H175,FORAGE2,4)),IF(HayMonth16=6,I175*J175*(VLOOKUP(H175,FORAGE2,12)+VLOOKUP(H175,FORAGE2,13)+VLOOKUP(H175,FORAGE2,14)+VLOOKUP(H175,FORAGE2,3)+VLOOKUP(H175,FORAGE2,4)+VLOOKUP(H175,FORAGE2,5)),IF(HayMonth16=7,I175*J175*(VLOOKUP(H175,FORAGE2,12)+VLOOKUP(H175,FORAGE2,13)+VLOOKUP(H175,FORAGE2,14)+VLOOKUP(H175,FORAGE2,3)+VLOOKUP(H175,FORAGE2,4)+VLOOKUP(H175,FORAGE2,5)+VLOOKUP(H175,FORAGE2,6)), IF(HayMonth16=8,I175*J175*(VLOOKUP(H175,FORAGE2,12)+VLOOKUP(H175,FORAGE2,13)+VLOOKUP(H175,FORAGE2,14)+VLOOKUP(H175,FORAGE2,3)+VLOOKUP(H175,FORAGE2,4)+VLOOKUP(H175,FORAGE2,5)+VLOOKUP(H175,FORAGE2,6)+VLOOKUP(H175,FORAGE2,7)),IF(HayMonth16=9,I175*J175*(VLOOKUP(H175,FORAGE2,12)+VLOOKUP(H175,FORAGE2,13)+VLOOKUP(H175,FORAGE2,14)+VLOOKUP(H175,FORAGE2,3)+VLOOKUP(H175,FORAGE2,4)+VLOOKUP(H175,FORAGE2,5)+VLOOKUP(H175,FORAGE2,6)+VLOOKUP(H175,FORAGE2,7)+VLOOKUP(H175,FORAGE2,8)), IF(HayMonth16=10,I175*J175*(VLOOKUP(H175,FORAGE2,12)+VLOOKUP(H175,FORAGE2,13)+VLOOKUP(H175,FORAGE2,14)+VLOOKUP(H175,FORAGE2,3)+VLOOKUP(H175,FORAGE2,4)+VLOOKUP(H175,FORAGE2,5)+VLOOKUP(H175,FORAGE2,6)+VLOOKUP(H175,FORAGE2,7)+VLOOKUP(H175,FORAGE2,8)+VLOOKUP(H175,FORAGE2,9)),I175*J175*(VLOOKUP(H175,FORAGE2,12)+VLOOKUP(H175,FORAGE2,13)+VLOOKUP(H175,FORAGE2,14)+VLOOKUP(H175,FORAGE2,3)+VLOOKUP(H175,FORAGE2,4)+VLOOKUP(H175,FORAGE2,5)+VLOOKUP(H175,FORAGE2,6)+VLOOKUP(H175,FORAGE2,7)+VLOOKUP(H175,FORAGE2,8)+VLOOKUP(H175,FORAGE2,9)+VLOOKUP(H175,FORAGE2,10)+VLOOKUP(H175,FORAGE2,11)))))))))) -> 0 | M175: 0 | N175: =IF(H175="","",VLOOKUP(H175,ForageGrowthCurves!$A$6:$P$67,16,FALSE)) -> 
G176: =Field17 -> 0 | H176: =Kind17 -> 0 | I176: =Acres17 -> 0 | J176: =Yield17 -> 0 | K176: =IF(HayMonth17=3,I176*J176*(VLOOKUP(H176,FORAGE2,12)+VLOOKUP(H176,FORAGE2,13)+VLOOKUP(H176,FORAGE2,14)),IF(HayMonth17=4,I176*J176*(VLOOKUP(H176,FORAGE2,12)+VLOOKUP(H176,FORAGE2,13)+VLOOKUP(H176,FORAGE2,14)+VLOOKUP(H176,FORAGE2,3)),IF(HayMonth17=5,I176*J176*(VLOOKUP(H176,FORAGE2,12)+VLOOKUP(H176,FORAGE2,13)+VLOOKUP(H176,FORAGE2,14)+VLOOKUP(H176,FORAGE2,3)+VLOOKUP(H176,FORAGE2,4)),IF(HayMonth17=6,I176*J176*(VLOOKUP(H176,FORAGE2,12)+VLOOKUP(H176,FORAGE2,13)+VLOOKUP(H176,FORAGE2,14)+VLOOKUP(H176,FORAGE2,3)+VLOOKUP(H176,FORAGE2,4)+VLOOKUP(H176,FORAGE2,5)),IF(HayMonth17=7,I176*J176*(VLOOKUP(H176,FORAGE2,12)+VLOOKUP(H176,FORAGE2,13)+VLOOKUP(H176,FORAGE2,14)+VLOOKUP(H176,FORAGE2,3)+VLOOKUP(H176,FORAGE2,4)+VLOOKUP(H176,FORAGE2,5)+VLOOKUP(H176,FORAGE2,6)), IF(HayMonth17=8,I176*J176*(VLOOKUP(H176,FORAGE2,12)+VLOOKUP(H176,FORAGE2,13)+VLOOKUP(H176,FORAGE2,14)+VLOOKUP(H176,FORAGE2,3)+VLOOKUP(H176,FORAGE2,4)+VLOOKUP(H176,FORAGE2,5)+VLOOKUP(H176,FORAGE2,6)+VLOOKUP(H176,FORAGE2,7)),IF(HayMonth17=9,I176*J176*(VLOOKUP(H176,FORAGE2,12)+VLOOKUP(H176,FORAGE2,13)+VLOOKUP(H176,FORAGE2,14)+VLOOKUP(H176,FORAGE2,3)+VLOOKUP(H176,FORAGE2,4)+VLOOKUP(H176,FORAGE2,5)+VLOOKUP(H176,FORAGE2,6)+VLOOKUP(H176,FORAGE2,7)+VLOOKUP(H176,FORAGE2,8)), IF(HayMonth17=10,I176*J176*(VLOOKUP(H176,FORAGE2,12)+VLOOKUP(H176,FORAGE2,13)+VLOOKUP(H176,FORAGE2,14)+VLOOKUP(H176,FORAGE2,3)+VLOOKUP(H176,FORAGE2,4)+VLOOKUP(H176,FORAGE2,5)+VLOOKUP(H176,FORAGE2,6)+VLOOKUP(H176,FORAGE2,7)+VLOOKUP(H176,FORAGE2,8)+VLOOKUP(H176,FORAGE2,9)),I176*J176*(VLOOKUP(H176,FORAGE2,12)+VLOOKUP(H176,FORAGE2,13)+VLOOKUP(H176,FORAGE2,14)+VLOOKUP(H176,FORAGE2,3)+VLOOKUP(H176,FORAGE2,4)+VLOOKUP(H176,FORAGE2,5)+VLOOKUP(H176,FORAGE2,6)+VLOOKUP(H176,FORAGE2,7)+VLOOKUP(H176,FORAGE2,8)+VLOOKUP(H176,FORAGE2,9)+VLOOKUP(H176,FORAGE2,10)+VLOOKUP(H176,FORAGE2,11)))))))))) -> 0 | M176: 0 | N176: =IF(H176="","",VLOOKUP(H176,ForageGrowthCurves!$A$6:$P$67,16,FALSE)) -> 
G177: =Field18 -> 0 | H177: =Kind18 -> 0 | I177: =Acres18 -> 0 | J177: =Yield18 -> 0 | K177: =IF(HayMonth18=3,I177*J177*(VLOOKUP(H177,FORAGE2,12)+VLOOKUP(H177,FORAGE2,13)+VLOOKUP(H177,FORAGE2,14)),IF(HayMonth18=4,I177*J177*(VLOOKUP(H177,FORAGE2,12)+VLOOKUP(H177,FORAGE2,13)+VLOOKUP(H177,FORAGE2,14)+VLOOKUP(H177,FORAGE2,3)),IF(HayMonth18=5,I177*J177*(VLOOKUP(H177,FORAGE2,12)+VLOOKUP(H177,FORAGE2,13)+VLOOKUP(H177,FORAGE2,14)+VLOOKUP(H177,FORAGE2,3)+VLOOKUP(H177,FORAGE2,4)),IF(HayMonth18=6,I177*J177*(VLOOKUP(H177,FORAGE2,12)+VLOOKUP(H177,FORAGE2,13)+VLOOKUP(H177,FORAGE2,14)+VLOOKUP(H177,FORAGE2,3)+VLOOKUP(H177,FORAGE2,4)+VLOOKUP(H177,FORAGE2,5)),IF(HayMonth18=7,I177*J177*(VLOOKUP(H177,FORAGE2,12)+VLOOKUP(H177,FORAGE2,13)+VLOOKUP(H177,FORAGE2,14)+VLOOKUP(H177,FORAGE2,3)+VLOOKUP(H177,FORAGE2,4)+VLOOKUP(H177,FORAGE2,5)+VLOOKUP(H177,FORAGE2,6)), IF(HayMonth18=8,I177*J177*(VLOOKUP(H177,FORAGE2,12)+VLOOKUP(H177,FORAGE2,13)+VLOOKUP(H177,FORAGE2,14)+VLOOKUP(H177,FORAGE2,3)+VLOOKUP(H177,FORAGE2,4)+VLOOKUP(H177,FORAGE2,5)+VLOOKUP(H177,FORAGE2,6)+VLOOKUP(H177,FORAGE2,7)),IF(HayMonth18=9,I177*J177*(VLOOKUP(H177,FORAGE2,12)+VLOOKUP(H177,FORAGE2,13)+VLOOKUP(H177,FORAGE2,14)+VLOOKUP(H177,FORAGE2,3)+VLOOKUP(H177,FORAGE2,4)+VLOOKUP(H177,FORAGE2,5)+VLOOKUP(H177,FORAGE2,6)+VLOOKUP(H177,FORAGE2,7)+VLOOKUP(H177,FORAGE2,8)), IF(HayMonth18=10,I177*J177*(VLOOKUP(H177,FORAGE2,12)+VLOOKUP(H177,FORAGE2,13)+VLOOKUP(H177,FORAGE2,14)+VLOOKUP(H177,FORAGE2,3)+VLOOKUP(H177,FORAGE2,4)+VLOOKUP(H177,FORAGE2,5)+VLOOKUP(H177,FORAGE2,6)+VLOOKUP(H177,FORAGE2,7)+VLOOKUP(H177,FORAGE2,8)+VLOOKUP(H177,FORAGE2,9)),I177*J177*(VLOOKUP(H177,FORAGE2,12)+VLOOKUP(H177,FORAGE2,13)+VLOOKUP(H177,FORAGE2,14)+VLOOKUP(H177,FORAGE2,3)+VLOOKUP(H177,FORAGE2,4)+VLOOKUP(H177,FORAGE2,5)+VLOOKUP(H177,FORAGE2,6)+VLOOKUP(H177,FORAGE2,7)+VLOOKUP(H177,FORAGE2,8)+VLOOKUP(H177,FORAGE2,9)+VLOOKUP(H177,FORAGE2,10)+VLOOKUP(H177,FORAGE2,11)))))))))) -> 0 | M177: 0 | N177: =IF(H177="","",VLOOKUP(H177,ForageGrowthCurves!$A$6:$P$67,16,FALSE)) -> 
G178: =Field19 -> 0 | H178: =Kind19 -> 0 | I178: =Acres19 -> 0 | J178: =Yield19 -> 0 | K178: =IF(HayMonth19=3,I178*J178*(VLOOKUP(H178,FORAGE2,12)+VLOOKUP(H178,FORAGE2,13)+VLOOKUP(H178,FORAGE2,14)),IF(HayMonth19=4,I178*J178*(VLOOKUP(H178,FORAGE2,12)+VLOOKUP(H178,FORAGE2,13)+VLOOKUP(H178,FORAGE2,14)+VLOOKUP(H178,FORAGE2,3)),IF(HayMonth19=5,I178*J178*(VLOOKUP(H178,FORAGE2,12)+VLOOKUP(H178,FORAGE2,13)+VLOOKUP(H178,FORAGE2,14)+VLOOKUP(H178,FORAGE2,3)+VLOOKUP(H178,FORAGE2,4)),IF(HayMonth19=6,I178*J178*(VLOOKUP(H178,FORAGE2,12)+VLOOKUP(H178,FORAGE2,13)+VLOOKUP(H178,FORAGE2,14)+VLOOKUP(H178,FORAGE2,3)+VLOOKUP(H178,FORAGE2,4)+VLOOKUP(H178,FORAGE2,5)),IF(HayMonth19=7,I178*J178*(VLOOKUP(H178,FORAGE2,12)+VLOOKUP(H178,FORAGE2,13)+VLOOKUP(H178,FORAGE2,14)+VLOOKUP(H178,FORAGE2,3)+VLOOKUP(H178,FORAGE2,4)+VLOOKUP(H178,FORAGE2,5)+VLOOKUP(H178,FORAGE2,6)), IF(HayMonth19=8,I178*J178*(VLOOKUP(H178,FORAGE2,12)+VLOOKUP(H178,FORAGE2,13)+VLOOKUP(H178,FORAGE2,14)+VLOOKUP(H178,FORAGE2,3)+VLOOKUP(H178,FORAGE2,4)+VLOOKUP(H178,FORAGE2,5)+VLOOKUP(H178,FORAGE2,6)+VLOOKUP(H178,FORAGE2,7)),IF(HayMonth19=9,I178*J178*(VLOOKUP(H178,FORAGE2,12)+VLOOKUP(H178,FORAGE2,13)+VLOOKUP(H178,FORAGE2,14)+VLOOKUP(H178,FORAGE2,3)+VLOOKUP(H178,FORAGE2,4)+VLOOKUP(H178,FORAGE2,5)+VLOOKUP(H178,FORAGE2,6)+VLOOKUP(H178,FORAGE2,7)+VLOOKUP(H178,FORAGE2,8)), IF(HayMonth19=10,I178*J178*(VLOOKUP(H178,FORAGE2,12)+VLOOKUP(H178,FORAGE2,13)+VLOOKUP(H178,FORAGE2,14)+VLOOKUP(H178,FORAGE2,3)+VLOOKUP(H178,FORAGE2,4)+VLOOKUP(H178,FORAGE2,5)+VLOOKUP(H178,FORAGE2,6)+VLOOKUP(H178,FORAGE2,7)+VLOOKUP(H178,FORAGE2,8)+VLOOKUP(H178,FORAGE2,9)),I178*J178*(VLOOKUP(H178,FORAGE2,12)+VLOOKUP(H178,FORAGE2,13)+VLOOKUP(H178,FORAGE2,14)+VLOOKUP(H178,FORAGE2,3)+VLOOKUP(H178,FORAGE2,4)+VLOOKUP(H178,FORAGE2,5)+VLOOKUP(H178,FORAGE2,6)+VLOOKUP(H178,FORAGE2,7)+VLOOKUP(H178,FORAGE2,8)+VLOOKUP(H178,FORAGE2,9)+VLOOKUP(H178,FORAGE2,10)+VLOOKUP(H178,FORAGE2,11)))))))))) -> 0 | M178: 0 | N178: =IF(H178="","",VLOOKUP(H178,ForageGrowthCurves!$A$6:$P$67,16,FALSE)) -> 
G179: =Field20 -> 0 | H179: =Kind20 -> 0 | I179: =Acres20 -> 0 | J179: =Yield20 -> 0 | K179: =IF(HayMonth20=3,I179*J179*(VLOOKUP(H179,FORAGE2,12)+VLOOKUP(H179,FORAGE2,13)+VLOOKUP(H179,FORAGE2,14)),IF(HayMonth20=4,I179*J179*(VLOOKUP(H179,FORAGE2,12)+VLOOKUP(H179,FORAGE2,13)+VLOOKUP(H179,FORAGE2,14)+VLOOKUP(H179,FORAGE2,3)),IF(HayMonth20=5,I179*J179*(VLOOKUP(H179,FORAGE2,12)+VLOOKUP(H179,FORAGE2,13)+VLOOKUP(H179,FORAGE2,14)+VLOOKUP(H179,FORAGE2,3)+VLOOKUP(H179,FORAGE2,4)),IF(HayMonth20=6,I179*J179*(VLOOKUP(H179,FORAGE2,12)+VLOOKUP(H179,FORAGE2,13)+VLOOKUP(H179,FORAGE2,14)+VLOOKUP(H179,FORAGE2,3)+VLOOKUP(H179,FORAGE2,4)+VLOOKUP(H179,FORAGE2,5)),IF(HayMonth20=7,I179*J179*(VLOOKUP(H179,FORAGE2,12)+VLOOKUP(H179,FORAGE2,13)+VLOOKUP(H179,FORAGE2,14)+VLOOKUP(H179,FORAGE2,3)+VLOOKUP(H179,FORAGE2,4)+VLOOKUP(H179,FORAGE2,5)+VLOOKUP(H179,FORAGE2,6)), IF(HayMonth20=8,I179*J179*(VLOOKUP(H179,FORAGE2,12)+VLOOKUP(H179,FORAGE2,13)+VLOOKUP(H179,FORAGE2,14)+VLOOKUP(H179,FORAGE2,3)+VLOOKUP(H179,FORAGE2,4)+VLOOKUP(H179,FORAGE2,5)+VLOOKUP(H179,FORAGE2,6)+VLOOKUP(H179,FORAGE2,7)),IF(HayMonth20=9,I179*J179*(VLOOKUP(H179,FORAGE2,12)+VLOOKUP(H179,FORAGE2,13)+VLOOKUP(H179,FORAGE2,14)+VLOOKUP(H179,FORAGE2,3)+VLOOKUP(H179,FORAGE2,4)+VLOOKUP(H179,FORAGE2,5)+VLOOKUP(H179,FORAGE2,6)+VLOOKUP(H179,FORAGE2,7)+VLOOKUP(H179,FORAGE2,8)), IF(HayMonth20=10,I179*J179*(VLOOKUP(H179,FORAGE2,12)+VLOOKUP(H179,FORAGE2,13)+VLOOKUP(H179,FORAGE2,14)+VLOOKUP(H179,FORAGE2,3)+VLOOKUP(H179,FORAGE2,4)+VLOOKUP(H179,FORAGE2,5)+VLOOKUP(H179,FORAGE2,6)+VLOOKUP(H179,FORAGE2,7)+VLOOKUP(H179,FORAGE2,8)+VLOOKUP(H179,FORAGE2,9)),I179*J179*(VLOOKUP(H179,FORAGE2,12)+VLOOKUP(H179,FORAGE2,13)+VLOOKUP(H179,FORAGE2,14)+VLOOKUP(H179,FORAGE2,3)+VLOOKUP(H179,FORAGE2,4)+VLOOKUP(H179,FORAGE2,5)+VLOOKUP(H179,FORAGE2,6)+VLOOKUP(H179,FORAGE2,7)+VLOOKUP(H179,FORAGE2,8)+VLOOKUP(H179,FORAGE2,9)+VLOOKUP(H179,FORAGE2,10)+VLOOKUP(H179,FORAGE2,11)))))))))) -> 0 | M179: 0 | N179: =IF(H179="","",VLOOKUP(H179,ForageGrowthCurves!$A$6:$P$67,16,FALSE)) -> 
G180: =Field21 -> 0 | H180: =Kind21 -> 0 | I180: =Acres21 -> 0 | J180: =Yield21 -> 0 | K180: =IF(HayMonth21=3,I180*J180*(VLOOKUP(H180,FORAGE2,12)+VLOOKUP(H180,FORAGE2,13)+VLOOKUP(H180,FORAGE2,14)),IF(HayMonth21=4,I180*J180*(VLOOKUP(H180,FORAGE2,12)+VLOOKUP(H180,FORAGE2,13)+VLOOKUP(H180,FORAGE2,14)+VLOOKUP(H180,FORAGE2,3)),IF(HayMonth21=5,I180*J180*(VLOOKUP(H180,FORAGE2,12)+VLOOKUP(H180,FORAGE2,13)+VLOOKUP(H180,FORAGE2,14)+VLOOKUP(H180,FORAGE2,3)+VLOOKUP(H180,FORAGE2,4)),IF(HayMonth21=6,I180*J180*(VLOOKUP(H180,FORAGE2,12)+VLOOKUP(H180,FORAGE2,13)+VLOOKUP(H180,FORAGE2,14)+VLOOKUP(H180,FORAGE2,3)+VLOOKUP(H180,FORAGE2,4)+VLOOKUP(H180,FORAGE2,5)),IF(HayMonth21=7,I180*J180*(VLOOKUP(H180,FORAGE2,12)+VLOOKUP(H180,FORAGE2,13)+VLOOKUP(H180,FORAGE2,14)+VLOOKUP(H180,FORAGE2,3)+VLOOKUP(H180,FORAGE2,4)+VLOOKUP(H180,FORAGE2,5)+VLOOKUP(H180,FORAGE2,6)), IF(HayMonth21=8,I180*J180*(VLOOKUP(H180,FORAGE2,12)+VLOOKUP(H180,FORAGE2,13)+VLOOKUP(H180,FORAGE2,14)+VLOOKUP(H180,FORAGE2,3)+VLOOKUP(H180,FORAGE2,4)+VLOOKUP(H180,FORAGE2,5)+VLOOKUP(H180,FORAGE2,6)+VLOOKUP(H180,FORAGE2,7)),IF(HayMonth21=9,I180*J180*(VLOOKUP(H180,FORAGE2,12)+VLOOKUP(H180,FORAGE2,13)+VLOOKUP(H180,FORAGE2,14)+VLOOKUP(H180,FORAGE2,3)+VLOOKUP(H180,FORAGE2,4)+VLOOKUP(H180,FORAGE2,5)+VLOOKUP(H180,FORAGE2,6)+VLOOKUP(H180,FORAGE2,7)+VLOOKUP(H180,FORAGE2,8)), IF(HayMonth21=10,I180*J180*(VLOOKUP(H180,FORAGE2,12)+VLOOKUP(H180,FORAGE2,13)+VLOOKUP(H180,FORAGE2,14)+VLOOKUP(H180,FORAGE2,3)+VLOOKUP(H180,FORAGE2,4)+VLOOKUP(H180,FORAGE2,5)+VLOOKUP(H180,FORAGE2,6)+VLOOKUP(H180,FORAGE2,7)+VLOOKUP(H180,FORAGE2,8)+VLOOKUP(H180,FORAGE2,9)),I180*J180*(VLOOKUP(H180,FORAGE2,12)+VLOOKUP(H180,FORAGE2,13)+VLOOKUP(H180,FORAGE2,14)+VLOOKUP(H180,FORAGE2,3)+VLOOKUP(H180,FORAGE2,4)+VLOOKUP(H180,FORAGE2,5)+VLOOKUP(H180,FORAGE2,6)+VLOOKUP(H180,FORAGE2,7)+VLOOKUP(H180,FORAGE2,8)+VLOOKUP(H180,FORAGE2,9)+VLOOKUP(H180,FORAGE2,10)+VLOOKUP(H180,FORAGE2,11)))))))))) -> 0 | M180: 0 | N180: =IF(H180="","",VLOOKUP(H180,ForageGrowthCurves!$A$6:$P$67,16,FALSE)) -> 
G181: =Field22 -> 0 | H181: =Kind22 -> 0 | I181: =Acres22 -> 0 | J181: =Yield22 -> 0 | K181: =IF(HayMonth22=3,I181*J181*(VLOOKUP(H181,FORAGE2,12)+VLOOKUP(H181,FORAGE2,13)+VLOOKUP(H181,FORAGE2,14)),IF(HayMonth22=4,I181*J181*(VLOOKUP(H181,FORAGE2,12)+VLOOKUP(H181,FORAGE2,13)+VLOOKUP(H181,FORAGE2,14)+VLOOKUP(H181,FORAGE2,3)),IF(HayMonth22=5,I181*J181*(VLOOKUP(H181,FORAGE2,12)+VLOOKUP(H181,FORAGE2,13)+VLOOKUP(H181,FORAGE2,14)+VLOOKUP(H181,FORAGE2,3)+VLOOKUP(H181,FORAGE2,4)),IF(HayMonth22=6,I181*J181*(VLOOKUP(H181,FORAGE2,12)+VLOOKUP(H181,FORAGE2,13)+VLOOKUP(H181,FORAGE2,14)+VLOOKUP(H181,FORAGE2,3)+VLOOKUP(H181,FORAGE2,4)+VLOOKUP(H181,FORAGE2,5)),IF(HayMonth22=7,I181*J181*(VLOOKUP(H181,FORAGE2,12)+VLOOKUP(H181,FORAGE2,13)+VLOOKUP(H181,FORAGE2,14)+VLOOKUP(H181,FORAGE2,3)+VLOOKUP(H181,FORAGE2,4)+VLOOKUP(H181,FORAGE2,5)+VLOOKUP(H181,FORAGE2,6)), IF(HayMonth22=8,I181*J181*(VLOOKUP(H181,FORAGE2,12)+VLOOKUP(H181,FORAGE2,13)+VLOOKUP(H181,FORAGE2,14)+VLOOKUP(H181,FORAGE2,3)+VLOOKUP(H181,FORAGE2,4)+VLOOKUP(H181,FORAGE2,5)+VLOOKUP(H181,FORAGE2,6)+VLOOKUP(H181,FORAGE2,7)),IF(HayMonth22=9,I181*J181*(VLOOKUP(H181,FORAGE2,12)+VLOOKUP(H181,FORAGE2,13)+VLOOKUP(H181,FORAGE2,14)+VLOOKUP(H181,FORAGE2,3)+VLOOKUP(H181,FORAGE2,4)+VLOOKUP(H181,FORAGE2,5)+VLOOKUP(H181,FORAGE2,6)+VLOOKUP(H181,FORAGE2,7)+VLOOKUP(H181,FORAGE2,8)), IF(HayMonth22=10,I181*J181*(VLOOKUP(H181,FORAGE2,12)+VLOOKUP(H181,FORAGE2,13)+VLOOKUP(H181,FORAGE2,14)+VLOOKUP(H181,FORAGE2,3)+VLOOKUP(H181,FORAGE2,4)+VLOOKUP(H181,FORAGE2,5)+VLOOKUP(H181,FORAGE2,6)+VLOOKUP(H181,FORAGE2,7)+VLOOKUP(H181,FORAGE2,8)+VLOOKUP(H181,FORAGE2,9)),I181*J181*(VLOOKUP(H181,FORAGE2,12)+VLOOKUP(H181,FORAGE2,13)+VLOOKUP(H181,FORAGE2,14)+VLOOKUP(H181,FORAGE2,3)+VLOOKUP(H181,FORAGE2,4)+VLOOKUP(H181,FORAGE2,5)+VLOOKUP(H181,FORAGE2,6)+VLOOKUP(H181,FORAGE2,7)+VLOOKUP(H181,FORAGE2,8)+VLOOKUP(H181,FORAGE2,9)+VLOOKUP(H181,FORAGE2,10)+VLOOKUP(H181,FORAGE2,11)))))))))) -> 0 | M181: 0 | N181: =IF(H181="","",VLOOKUP(H181,ForageGrowthCurves!$A$6:$P$67,16,FALSE)) -> 
G182: =Field23 -> 0 | H182: =Kind23 -> 0 | I182: =Acres23 -> 0 | J182: =Yield23 -> 0 | K182: =IF(HayMonth23=3,I182*J182*(VLOOKUP(H182,FORAGE2,12)+VLOOKUP(H182,FORAGE2,13)+VLOOKUP(H182,FORAGE2,14)),IF(HayMonth23=4,I182*J182*(VLOOKUP(H182,FORAGE2,12)+VLOOKUP(H182,FORAGE2,13)+VLOOKUP(H182,FORAGE2,14)+VLOOKUP(H182,FORAGE2,3)),IF(HayMonth23=5,I182*J182*(VLOOKUP(H182,FORAGE2,12)+VLOOKUP(H182,FORAGE2,13)+VLOOKUP(H182,FORAGE2,14)+VLOOKUP(H182,FORAGE2,3)+VLOOKUP(H182,FORAGE2,4)),IF(HayMonth23=6,I182*J182*(VLOOKUP(H182,FORAGE2,12)+VLOOKUP(H182,FORAGE2,13)+VLOOKUP(H182,FORAGE2,14)+VLOOKUP(H182,FORAGE2,3)+VLOOKUP(H182,FORAGE2,4)+VLOOKUP(H182,FORAGE2,5)),IF(HayMonth23=7,I182*J182*(VLOOKUP(H182,FORAGE2,12)+VLOOKUP(H182,FORAGE2,13)+VLOOKUP(H182,FORAGE2,14)+VLOOKUP(H182,FORAGE2,3)+VLOOKUP(H182,FORAGE2,4)+VLOOKUP(H182,FORAGE2,5)+VLOOKUP(H182,FORAGE2,6)), IF(HayMonth23=8,I182*J182*(VLOOKUP(H182,FORAGE2,12)+VLOOKUP(H182,FORAGE2,13)+VLOOKUP(H182,FORAGE2,14)+VLOOKUP(H182,FORAGE2,3)+VLOOKUP(H182,FORAGE2,4)+VLOOKUP(H182,FORAGE2,5)+VLOOKUP(H182,FORAGE2,6)+VLOOKUP(H182,FORAGE2,7)),IF(HayMonth23=9,I182*J182*(VLOOKUP(H182,FORAGE2,12)+VLOOKUP(H182,FORAGE2,13)+VLOOKUP(H182,FORAGE2,14)+VLOOKUP(H182,FORAGE2,3)+VLOOKUP(H182,FORAGE2,4)+VLOOKUP(H182,FORAGE2,5)+VLOOKUP(H182,FORAGE2,6)+VLOOKUP(H182,FORAGE2,7)+VLOOKUP(H182,FORAGE2,8)), IF(HayMonth23=10,I182*J182*(VLOOKUP(H182,FORAGE2,12)+VLOOKUP(H182,FORAGE2,13)+VLOOKUP(H182,FORAGE2,14)+VLOOKUP(H182,FORAGE2,3)+VLOOKUP(H182,FORAGE2,4)+VLOOKUP(H182,FORAGE2,5)+VLOOKUP(H182,FORAGE2,6)+VLOOKUP(H182,FORAGE2,7)+VLOOKUP(H182,FORAGE2,8)+VLOOKUP(H182,FORAGE2,9)),I182*J182*(VLOOKUP(H182,FORAGE2,12)+VLOOKUP(H182,FORAGE2,13)+VLOOKUP(H182,FORAGE2,14)+VLOOKUP(H182,FORAGE2,3)+VLOOKUP(H182,FORAGE2,4)+VLOOKUP(H182,FORAGE2,5)+VLOOKUP(H182,FORAGE2,6)+VLOOKUP(H182,FORAGE2,7)+VLOOKUP(H182,FORAGE2,8)+VLOOKUP(H182,FORAGE2,9)+VLOOKUP(H182,FORAGE2,10)+VLOOKUP(H182,FORAGE2,11)))))))))) -> 0 | M182: 0 | N182: =IF(H182="","",VLOOKUP(H182,ForageGrowthCurves!$A$6:$P$67,16,FALSE)) -> 
G183: =Field24 -> 0 | H183: =Kind24 -> 0 | I183: =Acres24 -> 0 | J183: =Yield24 -> 0 | K183: =IF(HayMonth24=3,I183*J183*(VLOOKUP(H183,FORAGE2,12)+VLOOKUP(H183,FORAGE2,13)+VLOOKUP(H183,FORAGE2,14)),IF(HayMonth24=4,I183*J183*(VLOOKUP(H183,FORAGE2,12)+VLOOKUP(H183,FORAGE2,13)+VLOOKUP(H183,FORAGE2,14)+VLOOKUP(H183,FORAGE2,3)),IF(HayMonth24=5,I183*J183*(VLOOKUP(H183,FORAGE2,12)+VLOOKUP(H183,FORAGE2,13)+VLOOKUP(H183,FORAGE2,14)+VLOOKUP(H183,FORAGE2,3)+VLOOKUP(H183,FORAGE2,4)),IF(HayMonth24=6,I183*J183*(VLOOKUP(H183,FORAGE2,12)+VLOOKUP(H183,FORAGE2,13)+VLOOKUP(H183,FORAGE2,14)+VLOOKUP(H183,FORAGE2,3)+VLOOKUP(H183,FORAGE2,4)+VLOOKUP(H183,FORAGE2,5)),IF(HayMonth24=7,I183*J183*(VLOOKUP(H183,FORAGE2,12)+VLOOKUP(H183,FORAGE2,13)+VLOOKUP(H183,FORAGE2,14)+VLOOKUP(H183,FORAGE2,3)+VLOOKUP(H183,FORAGE2,4)+VLOOKUP(H183,FORAGE2,5)+VLOOKUP(H183,FORAGE2,6)), IF(HayMonth24=8,I183*J183*(VLOOKUP(H183,FORAGE2,12)+VLOOKUP(H183,FORAGE2,13)+VLOOKUP(H183,FORAGE2,14)+VLOOKUP(H183,FORAGE2,3)+VLOOKUP(H183,FORAGE2,4)+VLOOKUP(H183,FORAGE2,5)+VLOOKUP(H183,FORAGE2,6)+VLOOKUP(H183,FORAGE2,7)),IF(HayMonth24=9,I183*J183*(VLOOKUP(H183,FORAGE2,12)+VLOOKUP(H183,FORAGE2,13)+VLOOKUP(H183,FORAGE2,14)+VLOOKUP(H183,FORAGE2,3)+VLOOKUP(H183,FORAGE2,4)+VLOOKUP(H183,FORAGE2,5)+VLOOKUP(H183,FORAGE2,6)+VLOOKUP(H183,FORAGE2,7)+VLOOKUP(H183,FORAGE2,8)), IF(HayMonth24=10,I183*J183*(VLOOKUP(H183,FORAGE2,12)+VLOOKUP(H183,FORAGE2,13)+VLOOKUP(H183,FORAGE2,14)+VLOOKUP(H183,FORAGE2,3)+VLOOKUP(H183,FORAGE2,4)+VLOOKUP(H183,FORAGE2,5)+VLOOKUP(H183,FORAGE2,6)+VLOOKUP(H183,FORAGE2,7)+VLOOKUP(H183,FORAGE2,8)+VLOOKUP(H183,FORAGE2,9)),I183*J183*(VLOOKUP(H183,FORAGE2,12)+VLOOKUP(H183,FORAGE2,13)+VLOOKUP(H183,FORAGE2,14)+VLOOKUP(H183,FORAGE2,3)+VLOOKUP(H183,FORAGE2,4)+VLOOKUP(H183,FORAGE2,5)+VLOOKUP(H183,FORAGE2,6)+VLOOKUP(H183,FORAGE2,7)+VLOOKUP(H183,FORAGE2,8)+VLOOKUP(H183,FORAGE2,9)+VLOOKUP(H183,FORAGE2,10)+VLOOKUP(H183,FORAGE2,11)))))))))) -> 0 | M183: 0 | N183: =IF(H183="","",VLOOKUP(H183,ForageGrowthCurves!$A$6:$P$67,16,FALSE)) ->  | P183: 1. Paddocks fertilized regularly, OR
P184: 2. Paddocks have productive legumes in stand, OR
H185: Totals | I185: =SUBTOTAL(109,I160:I183) -> 0 | K185: =SUBTOTAL(109,K160:K183) -> 0 | M185: =SUBTOTAL(109,M160:M183) -> 0 | P185: 3. Grazing rotation is 7 days or less, OR
P186: 4. Pasture Condition Scoresheet is 31 or Greater
G187: * TFP - Total Forage Production | P187: if none of the above, select AVERAGE yields
F189: ALTERNATIVE PASTURE FORAGE PRODUCTION
F190: (only utilize this section if you have selected to manage any of your livestock on an alternative pasture in the Livestock Needs and Demand Schedule above)
F191: =IF(OR(AND(SeasonalDairyCheck=FALSE,AnnualDairyCheck=FALSE,BullsCheck=FALSE,CowCalf1Check=FALSE,CowCalf2Check=FALSE,CowCalf3Check=FALSE,HorsesCheck=FALSE),(AND(Calculations!B72=FALSE,Calculations!B77=FALSE,Calculations!B82=FALSE,Calculations!B100=FALSE,Calculations!H45=FALSE,Calculations!G50=FALSE,Calculations!H54=FALSE,Calculations!B56=FALSE,Calculations!B58=FALSE))),"There are currently no livestock classes selected to utilize alternative pasture","") -> There are currently no livestock classes selected to utilize alternative pasture
F192: =IF(OR(AND(Calculations!B72=TRUE,CowCalf1Check=TRUE),AND(Calculations!B77=TRUE,CowCalf2Check=TRUE),AND(Calculations!B82=TRUE,CowCalf3Check=TRUE),AND(Calculations!B100=TRUE,HorsesCheck=TRUE),AND(Calculations!H45=TRUE,SeasonalDairyCheck=TRUE),AND(Calculations!G50=TRUE,AnnualDairyCheck=TRUE),AND(Calculations!H54=TRUE,AnnualDairyCheck=TRUE),AND(Calculations!B56=TRUE,BullsCheck=TRUE),AND(Calculations!B58=TRUE,BullsCheck=TRUE)),"The livestock class(es) that have Alternative Pasture selected as part of the management is(are):","") -> 
L193: =IF(AND(Calculations!B72=TRUE,CowCalf1Check=TRUE),"Cow Calf Herd 1","") ->  | M193: =IF(AND(Calculations!B77=TRUE,CowCalf2Check=TRUE),"Cow Calf Herd 2","") ->  | N193: =IF(AND(Calculations!B82=TRUE,CowCalf3Check=TRUE),"Cow Calf Herd 3","") ->  | O193: =IF(AND(OR(Calculations!B56,Calculations!B58),BullsCheck=TRUE),"Bulls","") ->  | P193: =IF(AND(Calculations!H45=TRUE,SeasonalDairyCheck=TRUE),"Dairy, Seasonal","") ->  | Q193: =IF(AND(OR(Calculations!G50=TRUE,Calculations!H54=TRUE),AnnualDairyCheck=TRUE),"Dairy, Annual", "") ->  | R193: =IF(AND(Calculations!B100=TRUE,HorsesCheck),"Horses","") -> 
F194: Use this input area to capture the forage production on alternative pastures(s) that may be used to meet some of the livestock forage needs separate from the main grazing system (as indicated by specific livestock class management in the Livestock Needs and Demands section above). Add additional fields by selecting the "+" icon. You may enter up to 6 separate fields. The yellow cells are for user inputs. An alternative pasture is typically some unmanaged acreage where animals are moved to graze when peak productivity is not required, such as when dairy cows are dry or heifers are not lactating, or when bulls are not with cows for breeding.
E196: Add (+) or Remove (-) Rows | K196: Total | L196: Pasture | N196: Alternative Pasture Forage Available by Month (Lbs/month)
G197: Field | H197: Kind of Forage | I197: Acres | J197: TFP | K197: Production | L197: Grazing | M197: Usable
G198: Number | H198: (double click for drop down menu) | I198: (Usable) | J198: lbs/ac | K198: Pounds | L198: Eff. (%) | M198: Pounds | N198: Apr | O198: May | P198: June | Q198: July | R198: Aug | S198: Sept | T198: Oct | U198: Nov | V198: Dec | W198: Jan | X198: Feb | Y198: Mar
K199: =I199*J199 -> 0 | M199: =K199*L199/100 -> 0 | N199: =IF($H199="","",VLOOKUP($H199,FORAGE2,3)*($M199)) ->  | O199: =IF($H199="","",VLOOKUP($H199,FORAGE2,4)*($M199)) ->  | P199: =IF($H199="","",VLOOKUP($H199,FORAGE2,5)*($M199)) ->  | Q199: =IF($H199="","",VLOOKUP($H199,FORAGE2,6)*($M199)) ->  | R199: =IF($H199="","",VLOOKUP($H199,FORAGE2,7)*($M199)) ->  | S199: =IF($H199="","",VLOOKUP($H199,FORAGE2,8)*($M199)) ->  | T199: =IF($H199="","",VLOOKUP($H199,FORAGE2,9)*($M199)) ->  | U199: =IF($H199="","",VLOOKUP($H199,FORAGE2,10)*($M199)) ->  | V199: =IF($H199="","",VLOOKUP($H199,FORAGE2,11)*($M199)) ->  | W199: =IF($H199="","",VLOOKUP($H199,FORAGE2,12)*($M199)) ->  | X199: =IF($H199="","",VLOOKUP($H199,FORAGE2,13)*($M199)) ->  | Y199: =IF($H199="","",VLOOKUP($H199,FORAGE2,14)*($M199)) -> 
K200: 0 | M200: =K200*L200/100 -> 0
K201: 0 | M201: 0
K202: 0 | M202: 0
K203: 0 | M203: 0
K204: 0 | M204: 0
F207: HAY PRODUCTION AND INVENTORY FOR FIELDS HAYED, SILAGE, HAYLAGE ONLY
G208: Use this input are to capture any additional hay production on fields that are not part of the grazing system. Add additional fields by selecting the "+" icon. You may enter up to 10 separate fields. The yellow cells are for user inputs. The Total Production Pounds is calculated by multiplying the percent of growth that has occured at the time of haying (Haying Month) based upon the Forage Growth Curves. Enter the Haying Month as a number (eg. Jan = 1, Feb = 2, Mar = 3, etc.)
E210: Add (+) or Remove (-) Rows | I210: Hay | K210: Haying | L210: Total | M210: Hay | O210: Minimum
G211: Field | H211: Kind of Forage | I211: Acres | J211: TFP | K211: Month | L211: Production | M211: Harvest | N211: Harvested | O211: Cutting
G212: Number | H212: (double click for drop down menu) | I212: (Usable) | J212: lbs/ac | K212: double click for drop down | L212: Pounds | M212: Eff. (%) | N212: Pounds | O212: Ht. (in)
L213: =IF(K213=3,I213*J213*(VLOOKUP(H213,FORAGE2,12)+VLOOKUP(H213,FORAGE2,13)+VLOOKUP(H213,FORAGE2,14)),IF(K213=4,I213*J213*(VLOOKUP(H213,FORAGE2,12)+VLOOKUP(H213,FORAGE2,13)+VLOOKUP(H213,FORAGE2,14)+VLOOKUP(H213,FORAGE2,3)),IF(K213=5,I213*J213*(VLOOKUP(H213,FORAGE2,12)+VLOOKUP(H213,FORAGE2,13)+VLOOKUP(H213,FORAGE2,14)+VLOOKUP(H213,FORAGE2,3)+VLOOKUP(H213,FORAGE2,4)),IF(K213=6,I213*J213*(VLOOKUP(H213,FORAGE2,12)+VLOOKUP(H213,FORAGE2,13)+VLOOKUP(H213,FORAGE2,14)+VLOOKUP(H213,FORAGE2,3)+VLOOKUP(H213,FORAGE2,4)+VLOOKUP(H213,FORAGE2,5)),IF(K213=7,I213*J213*(VLOOKUP(H213,FORAGE2,12)+VLOOKUP(H213,FORAGE2,13)+VLOOKUP(H213,FORAGE2,14)+VLOOKUP(H213,FORAGE2,3)+VLOOKUP(H213,FORAGE2,4)+VLOOKUP(H213,FORAGE2,5)+VLOOKUP(H213,FORAGE2,6)), IF(K213=8,I213*J213*(VLOOKUP(H213,FORAGE2,12)+VLOOKUP(H213,FORAGE2,13)+VLOOKUP(H213,FORAGE2,14)+VLOOKUP(H213,FORAGE2,3)+VLOOKUP(H213,FORAGE2,4)+VLOOKUP(H213,FORAGE2,5)+VLOOKUP(H213,FORAGE2,6)+VLOOKUP(H213,FORAGE2,7)),IF(K213=9,I213*J213*(VLOOKUP(H213,FORAGE2,12)+VLOOKUP(H213,FORAGE2,13)+VLOOKUP(H213,FORAGE2,14)+VLOOKUP(H213,FORAGE2,3)+VLOOKUP(H213,FORAGE2,4)+VLOOKUP(H213,FORAGE2,5)+VLOOKUP(H213,FORAGE2,6)+VLOOKUP(H213,FORAGE2,7)+VLOOKUP(H213,FORAGE2,8)), IF(K213=10,I213*J213*(VLOOKUP(H213,FORAGE2,12)+VLOOKUP(H213,FORAGE2,13)+VLOOKUP(H213,FORAGE2,14)+VLOOKUP(H213,FORAGE2,3)+VLOOKUP(H213,FORAGE2,4)+VLOOKUP(H213,FORAGE2,5)+VLOOKUP(H213,FORAGE2,6)+VLOOKUP(H213,FORAGE2,7)+VLOOKUP(H213,FORAGE2,8)+VLOOKUP(H213,FORAGE2,9)),I213*J213*(VLOOKUP(H213,FORAGE2,12)+VLOOKUP(H213,FORAGE2,13)+VLOOKUP(H213,FORAGE2,14)+VLOOKUP(H213,FORAGE2,3)+VLOOKUP(H213,FORAGE2,4)+VLOOKUP(H213,FORAGE2,5)+VLOOKUP(H213,FORAGE2,6)+VLOOKUP(H213,FORAGE2,7)+VLOOKUP(H213,FORAGE2,8)+VLOOKUP(H213,FORAGE2,9)+VLOOKUP(H213,FORAGE2,10)+VLOOKUP(H213,FORAGE2,11)))))))))) -> 0 | N213: =IF(H213="",0,L213*M213) -> 0 | O213: =IF($H213="","",VLOOKUP($H213,ForageGrowthCurves!$A$6:$P$67,16)) -> 
L214: 0 | N214: =IF(H214="",0,L214*M214) -> 0 | O214: =IF($H214="","",VLOOKUP($H214,ForageGrowthCurves!$A$6:$P$67,16)) -> 
L215: 0 | N215: 0 | O215: =IF($H215="","",VLOOKUP($H215,ForageGrowthCurves!$A$6:$P$67,16)) -> 
L216: 0 | N216: 0 | O216: =IF($H216="","",VLOOKUP($H216,ForageGrowthCurves!$A$6:$P$67,16)) -> 
L217: 0 | N217: 0 | O217: =IF($H217="","",VLOOKUP($H217,ForageGrowthCurves!$A$6:$P$67,16)) -> 
L218: 0 | N218: 0 | O218: =IF($H218="","",VLOOKUP($H218,ForageGrowthCurves!$A$6:$P$67,16)) -> 
L219: 0 | N219: 0 | O219: =IF($H219="","",VLOOKUP($H219,ForageGrowthCurves!$A$6:$P$67,16)) -> 
L220: 0 | N220: 0 | O220: =IF($H220="","",VLOOKUP($H220,ForageGrowthCurves!$A$6:$P$67,16)) -> 
L221: 0 | N221: 0 | O221: =IF($H221="","",VLOOKUP($H221,ForageGrowthCurves!$A$6:$P$67,16)) -> 
L222: 0 | N222: 0 | O222: =IF($H222="","",VLOOKUP($H222,ForageGrowthCurves!$A$6:$P$67,16)) -> 
G224: Totals | I224: =SUBTOTAL(109,I213:I222) -> 0 | L224: =SUBTOTAL(109,L213:L222) -> 0 | N224: =SUBTOTAL(109,N213:N222) -> 0
G227: SUMMARY OF LIVESTOCK NEEDS AND PASTURE FORAGE PRODUCTION
N228: Apr. | O228: May | P228: June | Q228: July | R228: Aug. | S228: Sept. | T228: Oct. | U228: Nov. | V228: Dec. | W228: Jan. | X228: Feb. | Y228: Mar.
H229: Grazing System: Total Forage Available (Lbs): | M229: =SUM(N229:Y229) -> 0 | N229: =SUBTOTAL(109,N103:N149) -> 0 | O229: 0 | P229: 0 | Q229: 0 | R229: 0 | S229: 0 | T229: 0 | U229: 0 | V229: 0 | W229: 0 | X229: 0 | Y229: 0
... 36 more rows

Sheet TimeControlWorksheet
E2: TIME CONTROL GRAZING WORKSHEET
C4: Only enter the additional information needed as indicated by the yellow cells. The remaining cells and infomration will populate automatically based on the information entered into the Livestock Forage Balance Worksheet.
D6: Name: | E6: =LivestockForageBalance!$H$6 -> 0 | H6: County: | I6: =LivestockForageBalance!$H$9 -> 
D7: System ID: | E7: =LivestockForageBalance!$H$7 ->  | H7: Date: | I7: =LivestockForageBalance!$H$8 -> 
C9: Minimum Rest Period = | F9: days | H9: Avg Animal Weight = | I9: =LivestockForageBalance!$J$41 -> 0 | J9: pounds
C10: Maximum Rest Period = | F10: days | H10: Animal Numbers = | I10: =LivestockForageBalance!$I$41 -> 0 | J10: head
C11: Grazing Efficiency = | E11: =Calculations!$B$129 ->  | F11: percent | H11: Number of Herds =
H12: Intake Rate = | I12: =LivestockForageBalance!$K$41 -> 0 | J12: percent
B14: Field Name | C14: Kind of Forages | D14: Field | E14: Usable Forage | F14: Usable Forage | H14: Minimum | I14: Maximum | J14: Animal Density | K14: Minimum
B15: or Number | D15: Acres | E15: Production | F15: Production | G15: Paddock | H15: Grazing | I15: Grazing | J15: (Lbs of animal | K15: Grazing
E16: (Lbs/Acre) | F16: (Lbs/Field | G16: Factor | H16: Period | I16: Period | J16: per acre) | K16: Height
F17: or Paddock) | H17: (no. of days) | I17: (no. of days) | K17: (inches)
B18: =Field1 -> 0 | C18: =Kind1 -> 0 | D18: =Acres1 -> 0 | E18: =IF(C18="","",(LivestockForageBalance!$J103*LivestockForageBalance!$L103/100)) -> 0 | F18: =IF(C18="","",D18*E18) -> 0 | G18: =IF(C18="","",F18/$F$43) ->  | H18: =IF(C18="","",G18*($E$9/($C$44-$I$11))) ->  | I18: =IF(C18="","",G18*($E$10/($C$44-$I$11))) ->  | J18: =IF(D18,($I$9*$I$10)/D18,0) -> 0 | K18: =IF(C18="","",VLOOKUP(C18,ForageGrowthCurves!$A$6:'ForageGrowthCurves'!$O$62,15)) -> 
B19: =Field2 -> 0 | C19: =Kind2 -> 0 | D19: =Acres2 -> 0 | E19: =IF(C19="","",(LivestockForageBalance!$J105*LivestockForageBalance!$L105/100)) -> 0 | F19: 0 | G19: =IF(C19="","",F19/$F$43) ->  | H19: =IF(C19="","",G19*($E$9/($C$44-$I$11))) ->  | I19: =IF(C19="","",G19*($E$10/($C$44-$I$11))) ->  | J19: =IF(D19,($I$9*$I$10)/D19,0) -> 0 | K19: =IF(C19="","",VLOOKUP(C19,ForageGrowthCurves!$A$6:'ForageGrowthCurves'!$O$62,15)) -> 
B20: =Field3 -> 0 | C20: =Kind3 -> 0 | D20: =Acres3 -> 0 | E20: =IF(C20="","",(LivestockForageBalance!$J107*LivestockForageBalance!$L107/100)) ->  | H20: =IF(C20="","",G20*($E$9/($C$44-$I$11))) ->  | J20: 0 | K20: =IF(C20="","",VLOOKUP(C20,ForageGrowthCurves!$A$6:'ForageGrowthCurves'!$O$62,15)) -> 
B21: =Field4 -> 0 | C21: =Kind4 -> 0 | D21: =Acres4 -> 0 | E21: =IF(C21="","",(LivestockForageBalance!$J109*LivestockForageBalance!$L109/100)) ->  | F21: =IF(C21="","",D21*E21) ->  | J21: 0 | K21: =IF(C21="","",VLOOKUP(C21,ForageGrowthCurves!$A$6:'ForageGrowthCurves'!$O$62,15)) -> 
B22: =Field5 -> 0 | C22: =Kind5 -> 0 | D22: =Acres5 -> 0 | E22: =IF(C22="","",(LivestockForageBalance!$J111*LivestockForageBalance!$L111/100)) ->  | J22: 0 | K22: =IF(C22="","",VLOOKUP(C22,ForageGrowthCurves!$A$6:'ForageGrowthCurves'!$O$62,15)) -> 
B23: =Field6 -> 0 | C23: =Kind6 -> 0 | D23: =Acres6 -> 0 | E23: =IF(C23="","",(LivestockForageBalance!$J113*LivestockForageBalance!$L113/100)) ->  | J23: 0 | K23: =IF(C23="","",VLOOKUP(C23,ForageGrowthCurves!$A$6:'ForageGrowthCurves'!$O$62,15)) -> 
B24: =Field7 -> 0 | C24: =Kind7 -> 0 | D24: =Acres7 -> 0 | E24: =IF(C24="","",(LivestockForageBalance!$J115*LivestockForageBalance!$L115/100)) ->  | J24: 0 | K24: =IF(C24="","",VLOOKUP(C24,ForageGrowthCurves!$A$6:'ForageGrowthCurves'!$O$62,15)) -> 
B25: =Field8 -> 0 | C25: =Kind8 -> 0 | D25: =Acres8 -> 0 | E25: =IF(C25="","",(LivestockForageBalance!$J117*LivestockForageBalance!$L117/100)) ->  | J25: 0 | K25: =IF(C25="","",VLOOKUP(C25,ForageGrowthCurves!$A$6:'ForageGrowthCurves'!$O$62,15)) -> 
B26: =Field9 -> 0 | C26: =Kind9 -> 0 | D26: =Acres9 -> 0 | E26: =IF(C26="","",(LivestockForageBalance!$J119*LivestockForageBalance!$L119/100)) ->  | J26: 0 | K26: =IF(C26="","",VLOOKUP(C26,ForageGrowthCurves!$A$6:'ForageGrowthCurves'!$O$62,15)) -> 
B27: =Field10 -> 0 | C27: =Kind10 -> 0 | D27: =Acres10 -> 0 | E27: =IF(C27="","",(LivestockForageBalance!$J121*LivestockForageBalance!$L121/100)) ->  | J27: 0 | K27: =IF(C27="","",VLOOKUP(C27,ForageGrowthCurves!$A$6:'ForageGrowthCurves'!$O$62,15)) -> 
B28: =Field11 -> 0 | C28: =Kind11 -> 0 | D28: =Acres11 -> 0 | E28: =IF(C28="","",(LivestockForageBalance!$J123*LivestockForageBalance!$L123/100)) ->  | J28: 0 | K28: =IF(C28="","",VLOOKUP(C28,ForageGrowthCurves!$A$6:'ForageGrowthCurves'!$O$62,15)) -> 
B29: =Field12 -> 0 | C29: =Kind12 -> 0 | D29: =Acres12 -> 0 | E29: =IF(C29="","",(LivestockForageBalance!$J125*LivestockForageBalance!$L125/100)) ->  | J29: 0 | K29: =IF(C29="","",VLOOKUP(C29,ForageGrowthCurves!$A$6:'ForageGrowthCurves'!$O$62,15)) -> 
B30: =Field13 -> 0 | C30: =Kind13 -> 0 | D30: =Acres13 -> 0 | E30: =IF(C30="","",(LivestockForageBalance!$J127*LivestockForageBalance!$L127/100)) ->  | J30: 0 | K30: =IF(C30="","",VLOOKUP(C30,ForageGrowthCurves!$A$6:'ForageGrowthCurves'!$O$62,15)) -> 
B31: =Field14 -> 0 | C31: =Kind14 -> 0 | D31: =Acres14 -> 0 | E31: =IF(C31="","",(LivestockForageBalance!$J129*LivestockForageBalance!$L129/100)) ->  | J31: 0 | K31: =IF(C31="","",VLOOKUP(C31,ForageGrowthCurves!$A$6:'ForageGrowthCurves'!$O$62,15)) -> 
B32: =Field15 -> 0 | C32: =Kind15 -> 0 | D32: =Acres15 -> 0 | E32: =IF(C32="","",(LivestockForageBalance!$J131*LivestockForageBalance!$L131/100)) ->  | J32: 0 | K32: =IF(C32="","",VLOOKUP(C32,ForageGrowthCurves!$A$6:'ForageGrowthCurves'!$O$62,15)) -> 
B33: =Field16 -> 0 | C33: =Kind16 -> 0 | D33: =Acres16 -> 0 | E33: =IF(C33="","",(LivestockForageBalance!$J133*LivestockForageBalance!$L133/100)) ->  | J33: 0 | K33: =IF(C33="","",VLOOKUP(C33,ForageGrowthCurves!$A$6:'ForageGrowthCurves'!$O$62,15)) -> 
B34: =Field17 -> 0 | C34: =Kind17 -> 0 | D34: =Acres17 -> 0 | E34: =IF(C34="","",(LivestockForageBalance!$J135*LivestockForageBalance!$L135/100)) ->  | J34: 0 | K34: =IF(C34="","",VLOOKUP(C34,ForageGrowthCurves!$A$6:'ForageGrowthCurves'!$O$62,15)) -> 
B35: =Field18 -> 0 | C35: =Kind18 -> 0 | D35: =Acres18 -> 0 | E35: =IF(C35="","",(LivestockForageBalance!$J137*LivestockForageBalance!$L137/100)) ->  | J35: 0 | K35: =IF(C35="","",VLOOKUP(C35,ForageGrowthCurves!$A$6:'ForageGrowthCurves'!$O$62,15)) -> 
B36: =Field19 -> 0 | C36: =Kind19 -> 0 | D36: =Acres19 -> 0 | E36: =IF(C36="","",(LivestockForageBalance!$J139*LivestockForageBalance!$L139/100)) ->  | J36: 0 | K36: =IF(C36="","",VLOOKUP(C36,ForageGrowthCurves!$A$6:'ForageGrowthCurves'!$O$62,15)) -> 
B37: =Field20 -> 0 | C37: =Kind20 -> 0 | D37: =Acres20 -> 0 | E37: =IF(C37="","",(LivestockForageBalance!$J141*LivestockForageBalance!$L141/100)) ->  | J37: 0 | K37: =IF(C37="","",VLOOKUP(C37,ForageGrowthCurves!$A$6:'ForageGrowthCurves'!$O$62,15)) -> 
B38: =Field21 -> 0 | C38: =Kind21 -> 0 | D38: =Acres21 -> 0 | E38: =IF(C38="","",(LivestockForageBalance!$J143*LivestockForageBalance!$L143/100)) ->  | J38: 0 | K38: =IF(C38="","",VLOOKUP(C38,ForageGrowthCurves!$A$6:'ForageGrowthCurves'!$O$62,15)) -> 
B39: =Field22 -> 0 | C39: =Kind22 -> 0 | D39: =Acres22 -> 0 | E39: =IF(C39="","",(LivestockForageBalance!$J145*LivestockForageBalance!$L145/100)) ->  | J39: 0 | K39: =IF(C39="","",VLOOKUP(C39,ForageGrowthCurves!$A$6:'ForageGrowthCurves'!$O$62,15)) -> 
B40: =Field23 -> 0 | C40: =Kind23 -> 0 | D40: =Acres23 -> 0 | E40: =IF(C40="","",(LivestockForageBalance!$J147*LivestockForageBalance!$L147/100)) ->  | J40: 0 | K40: =IF(C40="","",VLOOKUP(C40,ForageGrowthCurves!$A$6:'ForageGrowthCurves'!$O$62,15)) -> 
B41: =Field24 -> 0 | C41: =Kind24 -> 0 | D41: =Acres24 -> 0 | E41: =IF(C41="","",(LivestockForageBalance!$J149*LivestockForageBalance!$L149/100)) ->  | J41: 0 | K41: =IF(C41="","",VLOOKUP(C41,ForageGrowthCurves!$A$6:'ForageGrowthCurves'!$O$62,15)) -> 
B43: AVERAGES: | D43: =D44/C44 ->  | E43: =E44/C44 ->  | F43: =F44/C44 ->  | G43: =SUBTOTAL(109,G18:G41)/C44 ->  | H43: =SUBTOTAL(109,H18:H41)/C44 ->  | I43: =SUBTOTAL(109,I18:I41)/C44 ->  | J43: =(D44/I10) -> 
B44: TOTALS: | C44: =COUNTIF(F18:F41,">0") -> 0 | D44: =SUBTOTAL(109,D18:D41) -> 0 | E44: =SUBTOTAL(109,E18:E41) -> 0 | F44: =SUBTOTAL(109,F18:F41) -> 0 | J44: Avg. Acres/Animal
C45: (fields)
B46: TOTAL AVAILABLE PASTURE FORAGE (Lbs.): | D46: =F44 -> 0
B48: DEFINITIONS
B50: Paddock Factor= A factor related to the relative size and production of each field
B51: Animal Density= The pounds of animals per acre concentrated on a field at one time
B52: Minimum Grazing Period= The approxiamate grazing time in each field during fast forage growth. Based on minimum rest periods
B53: Maximum Grazing Periods= The approxiamate grazing time in each field during slow forage growth. Based on maximum rest periods
B54: Minimum and Maximum Rest Periods= The number of days forage should be given rest be grazing again
B55: Minimum Grazing Height= Forage should not be grazed below these heights
B56: Intake rate= The daily consumption as a percentage of the animals body weight; Guide- 2.0% for maintenance, 3.0% for average production, 4.0% for high production, for beef cows (year round) use 2.6%.
B57: Grazing Efficiency= The percent of total forage utilized by the animal; Guide- 1-4 fields-< 25%-30%; 5 fields- 35%; 6 fields- 40%; 7 fields- 45%; 8 fields- 50%; 11 fields- 55%; 16 fields-60%; 31 fields -65%; 63 fields-70%; strip grazing- 70% -75% (harvest efficiency).

Sheet Summary
B2: DETAILED SUMMARY
B4: Name: | C4: =LivestockForageBalance!$H$6 -> 0
B5: System ID: | C5: =LivestockForageBalance!$H$7 -> 
B6: County: | C6: =LivestockForageBalance!$H$9 -> 
B7: Date: | C7: =LivestockForageBalance!$H$8 -> 
B8: By: | C8: =LivestockForageBalance!$H$10 -> 0
B9: LIVESTOCK
B10: The class(es) of livestock used to make these calculations is:
C11: Cow Calf Herd 1
C12: Cow Calf Herd 2
C13: Cow Calf Herd 3
C14: Stockers Herd 1
C15: Stockers Herd 2
C16: Seasonal Dairy
C17: Annual Dairy
C18: Bulls
C19: Horses
C20: Goats
C21: Sheep
B23: The total number of livestock used for these calculations is: | E23: =LivestockForageBalance!I41 -> 0 | F23: Head
B24: The average weight of all livestock used for these calculations is: | E24: =TimeControlWorksheet!$I$9 -> 0 | F24: Pounds
B25: The estimated average daily intake rate used is: | E25: =LivestockForageBalance!K41 -> 0 | F25: % of animal weight
B26: The estimated annual total livestock forage needs are: | E26: =LivestockForageBalance!M41 -> 0 | F26: Lbs/Year
B27: FORAGE
B28: The total usable grazing and haying acres are: | E28: =TotalAcreGrazed+LivestockForageBalance!I224 -> 0 | F28: Acres
B29: The estimated harvested pounds of hay available (from this farm) are*: | E29: =LivestockForageBalance!N256 -> 0 | F29: Lbs
B30: The additional available hay or forage purchased or brought in from other sources is*: | E30: =LivestockForageBalance!N264 -> 0 | F30: Lbs
B31: The additional available hay or forage stored on farm as carry over*: | E31: =LivestockForageBalance!N260 -> 0 | F31: Lbs
B32: The estimated total pounds of forage from hay (carry over) or harvested forage (on and off farm) are: | E32: =E29+E30+E31 -> 0 | F32: Lbs
B33: The estimated total pounds of forage available through grazing are: | E33: =LivestockForageBalance!N248 -> 0 | F33: Lbs
B34: The estimated average grazing efficiency used is: | E34: =TimeControlWorksheet!$E$11 ->  | F34: percent
B35: The estimated total pounds of forage (haying and grazing) are: | E35: =SUM(E32:E33) -> 0 | F35: Lbs/Year
B36: (* Incorporates storage/feedling loss)
B38: DIFFERENCES
B39: The estimated difference between the total forage and animal needs is: | E39: =$E$35-$E$26 -> 0 | F39: Lbs dry matter
B40: (A minus sign equals estimated additional amount needs per year for the number of animals shown above. | E40: OR | F40: intake/Year
B41: The figures consider all hay sources and may be excessive. No minus sign means a surplus is estimated) | E41: =$E$39/2000 -> 0 | F41: Tons/Year
B42: CARRYING CAPACITY ESTIMATES
B43: Pasture only
B44: For this operation, using the type and size of your livestock, it is estimated that the
B45: forage produced from the pasture (grazing only during growing season) during a period of ……… | E45: =LivestockForageBalance!H11 -> 0 | F45: days*
B46: is enough to supply the forage needs of (does not include the typical hay feeding months)……. | E46: =$E$33/(E24*(E25/100)*E45) ->  | F46: head**
B47: *Normally 250-270 days; **For stocker operations with less than a 240 day duration on the system, the above calculations may be incorrect.
B49: For the next 3 calculations, forages from the grazed pasture only was considered. Hay is not included.
B50: If the grazing efficiency on grazed acres was 40%, enough pasture forage is estimated to feed: | E50: =IF($E$34<40,(((TimeControlWorksheet!$F$44/($E$34/100))*0.4*1.05))/(LivestockForageBalance!$J$41*(TimeControlWorksheet!$I$12/100)*$E$45),"already at 40% efficiency") ->  | F50: =IF($E$34<40,"head*","") -> 
B51: If the grazing efficiency on grazed acres was 50%, enough pasture forage is estimated to feed: | E51: =IF($E$34<50,(((TimeControlWorksheet!$F$44/($E$34/100))*0.5)*1.1)/(LivestockForageBalance!$J$41*(TimeControlWorksheet!$I$12/100)*$E$45),"already at 50% efficiency") ->  | F51: =IF($E$34<50,"head*","") -> 
B52: If the grazing efficiency on grazed acres was 60%, enough pasture forage is estimated to feed: | E52: =IF($E$34<60,(((TimeControlWorksheet!$F$44/($E$34/100))*0.6)*1.15)/(LivestockForageBalance!$J$41*(TimeControlWorksheet!$I$12/100)*$E$45),"already at 60% efficiency") ->  | F52: =IF($E$34<60,"head*","") -> 
B53: When grazing efficiency is increased, total production will likely increase as well. Some increases in the production was assumed
B54: (5%,10%,15%) to come up with the carrying capacity estimates if the grazing efficiency for this operation was increased.
B56: Total Balance for Operation considering Pasture and Hay (on and off farm sources)
B57: For your operation, using the type and average size of your livestock, according to these calculations, the estimated carrying capacity on this farm,
B58: considering the pasture and hay (on&off farm sources) for a full 365 day period is:………. | E58: =IF($E$32=0,"no hay inventoried",IF($E$46<(E35/(E24*(E25/100)*365)),E33/(E24*(E25/100)*E45),E35/(E24*(E25/100)*365))) -> no hay inventoried | F58: =IF($E$32>0,"head","") -> 
B59: The above calculation was based on the following amount of hay available……..…………………..…………. | E59: =IF(E32>0, E32, "no hay inventoried") -> no hay inventoried | F59: =IF($E$32>0,"Lbs/Year","") -> 
B60: However, excess hay beyond the needs of animals (during hay feeding periods) shown under "carrying capacity for pasture" was not considered.
B61: DEFINITIONS
B64: Total Forage Production= The total above ground biomass in pounds of dry matter per acre (this is not the harvested yield).
B65: Paddock Factor= A factor related to the relative size and production of each field
B66: Animal Density= The pounds of animals per acre concentrated on a field at one time
B67: Minimum Grazing Period= The approxiamate grazing time in each field during fast forage growth. Based on minimum rest periods
B68: Maximum Grazing Periods= The approxiamate grazing time in each field during slow forage growth. Based on maximum rest periods
B69: Minimum and Maximum Rest Periods= The number of days forage should be given rest be grazing again
B70: Minimum Grazing Height= Forage should not be grazed below these heights
B71: Intake rate= The daily consumption as a percentage of the animals body weight; Guide- 2.0% for maintenance, 3.0% for average production, 4.0% for high production, for beef cows (year round) use 2.6%.
B72: Grazing Efficiency= The percent of total forage utilized by the animal; Guide- 1-4 fields-< 25%-30%; 5 fields- 35%; 6 fields- 40%; 7 fields- 45%; 8 fields- 50%; 11 fields- 55%; 16 fields-60%; 31 fields -65%; 63 fields-70%; strip grazing- 70% -75% (harvest efficiency)..
B73: WS or CS= warm season forage or cool season forage
B74: Carrying Capacity= The number of animals, based on weight of animals, a given farm may be able to provide forage for a given period.

Sheet Instructions
D2: GRAZE4.XLSM
D3: version 3.3
D4: You must have Macros Enabled in order to utilize the full functionality of the model.
D6: August, 1999; revised April 2000, revised December 2003; revised December 2010; revised April 2013, September 2017.
D7: Oroginally developed in NRCS, Missouri, Area 4 by Pat Adams, Area Resource Conservationist (Springfield, MO) for use in inventory, documentation, and planning for Prescribed Grazing systems.
D9: For Assistance Contact: Roger Staff at 618.703.3007 or
D10: Matt Bunger at 309.585.6377
D12: For Technical Concerns with the Functionality of the Model Contact:
D13: Bryon Kirwan, State Economist, 217.353.6638
D14: ____________________________________________________________________________
C16: Table of Contents: Select to jump to topic
C17: Introduction
C18: Advantages and Disadvantages
C19: Entering Data
C20: Printing Worksheets
C21: Saving Data
C22: Livestock Forage Balance Worksheet
D23: Livestock Needs and Demand Schedule
D24: Grazing System Pasture Forage Production
D25: Alternative Pasture Forage Production
D26: Hay Production and Inventory for Fields Hayed, Silage, Haylage Only
D27: Summary of Livestock Needs and Pasture Forage Production
D28: Summary: Feed and Forage Balance
D29: Graph on Availability Versus Needs, by Month
C30: Time Control Grazing Worksheet
C31: Field Worksheet
C32: Explanation Sheet for Landowner Worksheet
D33: ___________________________________________________________________________________
C35: Introduction | E35: Back to top
C36: The GRAZE4 program was originally developed for use to plan, implement and document grazing systems in southwest Missouri. It utilized the electronic J.S.Agron.1 (Livestock Forage Balance worksheet) developed by staff in Area 5 (Cape Girardeau) plus incorporated the Time Control Grazing Worksheet (known to most in this area as GRAZWS1.wk1 and sent to the field offices 9/14/95 by IRM transmittal). GRAZE4 made improvements to both tools plus added an easy to use graph that plots the amount of forage needed per month against the amount available. This simple graph does not require any manipulation by the user except simply printing it out. The Livestock-Forage Balance worksheet can be used independent of the other worksheets. The Time Control Grazing worksheet requires the Livestock Forage Balance worksheet to be completed first. Version 3.0 incorporated a means to separate hay fields and fields that are both hayed and grazed from the fields that are solely used for pasture. It also added features to make it easier to maneuver, "start over", and to print. It also added a summary for the system.
C38: Version (3.1) incorporated the following updates: 1) The font (text) has been enlarged in the drop-down menus for the "Kind fo Forage" column on the Balance Worksheet and the "Fields hayed…only" column on the Hay Inventory. Double-click in the cell to access the drop-down menu. 2) Several species of forage have been added. They are timothy, birdsfoot trefoil, white/ladino clover, redtop, alsike clover, Kentucky bluegrass, perennial ryegrass, turnips, and oats. 3) Any new forage growth occurring in March that is not eaten is "rolled over" - added to the accumulated balance for April. For specific questions about these changes please contact Lauren Cartwright, Agricultural Economist 573-876-9415.
C40: The current version (3.2) incorporates several upgrades and an updated user interface. :
C41: 1) The previous three worksheets; "step 1 Balance Worksheet", "step 3 Avail. vs. Needs Graph", and step 4 Hay Inventory" have been consolidated into one worksheet "LivestockForageBalance".
C42: 2) The "Detailed Summary" worksheet is available by selecting a button called "View Detailed Summary" at the end of the "LivestockForageBalance" worksheet. By opening the summary using the button it enables the model to automatically insert information into the Summary sheet based on the inputs provided.
C43: 3) LivestockForageBalance Worksheet:
D44: a) Check boxes are available to select the livestock class or classes to be modeled, so only those being modeled are visible.
D45: b) Once the livestock class or classes are selected and the associated rows are visible,most livestock classes will require the user to enter additional information by selecting the "…Mgt Info" button next to the livestock class name. Clicking this button will open up another window with instructions.
D46: c) The livestock classes for Cow Calf, Dairy, Bulls and Horses have the option to select to manage these herds on the grazing system year round, or you can now also select to move them to either an alternative pasture or dry lot for appropriate periods of time. These selections can be made within the "...Mgt Info"buttons next to the livestock class name. If an alternative pasture or dry lot is selected, the model will the track the forage demand of the grazing system separate from the forage demand of the alternative pasture or forage demand of the dry lot. Where an alternative pasture will be utilized for a portion of the year, an additional input area is available to enter the forage production infomation of the alternative pasture.
D47: d) When entering the fields/paddocks for the Grazing System Pasture Forage Production, the user has the option to model a hay cutting on the pasture prior to grazing by selecting the "Yes" button associated with that particular field/paddock. If the field/paddock will be hayed (by selecting the "Yes"option), then that field will be automatically entered into the Hay Production and Inventory area where the user can enter the associated hay yield information.
D48: e) The user can automatically calculate the Pasture Grazing Efficiency by selecting the button at the bottom of the Grazing System Pasture Forage Production sectionof the worksheet called "Calculate Pasture Grazing Efficiency". The user can also override the calculated Pasture Grazing Efficiency at any time by simply typing the value into the cell.
D49: f) The Total Production Pounds for hay calculation (for both the fields hayed and pastured, and hayed only) is calculated based on the forage growth curves utilizing themonth of haying input.
C50: 4) The Time Control Worksheet has been updated to automatically show the appropriate number of rows based on the number of fields/paddocks entered in the Livestock Forage Balance worksheet.
C51: 5) The Field Worksheet has been updated to include additional information that is included in the model
C53: It is highly recommended that planners with minimal grassland planning experience ask for assistance on interpretation of these spreadsheets before using GRAZE4 on a wide-scale basis. This program is a quick and easy tool to use but it is extremely important that the user understand the numbers being generated.
C54: This version of the GRAZE4 program was developed using EXCEL 2010. Please report any compatibility problems to Bryon Kirwan.
C56: Advantages and Disadvantages | E56: Back to top
C57: GRAZE4 is very simple to use. Data like fields, forage mixtures, acres, and total forage production only need to be entered once to complete all worksheets. Entering data, printing and reading the reports and graphs are fairly easy and straight-forward. This program will work well for the majority of the grazing systems most offices deal with. One-herd systems where the majority of the nutrition is from grazing are ideal situations for this program.
C59: GRAZE4 also has difficulty with grazing systems where a leader-follower system or “put and take” operation is practiced. Multiple herds of different herds where one herd grazes, as an example, 365 days and the other herd 180 days will also be a problem with this program. The more complicated systems should probably utilize GSAT for planning.
C61: The GRAZE4 program does not replace the next version of GLA (GSAT) or other existing tools. It is simply another option or alternative to use as a tool for planning grazing systems.
C63: Entering Data | E63: Back to top
C64: Once you have the program on the screen, take a minute to wander around the program. You will see tabs on the bottom of the page that takes you to different worksheets. You may want to play with the "zoom" to make the page and font size fit your eyes and the screen size you are using.
D66: There are basically 5 tabs on the bottom. The "LivestockForageBalance" tab is the main worksheet to run the model. The "Time ControlWorksheet" requires information from the "LovestockForageBalance". The remaining tabs; "Instructions", "Field Worksheet", and "Explanation Sheet for LO" are all independent support information.
D68: Most of the program has been protected so changes cannot be made in the formulas or data entered in the cells. A “cell” is the area in the EXCEL spreadsheet defined by the columns shown on the top (A,B,C...) and the rows shown on the left side (1,2,3...). In a different color (may be yellow on most computers), you will see the unprotected cells where an entry is needed or allowed. Cells that are not shaded are protected from edits. To delete an entry in an unprotected yellow cell, highlight that cell and hit delete. The mouse can be used to “block “ several cells and then hit delete.
D70: If for some reason, you need to make changes in cells that are protected, here are the steps to unprotect the spreadsheet.
D71: Select Tools
D72: Protection
D73: Unprotect Sheet
D74: Make changes as needed and re-protect the worksheet.
D75: To re-protect the sheet, follow the same steps (there is no password).
C77: Printing Worksheets | E77: Back to top
C78: Printing Information on the Livestock Forage Balance worksheet: WIthin the summary area of the Livestock Forage Balance worksheet a box is available with multiple buttons to print the information entered into the worksheet in a print-friendly format. Select the button for the area of the Livestock Forage Balance worksheet you want to print, and a Print Preview screen will open with the selected infomation. You can review the print setup and make any adjustments before printing.
C80: Additionally, print buttons are available to print the Time Control Worksheet, Instructions, Detailed Summary, Field Worksheet, and Explanation Sheet for the Landowner. The print buttons for these areas of the tool are available within these specific worksheets.
C82: Saving Data | E82: Back to top
C83: If you want to save the data for an individual, save the file as a different file name. The GRAZE4_ver3.2.xlsm file should be the file you bring up when you start working on a new system. By following these guidelines, the original file should remain clean and clear of any potential bugs that may take place as you use the program. Use the below steps if you want to save files for individual producers:
D84: Click the button called "Save As…"
D85: in the block under File Name, type in the unique name you want to save that file as.
D86: You need to navigate to the folder where you want to save the file. You may consider storing the file in the toolkit customers folder. This may be the most convenient and feasible location. This way everyone will have access to it. However, each time you save this file to a different name you are saving over 200 KB of information which over time can add up. Just be aware that these files may need to be deleted in the future if drive space becomes limited.
D87: Click OK
C89: Livestock Forage Balance Worksheet | E89: Back to top
C90: This worksheet calculates the monthly needs of the livestock along with the pasture forage availability by month and any hay either produced on farm or puchased off farm.
E91: Back to top
D92: Livestock Needs and Demand Schedule
D93: This section calculates the monthly forage demand of the livestock being modeled. Depending on the class of livestock, the user will enter required information for the model to use to calculate the demand. The first step is to select the class (or classes) of livestock to model by clicking the checkbox next to the name. You can remove an erroneous selection at any time by unchecking the checkbox. You can select as many livestock classes as needed. There are no limits or restrictions. Each livestock class will require the user to input additional information.
D95: Cow Calf Pairs: Up to three separate herds are available to model. Once the checkbox(es) is(are) selected a button will be available next to the livestock class name called "Herd X Mgt Info". Selecting this box will open a form for the user to enter the calving month and select a management option. The herd may be managed on the grazing system year round, moved to an alternative pasture for part of the year, or moved to a dry lot for part of the year. If either the alternative pasture or dry lot option is selected, the user will be prompted to enter the months associated with the alternative management. Note: Whe using the radio buttons to select the management option, be sure that the radio button shows as selected (filled). If not, then re-select the option. The selected management option will be reflected on the worksheet in the row just below the livestock class name. In addition to entering the Management information, also enter the information in yellow cells of the spreadsheet.
D97: Stockers: One or two separate herds are available to model. Management info for Stockers includes the starting weight, ADG and the months on the grazing system.
D99: Dairy: There are two Dairy options, a seasonal dairy or an annual dairy. The seasonal dairy is for herds that will be managed where all cows are not lactating during a period of the year. The management info needed is lactation period and how the cows will be managed during the non-lactation period (remain on grazing system, move to alternative pasture, or move to a dry lot). The annual dairy is for herds where some portion of the cows are lactating and being milked year round. In this option, you always have a portion of the herd that is dry and a portion that is lactating. Enter the management information for each segment of the dairy herd. For example; a 100 cow dairy where 20% of the herd is dry at any time. Enter 80 lactating cows and 20 dry cows into the planned number and the associated intake rates. Under the management buttons enter how the lactating cows are managed and how the dry cows are managed.
D101: Bulls: The bull livestock class provides several management options. You can keep the bull on the grazing system year round or you can only move the bull(s) to the grazing system only during a breeding period and otherwise keep them on an alternative pasture or dry lot. There are also options for one or two breeding seasons where the bull(s) may be moved to the grazing system twice in one year.
D103: Horses: The horses livestock class also offer the option to manage the horse herd on the grazing system year round, or move the herd to an alternative pasture or dry lot for part of the year.
D105: Goats and Sheep: In this version, goats and sheep livestock classes do not have any alternative management options, the user will simply enter the basic info in the yellow cells. The model assumes all grazing is done on the grazing system.
D107: Summary: After all livestock demand information has been entered, the model provides a summary of the total forage demand by month for the Grazing System, Alternative Pasture and/or Dry Lot.
E108: Back to top
D109: Grazing System Pasture Forage Production
D110: This section calculates the grazing system pasture forage supply provided by the producer's land. The grazing system forage production calculation is intended to capture the forage produced on the main grazing system that is managed specifically for grazing and will typically be the managed rotational grazing system. The model allows up to 24 fields/paddocks to be entered by selecting the "+" icon..
D112: For each field/paddock, enter the field number (identifier), kind of forage (double-click in the cell to access a drop down menu to select the forage type), acres, yield (total forage production), and the grazing efficiency. The model takes into account the forage you have selected and the associated growth curve for that forage being pastured. This worksheet simply multiples the pounds per acre of total above ground production X acres X grazing efficiency X the % growth for that month.
D114: If any fields are managed by haying and then used as pasture, this option can be captured in the model by selecting the "Yes" button provided as an option with each field/paddock entered. Selecting the "yes" button will prompt the user to input the month that the haying will occur. The model will reserve the forage production up to the haying month towards hay production only, and only the growth after the hay is cut will be available and calculated as part of the pasture forage availablilty. The field will also be automatically added into the hay production and inventory section below where the actual hay production amount will be captured. At any time, the user can select the "No" button to remove the haying option from any field/paddock reverting that field to grazing production only.
D116: Where a field will be hayed and then grazed, you will need to enter the Hay Harvest Efficiency (%). The Hay Total Production Pounds is calculated by multiplying the percent of growth that has occured at the time of haying based upon the Forage Growth Curves.
D118: At this time there is not an option to graze and then hay a field.
D120: Some farms have several fields that have the same forage species in all fields. To efficiently enter the forage species for several fields, first enter the specie for the first field and then do a copy and paste function for the rest of the fields that have the same mixture.
D122: After all fields are entered, the user can automatically calclate the Pasture Grazing Efficiency % by selecting the "Calculate Pasture Grazing Efficiency" button. Selecting the "Calculate Pasture Grazing Efficiency" button will calculate the pasture grazing efficiency for each field/paddock by dividing the Total Usable Acres Grazed by the Acres of each field/paddock to generate a Paddock Equivalency Value. The Paddock Equivalency Value is used to return the associated Pasture Grazing Efficiency value based on a table provided in the model. The user can override this calculation at any time by simply typing an efficiency value into the associated cell. To return to the calculated efficiency values, simply select the "Calculate" button again.
D124: Total Forage Production
D125: Estimating total forage production (TFP) is tough. First off, you have to remember that total forage production is not the same as "yield". Yield usually considers what is actually removed and harvested whether by the animal or machine. Total forage production is the yield plus the growth that is left below what the animal eats or machine cuts.
D127: It is up to the planner to make the best estimate they can. As a rule of thumb, if you know hay yields, for example 2 tons, then take the yield (4000 lbs) divided by 0.7 to give an estimated TFP. In this case 5700 lbs TFP. The TFP will depend on several factors that you need to consider. The soil, the fertility, the forage chracteristics (density, vigor, species...), and the management should all be considered. There are several resources that can be used as guides to help determine TFP. An experienced grassland planner should always be considered a resource. The farmer himself should be considered, especially if he/she have records of production. A soil survey can be used and will have information on production. The FOTG, section II will have information on TFP. This guide splits production by the Pasture Suitability Group (PSG) and may encompase several soils within the PSG. Old GLA records and tables have this information (although not many planners will have this).
D128: Another resource that can be found in the FOTG section II is called "Productivity of Missouri Soils". This resource gives the index for soils and links the index to production levels for hay and pasture. Since this guide has not been revised since 1995, there may be some new soils that are not included. However, a soil scientist, can help estimate the index based on the characteristics of the soil. Illinois has different references within the eFOTG. Illinois users look at IL info.
D130: NOTE: Regardless of which of the above resources you use, you need to make sure of the units being used in the guide (yield versus TFP) plus the type of management (ex. high versus medium level of management, low versus medium soil fertility...) being assumed to come up with estimates.
E131: Back to top
D132: Alternative Pasture Forage Production
D133: This section captures forage produced for livestock that are managed for some period of time on an alternative pasture. An alternative pasture is typically some unmanaged acreage where animals are moved to graze when peak productivity is not required, such as when dairy cows are dry or heifers are not lactating, or when bulls are not with cows for breeding.
D135: Only utilize this section if you have selected to manage any of your livestock on an alternative pasture in the Livestock Needs and Demand Schedule. This additional input allows a comparison of the livestock demand and forage available during the period of time the alternative pasture is utilized.
E136: Back to top
D137: Hay Production and Inventory for Fields Hayed, Silage, Haylage Only
D138: This section allows you to inventory hay fields in the system. You enter the field numbers, species, acres, total forage production, and the harvest efficiency. As a rule of thumb for haying operations, the harvest efficiency is usually 70%. The Hay Total Production Pounds is calculated by multiplying the percent of growth that has occured at the time of haying based upon the Forage Growth Curves.
D140: The Summary Feed and Forage Balance has options where you can also enter the amount of hay or forage purchased or brought into the system from off-farm sources. This can be important in situations where no hay is cut (or a percentage of the hay) on this farm (the forage produced on the farm does not support the entire herd for the period that are retained on this system). Most likely if this hay is not accounted for the carrying capacity will not reflect the ability to carrying more animals during hay feeding times. In otherwords the summary page will show a lower carrying capacity because hay is not shown as being brought in. However, planners should be aware and recognize signs of potential overgrazing during the growing season and not use the "additional off-farm" feed simply to balance the system for the desired herd size when in actuality the system cannot carry the herd except during periods of fast growth.
E141: Back to top
D142: Summary of Livestock Needs and Pasture Forage Production
D143: This section is an expansion of the summary provided in previous versions. Since the management options allow management on alternative pasture and/or dry lot for a portion of the year for some livestock classes, the summary has been expanded to include these alternative options,so the user can balance all forage needs of the entire operation for all livestock.
D145: The alternative pasture summary captures any livestock forage demand on alternative pasture and compares that with the alternative pasture forage production. If an alternative pasture is not utilized as part of the livestock management system (indicated by not selecting this management option for any livestock classes in the Livestock Needs and Demand Schedule area and not entering data into the Alternative Pasture Forage Production section) then this summary area will remain blank.
D147: The dry lot summary captures any livestock forage demand during the period of time they are confined to a dry lot. Any forage demand on a dry lot must be met with hay. If a dry lot is not utilized as part of the livestock management system (indicated by not selecting this management option for any livestock classes in the Livestock Needs and Demand Schedule area) then this summary area will remain blank.
E148: Back to top
D149: Summary: Feed and Forage Balance
D150: This summary provides an overview of the total forage demands and total forage supplied (from both the grazing system and alternative pasture if that is being utilized).
D152: The summary then calculates the hay inventory that is available to make up and deficiencies in the pasture forage supply and livestock demands. Additionally, this section can be used to estimate if there will be extra hay produced on farm that could be sold, or capture hay that must be purchased to make up any deficiencies. A hay carry over inventory input has been added to capture any hay that may already be stored on site. This input can also be utilized for multi year planning, where you run the model for year one and have some extra hay, then run another iteration of the model to represent a second year of management and that extra hay produced in year 1 can be entered as carry over for year 2.
E153: Back to top
D154: Graph on Availability Versus Needs, by Month
D155: This graph gives a visual representation of what is occurring on this farm over the year. It does a good job of showing deficits such as during the summer, when warm season perennials or annuals may fill the gap, or during the winter months when forages have ceased production. Also, it will typically show the surplus of forage in the spring/early summer months, when hay is typically harvested. This graph is only looking at forages produced on pasture fields and does not reflect the forages harvested for hay. A third line in the graph also shows the accumulated balance of forage over the year. The accumulated balance captures forage that was not eaten during high growth periods and thus available for the animals in future months. When the accumulated balance is below zero, supplemental forage is required.
C157: Time Control Grazing Worksheet | E157: Back to top
C158: The Time Control Grazing Worksheet no longer calculates the carrying capacity (shown on summary). It shows the minimum and maximum grazing days based on the size of the pastures and production, and calculates the animal density per acre. The Min/Max grazing days are a guide for the producer. Minimum grazing days for when forages are growing fast, maximum for when forages are growing slower. The 528a standard and specification will give you guidelines on what is acceptable. This worksheet also has the capacity of 24 fields to be entered which are carried over from step 1.
C160: To use this worksheet, the user has to complete the Livestock Forage Balance Worksheet FIRST.
C162: Once the Livestock Forage Balance worksheet is completed, the Time Control Grazing worksheet only requires three entries. The cells that require manual entry by the user are: Minimum and Maximum Rest Periods (from the 528a standard and specifications), and Number of Herds. Entries like name, system ID, county, date, fields, acres, and total forage production is carried directly over from the Livestock Forage Balance worksheet. Data like grazing efficiency, animal weights, animal numbers, and intake rate are also derived from the other worksheet and weighted averages are calculated and automatically entered. Minimum grazing heights are populated automatically as well.
C164: Detailed Summary Worksheet | E164: Back to top
C165: You access the Detailed Summary by selecting the "View Detailed Summary" button from the Livestock Forage Balance worksheet. The button is located next to the Summary Feed and Forage Balance. By opening the summary using the button it enables the model to automatically insert information into the Summary sheet based on the inputs provided.
C167: As the name implies, this sheet summarizes the information from other steps in a concise meaningful format for the landowner. It estimates the carrying capacity for the operation and also estimates the carrying capacity at different levels of grazing efficiencies. There is one user entry required to estimate the carrying capacity on the pasture only. The definitions for terms used on all worksheets are also located on the bottom of this page.
C169: Field Worksheet | E169: Back to top
C170: This sheet is intended for the planner to print out a blank sheet, take it to the field and complete while talking to the producer and working with the producer. It allows the entries required to complete the other Graze4 worksheets.
C172: Explanation Sheet for Landowner Worksheet | E172: Back to top
C173: This sheet is a means to explain the worksheets that you are providing to them. Print it out and check the sheets that you are including in the plan.

Sheet Field Worksheet (hidden)
B3: To utilize the field worksheet for collecting data, first use the checkboxes to select the livestock class(es) on the farm you will be visiting. Select as many as needed. Then Select the "Print Field Worksheet" button, this will open to a print preview screen where you can review and make any adjustments to the page setup prior to printing.
D5: Cow Calf Operation (includes Bulls)
D6: Stockers Operation
D7: Seasonal Dairy Operation
D8: Annual Dairy Operation
D9: Horse Operation
D10: Sheep and/or Goats Operation
B15: Field Worksheet
B16: Producer Name: _____________________________________ | F16: System ID: ____________________ Date: __________
B17: County: __________________ Completed By: _________________________________
B19: Cow Calf Operation (Includes Bulls)
B20: Livestock Class/Herd ID | C20: Numbers | D20: Average Weights | E20: Intake Rate (%) | F20: Calving month | G20: Management Details
G21: Grazing System All Year | H21: Alternative Pasture | J21: Dry Lot
H22: Month In | I22: Month Out | J22: Month In | K22: Month Out
B29: Stockers Operation
B30: Herd ID | C30: Numbers | D30: Average Weights | E30: Intake Rate (%) | F30: Start Weight | G30: Month in | H30: Month out | I30: Avg Daily Gain
B37: Seasonal Dairy Operation
B38: Herd ID | C38: Numbers | D38: Average Weights | E38: Lactating Intake Rate (%) | F38: Dry Intake Rate (%) | G38: Lactating month start | H38: Lactating month end | I38: Management Details
I39: Grazing System All Year | J39: Alternative Pasture when Dry | K39: Dry Lot when Dry
B44: Annual Dairy Operation *
B45: Lactating Herd | C45: Numbers | D45: Average Weights | E45: Intake Rate (%) | F45: Management Details
F46: Grazing System All Year | G46: Alternative Pasture | I46: Dry Lot
G47: Month In | H47: Month Out | I47: Month In | J47: Month Out
B52: Dry Herd | C52: Numbers | D52: Average Weights | E52: Intake Rate (%) | F52: Management Details
F53: Alternative Pasture | H53: Dry Lot
F54: Month In | G54: Month Out | H54: Month In | I54: Month Out
B58: * For the model a singe herd will be modeled as a portion of the herd as lactating and a portion dry at any point in time. For example; a 100 cow dairy where on average 20% of the herd are dry at any point in time. Enter the data as 80 cows for the lactating herd and 20 cows for the dry herd.
B61: Horse Operation
B62: Herd ID | C62: Numbers | D62: Average Weights | E62: Intake Rate (%) | F62: Management Details
F63: Grazing System All Year | G63: Alternative Pasture | I63: Dry Lot
G64: Month In | H64: Month Out | I64: Month In | J64: Month Out
B71: Sheep/Goats Operation
B72: Herd ID | C72: Numbers | D72: Average Weights | E72: Intake Rate (%)
B81: Pasture, Pasture/Hay, and/or Alternative Pasture Forage Production
B82: Forages | C82: Field # | D82: Acres* | E82: Pasture TFP or yield** | F82: Grazing efficiency | G82: Hay TFP or yield**** | H82: Both hay & pasture? | I82: Month Hayed | J82: Alternative Pasture
B107: * might choose to ignore acres during field visit and address back at office.
B108: ** whether TFP or yield, note which one and make appropriate interpretation and conversion.
B110: Additional Hay Production
B111: Forages | C111: Field # | D111: Acres* | E111: TFP or yield** | F111: Month Hayed
B119: *might choose to ignore acres during field visit and address back at office.
B120: ** whether TFP or yield, note which one and make appropriate interpretation and conversion.
B122: Additional Hay Information (buy hay or bring in hay, how much…)
B123: Hay Category | C123: Lbs | D123: Comments
B124: Purchased Hay:
B125: Carry Over Hay:
B129: Comments/notes:

Sheet Explanation sheet for L.O.
B2: Explanation Sheet for Attached Documents for
B3: =Name -> 0
B4: =Date -> 
B5: included | C5: not included | D5: Document Name and Explanation
D6: Livestock Inventory and Demand Summary
D7: This sheet contains information about the livestock you plan to have (and possibly the livestock you currently have) on a particular piece of ground. Information like numbers, weights, their daily intake rates are included. The sheet makes estimates of their forage demand. This sheet also captures any management decisions for some livestock classes to capture if you livestock will stay on the grazing system year round, spend some of the year on an alternative pasture or spend some time of the year on a dry lot. An alternative pasture is typically some unmanaged acreage where animals are moved to graze when peak productivity is not required, such as when dairy cows are dry or heifers are not lactating, or when bulls are not with cows for breeding. The total forage demand by management option is summarized.
D9: Pasture Forage Production Summary
D10: This sheet captures the forage production on the grazing system per month based on seasonal growth curves per species. Additionally, if an alternative pasture is being utilized the summary shows the forage production for the alternative pasture(s) modeled.
D12: Hay Production Summary
D13: This sheet shows a summary of the hay produced on the farm. This includes hay produced on fields that are hayed and grazed, and fields that are used for haying only.
D15: Feed and Forage Balance Summary
D16: This sheet ties the infomration from the previous sheets together and shows a comparison by month of the forage demand and produced. The sedon part of the sheet is a feed and forage balance which provides an overall estimate of total forage available (including hay) and forage demand.
D18: Grazing System Forage Availability versus Livestock Needs Graph
D19: This graph looks at information from the Livestock-Forage Balance sheet and gives a visual display of the estimated needs of the animal from the grazing system versus the grazing system production by each month. This graph only considers the grazing system (does not include hay). This graph may help visualize the needs and surpluses of your system over the course of a year. Additionally, the graph shows the accumulated balance. Accumulated balance factors in forage that is not utilized the previous month that is still available to the animals to graze. A negative accumulated balance indicates the need for supplemental forage, such as hay, to meet the livestock needs.
D21: Alternative Pasture Forage Availability versus Livestock Needs Graph
D22: Same as the Grazing System Forage Availability versus Livestock Needs Graph, but for the Alternative pasture(s) if that is part of the system being modeled.
D24: Time Control Grazing Worksheet
D25: This sheet utilized the information from the Livestock Forage Balance worksheet, and adds a grazing time component. A few major items to look at are the minimum and maximum grazing days, the animal density, and the minimum grazing heights. The grazing days are the range of days livestock should reside (graze) in that particular field. The "minimum days" for when forage is growing fast, "maximum days" for when forage is growing slow. By using these guides, a proper rest period should be achieved. The animal density can be a measure of how well the forage will be utilized. The lower the density, the more opportunities for wasted forage, more "picky" eating, and less utilization. The minimum grazing heights are extremely important and should be adhered to for proper management. They are based on the kind of forage in that field. Definitions for some of the terms used are available on the Time Control Grazing Worksheet. Note, The MIN and MAX grazing days should not exceed the days identified in CPS 528, Table 2 for the forage and paddocks planned
D27: Detailed Summary Sheet
D28: This sheet summarizes all the information from the previous sheets and provides an analysis of the system. It identifies the needs and what is available and shows deficits and surpluses. It also allows an estimate of the carrying capacity of the farm(s) at the current level or planned level. It may also make some predictions in the carrying capacity if you were to increase the grazing efficiency on the farm- by improving the level of management.
B30: Take time to review these sheets and understand them. If they are confusing, let us know so we can go over them with you. All these worksheets were completed using the best information available to the person(s) doing the planning. They are based on estimates of needs and production. Wet years, dry years are not considered and will obviously make a difference in the numbers being generated. Averages were used.

Sheet Calculations (hidden)
A1: Step 1 Balance Worksheet Calculations
U2: Adams
A3: Cow Calf | U3: Alexander
B4: 1 | C4: 2 | D4: 3 | E4: 4 | F4: 5 | G4: 6 | H4: 7 | I4: 8 | J4: 9 | K4: 10 | L4: 11 | M4: 12 | N4: month rel. to calving | U4: Bond
A5: =SUM(B5:M5)/12 -> 1 | B5: 1.168 | C5: 1.183 | D5: 1.163 | E5: 1.141 | F5: 1.079 | G5: 1.007 | H5: 0.947 | I5: 0.791 | J5: 0.806 | K5: 0.821 | L5: 0.893 | M5: 1.001 | N5: relative forage requirement | U5: Boone
U6: Brown
B7: April | C7: May | D7: June | E7: July | F7: August | G7: September | H7: October | I7: November | J7: December | K7: January | L7: February | M7: March | U7: Bureau
A8: CowCalf1 | B8: =HLOOKUP(IF(17-Calculations!$B$16>12,17-Calculations!$B$16-12,17-Calculations!$B$16),$B$4:$M$5,2,FALSE)*((365/12)/30) -> 1.184222222 | C8: =HLOOKUP(IF(18-Calculations!$B$16>12,18-Calculations!$B$16-12,18-Calculations!$B$16),$B$4:$M$5,2,FALSE)*((365/12)/31) -> 1.160739247 | D8: =HLOOKUP(IF(19-Calculations!$B$16>12,19-Calculations!$B$16-12,19-Calculations!$B$16),$B$4:$M$5,2,FALSE)*((365/12)/30) -> 1.179152778 | E8: =HLOOKUP(IF(20-Calculations!$B$16>12,20-Calculations!$B$16-12,20-Calculations!$B$16),$B$4:$M$5,2,FALSE)*((365/12)/31) -> 1.11952957 | F8: =HLOOKUP(IF(21-Calculations!$B$16>12,21-Calculations!$B$16-12,21-Calculations!$B$16),$B$4:$M$5,2,FALSE)*((365/12)/31) -> 1.058696237 | G8: =HLOOKUP(IF(22-Calculations!$B$16>12,22-Calculations!$B$16-12,22-Calculations!$B$16),$B$4:$M$5,2,FALSE)*((365/12)/30) -> 1.020986111 | H8: =HLOOKUP(IF(23-Calculations!$B$16>12,23-Calculations!$B$16-12,23-Calculations!$B$16),$B$4:$M$5,2,FALSE)*((365/12)/31) -> 0.9291801075 | I8: =HLOOKUP(IF(24-Calculations!$B$16>12,24-Calculations!$B$16-12,24-Calculations!$B$16),$B$4:$M$5,2,FALSE)*((365/12)/30) -> 0.8019861111 | J8: =HLOOKUP(IF(25-Calculations!$B$16>12,25-Calculations!$B$16-12,25-Calculations!$B$16),$B$4:$M$5,2,FALSE)*((365/12)/31) -> 0.7908333333 | K8: =HLOOKUP(IF(14-Calculations!$B$16>12,14-Calculations!$B$16-12,14-Calculations!$B$16),$B$4:$M$5,2,FALSE)*((365/12)/31) -> 0.8055510753 | L8: =HLOOKUP(IF(15-Calculations!$B$16>12,15-Calculations!$B$16-12,15-Calculations!$B$16),$B$4:$M$5,2,FALSE)*((365/12)/28) -> 0.9700744048 | M8: =HLOOKUP(IF(16-Calculations!$B$16>12,16-Calculations!$B$16-12,16-Calculations!$B$16),$B$4:$M$5,2,FALSE)*((365/12)/31) -> 0.9821639785 | R8: Haying Month Drop Fown | U8: Calhoun
A9: =SUM(B9:M9)/365 -> 1 | B9: =B8*30 -> 35.52666667 | C9: =C8*31 -> 35.98291667 | D9: =D8*30 -> 35.37458333 | E9: =E8*31 -> 34.70541667 | F9: =F8*31 -> 32.81958333 | G9: =G8*30 -> 30.62958333 | H9: =H8*31 -> 28.80458333 | I9: =I8*30 -> 24.05958333 | J9: =J8*31 -> 24.51583333 | K9: =K8*31 -> 24.97208333 | L9: =L8*28 -> 27.16208333 | M9: =M8*31 -> 30.44708333 | R9: 1 | U9: Carroll
A10: CowCalf2 | B10: =HLOOKUP(IF(17-Calculations!$B$17>12,17-Calculations!$B$17-12,17-Calculations!$B$17),$B$4:$M$5,2,FALSE)*((365/12)/30) -> 0.9601527778 | C10: =HLOOKUP(IF(18-Calculations!$B$17>12,18-Calculations!$B$17-12,18-Calculations!$B$17),$B$4:$M$5,2,FALSE)*((365/12)/31) -> 0.7761155914 | D10: =HLOOKUP(IF(19-Calculations!$B$17>12,19-Calculations!$B$17-12,19-Calculations!$B$17),$B$4:$M$5,2,FALSE)*((365/12)/30) -> 0.8171944444 | E10: =HLOOKUP(IF(20-Calculations!$B$17>12,20-Calculations!$B$17-12,20-Calculations!$B$17),$B$4:$M$5,2,FALSE)*((365/12)/31) -> 0.8055510753 | F10: =HLOOKUP(IF(21-Calculations!$B$17>12,21-Calculations!$B$17-12,21-Calculations!$B$17),$B$4:$M$5,2,FALSE)*((365/12)/31) -> 0.8761962366 | G10: =HLOOKUP(IF(22-Calculations!$B$17>12,22-Calculations!$B$17-12,22-Calculations!$B$17),$B$4:$M$5,2,FALSE)*((365/12)/30) -> 1.014902778 | H10: =HLOOKUP(IF(23-Calculations!$B$17>12,23-Calculations!$B$17-12,23-Calculations!$B$17),$B$4:$M$5,2,FALSE)*((365/12)/31) -> 1.146021505 | I10: =HLOOKUP(IF(24-Calculations!$B$17>12,24-Calculations!$B$17-12,24-Calculations!$B$17),$B$4:$M$5,2,FALSE)*((365/12)/30) -> 1.199430556 | J10: =HLOOKUP(IF(25-Calculations!$B$17>12,25-Calculations!$B$17-12,25-Calculations!$B$17),$B$4:$M$5,2,FALSE)*((365/12)/31) -> 1.141115591 | K10: =HLOOKUP(IF(14-Calculations!$B$17>12,14-Calculations!$B$17-12,14-Calculations!$B$17),$B$4:$M$5,2,FALSE)*((365/12)/31) -> 1.11952957 | L10: =HLOOKUP(IF(15-Calculations!$B$17>12,15-Calculations!$B$17-12,15-Calculations!$B$17),$B$4:$M$5,2,FALSE)*((365/12)/28) -> 1.172127976 | M10: =HLOOKUP(IF(16-Calculations!$B$17>12,16-Calculations!$B$17-12,16-Calculations!$B$17),$B$4:$M$5,2,FALSE)*((365/12)/31) -> 0.9880510753 | R10: 2 | U10: Cass
A11: =SUM(B11:M11)/365 -> 1 | B11: =B10*30 -> 28.80458333 | C11: =C10*31 -> 24.05958333 | D11: =D10*30 -> 24.51583333 | E11: =E10*31 -> 24.97208333 | F11: =F10*31 -> 27.16208333 | G11: =G10*30 -> 30.44708333 | H11: =H10*31 -> 35.52666667 | I11: =I10*30 -> 35.98291667 | J11: =J10*31 -> 35.37458333 | K11: =K10*31 -> 34.70541667 | L11: =L10*28 -> 32.81958333 | M11: =M10*31 -> 30.62958333 | R11: 3 | U11: Champaign
A12: CowCalf3 | B12: =HLOOKUP(IF(17-Calculations!$B$18>12,17-Calculations!$B$18-12,17-Calculations!$B$18),$B$4:$M$5,2,FALSE)*((365/12)/30) -> 1.184222222 | C12: =HLOOKUP(IF(18-Calculations!$B$18>12,18-Calculations!$B$18-12,18-Calculations!$B$18),$B$4:$M$5,2,FALSE)*((365/12)/31) -> 1.160739247 | D12: =HLOOKUP(IF(19-Calculations!$B$18>12,19-Calculations!$B$18-12,19-Calculations!$B$18),$B$4:$M$5,2,FALSE)*((365/12)/30) -> 1.179152778 | E12: =HLOOKUP(IF(20-Calculations!$B$18>12,20-Calculations!$B$18-12,20-Calculations!$B$18),$B$4:$M$5,2,FALSE)*((365/12)/31) -> 1.11952957 | F12: =HLOOKUP(IF(21-Calculations!$B$18>12,21-Calculations!$B$18-12,21-Calculations!$B$18),$B$4:$M$5,2,FALSE)*((365/12)/31) -> 1.058696237 | G12: =HLOOKUP(IF(22-Calculations!$B$18>12,22-Calculations!$B$18-12,22-Calculations!$B$18),$B$4:$M$5,2,FALSE)*((365/12)/30) -> 1.020986111 | H12: =HLOOKUP(IF(23-Calculations!$B$18>12,23-Calculations!$B$18-12,23-Calculations!$B$18),$B$4:$M$5,2,FALSE)*((365/12)/31) -> 0.9291801075 | I12: =HLOOKUP(IF(24-Calculations!$B$18>12,24-Calculations!$B$18-12,24-Calculations!$B$18),$B$4:$M$5,2,FALSE)*((365/12)/30) -> 0.8019861111 | J12: =HLOOKUP(IF(25-Calculations!$B$18>12,25-Calculations!$B$18-12,25-Calculations!$B$18),$B$4:$M$5,2,FALSE)*((365/12)/31) -> 0.7908333333 | K12: =HLOOKUP(IF(14-Calculations!$B$18>12,14-Calculations!$B$18-12,14-Calculations!$B$18),$B$4:$M$5,2,FALSE)*((365/12)/31) -> 0.8055510753 | L12: =HLOOKUP(IF(15-Calculations!$B$18>12,15-Calculations!$B$18-12,15-Calculations!$B$18),$B$4:$M$5,2,FALSE)*((365/12)/28) -> 0.9700744048 | M12: =HLOOKUP(IF(16-Calculations!$B$18>12,16-Calculations!$B$18-12,16-Calculations!$B$18),$B$4:$M$5,2,FALSE)*((365/12)/31) -> 0.9821639785 | R12: 4 | U12: Christian
A13: =SUM(B13:M13)/365 -> 1 | B13: =B12*30 -> 35.52666667 | C13: =C12*31 -> 35.98291667 | D13: =D12*30 -> 35.37458333 | E13: =E12*31 -> 34.70541667 | F13: =F12*31 -> 32.81958333 | G13: =G12*30 -> 30.62958333 | H13: =H12*31 -> 28.80458333 | I13: =I12*30 -> 24.05958333 | J13: =J12*31 -> 24.51583333 | K13: =K12*31 -> 24.97208333 | L13: =L12*28 -> 27.16208333 | M13: =M12*31 -> 30.44708333 | R13: 5 | U13: Clark
R14: 6 | U14: Clay
A15: Additional Input from user for calculations (input from user form) | R15: 7 | U15: Clinton
A16: CowCalf1 | B16: 4 | C16: from CowCalf1 UserForm | R16: 8 | U16: Coles
A17: CowCalf2 | B17: 10 | C17: from CowCalf2 UserForm | R17: 9 | U17: Cook
A18: CowCalf3 | B18: 4 | C18: from CowCalf3 UserForm | R18: 10 | U18: Crawford
R19: 11 | U19: Cumberland
A20: Stockers | R20: 12 | U20: DeKalb
U21: De Witt
A22: April | B22: May | C22: June | D22: July | E22: August | F22: September | G22: October | H22: November | I22: December | J22: January | K22: February | L22: March | U22: Douglas
A23: 30 | B23: 31 | C23: 30 | D23: 31 | E23: 31 | F23: 30 | G23: 31 | H23: 30 | I23: 31 | J23: 31 | K23: 28 | L23: 31 | M23: days on month | U23: DuPage
A24: =IF(Calculations!$D34=4,0,IF(Calculations!$D34<Calculations!$D35, IF(Calculations!$D34<4,IF(Calculations!$D35>=4,L23+L24,0),0),IF(Calculations!$D34>Calculations!$D35,IF(Calculations!$D35>=4,L23+L24,IF(Calculations!$D34<=4,L23+L24,0)),0))) -> 0 | B24: =IF(Calculations!$D34=5,0,IF(Calculations!$D34<Calculations!$D35, IF(Calculations!$D34<5,IF(Calculations!$D35>=5,A23+A24,0),0),IF(Calculations!$D34>Calculations!$D35,IF(Calculations!$D35>=5,A23+A24,IF(Calculations!$D34<=5,A23+A24,0)),0))) -> 30 | C24: =IF(Calculations!$D34=6,0,IF(Calculations!$D34<Calculations!$D35, IF(Calculations!$D34<6,IF(Calculations!$D35>=6,B23+B24,0),0),IF(Calculations!$D34>Calculations!$D35,IF(Calculations!$D35>=6,B23+B24,IF(Calculations!$D34<=6,B23+B24,0)),0))) -> 61 | D24: =IF(Calculations!$D34=7,0,IF(Calculations!$D34<Calculations!$D35, IF(Calculations!$D34<7,IF(Calculations!$D35>=7,C23+C24,0),0),IF(Calculations!$D34>Calculations!$D35,IF(Calculations!$D35>=7,C23+C24,IF(Calculations!$D34<=7,C23+C24,0)),0))) -> 91 | E24: =IF(Calculations!$D34=8,0,IF(Calculations!$D34<Calculations!$D35, IF(Calculations!$D34<8,IF(Calculations!$D35>=8,D23+D24,0),0),IF(Calculations!$D34>Calculations!$D35,IF(Calculations!$D35>=8,D23+D24,IF(Calculations!$D34<=8,D23+D24,0)),0))) -> 0 | F24: =IF(Calculations!$D34=9,0,IF(Calculations!$D34<Calculations!$D35, IF(Calculations!$D34<9,IF(Calculations!$D35>=9,E23+E24,0),0),IF(Calculations!$D34>Calculations!$D35,IF(Calculations!$D35>=9,E23+E24,IF(Calculations!$D34<=9,E23+E24,0)),0))) -> 0 | G24: =IF(Calculations!$D34=10,0,IF(Calculations!$D34<Calculations!$D35, IF(Calculations!$D34<10,IF(Calculations!$D35>=10,F23+F24,0),0),IF(Calculations!$D34>Calculations!$D35,IF(Calculations!$D35>=10,F23+F24,IF(Calculations!$D34<=10,F23+F24,0)),0))) -> 0 | H24: =IF(Calculations!$D34=11,0,IF(Calculations!$D34<Calculations!$D35, IF(Calculations!$D34<11,IF(Calculations!$D35>=11,G23+G24,0),0),IF(Calculations!$D34>Calculations!$D35,IF(Calculations!$D35>=11,G23+G24,IF(Calculations!$D34<=11,G23+G24,0)),0))) -> 0 | I24: =IF(Calculations!$D34=12,0,IF(Calculations!$D34<Calculations!$D35, IF(Calculations!$D34<12,IF(Calculations!$D35>=12,H23+H24,0),0),IF(Calculations!$D34>Calculations!$D35,IF(Calculations!$D35>=12,H23+H24,IF(Calculations!$D34<=12,H23+H24,0)),0))) -> 0 | J24: =IF(Calculations!$D34=1,0,IF(Calculations!$D34<Calculations!$D35, IF(Calculations!$D34<1,IF(Calculations!$D35>=1,I23+I24,0),0),IF(Calculations!$D34>Calculations!$D35,IF(Calculations!$D35>=1,I23+I24,IF(Calculations!$D34<=1,I23+I24,0)),0))) -> 0 | K24: =IF(Calculations!$D34=2,0,IF(Calculations!$D34<Calculations!$D35, IF(Calculations!$D34<2,IF(Calculations!$D35>=2,J23+J24,0),0),IF(Calculations!$D34>Calculations!$D35,IF(Calculations!$D35>=2,J23+J24,IF(Calculations!$D34<=2,J23+J24,0)),0))) -> 0 | L24: =IF(Calculations!$D34=3,0,IF(Calculations!$D34<Calculations!$D35, IF(Calculations!$D34<3,IF(Calculations!$D35>=3,K23+K24,0),0),IF(Calculations!$D34>Calculations!$D35,IF(Calculations!$D35>=3,K23+K24,IF(Calculations!$D34<=3,K23+K24,0)),0))) -> 0 | M24: Stockers1 | N24: accum days prior | U24: Edgar
A25: =IF(Calculations!$D34<Calculations!$D35,IF(Calculations!$D34<=4,IF(Calculations!$D35>=4,((2*(Calculations!$D32+(A24*Calculations!$D33))+Calculations!$D33*A23)/2),0),0),IF(Calculations!$D34>Calculations!$D35,IF(Calculations!$D34<=4,((2*(Calculations!$D32+(A24*Calculations!$D33))+Calculations!$D33*A23)/2),IF(Calculations!$D35>=4,((2*(Calculations!$D32+(A24*Calculations!$D33))+Calculations!$D33*A23)/2),0)))) -> 415 | B25: =IF(Calculations!$D34<Calculations!$D35,IF(Calculations!$D34<=5,IF(Calculations!$D35>=5,((2*(Calculations!$D32+(B24*Calculations!$D33))+Calculations!$D33*B23)/2),0),0),IF(Calculations!$D34>Calculations!$D35,IF(Calculations!$D34<=5,((2*(Calculations!$D32+(B24*Calculations!$D33))+Calculations!$D33*B23)/2),IF(Calculations!$D35>=5,((2*(Calculations!$D32+(B24*Calculations!$D33))+Calculations!$D33*B23)/2),0)))) -> 445.5 | C25: =IF(Calculations!$D34<Calculations!$D35,IF(Calculations!$D34<=6,IF(Calculations!$D35>=6,((2*(Calculations!$D32+(C24*Calculations!$D33))+Calculations!$D33*C23)/2),0),0),IF(Calculations!$D34>Calculations!$D35,IF(Calculations!$D34<=6,((2*(Calculations!$D32+(C24*Calculations!$D33))+Calculations!$D33*C23)/2),IF(Calculations!$D35>=6,((2*(Calculations!$D32+(C24*Calculations!$D33))+Calculations!$D33*C23)/2),0)))) -> 476 | D25: =IF(Calculations!$D34<Calculations!$D35,IF(Calculations!$D34<=7,IF(Calculations!$D35>=7,((2*(Calculations!$D32+(D24*Calculations!$D33))+Calculations!$D33*D23)/2),0),0),IF(Calculations!$D34>Calculations!$D35,IF(Calculations!$D34<=7,((2*(Calculations!$D32+(D24*Calculations!$D33))+Calculations!$D33*D23)/2),IF(Calculations!$D35>=7,((2*(Calculations!$D32+(D24*Calculations!$D33))+Calculations!$D33*D23)/2),0)))) -> 506.5 | E25: =IF(Calculations!$D34<Calculations!$D35,IF(Calculations!$D34<=8,IF(Calculations!$D35>=8,((2*(Calculations!$D32+(E24*Calculations!$D33))+Calculations!$D33*E23)/2),0),0),IF(Calculations!$D34>Calculations!$D35,IF(Calculations!$D34<=8,((2*(Calculations!$D32+(E24*Calculations!$D33))+Calculations!$D33*E23)/2),IF(Calculations!$D35>=8,((2*(Calculations!$D32+(E24*Calculations!$D33))+Calculations!$D33*E23)/2),0)))) -> 0 | F25: =IF(Calculations!$D34<Calculations!$D35,IF(Calculations!$D34<=9,IF(Calculations!$D35>=9,((2*(Calculations!$D32+(F24*Calculations!$D33))+Calculations!$D33*F23)/2),0),0),IF(Calculations!$D34>Calculations!$D35,IF(Calculations!$D34<=9,((2*(Calculations!$D32+(F24*Calculations!$D33))+Calculations!$D33*F23)/2),IF(Calculations!$D35>=9,((2*(Calculations!$D32+(F24*Calculations!$D33))+Calculations!$D33*F23)/2),0)))) -> 0 | G25: =IF(Calculations!$D34<Calculations!$D35,IF(Calculations!$D34<=10,IF(Calculations!$D35>=10,((2*(Calculations!$D32+(G24*Calculations!$D33))+Calculations!$D33*G23)/2),0),0),IF(Calculations!$D34>Calculations!$D35,IF(Calculations!$D34<=10,((2*(Calculations!$D32+(G24*Calculations!$D33))+Calculations!$D33*G23)/2),IF(Calculations!$D35>=10,((2*(Calculations!$D32+(G24*Calculations!$D33))+Calculations!$D33*G23)/2),0)))) -> 0 | H25: =IF(Calculations!$D34<Calculations!$D35,IF(Calculations!$D34<=11,IF(Calculations!$D35>=11,((2*(Calculations!$D32+(H24*Calculations!$D33))+Calculations!$D33*H23)/2),0),0),IF(Calculations!$D34>Calculations!$D35,IF(Calculations!$D34<=11,((2*(Calculations!$D32+(H24*Calculations!$D33))+Calculations!$D33*H23)/2),IF(Calculations!$D35>=11,((2*(Calculations!$D32+(H24*Calculations!$D33))+Calculations!$D33*H23)/2),0)))) -> 0 | I25: =IF(Calculations!$D34<Calculations!$D35,IF(Calculations!$D34<=12,IF(Calculations!$D35>=12,((2*(Calculations!$D32+(I24*Calculations!$D33))+Calculations!$D33*I23)/2),0),0),IF(Calculations!$D34>Calculations!$D35,IF(Calculations!$D34<=12,((2*(Calculations!$D32+(I24*Calculations!$D33))+Calculations!$D33*I23)/2),IF(Calculations!$D35>=12,((2*(Calculations!$D32+(I24*Calculations!$D33))+Calculations!$D33*I23)/2),0)))) -> 0 | J25: =IF(Calculations!$D34<Calculations!$D35,IF(Calculations!$D34<=1,IF(Calculations!$D35>=1,((2*(Calculations!$D32+(J24*Calculations!$D33))+Calculations!$D33*J23)/2),0),0),IF(Calculations!$D34>Calculations!$D35,IF(Calculations!$D34<=1,((2*(Calculations!$D32+(J24*Calculations!$D33))+Calculations!$D33*J23)/2),IF(Calculations!$D35>=1,((2*(Calculations!$D32+(J24*Calculations!$D33))+Calculations!$D33*J23)/2),0)))) -> 0 | K25: =IF(Calculations!$D34<Calculations!$D35,IF(Calculations!$D34<=2,IF(Calculations!$D35>=2,((2*(Calculations!$D32+(K24*Calculations!$D33))+Calculations!$D33*K23)/2),0),0),IF(Calculations!$D34>Calculations!$D35,IF(Calculations!$D34<=2,((2*(Calculations!$D32+(K24*Calculations!$D33))+Calculations!$D33*K23)/2),IF(Calculations!$D35>=2,((2*(Calculations!$D32+(K24*Calculations!$D33))+Calculations!$D33*K23)/2),0)))) -> 0 | L25: =IF(Calculations!$D34<Calculations!$D35,IF(Calculations!$D34<=3,IF(Calculations!$D35>=3,((2*(Calculations!$D32+(L24*Calculations!$D33))+Calculations!$D33*L23)/2),0),0),IF(Calculations!$D34>Calculations!$D35,IF(Calculations!$D34<=3,((2*(Calculations!$D32+(L24*Calculations!$D33))+Calculations!$D33*L23)/2),IF(Calculations!$D35>=3,((2*(Calculations!$D32+(L24*Calculations!$D33))+Calculations!$D33*L23)/2),0)))) -> 0 | M25: Stockers1 | N25: avg wt for month | U25: Edwards
A26: =IF(A25>0,A24+A23,0) -> 30 | B26: 61 | C26: 91 | D26: 122 | E26: 0 | F26: 0 | G26: 0 | H26: 0 | I26: 0 | J26: 0 | K26: 0 | L26: 0 | M26: Stockers1 | N26: accum days total | U26: Effingham
A27: =IF(Calculations!$D39=4,0,IF(Calculations!$D39<Calculations!$D40, IF(Calculations!$D39<4,IF(Calculations!$D40>=4,L23+L27,0),0),IF(Calculations!$D39>Calculations!$D40,IF(Calculations!$D40>=4,L23+L27,IF(Calculations!$D39<=4,L23+L27,0)),0))) -> 0 | B27: =IF(Calculations!$D39=5,0,IF(Calculations!$D39<Calculations!$D40, IF(Calculations!$D39<5,IF(Calculations!$D40>=5,A23+A27,0),0),IF(Calculations!$D39>Calculations!$D40,IF(Calculations!$D40>=5,A23+A27,IF(Calculations!$D39<=5,A23+A27,0)),0))) -> 0 | C27: =IF(Calculations!$D39=6,0,IF(Calculations!$D39<Calculations!$D40, IF(Calculations!$D39<6,IF(Calculations!$D40>=6,B23+B27,0),0),IF(Calculations!$D39>Calculations!$D40,IF(Calculations!$D40>=6,B23+B27,IF(Calculations!$D39<=6,B23+B27,0)),0))) -> 0 | D27: =IF(Calculations!$D39=7,0,IF(Calculations!$D39<Calculations!$D40, IF(Calculations!$D39<7,IF(Calculations!$D40>=7,C23+C27,0),0),IF(Calculations!$D39>Calculations!$D40,IF(Calculations!$D40>=7,C23+C27,IF(Calculations!$D39<=7,C23+C27,0)),0))) -> 0 | E27: =IF(Calculations!$D39=8,0,IF(Calculations!$D39<Calculations!$D40, IF(Calculations!$D39<8,IF(Calculations!$D40>=8,D23+D27,0),0),IF(Calculations!$D39>Calculations!$D40,IF(Calculations!$D40>=8,D23+D27,IF(Calculations!$D39<=8,D23+D27,0)),0))) -> 0 | F27: =IF(Calculations!$D39=9,0,IF(Calculations!$D39<Calculations!$D40, IF(Calculations!$D39<9,IF(Calculations!$D40>=9,E23+E27,0),0),IF(Calculations!$D39>Calculations!$D40,IF(Calculations!$D40>=9,E23+E27,IF(Calculations!$D39<=9,E23+E27,0)),0))) -> 0 | G27: =IF(Calculations!$D39=10,0,IF(Calculations!$D39<Calculations!$D40, IF(Calculations!$D39<10,IF(Calculations!$D40>=10,F23+F27,0),0),IF(Calculations!$D39>Calculations!$D40,IF(Calculations!$D40>=10,F23+F27,IF(Calculations!$D39<=10,F23+F27,0)),0))) -> 30 | H27: =IF(Calculations!$D39=11,0,IF(Calculations!$D39<Calculations!$D40, IF(Calculations!$D39<11,IF(Calculations!$D40>=11,G23+G27,0),0),IF(Calculations!$D39>Calculations!$D40,IF(Calculations!$D40>=11,G23+G27,IF(Calculations!$D39<=11,G23+G27,0)),0))) -> 61 | I27: =IF(Calculations!$D39=12,0,IF(Calculations!$D39<Calculations!$D40, IF(Calculations!$D39<12,IF(Calculations!$D40>=12,H23+H27,0),0),IF(Calculations!$D39>Calculations!$D40,IF(Calculations!$D40>=12,H23+H27,IF(Calculations!$D39<=12,H23+H27,0)),0))) -> 0 | J27: =IF(Calculations!$D39=1,0,IF(Calculations!$D39<Calculations!$D40, IF(Calculations!$D39<1,IF(Calculations!$D40>=1,I23+I27,0),0),IF(Calculations!$D39>Calculations!$D40,IF(Calculations!$D40>=1,I23+I27,IF(Calculations!$D39<=1,I23+I27,0)),0))) -> 0 | K27: =IF(Calculations!$D39=2,0,IF(Calculations!$D39<Calculations!$D40, IF(Calculations!$D39<2,IF(Calculations!$D40>=2,J23+J27,0),0),IF(Calculations!$D39>Calculations!$D40,IF(Calculations!$D40>=2,J23+J27,IF(Calculations!$D39<=2,J23+J27,0)),0))) -> 0 | L27: =IF(Calculations!$D39=3,0,IF(Calculations!$D39<Calculations!$D40, IF(Calculations!$D39<3,IF(Calculations!$D40>=3,K23+K27,0),0),IF(Calculations!$D39>Calculations!$D40,IF(Calculations!$D40>=3,K23+K27,IF(Calculations!$D39<=3,K23+K27,0)),0))) -> 0 | M27: Stockers 2 | N27: accum days prior | U27: Fayette
A28: =IF(Calculations!$D39<Calculations!$D40,IF(Calculations!$D39<=4,IF(Calculations!$D40>=4,((2*(Calculations!$D37+(A27*Calculations!$D38))+Calculations!$D38*A23)/2),0),0),IF(Calculations!$D39>Calculations!$D40,IF(Calculations!$D39<=4,((2*(Calculations!$D37+(A27*Calculations!$D38))+Calculations!$D38*A23)/2),IF(Calculations!$D40>=4,((2*(Calculations!$D37+(A27*Calculations!$D38))+Calculations!$D38*A23)/2),0)))) -> 0 | B28: =IF(Calculations!$D39<Calculations!$D40,IF(Calculations!$D39<=5,IF(Calculations!$D40>=5,((2*(Calculations!$D37+(B27*Calculations!$D38))+Calculations!$D38*B23)/2),0),0),IF(Calculations!$D39>Calculations!$D40,IF(Calculations!$D39<=5,((2*(Calculations!$D37+(B27*Calculations!$D38))+Calculations!$D38*B23)/2),IF(Calculations!$D40>=5,((2*(Calculations!$D37+(B27*Calculations!$D38))+Calculations!$D38*B23)/2),0)))) -> 0 | C28: =IF(Calculations!$D39<Calculations!$D40,IF(Calculations!$D39<=6,IF(Calculations!$D40>=6,((2*(Calculations!$D37+(C27*Calculations!$D38))+Calculations!$D38*C23)/2),0),0),IF(Calculations!$D39>Calculations!$D40,IF(Calculations!$D39<=6,((2*(Calculations!$D37+(C27*Calculations!$D38))+Calculations!$D38*C23)/2),IF(Calculations!$D40>=6,((2*(Calculations!$D37+(C27*Calculations!$D38))+Calculations!$D38*C23)/2),0)))) -> 0 | D28: =IF(Calculations!$D39<Calculations!$D40,IF(Calculations!$D39<=7,IF(Calculations!$D40>=7,((2*(Calculations!$D37+(D27*Calculations!$D38))+Calculations!$D38*D23)/2),0),0),IF(Calculations!$D39>Calculations!$D40,IF(Calculations!$D39<=7,((2*(Calculations!$D37+(D27*Calculations!$D38))+Calculations!$D38*D23)/2),IF(Calculations!$D40>=7,((2*(Calculations!$D37+(D27*Calculations!$D38))+Calculations!$D38*D23)/2),0)))) -> 0 | E28: =IF(Calculations!$D39<Calculations!$D40,IF(Calculations!$D39<=8,IF(Calculations!$D40>=8,((2*(Calculations!$D37+(E27*Calculations!$D38))+Calculations!$D38*E23)/2),0),0),IF(Calculations!$D39>Calculations!$D40,IF(Calculations!$D39<=8,((2*(Calculations!$D37+(E27*Calculations!$D38))+Calculations!$D38*E23)/2),IF(Calculations!$D40>=8,((2*(Calculations!$D37+(E27*Calculations!$D38))+Calculations!$D38*E23)/2),0)))) -> 0 | F28: =IF(Calculations!$D39<Calculations!$D40,IF(Calculations!$D39<=9,IF(Calculations!$D40>=9,((2*(Calculations!$D37+(F27*Calculations!$D38))+Calculations!$D38*F23)/2),0),0),IF(Calculations!$D39>Calculations!$D40,IF(Calculations!$D39<=9,((2*(Calculations!$D37+(F27*Calculations!$D38))+Calculations!$D38*F23)/2),IF(Calculations!$D40>=9,((2*(Calculations!$D37+(F27*Calculations!$D38))+Calculations!$D38*F23)/2),0)))) -> 430 | G28: =IF(Calculations!$D39<Calculations!$D40,IF(Calculations!$D39<=10,IF(Calculations!$D40>=10,((2*(Calculations!$D37+(G27*Calculations!$D38))+Calculations!$D38*G23)/2),0),0),IF(Calculations!$D39>Calculations!$D40,IF(Calculations!$D39<=10,((2*(Calculations!$D37+(G27*Calculations!$D38))+Calculations!$D38*G23)/2),IF(Calculations!$D40>=10,((2*(Calculations!$D37+(G27*Calculations!$D38))+Calculations!$D38*G23)/2),0)))) -> 491 | H28: =IF(Calculations!$D39<Calculations!$D40,IF(Calculations!$D39<=11,IF(Calculations!$D40>=11,((2*(Calculations!$D37+(H27*Calculations!$D38))+Calculations!$D38*H23)/2),0),0),IF(Calculations!$D39>Calculations!$D40,IF(Calculations!$D39<=11,((2*(Calculations!$D37+(H27*Calculations!$D38))+Calculations!$D38*H23)/2),IF(Calculations!$D40>=11,((2*(Calculations!$D37+(H27*Calculations!$D38))+Calculations!$D38*H23)/2),0)))) -> 552 | I28: =IF(Calculations!$D39<Calculations!$D40,IF(Calculations!$D39<=12,IF(Calculations!$D40>=12,((2*(Calculations!$D37+(I27*Calculations!$D38))+Calculations!$D38*I23)/2),0),0),IF(Calculations!$D39>Calculations!$D40,IF(Calculations!$D39<=12,((2*(Calculations!$D37+(I27*Calculations!$D38))+Calculations!$D38*I23)/2),IF(Calculations!$D40>=12,((2*(Calculations!$D37+(I27*Calculations!$D38))+Calculations!$D38*I23)/2),0)))) -> 0 | J28: =IF(Calculations!$D39<Calculations!$D40,IF(Calculations!$D39<=1,IF(Calculations!$D40>=1,((2*(Calculations!$D37+(J27*Calculations!$D38))+Calculations!$D38*J23)/2),0),0),IF(Calculations!$D39>Calculations!$D40,IF(Calculations!$D39<=1,((2*(Calculations!$D37+(J27*Calculations!$D38))+Calculations!$D38*J23)/2),IF(Calculations!$D40>=1,((2*(Calculations!$D37+(J27*Calculations!$D38))+Calculations!$D38*J23)/2),0)))) -> 0 | K28: =IF(Calculations!$D39<Calculations!$D40,IF(Calculations!$D39<=2,IF(Calculations!$D40>=2,((2*(Calculations!$D37+(K27*Calculations!$D38))+Calculations!$D38*K23)/2),0),0),IF(Calculations!$D39>Calculations!$D40,IF(Calculations!$D39<=2,((2*(Calculations!$D37+(K27*Calculations!$D38))+Calculations!$D38*K23)/2),IF(Calculations!$D40>=2,((2*(Calculations!$D37+(K27*Calculations!$D38))+Calculations!$D38*K23)/2),0)))) -> 0 | L28: =IF(Calculations!$D39<Calculations!$D40,IF(Calculations!$D39<=3,IF(Calculations!$D40>=3,((2*(Calculations!$D37+(L27*Calculations!$D38))+Calculations!$D38*L23)/2),0),0),IF(Calculations!$D39>Calculations!$D40,IF(Calculations!$D39<=3,((2*(Calculations!$D37+(L27*Calculations!$D38))+Calculations!$D38*L23)/2),IF(Calculations!$D40>=3,((2*(Calculations!$D37+(L27*Calculations!$D38))+Calculations!$D38*L23)/2),0)))) -> 0 | M28: Stockers 2 | N28: avg wt for month | U28: Ford
A29: =IF(A28>0,A27+A23,0) -> 0 | B29: 0 | C29: 0 | D29: 0 | E29: 0 | F29: 30 | G29: 61 | H29: 91 | I29: 0 | J29: 0 | K29: 0 | L29: 0 | M29: Stockers 2 | N29: accum days total | U29: Franklin
U30: Fulton
A31: Additional Input from user for calculations (input from user form) | U31: Gallatin
A32: Stockers1 | B32: Starting Weight | D32: 400 | U32: Greene
B33: Enter ADG | D33: 1 | U33: Grundy
B34: Month IN | D34: 4 | U34: Hamilton
B35: Month OUT | D35: 7 | U35: Hancock
U36: Hardin
A37: Stockers2 | B37: Starting Weight | D37: 400 | U37: Henderson
B38: Enter ADG | D38: 2 | U38: Henry
B39: Month IN | D39: 9 | U39: Iroquois
B40: Month OUT | D40: 11 | U40: Jackson
U41: Jasper
A42: Dairy | G42: Dairy <12 mo | K42: Livestock Class | U42: Jefferson
G43: UserFrom Options Control Source | K43: Check Box Control Source | U43: Jersey
A44: Input box for lactating month start and lactating month finish | G44: Past | H44: Alt Past | I44: Dry Lot | K44: Dairy <12Mo Lactation | L44: FALSE | U44: Jo Daviess
A45: Dairy (<12 mo lactation) | B45: lactating mo start | D45: 3 | G45: TRUE | H45: FALSE | I45: FALSE | K45: Dairy Year Round Lactation | L45: FALSE | U45: Johnson
B46: lactating mo finish | D46: 11 | K46: Bulls | L46: FALSE | U46: Kane
K47: Cow Calf 1 | L47: FALSE | U47: Kankakee
A48: Year Round Lactation | G48: Dry Cow Userfor Options Control Source | K48: Cow Calf 2 | L48: FALSE | U48: Kendall
A49: Dry Cows | G49: Alt Past | H49: Dry Lot | K49: Cow Calf 3 | L49: FALSE | U49: Knox
A50: Lactating Cows | B50: Alt Grazing month start | D50: 11 | G50: FALSE | H50: FALSE | K50: Stockers1 | L50: FALSE | U50: La Salle
B51: Alt Grazing Month finish | D51: 3 | K51: Stockers2 | L51: FALSE | U51: Lake
G52: Lactating Cow Userfor Options Control Source | K52: Horses | L52: FALSE | U52: Lawrence
A53: Bulls | G53: Past | H53: Alt Past | I53: Dry Lot | K53: Goats | L53: FALSE | U53: Lee
A54: UserForm Option Control Source | G54: TRUE | H54: FALSE | I54: FALSE | K54: Sheep | L54: FALSE | U54: Livingston
A55: Past | B55: TRUE | U55: Logan
A56: Alt Past Once | B56: FALSE | U56: McDonough
A57: Dry Lot Once | B57: FALSE | U57: McHenry
A58: Alt Past Twice | B58: FALSE | U58: McLean
A59: Dry Lot Twice | B59: FALSE | K59: HayMonth cell links | U59: Macon
J60: 1 | K60: 0 | U60: Macoupin
A61: Input Boxes for Month on and off pasture | J61: 2 | K61: 0 | U61: Madison
A62: First month on | B62: 10 | J62: 3 | K62: 0 | U62: Marion
A63: Last month on | B63: 12 | J63: 4 | K63: 0 | U63: Marshall
A64: Input Boxes for Month on and off pasture (second time period) | J64: 5 | K64: 0 | U64: Mason
A65: First month on | B65: 4 | J65: 6 | K65: 0 | U65: Massac
A66: Last month on | B66: 6 | J66: 7 | K66: 0 | U66: Menard
J67: 8 | K67: 0 | U67: Mercer
A68: Cow Calf Alternative pasture options | J68: 9 | K68: 0 | U68: Monroe
A69: User Form Option Control Source | J69: 10 | K69: 0 | U69: Montgomery
A70: Cow Calf 1 | J70: 11 | K70: 0 | U70: Morgan
A71: Past Year Round | B71: TRUE | J71: 12 | K71: 0 | U71: Moultrie
A72: Alternative Pasture | B72: FALSE | J72: 13 | K72: 0 | U72: Ogle
A73: Dry Lot | B73: FALSE | J73: 14 | K73: 0 | U73: Peoria
J74: 15 | K74: 0 | U74: Perry
A75: Cow Calf 2 | J75: 16 | K75: 0 | U75: Piatt
A76: Past Year Round | B76: TRUE | J76: 17 | K76: 0 | U76: Pike
A77: Alternative Pasture | B77: FALSE | J77: 18 | K77: 0 | U77: Pope
A78: Dry Lot | B78: FALSE | J78: 19 | K78: 0 | U78: Pulaski
J79: 20 | K79: 0 | U79: Putnam
A80: Cow Calf 3 | J80: 21 | K80: 0 | U80: Randolph
A81: Past Year Round | B81: TRUE | J81: 22 | K81: 0 | U81: Richland
A82: Alternative Pasture | B82: FALSE | J82: 23 | K82: 0 | U82: Rock Island
A83: Dry Lot | B83: FALSE | J83: 24 | K83: 0 | U83: Saline
U84: Sangamon
A85: Input Boxes for Month on and off alternative pasture/dry lot | U85: Schuyler
A86: CowCalf 1 | U86: Scott
A87: First Month on | B87: 11 | U87: Shelby
A88: Last Month on | B88: 3 | U88: St. Clair
U89: Stark
A90: CowCalf 2 | U90: Stephenson
A91: First Month on | B91: 1 | U91: Tazewell
A92: Last Month on | B92: 3 | U92: Union
U93: Vermilion
A94: Cow Calf 3 | U94: Wabash
A95: First Month on | B95: 6 | U95: Warren
A96: Last Month on | B96: 12 | U96: Washington
U97: Wayne
A98: Horses Alt Pasture Options | U98: White
A99: Past Year Round | B99: TRUE | U99: Whiteside
A100: Alternative Pasture | B100: FALSE | U100: Will
A101: Dry Lot | B101: FALSE | U101: Williamson
A102: First Month On | B102: 11 | U102: Winnebago
A103: Last Month On | B103: 3 | U103: Woodford
A112: Calculations for weighted averages for G.E., intake, # head
B113: head X wt
A114: Cow/Calf Pairs1 | B114: =SUBTOTAL(106,LivestockForageBalance!I15,LivestockForageBalance!J15) -> 0
A115: Cow/Calf Pairs2 | B115: =SUBTOTAL(106,LivestockForageBalance!I17,LivestockForageBalance!J17) -> 0
A116: Cow/Calf Pairs3 | B116: =SUBTOTAL(106,LivestockForageBalance!I19,LivestockForageBalance!J19) -> 0
A117: Stockers1 | B117: =AVERAGE(IF(Calculations!A25:L25<>0,Calculations!A25:L25,"")) -> 460.75 | C117: =SUBTOTAL(106,LivestockForageBalance!J21,LivestockForageBalance!I21) -> 0
A118: Stockers2 | B118: =AVERAGE(IF(Calculations!A28:L28<>0,Calculations!A28:L28,"")) -> 491 | C118: =SUBTOTAL(106,LivestockForageBalance!J23,LivestockForageBalance!I23) -> 0
A119: Dairy1 | B119: =SUBTOTAL(106,LivestockForageBalance!I25,LivestockForageBalance!J25) -> 0
A120: Dairy2 | B120: =SUBTOTAL(106,LivestockForageBalance!I31,LivestockForageBalance!J31)+SUBTOTAL(106,LivestockForageBalance!I29,LivestockForageBalance!J29) -> 0
A121: Bulls | B121: =SUBTOTAL(106,LivestockForageBalance!I33,LivestockForageBalance!J33) -> 0
A122: Horses | B122: =SUBTOTAL(106,LivestockForageBalance!I35,LivestockForageBalance!J35) -> 0
A123: Sheep | B123: =SUBTOTAL(106,LivestockForageBalance!I37,LivestockForageBalance!J37) -> 0
A124: Goats | B124: =SUBTOTAL(106,LivestockForageBalance!I39,LivestockForageBalance!J39) -> 0
A125: TOTAL | B125: =B114+B115+B116+B121+B122+B123+B124+C117+C118+B119+B120 -> 0
A127: Weighted lbs/head | B127: =IF(LivestockForageBalance!I41=0,0,B125/LivestockForageBalance!I41) -> 0
A129: G.E. avg.= | B129: =SUM(LivestockForageBalance!M103:M149)/SUM(LivestockForageBalance!K103:K149)*100 -> 

Sheet ForageGrowthCurves
A2: FORAGE GROWTH CURVES
A3: These curves are used to calculate the monthly pasture forage available for the grazing system, and the production pounds of hay for fields that are hayed and then pastured
A4: Pasture Mixes (Table 3-1 Northern IL optimum) | C4: Apr | D4: May | E4: Jun | F4: Jul | G4: Aug | H4: Sep | I4: Oct | J4: Nov | K4: Dec | L4: Jan. | M4: Feb. | N4: Mar | O4: Min Grazing Ht. (in) | P4: Min Haying Ht (in) | Q4: OPT. Production | S4: AVE. Production
A5: - | B5: - | C5: - | D5: - | E5: - | F5: - | G5: - | H5: - | I5: - | J5: - | K5: - | L5: - | M5: - | N5: - | O5: - | Q5: Tons/Acre | S5: Tons/Acre
A6: Alfalfa | C6: 0.05 | D6: 0.23 | E6: 0.24 | F6: 0.18 | G6: 0.15 | H6: 0.1 | I6: 0.05 | O6: 3 | Q6: 6 | S6: 3.9
A7: Alfalfa/Orchardgrass | C7: 0.06 | D7: 0.23 | E7: 0.24 | F7: 0.18 | G7: 0.13 | H7: 0.11 | I7: 0.05 | O7: 3 | Q7: 5.5 | S7: 3.6
A8: Alfalfa/Smooth Bromegrass | C8: 0.06 | D8: 0.23 | E8: 0.24 | F8: 0.18 | G8: 0.13 | H8: 0.11 | I8: 0.05 | O8: 4 | Q8: 5.2 | S8: 3.4
A9: Big Bluestem | D9: 0.03 | E9: 0.14 | F9: 0.37 | G9: 0.32 | H9: 0.14 | O9: 8 | Q9: 3.4 | S9: 2.5
A10: Big Bluestem/Indiangrass | D10: 0.03 | E10: 0.12 | F10: 0.37 | G10: 0.35 | H10: 0.12 | O10: 8 | Q10: 3.4 | S10: 2.5
A11: Birdsfoot Trefoil/cool season grass | C11: 0.05 | D11: 0.14 | E11: 0.32 | F11: 0.23 | G11: 0.12 | H11: 0.08 | I11: 0.06 | O11: 4 | Q11: 3.4 | S11: 2.2
A12: Bluegrass, Kentucky/Dutch Wh. Clover | C12: 0.08 | D12: 0.28 | E12: 0.29 | F12: 0.09 | G12: 0.07 | H12: 0.12 | I12: 0.07 | O12: 2 | Q12: 3.6 | S12: 2.3
A13: Bluegrass, KY/Tall Fescue/Ladino Cl. | C13: 0.09 | D13: 0.2 | E13: 0.2 | F13: 0.17 | G13: 0.1 | H13: 0.11 | I13: 0.11 | J13: 0.02 | O13: 3 | Q13: 4.2 | S13: 2.7
A14: Bluegrass, KY/Orchardgrass/Ladino Cl. | C14: 0.07 | D14: 0.23 | E14: 0.24 | F14: 0.16 | G14: 0.1 | H14: 0.14 | I14: 0.06 | O14: 3 | Q14: 4.2 | S14: 2.7
A15: Bluegrass, KY/Orchardgrass/Red Cl. | C15: 0.06 | D15: 0.19 | E15: 0.24 | F15: 0.2 | G15: 0.12 | H15: 0.14 | I15: 0.05 | O15: 3 | Q15: 4.5 | S15: 3
A16: Bluegrass, KY/Tall Fescue/Red Cl. | C16: 0.05 | D16: 0.2 | E16: 0.2 | F16: 0.19 | G16: 0.11 | H16: 0.13 | I16: 0.1 | J16: 0.02 | O16: 3 | Q16: 4.5 | S16: 3
A17: Bromegrass, Smooth | C17: 0.05 | D17: 0.31 | E17: 0.27 | F17: 0.11 | G17: 0.06 | H17: 0.11 | I17: 0.06 | O17: 4 | Q17: 4.5 | S17: 3
A18: Bromegrass, Smooth/Ladino Clover | C18: 0.08 | D18: 0.25 | E18: 0.25 | F18: 0.15 | G18: 0.1 | H18: 0.1 | I18: 0.07 | O18: 4 | Q18: 4.8 | S18: 3.1
A19: Bromegrass, Smooth/Red Clover | C19: 0.08 | D19: 0.22 | E19: 0.25 | F19: 0.15 | G19: 0.15 | H19: 0.1 | I19: 0.05 | O19: 4 | Q19: 5.1 | S19: 3.4
A20: Brush, (for Goat pasture) | C20: 0.04 | D20: 0.25 | E20: 0.28 | F20: 0.28 | G20: 0.1 | H20: 0.05 | I20: . | O20: N/A | Q20: 1.6 | S20: 2.6
A21: Brush, Grass, and Forbes for Goats | C21: 0.05 | D21: 0.23 | E21: 0.23 | F21: 0.22 | G21: 0.15 | H21: 0.09 | I21: 0.03 | O21: N/A | Q21: 3.2 | S21: 3.1
A22: Chicory | C22: 0.05 | D22: 0.11 | E22: 0.32 | F22: 0.24 | G22: 0.13 | H22: 0.1 | I22: 0.05 | O22: 2 | Q22: 3 | S22: 2
A23: Corn (Green Grazed) | D23: 0.1 | E23: 0.4 | F23: 0.4 | G23: 0.1 | O23: N/A | Q23: 5.8 | S23: 3.9
A24: Corn Stalk Residue | I24: 0.5 | J24: 0.5 | O24: N/A | Q24: 2 | S24: 2
A25: Eastern Gama Grass | D25: 0.08 | E25: 0.3 | F25: 0.35 | G25: 0.22 | H25: 0.05 | O25: 10 | Q25: 5.5 | S25: 3.6
A26: Fescue, Tall (not stockpiled) | C26: 0.09 | D26: 0.26 | E26: 0.25 | F26: 0.13 | G26: 0.07 | H26: 0.12 | I26: 0.06 | J26: 0.02 | O26: 3 | Q26: 4.8 | S26: 3.1
A27: Fescue, Tall (stockpiled) | C27: 0.09 | D27: 0.2 | E27: 0.2 | F27: 0.13 | G27: 0.08 | H27: 0.15 | I27: 0.13 | J27: 0.02 | O27: 3 | Q27: 5.5 | S27: 3.5
A28: Fescue, Tall/Ladino Clover | C28: 0.09 | D28: 0.2 | E28: 0.23 | F28: 0.15 | G28: 0.1 | H28: 0.11 | I28: 0.1 | J28: 0.02 | O28: 3 | Q28: 4.9 | S28: 3
A29: Fescue, Tall/Red Clover | C29: 0.05 | D29: 0.2 | E29: 0.2 | F29: 0.19 | G29: 0.11 | H29: 0.13 | I29: 0.1 | J29: 0.02 | O29: 3 | Q29: 5.3 | S29: 3.5
A30: Fescue, Tall/Red Clover (stock piled) | C30: 0.05 | D30: 0.2 | E30: 0.2 | F30: 0.1 | G30: 0.1 | H30: 0.15 | I30: 0.15 | J30: 0.05 | O30: 3 | Q30: 5.7 | S30: 3.8
A31: Indiangrass | D31: 0.02 | E31: 0.12 | F31: 0.34 | G31: 0.38 | H31: 0.14 | O31: 8 | Q31: 3.4 | S31: 2.5
A32: Millet, Pearl | D32: 0.01 | E32: 0.15 | F32: 0.31 | G32: 0.31 | H32: 0.19 | I32: 0.03 | O32: 3 | Q32: 4.5 | S32: 3
A33: Oats (August seeding) | H33: 0.12 | I33: 0.4 | J33: 0.4 | K33: 0.08 | O33: 3 | Q33: 1.6 | S33: 1.1
A34: Oats (March-April seeding) | C34: 0.2 | D34: 0.35 | E34: 0.35 | F34: 0.1 | O34: 3 | Q34: 2.9 | S34: 1.8
A35: Orchardgrass | C35: 0.07 | D35: 0.27 | E35: 0.2 | F35: 0.14 | G35: 0.12 | H35: 0.13 | I35: 0.07 | O35: 3 | Q35: 4.5 | S35: 3.4
A36: Orchardgrass/Ladino Clover | C36: 0.09 | D36: 0.23 | E36: 0.23 | F36: 0.14 | G36: 0.11 | H36: 0.15 | I36: 0.05 | O36: 3 | Q36: 4.7 | S36: 3.5
A37: Orchardgrass/Red Clover | C37: 0.05 | D37: 0.2 | E37: 0.23 | F37: 0.19 | G37: 0.13 | H37: 0.15 | I37: 0.05 | O37: 3 | Q37: 4.8 | S37: 3
A38: Orchardgrass/Red Clover (stockpiled) | C38: 0.05 | D38: 0.2 | E38: 0.2 | F38: 0.1 | G38: 0.1 | H38: 0.15 | I38: 0.15 | J38: 0.05 | O38: 3 | Q38: 5.5 | S38: 3
A39: Orchardgrass/Tall Fescue/Ladino Clover | C39: 0.09 | D39: 0.22 | E39: 0.22 | F39: 0.14 | G39: 0.07 | H39: 0.11 | I39: 0.13 | J39: 0.02 | O39: 3 | Q39: 5.2 | S39: 3.1
A40: Orchardgrass/Tall Fescue/Red Clover | C40: 0.05 | D40: 0.2 | E40: 0.21 | F40: 0.18 | G40: 0.12 | H40: 0.13 | I40: 0.08 | J40: 0.03 | O40: 3 | Q40: 5.5 | S40: 3.5
A41: Red Clover | C41: 0.06 | D41: 0.25 | E41: 0.33 | F41: 0.17 | G41: 0.09 | H41: 0.06 | I41: 0.03 | J41: 0.01 | O41: 3 | Q41: 3.5 | S41: 2.3
A42: Reed Canarygrass | C42: 0.05 | D42: 0.19 | E42: 0.27 | F42: 0.2 | G42: 0.12 | H42: 0.11 | I42: 0.05 | J42: 0.01 | O42: 4 | Q42: 4.4 | S42: 2.9
A43: Rye, Cereal (Aug. seeded) | C43: 0.22 | D43: 0.28 | E43: 0.1 | H43: 0.05 | I43: 0.15 | J43: 0.1 | K43: 0.07 | N43: 0.03 | O43: 3 | Q43: 2.1 | S43: 1.3
A44: Ryegrass, Italian/Annual (Aug. seeded) | C44: 0.15 | D44: 0.3 | E44: 0.2 | F44: 0.05 | H44: 0.02 | I44: 0.1 | J44: 0.13 | K44: 0.05 | O44: 3 | Q44: 2 | S44: 3
A45: Ryegrass, Perennial/Ladino Clover | C45: 0.08 | D45: 0.3 | E45: 0.25 | F45: 0.12 | G45: 0.05 | H45: 0.1 | I45: 0.07 | J45: 0.03 | O45: 3 | Q45: 4.5 | S45: 3.1
A46: Ryegrass, Perennial/Red Clover | C46: 0.05 | D46: 0.22 | E46: 0.25 | F46: 0.18 | G46: 0.08 | H46: 0.1 | I46: 0.1 | J46: 0.02 | O46: 3 | Q46: 4.8 | S46: 1.3
A47: Sorghum-sudangrass | D47: 0.01 | E47: 0.13 | F47: 0.32 | G47: 0.34 | H47: 0.2 | O47: 6 | Q47: 4.7 | S47: 3
A48: Switchgrass | D48: 0.11 | E48: 0.24 | F48: 0.32 | G48: 0.23 | H48: 0.1 | O48: 8 | Q48: 3.9 | S48: 2.6
A49: Timothy | C49: 0.08 | D49: 0.23 | E49: 0.34 | F49: 0.1 | G49: 0.06 | H49: 0.14 | I49: 0.05 | O49: 4 | Q49: 3.5 | S49: 2.2
A50: Triticale, Fall seeded | C50: 0.23 | D50: 0.3 | H50: 0.05 | I50: 0.15 | J50: 0.1 | K50: 0.05 | N50: 0.02 | O50: 3 | Q50: 3.1 | S50: 2.1
A51: Turnips (Fall seeded) | H51: 0.12 | I51: 0.38 | J51: 0.35 | K51: 0.15 | O51: 3 | Q51: 3.2 | S51: 2.1
A52: Turnips/C. Rye (Fall seeded) | C52: 0.25 | D52: 0.15 | H52: 0.1 | I52: 0.15 | J52: 0.15 | K52: 0.1 | N52: 0.1 | O52: 3 | Q52: 5.8 | S52: 3.9
A53: Turnips/C. Rye/Oats (Fall seeded) | C53: 0.25 | D53: 0.15 | H53: 0.1 | I53: 0.15 | J53: 0.15 | K53: 0.1 | N53: 0.1 | O53: 3 | Q53: 3.8 | S53: 2.5
A54: Turnips/Oats (Fall seeded) | H54: 0.12 | I54: 0.38 | J54: 0.35 | K54: 0.15 | O54: 3 | Q54: 3.9 | S54: 2.6

Sheet Hay Loss Storage
C1: Hay Storage Cost Comparison
C2: Ag Decision Maker -- Iowa State University Extension
C3: For information on hay costs, see Information File A1-15, Iowa Pasture Cost Improvement Budgets.
C5: Place the cursor over cells with red triangles to read comments.
C6: Enter your input values in shaded cells.
C8: General Information | D8: Unit
C9: Acres of hay produced annually | D9: acres
C10: Average yield, total for all cuttings | D10: tons/acre
C11: Width of bale | D11: feet
C12: Length or diameter of bale | D12: feet
C13: Average weight of bale | D13: pounds
C14: Tons of hay needed to meet annual needs | D14: tons/year
C16: Value of hay at harvest, on farm | D16: $/ton
C17: Estimated cost of production for hay | D17: $/ton
C18: Long term interest rate for building investment | D18: %
C19: Value of labor used for storing hay | D19: $/hour
F20: TRUE | G20: TRUE | H20: TRUE | I20: TRUE | J20: TRUE | K20: TRUE | L20: TRUE
C21: Storage Loss | E21: Bare ground, no cover | F21: Outside, on gravel, no cover | G21: Outside, on gravel, under tarp | H21: Outside, bare ground, under tarp | I21: Outside, on bare ground, plastic wraps | J21: Under roof, no sides | K21: Inside, new building | L21: Inside, existing building | AF21: Price of hay | AG21: =E43 -> Bare ground, no cover | AH21: Outside, on gravel, no cover | AI21: Outside, on gravel, under tarp | AJ21: Outside, bare ground, under tarp | AK21: Outside, on bare ground, plastic wraps | AL21: Under roof, no sides | AM21: Inside, new building | AN21: Inside, existing building
C22: Expected spoilage & dry matter loss (click here for research data) | D22: % | E22: 0.28 | F22: 0.24 | G22: 0.09 | H22: 0.13 | I22: 0.13 | J22: 0.08 | K22: 0.05 | L22: 0.05 | AF22: =0.7*AF25 -> 0 | AG22: =E$44*E$22*$AF22+E$55 -> 0 | AH22: 0 | AI22: 0 | AJ22: 0 | AK22: 0 | AL22: 0 | AM22: 0 | AN22: 0
AF23: =0.8*AF25 -> 0 | AG23: 0 | AH23: 0 | AI23: 0 | AJ23: 0 | AK23: 0 | AL23: 0 | AM23: 0 | AN23: 0
C24: Outside Storage | AF24: =0.9*AF25 -> 0 | AG24: 0 | AH24: 0 | AI24: 0 | AJ24: 0 | AK24: 0 | AL24: 0 | AM24: 0 | AN24: 0
C25: Initial cost of gravel base or pallets, per square foot | D25: $/sq. foot | F25: 0.45 | G25: 0.45 | H25: 0.45 | AF25: =E16 -> 0 | AG25: 0 | AH25: 0 | AI25: 0 | AJ25: 0 | AK25: 0 | AL25: 0 | AM25: 0 | AN25: 0
C26: Expected years of life for gravel base or pallets | D26: years | F26: 5 | G26: 5 | H26: 5 | AF26: =1.1*$AF25 -> 0 | AG26: 0 | AH26: 0 | AI26: 0 | AJ26: 0 | AK26: 0 | AL26: 0 | AM26: 0 | AN26: 0
C27: Cost of canvas or plastic tarps, per square foot | D27: $ | G27: 0.75 | H27: 0.75 | AF27: =1.2*$AF25 -> 0 | AG27: 0 | AH27: 0 | AI27: 0 | AJ27: 0 | AK27: 0 | AL27: 0 | AM27: 0 | AN27: 0
C28: Expected years of life for covering | D28: years | G28: 5 | H28: 5 | AF28: =1.3*$AF25 -> 0 | AG28: 0 | AH28: 0 | AI28: 0 | AJ28: 0 | AK28: 0 | AL28: 0 | AM28: 0 | AN28: 0
C29: Cost for plastic bale wraps, each | D29: $/wrap | I29: 5
C31: Inside Storage
C32: Construction cost of new building, per square foot | D32: $/sq. foot | J32: 1.5 | K32: 4
C33: Expected years of life of new building | D33: years | J33: 30 | K33: 30
C34: Approximate value of existing building, per square foot | D34: $/sq. foot | L34: 1
C35: Repair and maintenance rate, annual | D35: % of value | J35: 0.01 | K35: 0.01 | L35: 0.03
C36: Property tax and insurance rate, annual | D36: % of value | J36: 0.015 | K36: 0.015 | L36: 0.015
C38: Other Information
C39: Number of layers of stacked bales | D39: layers
C40: Total labor needed for storing, covering, and uncovering | D40: hours/year
C42: Cost Comparison
C43: Type of storage | D43: Unit | E43: =E21 -> Bare ground, no cover | F43: =F21 -> Outside, on gravel, no cover | G43: Outside, on gravel, under tarp | H43: Outside, bare ground, under tarp | I43: Outside, on bare ground, plastic wraps | J43: Under roof, no sides | K43: Inside, new building | L43: Inside, existing building
C44: Tons of hay harvested per year | D44: tons/year | E44: =($E9*$E10) -> 0 | F44: =($E9*$E10) -> 0 | G44: 0 | H44: 0 | I44: 0 | J44: 0 | K44: 0 | L44: 0
C46: Number of bales stored per year | D46: bales/year | E46: =IF($E13,($E44*2000)/$E13,0) -> 0 | F46: =IF($E13,($E44*2000)/$E13,0) -> 0 | G46: 0 | H46: 0 | I46: 0 | J46: 0 | K46: 0 | L46: 0
C47: Storage area needed--square feet | D47: square feet | E47: =IF(E39,1.05*(E46*$E11*$E12)/E39,0) -> 0 | F47: =IF(F39,1.05*(F46*$E11*$E12)/F39,0) -> 0 | G47: 0 | H47: 0 | I47: 0 | J47: 0 | K47: 0 | L47: 0
C48: Initial investment for building | D48: $ | J48: =J32*J47 -> 0 | K48: =K32*K47 -> 0
C49: Initial investment for gravel or pallets for storage site | D49: $ | F49: =F25*F47 -> 0 | G49: =G25*G47 -> 0 | H49: =H25*H47 -> 0
C51: Ownership cost per year for building | D51: $/year | J51: =IF(J33,(J47*J32*((1/J33)+($E18+J36)/2+J35)),0) -> 0 | K51: =IF(K33,(K47*K32*((1/K33)+($E18+K36)/2+K35)),0) -> 0 | L51: =IF(L33,(L47*L32*((1/L33)+($E18+L36)/2+L35)),0)+L47*L34*($E18+L36+L35) -> 0
C52: Ownership cost per year for storage site | D52: $/year | F52: =IF(F26,F47*F25*(1/F26+$E18/2),0) -> 0 | G52: =IF(G26,G47*G25*(1/G26+$E18/2),0) -> 0 | H52: =IF(H26,H47*H25*(1/H26+$E18/2),0) -> 0
C53: Labor cost for storage per year | D53: $/year | E53: =($E19*E40) -> 0 | F53: =($E19*F40) -> 0 | G53: 0 | H53: 0 | I53: 0 | J53: 0 | K53: 0 | L53: 0
C54: Cost of coverings per year | D54: $/year | G54: =IF(G28,(G27*(G47+$E11*$E12*G39*2)/G28),0)+G29*G46 -> 0 | H54: =IF(H28,(H27*(H47+$E11*$E12*H39*2)/H28),0)+H29*H46 -> 0 | I54: =IF(I28,(I27*(I47+$E11*$E12*I39*2)/I28),0)+I29*I46 -> 0
C55: Total cost per year for storage | D55: $/year | E55: =SUM(E51:E54) -> 0 | F55: 0 | G55: 0 | H55: 0 | I55: 0 | J55: 0 | K55: 0 | L55: 0
C56: Value of spoilage and dry matter loss | D56: $/year | E56: =E44*E22*$E16 -> 0 | F56: =F44*F22*$E16 -> 0 | G56: 0 | H56: 0 | I56: 0 | J56: 0 | K56: 0 | L56: 0
C57: Total cost for storage including storage loss | D57: $/year | E57: =E55+E56 -> 0 | F57: =F55+F56 -> 0 | G57: 0 | H57: 0 | I57: 0 | J57: 0 | K57: 0 | L57: 0
C59: Tons of hay available for feeding or selling | D59: tons/year | E59: =E44*(1-E22) -> 0 | F59: =F44*(1-F22) -> 0 | G59: 0 | H59: 0 | I59: 0 | J59: 0 | K59: 0 | L59: 0
C60: Total cost for storage, incl. storage loss, per ton avail. for feeding | D60: $/ton | E60: =IF(E59,E57/E59,0) -> 0 | F60: =IF(F59,F57/F59,0) -> 0 | G60: 0 | H60: =IF(H59,H57/H59,0) -> 0 | I60: 0 | J60: 0 | K60: 0 | L60: 0
C61: Value of hay available to feed minus cost of storage | D61: $/year | E61: =$E16*E44-E57 -> 0 | F61: =$E16*F44-F57 -> 0 | G61: 0 | H61: =$E16*H44-H57 -> 0 | I61: 0 | J61: 0 | K61: 0 | L61: 0
C63: Total cost to meet annual hay needs | D63: $/year | E63: =(E55/E44+$E17)*($E14/(1-E22)) ->  | F63: =(F55/F44+$E17)*($E14/(1-F22)) -> 
C65: Version 1.0
C66: Author: William Edwards
C67: Ann Johanns
C68: Date Printed:
C69: =TODAY() -> 2018-03-09
C73: . . . and justice for all
C74: The U.S. Department of Agriculture (USDA) prohibits discrimination in all its programs and activities on the basis of race, color, national origin, gender, religion, age, disability, political beliefs, sexual orientation, and marital or family status. (Not all prohibited bases apply to all programs.) Many materials can be made available in alternative formats for ADA clients. To file a complaint of discrimination, write USDA, Office of Civil Rights, Room 326-W, Whitten Building, 14th and Independence Avenue, SW, Washington, DC 20250-9410 or call 202-720-5964.
C78: Issued in furtherance of Cooperative Extension work, Acts of May 8 and June 30, 1914, in cooperation with the U.S. Department of Agriculture. Gerald A. Miller, interim director, Cooperative Extension Service, Iowa State University of Science and Technology, Ames, Iowa.

Sheet PastureGrazingEfficiency (hidden)
B2: Calculate Pasture Grazing Efficiency:
B3: Selecting the "Calculate Pasture Grazing Efficiency" button will calculate the pasture grazing efficiency for each field/paddock by dividing the Total Usable Acres Grazed by the Acres of each field/paddock to generate a Paddock Equivalency Value. The Paddock Equivalency Value is used to return the associated Pasture Grazing Efficiency value based on the table below.
B4: You can override the calculated Pasture Grazing Efficiency at any time by manually entering a value in the associated cells. Alternatively, you can allow the model to calculate the Pasture Grazing Efficiency at any time by re-selecting the "Calculate Pasture Grazing Efficiency" button.
B8: Paddock Equivalency Value | C8: Grazing Efficiency (%)
B9: 1 | C9: 25
B10: 2 | C10: 28
B11: 3 | C11: 32
B12: 4 | C12: 35
B13: 5 | C13: 38
B14: 6 | C14: 41
B15: 7 | C15: 43
B16: 8 | C16: 50
B17: 9 | C17: 51
B18: 10 | C18: 55
B19: 11 | C19: 60
B20: 12 | C20: 63
B21: 13 | C21: 65
B22: 14 | C22: 65
B23: 15 | C23: 66
B24: 16 | C24: 66
B25: 17 | C25: 66
B26: 18 | C26: 67
B27: 19 | C27: 67
B28: 20 | C28: 67
B29: 21 | C29: 68
B30: 22 | C30: 68
B31: 23 | C31: 68
B32: 24 | C32: 68
B33: 25 | C33: 68
B34: 26 | C34: 69
B35: 27 | C35: 69
B36: 28 | C36: 69
B37: 29 | C37: 69
B38: 30 | C38: 69
B39: 31 | C39: 69
B40: 32 | C40: 69
B41: 33 | C41: 69
B42: 34 | C42: 69
B43: 35 | C43: 69
B44: 36 | C44: 69
B45: 37 | C45: 69
B46: 38 | C46: 69
B47: 39 | C47: 69
B48: 40 | C48: 69
B49: 41 | C49: 69
B50: 42 | C50: 69
B51: 43 | C51: 69
B52: 44 | C52: 69
B53: 45 | C53: 69
B54: 46 | C54: 69
B55: 47 | C55: 69
B56: 48 | C56: 69
B57: 49 | C57: 69
B58: 50 | C58: 69
B59: 51 | C59: 69
B60: 52 | C60: 69
B61: 53 | C61: 69
B62: 54 | C62: 69
B63: 55 | C63: 69
B64: 56 | C64: 69
B65: 57 | C65: 69
B66: 58 | C66: 69
B67: 59 | C67: 69
B68: 60 | C68: 69
B69: 61 | C69: 69
B70: 62 | C70: 69
B71: 63 | C71: 69
B72: 64 | C72: 69
B73: 65 | C73: 69
B74: 66 | C74: 69
B75: 67 | C75: 69
B76: 68 | C76: 69
B77: 69 | C77: 69
B78: 70 | C78: 69
B79: 71 | C79: 69
B80: 72 | C80: 69
B81: 73 | C81: 69
B82: 74 | C82: 69
B83: 75 | C83: 69
B84: 76 | C84: 69
B85: 77 | C85: 69
B86: 78 | C86: 69
B87: 79 | C87: 69
B88: 80 | C88: 69
B89: 81 | C89: 69
B90: 82 | C90: 69
B91: 83 | C91: 69
B92: 84 | C92: 69
B93: 85 | C93: 69
B94: 86 | C94: 69
B95: 87 | C95: 69
B96: 88 | C96: 69
B97: 89 | C97: 69
B98: 90 | C98: 69
B99: 91 | C99: 69
B100: 92 | C100: 69
B101: 93 | C101: 69
B102: 94 | C102: 69
B103: 95 | C103: 69
B104: 96 | C104: 69
B105: 97 | C105: 69
B106: 98 | C106: 69
B107: 99 | C107: 69
B108: 100 | C108: 69

Sheet HayList (hidden)
A1: - | B1: -
A2: Mechanically Harvested Forage | B2: Minimum
A3: Mixes | B3: Cut Height
A4: - | B4: -
A5: Alfalfa Hay | B5: 3
A6: Bermudagrass Hay | B6: 2-3
A7: Big Bluestem Hay | B7: 4-6
A8: Bluegrass Hay | B8: 3
A9: Brome Hay | B9: 3-4
A10: Brome/Alfalfa Hay | B10: 3-4
A11: Brome/Birdsfoot Hay | B11: 3-4
A12: Caucasian Bluestem Hay | B12: 3
A13: Corn silage | B13: 3
A14: Crabgrass and Ryegrass DC | B14: 2-3
A15: Crabgrass and Wheat/Rye DC Hay | B15: 2-3
A16: Crabgrass Hay | B16: 2-3
A17: Eastern Gamagrass Hay | B17: 6-8
A18: Fescue Hay | B18: 3
A19: Fescue- Hay before Winter stockpiled | B19: 3
A20: Fescue/Alfalfa Hay | B20: 3
A21: Fescue/Birdsfoot Hay | B21: 3
A22: Fescue/Ladino Hay | B22: 3
A23: Fescue/Lespedeza Hay | B23: 3
A24: Fescue/Lespedeza/Ladino Hay | B24: 3
A25: Fescue/Red Clover Hay | B25: 3
A26: Fescue/Red Clover/Ladino Hay | B26: 3
A27: Indian/Big Blue Hay | B27: 4-6
A28: Indiangrass Hay | B28: 4-6
A29: Johnsongrass Hay | B29: 4
A30: Lespedeza Hay | B30: 3
A31: Little Bluestem Hay | B31: 5
A32: Mixed Pasture (annual/perennial) Hay | B32: 3-4
A33: Native grass (prairie) Hay | B33: 4-6
A34: Orchardgrass Hay | B34: 3
A35: Orchardgrass/Alfalfa Hay | B35: 3
A36: Orchardgrass/Alfalfa/Ladino Hay | B36: 3
A37: Orchardgrass/Birdsfoot/Bluegrass Hay | B37: 3
A38: Orchardgrass/Ladino Hay | B38: 3
A39: Orchardgrass/Lespedeza Hay | B39: 3
A40: Orchardgrass/Lespedeza/Ladino Hay | B40: 3
A41: Orchardgrass/Red Clover Hay | B41: 3
A42: Red Clover Hay | B42: 3
A43: Reed Canary Hay | B43: 3-4
A44: Reed Canary/Alfalfa Hay | B44: 3-4
A45: Reed Canary/Ladino/Alsike Hay | B45: 3-4
A46: Reed Canary/Red Clover Hay | B46: 3-4
A47: Sorghum/Sudan and Ryegrass DC | B47: 6-10 & 2
A48: Sorghum/Sudan and Wheat/Rye DC Hay | B48: 6-10 & 2
A49: Sorghum/Sudan Hay | B49: 6-10
A50: Switchgrass Hay | B50: 6
A51: Timothy/Alfalfa/Ladino Hay | B51: 3
A52: Timothy/Red Clover Hay | B52: 3
A53: Wheat/Rye Hay | B53: 2

Sheet FSGTables (hidden)
C6: TABLE 1: RELATIVE ADAPTABILITY OF SELECTED FORAGE SPECIES TO FORAGE SUITABILITY GROUPS; EXPRESSED AS ESTIMATED YIELDS, THOUSANDS OF POUNDS PER ACRE, WHEN OUTSIDE INPUTS ARE MODERATE*.
A7: Wet Tolerance | B7: Drought Tolerance | C7: SPECIES | D7: SOIL Sa<-L-> Cy | E7: CyU | F7: GNS | G7: GrO | H7: GrP | I7: GrU | J7: LyO | K7: LyP | L7: LyU | M7: MDU | N7: ShU | O7: SyO | P7: WCB | Q7: WCU | R7: WLB | S7: WLO | T7: WtP
C8: LEGUMES
A9: N | B9: M | C9: ALFALFA | D9: L | E9: 8.5 | F9: --- | G9: 3 | H9: 2.5 | I9: 7 | J9: 10 | K9: 5 | L9: 9 | M9: 6.5 | N9: 1.5 | O9: 4 | P9: --- | Q9: --- | R9: --- | S9: --- | T9: ---
A10: H | B10: L | C10: ALSIKE CLOVER | D10: LC | E10: 5.5 | F10: --- | G10: --- | H10: --- | I10: --- | J10: 5.5 | K10: 3 | L10: 5 | M10: 3.5 | N10: 1 | O10: 1.5 | P10: 6.5 | Q10: 6 | R10: 6 | S10: 6 | T10: 4.5
A11: M | B11: H | C11: BIRDSFOOT TREFOIL | D11: LC | E11: 6.5 | F11: 1.5 | G11: 2 | H11: 2 | I11: 5.5 | J11: 7 | K11: 3.5 | L11: 6.5 | M11: 5.5 | N11: 1.5 | O11: 2.5 | P11: 4 | Q11: 4.5 | R11: 5 | S11: 6 | T11: 4
A12: N | B12: H | C12: CROWNVETCH | D12: L | E12: 7.5 | F12: 2 | G12: 3 | H12: 2.5 | I12: 6.5 | J12: 7 | K12: 5 | L12: 8 | M12: 6 | N12: 2 | O12: 4 | P12: --- | Q12: --- | R12: --- | S12: 6 | T12: 5.5
A13: H | B13: L | C13: LADINO CLOVER | D13: L | E13: 5 | F13: --- | G13: 1.5 | H13: 0.5 | I13: 4 | J13: 6 | K13: 3.5 | L13: 5 | M13: 4 | N13: 1 | O13: 2 | P13: 6 | Q13: 5.5 | R13: 6.5 | S13: 6.5 | T13: 5
A14: L | B14: H | C14: ANN. LESPEDEZA | D14: SLC | E14: 5 | F14: 1 | G14: 1.5 | H14: 2 | I14: 4 | J14: 5.5 | K14: 3.5 | L14: 5 | M14: 4 | N14: 1.5 | O14: 3 | P14: --- | Q14: 1 | R14: --- | S14: 4.5 | T14: ---
A15: L | B15: M | C15: RED CLOVER | D15: L | E15: 6.5 | F15: --- | G15: 1.5 | H15: 2 | I15: 5 | J15: 7.5 | K15: 3.5 | L15: 7 | M15: 5 | N15: 1 | O15: 2 | P15: --- | Q15: 1.5 | R15: --- | S15: 6.5 | T15: ---
C16: COOL SEASON GRASSES
A17: L | B17: L | C17: BLUEGRASS | D17: LC | E17: 5 | F17: 1.5 | G17: --- | H17: --- | I17: 3 | J17: 5.5 | K17: 3 | L17: 5 | M17: 3 | N17: 1.5 | O17: 2.5 | P17: 6.5 | Q17: 5 | R17: 6.5 | S17: 6 | T17: 3.5
A18: M | B18: L | C18: ORCHARDGRASS | D18: LC | E18: 7 | F18: --- | G18: 1 | H18: 1 | I18: 5.5 | J18: 7 | K18: 4.5 | L18: 7 | M18: 5.5 | N18: --- | O18: 3 | P18: 8 | Q18: 7 | R18: 8 | S18: 8 | T18: 6
A19: L | B19: N | C19: RED FESCUE | D19: LC | E19: 4 | F19: --- | G19: --- | H19: --- | I19: 3 | J19: 4.5 | K19: 2.5 | L19: 4 | M19: 3 | N19: --- | O19: 2.5 | P19: 5.5 | Q19: 5 | R19: 5.5 | S19: 5 | T19: 3
A20: L | B20: H | C20: REDTOP | D20: SLC | E20: 4 | F20: 1.5 | G20: 2 | H20: 2 | I20: 3 | J20: 4.5 | K20: 2.5 | L20: 4 | M20: 3 | N20: 1.5 | O20: 2.5 | P20: 5.5 | Q20: 5 | R20: 5.5 | S20: 5 | T20: 3
A21: H | B21: M | C21: REED CANARYGRASS | D21: LC | E21: 10 | F21: --- | G21: 2 | H21: 2.5 | I21: 8 | J21: 10 | K21: 6 | L21: 10 | M21: 8 | N21: 1.5 | O21: 4 | P21: 11 | Q21: 10 | R21: 11 | S21: 10.5 | T21: 8.5
A22: M | B22: M | C22: SMOOTH BROME | D22: LC | E22: 8 | F22: --- | G22: 2 | H22: 2.5 | I22: 6.5 | J22: 8.5 | K22: 5 | L22: 8 | M22: 6.5 | N22: 1.5 | O22: 3.5 | P22: 8 | Q22: 9 | R22: 8.5 | S22: 8 | T22: 7.5
A23: M | B23: H | C23: TALL FESCUE | D23: LC | E23: 8 | F23: 2 | G23: 3 | H23: 2.5 | I23: 6 | J23: 7.5 | K23: 5.5 | L23: 7.5 | M23: 6 | N23: 1.5 | O23: 3.5 | P23: 8 | Q23: 9 | R23: 8 | S23: 7.5 | T23: 7.5
A24: M | B24: N | C24: TIMOTHY | D24: LC | E24: 6 | F24: --- | G24: --- | H24: --- | I24: 4 | J24: 6 | K24: 4 | L24: 6 | M24: 4 | N24: --- | O24: 2.5 | P24: 7 | Q24: 7 | R24: 7 | S24: 6 | T24: 5.5
C25: WARM SEASON GRASSES
A26: M | B26: L | C26: BERMUDAGRASS | D26: SL | E26: 7.5 | F26: --- | G26: 3.5 | H26: 1 | I26: 5.5 | J26: 9 | K26: 5 | L26: 8 | M26: 5 | N26: --- | O26: 3 | P26: 9 | Q26: 9 | R26: 9.5 | S26: 9.5 | T26: 6
A27: H | B27: M | C27: BIG BLUESTEM | D27: L | E27: 9 | F27: --- | G27: 4.5 | H27: 3.5 | I27: 8 | J27: 11 | K27: 7 | L27: 10 | M27: 8 | N27: 2.5 | O27: 4 | P27: 9.5 | Q27: 10.5 | R27: 10.5 | S27: 11.5 | T27: 9
A28: N | B28: M | C28: CAUCASIAN BLUESTEM | D28: LC | E28: 9 | F28: --- | G28: 4.5 | H28: 3 | I28: 8 | J28: 10 | K28: 6.5 | L28: 9 | M28: 7.5 | N28: 2.5 | O28: 3.5 | P28: --- | Q28: 2 | R28: --- | S28: --- | T28: ---
A29: M | B29: M | C29: INDIANGRASS | D29: SLC | E29: 9 | F29: --- | G29: 4 | H29: 3 | I29: 8 | J29: 10 | K29: 6.5 | L29: 9 | M29: 8 | N29: 2.5 | O29: 3.5 | P29: 8.5 | Q29: 8.5 | R29: 9 | S29: 10.5 | T29: 9
A30: N | B30: H | C30: LITTLE BLUESTEM | D30: SL | E30: 5.5 | F30: 1.5 | G30: 2.5 | H30: 1.5 | I30: 5 | J30: 7 | K30: 3.5 | L30: 6.5 | M30: 5 | N30: 1.5 | O30: 3 | P30: --- | Q30: --- | R30: --- | S30: 7 | T30: ---
A31: N | B31: H | C31: SIDEOATS GRAMA | D31: SLC | E31: 5 | F31: 1.5 | G31: 2.5 | H31: 1.5 | I31: 4 | J31: 6 | K31: 3 | L31: 5 | M31: 4 | N31: 1.5 | O31: 2.5 | P31: --- | Q31: --- | R31: --- | S31: 6 | T31: ---
A32: H | B32: M | C32: SWITCHGRASS | D32: LC | E32: 9.5 | F32: --- | G32: 4.5 | H32: 3 | I32: 8 | J32: 11 | K32: 7 | L32: 10 | M32: 8 | N32: 2.5 | O32: 4 | P32: 12 | Q32: 11 | R32: 11.5 | S32: 11.5 | T32: 9
A33: H | B33: M | C33: EASTERN GAMAGRASS | D33: LC | E33: 11.5 | F33: --- | G33: 5 | H33: 4 | I33: 9 | J33: 13 | K33: 8 | L33: 12.5 | M33: 9 | N33: 3 | O33: 4.5 | P33: 14 | Q33: 13 | R33: 14 | S33: 13.5 | T33: 10
C35: * For High inputs add 30%

Sheet PrintableLivestockInventory (hidden)
A1: Livestock Inventory and Demand Summary for: | E1: Notes:
A2: =Name -> 0 | E2: =Notes -> 0
A3: =ID -> 
A4: =Date -> 
A8: Livestock Class | B8: Planned | C8: Avg. | D8: Intake | E8: Lbs/Day | F8: Lbs/Year | G8: Management Details | I8: Time Frame for
B9: Number | C9: Weight | D9: Rate (%) | I9: Alt Pasture or Dry Lot
A10: =LivestockForageBalance!H15 -> Cow/Calf Pairs Herd 1 | B10: =LivestockForageBalance!I15 -> 0 | C10: =LivestockForageBalance!J15 -> 0 | D10: =LivestockForageBalance!K15 -> 0 | E10: =LivestockForageBalance!L15 -> 0 | F10: =LivestockForageBalance!M15 -> 0 | G10: =IF(CC1Past=TRUE,"Grazing System Year Round",IF(CC1AltPast=TRUE,"Alternative Pasture Utilized",IF(CC1DryLot=TRUE,"Dry Lot Utilized"))) -> Grazing System Year Round | I10: =LivestockForageBalance!J16 ->  | J10: =LivestockForageBalance!K16 -> 
A11: =LivestockForageBalance!H17 -> Cow/Calf Pairs Herd 2 | B11: =LivestockForageBalance!I17 -> 0 | C11: =LivestockForageBalance!J17 -> 0 | D11: =LivestockForageBalance!K17 -> 0 | E11: =LivestockForageBalance!L17 -> 0 | F11: =LivestockForageBalance!M17 -> 0 | G11: =IF(CC2Past=TRUE,"Grazing System Year Round",IF(CC2AltPast=TRUE,"Alternative Pasture Utilized",IF(CC2DryLot=TRUE,"Dry Lot Utilized"))) -> Grazing System Year Round | I11: =LivestockForageBalance!J18 ->  | J11: =LivestockForageBalance!K18 -> 
A12: =LivestockForageBalance!H19 -> Cow/Calf Pairs Herd 3 | B12: =LivestockForageBalance!I19 -> 0 | C12: =LivestockForageBalance!J19 -> 0 | D12: =LivestockForageBalance!K19 -> 0 | E12: =LivestockForageBalance!L19 -> 0 | F12: =LivestockForageBalance!M19 -> 0 | G12: =IF(CC3Past=TRUE,"Grazing System Year Round",IF(CC3AltPast=TRUE,"Alternative Pasture Utilized",IF(CC3DryLot=TRUE,"Dry Lot Utilized"))) -> Grazing System Year Round | I12: =LivestockForageBalance!J20 ->  | J12: =LivestockForageBalance!K20 -> 
A13: =LivestockForageBalance!H21 -> Stockers Herd 1 | B13: =LivestockForageBalance!I21 -> 0 | C13: =LivestockForageBalance!J21 -> FALSE | D13: =LivestockForageBalance!K21 -> 0 | E13: =LivestockForageBalance!L21 -> 0 | F13: =LivestockForageBalance!M21 -> 0
A14: =LivestockForageBalance!H23 -> Stockers Herd 2 | B14: =LivestockForageBalance!I23 -> 0 | C14: =LivestockForageBalance!J23 -> FALSE | D14: =LivestockForageBalance!K23 -> 0 | E14: =LivestockForageBalance!L23 -> 0 | F14: =LivestockForageBalance!M23 -> 0
A15: =LivestockForageBalance!H25 -> Dairy, Seasonal | B15: =LivestockForageBalance!I25 -> 0 | C15: =LivestockForageBalance!J25 -> 0 | F15: =LivestockForageBalance!M25 -> 0 | G15: =IF(SeasonalDairyPast=TRUE,"Grazing System Year Round",IF(SeasonalDairyAltPast=TRUE,"Alternative Pasture Utilized",IF(SeasonalDairyDryLot=TRUE,"Dry Lot Utilized"))) -> Grazing System Year Round | I15: =LivestockForageBalance!J28 ->  | J15: =LivestockForageBalance!K28 -> 
A16: =LivestockForageBalance!H26 -> Intake Rate Lactating Months | D16: =LivestockForageBalance!K26 -> 0 | E16: =LivestockForageBalance!L26 -> 0
A17: =LivestockForageBalance!H27 -> Intake Rate Dry Months | D17: =LivestockForageBalance!K27 -> 0 | E17: =LivestockForageBalance!L27 -> 0
A18: =LivestockForageBalance!H29 -> Lactating Dairy Herd | B18: =LivestockForageBalance!I29 -> 0 | C18: =LivestockForageBalance!J29 -> 0 | D18: =LivestockForageBalance!K29 -> 0 | E18: =LivestockForageBalance!L29 -> 0 | F18: =LivestockForageBalance!M29 -> 0 | G18: =IF(LactatingDairyPast=TRUE,"Grazing System Year Round",IF(LactatingDairyAltPast=TRUE,"Alternative Pasture Utilized",IF(LactatingDairyDryLot=TRUE,"Dry Lot Utilized"))) -> Grazing System Year Round | I18: =LivestockForageBalance!J30 ->  | J18: =LivestockForageBalance!K30 -> 
A19: =LivestockForageBalance!H31 -> Dry Dairy Herd | B19: =LivestockForageBalance!I31 -> 0 | C19: =LivestockForageBalance!J31 -> 0 | D19: =LivestockForageBalance!K31 -> 0 | E19: =LivestockForageBalance!L31 -> 0 | F19: =LivestockForageBalance!M31 -> 0 | G19: =IF(DryDairyPast=TRUE,"Alternative Pasture Utilized",IF(DryDairyDryLot=TRUE,"Dry Lot Utilized")) -> FALSE
A20: =LivestockForageBalance!H33 -> Bulls | B20: =LivestockForageBalance!I33 -> 0 | C20: =LivestockForageBalance!J33 -> 0 | D20: =LivestockForageBalance!K33 -> 0 | E20: =LivestockForageBalance!L33 -> 0 | F20: =LivestockForageBalance!M33 -> 0 | G20: =IF(BullsPast=TRUE,"Grazing System Year Round",IF(OR(BullsAltPast1=TRUE,BullsAltPast2=TRUE),"Alternative Pasture Utilized",IF(OR(BullsDryLot1=TRUE,BullsDryLot2=TRUE),"Dry Lot Utilized"))) -> Grazing System Year Round | I20: =LivestockForageBalance!J34 ->  | J20: =LivestockForageBalance!K34 -> FALSE | K20: =LivestockForageBalance!M34 ->  | L20: =LivestockForageBalance!N34 -> 
A21: =LivestockForageBalance!H35 -> Horses | B21: =LivestockForageBalance!I35 -> 0 | C21: =LivestockForageBalance!J35 -> 0 | D21: =LivestockForageBalance!K35 -> 0 | E21: =LivestockForageBalance!L35 -> 0 | F21: =LivestockForageBalance!M35 -> 0 | G21: =IF(HorsesPast=TRUE,"Grazing System Year Round",IF(HorsesAltPast=TRUE,"Alternative Pasture Utilized",IF(HorsesDryLot=TRUE,"Dry Lot Utilized"))) -> Grazing System Year Round | I21: =LivestockForageBalance!J36 ->  | J21: =LivestockForageBalance!K36 -> 
A22: =LivestockForageBalance!H37 -> Sheep | B22: =LivestockForageBalance!I37 -> 0 | C22: =LivestockForageBalance!J37 -> 0 | D22: =LivestockForageBalance!K37 -> 0 | E22: =LivestockForageBalance!L37 -> 0 | F22: =LivestockForageBalance!M37 -> 0
A23: =LivestockForageBalance!H39 -> Goats | B23: =LivestockForageBalance!I39 -> 0 | C23: =LivestockForageBalance!J39 -> 0 | D23: =LivestockForageBalance!K39 -> 0 | E23: =LivestockForageBalance!L39 -> 0 | F23: =LivestockForageBalance!M39 -> 0
A25: Totals | B25: =LivestockForageBalance!I41 -> 0 | E25: =LivestockForageBalance!L41 -> 0 | F25: =LivestockForageBalance!M41 -> 0
B27: Forage Demand by Month (Lbs/month)
A28: Livestock Class | B28: Apr | C28: May | D28: June | E28: July | F28: Aug | G28: Sept | H28: Oct | I28: Nov | J28: Dec | K28: Jan | L28: Feb | M28: Mar
A29: =A10 -> Cow/Calf Pairs Herd 1 | B29: =LivestockForageBalance!N15 -> 0 | C29: =LivestockForageBalance!O15 -> 0 | D29: =LivestockForageBalance!P15 -> 0 | E29: =LivestockForageBalance!Q15 -> 0 | F29: =LivestockForageBalance!R15 -> 0 | G29: =LivestockForageBalance!S15 -> 0 | H29: =LivestockForageBalance!T15 -> 0 | I29: =LivestockForageBalance!U15 -> 0 | J29: =LivestockForageBalance!V15 -> 0 | K29: =LivestockForageBalance!W15 -> 0 | L29: =LivestockForageBalance!X15 -> 0 | M29: =LivestockForageBalance!Y15 -> 0
A30: Cow/Calf Pairs Herd 2 | B30: =LivestockForageBalance!N17 -> 0 | C30: =LivestockForageBalance!O17 -> 0 | D30: =LivestockForageBalance!P17 -> 0 | E30: =LivestockForageBalance!Q17 -> 0 | F30: =LivestockForageBalance!R17 -> 0 | G30: =LivestockForageBalance!S17 -> 0 | H30: =LivestockForageBalance!T17 -> 0 | I30: =LivestockForageBalance!U17 -> 0 | J30: =LivestockForageBalance!V17 -> 0 | K30: =LivestockForageBalance!W17 -> 0 | L30: =LivestockForageBalance!X17 -> 0 | M30: =LivestockForageBalance!Y17 -> 0
A31: Cow/Calf Pairs Herd 3 | B31: =LivestockForageBalance!N19 -> 0 | C31: =LivestockForageBalance!O19 -> 0 | D31: =LivestockForageBalance!P19 -> 0 | E31: =LivestockForageBalance!Q19 -> 0 | F31: =LivestockForageBalance!R19 -> 0 | G31: =LivestockForageBalance!S19 -> 0 | H31: =LivestockForageBalance!T19 -> 0 | I31: =LivestockForageBalance!U19 -> 0 | J31: =LivestockForageBalance!V19 -> 0 | K31: =LivestockForageBalance!W19 -> 0 | L31: =LivestockForageBalance!X19 -> 0 | M31: =LivestockForageBalance!Y19 -> 0
A32: Stockers Herd 1 | B32: =LivestockForageBalance!N21 -> 0 | C32: =LivestockForageBalance!O21 -> 0 | D32: =LivestockForageBalance!P21 -> 0 | E32: =LivestockForageBalance!Q21 -> 0 | F32: =LivestockForageBalance!R21 -> 0 | G32: =LivestockForageBalance!S21 -> 0 | H32: =LivestockForageBalance!T21 -> 0 | I32: =LivestockForageBalance!U21 -> 0 | J32: =LivestockForageBalance!V21 -> 0 | K32: =LivestockForageBalance!W21 -> 0 | L32: =LivestockForageBalance!X21 -> 0 | M32: =LivestockForageBalance!Y21 -> 0
